Workbook

Sheet Design Regulator
A1: LM27403 DC-DC Regulator Design Tool
O2: http://www.ti.com/product/lm27403
A3: About | C3: xx | F3: = Input Box | O3: TERMS OF USE
A5: Step 1: Operating Specifications
D6: Nominal Input Voltage VIN | E6: 12 | F6: V
D7: Output Voltage VOUT | E7: 2.1 | F7: V
D8: Maximum Output Current IOUT | E8: 14 | F8: A
D9: Switching Frequency (RFADJ) | E9: 600 | F9: kHz
D10: SYNC Frequency (if used) | F10: kHz
D11: Frequency Set Resistor RFADJ | E11: =IF('Standard Value Calculator'!S4/1000>105, "N/A",'Standard Value Calculator'!S4/1000) -> 14.7 | F11: kΩ
A13: Step 2: Filter Inductor
D14: Recommended Filter Inductance | E14: =Lout1*1000000 -> 0.6193693694 | F14: µH
D15: Inductance LOUT | E15: 0.68 | F15: µH
D16: Inductor DCR | E16: 3 | F16: mΩ
D17: Peak-to-Peak Inductor Ripple Current | E17: =Iripple1 -> 4.33125 | F17: Apk-pk
D18: Inductor Ripple Current as a % of Max IOUT | E18: =Iripple1/Iout*100 -> 30.9375 | F18: %
A20: Step 3: Inductor DCR-based Current Limit
D21: Required Current Limit Setpoint | E21: 18 | F21: A | S21: \
D22: Current Limit Set Resistor RISET | E22: ='Standard Value Calculator'!S22/1000 -> 6.04 | F22: kΩ
D23: DCR Sense Resistor RS | E23: =Rs/1000 -> 1.13 | F23: kΩ
D24: DCR Sense Capacitor CS | E24: =Cs*1000000 -> 0.22 | F24: µF
D25: Current Limit Setpoint | E25: =Ilimit2 -> 17.766375 | F25: A
A27: Step 4: Output Capacitor
D28: Output Voltage Ripple Specification | E28: 20 | F28: mVpk-pk
D29: Minimum Ideal Output Capacitance | E29: =Coutmin*1000000 -> 45.1171875 | F29: µF
D30: Output Capacitance COUT | E30: 100 | F30: µF
D31: Maximum Permitted ESR | E31: =IF(ISERROR(Resrmax*1000),"N/A",Resrmax*1000) -> 4.120921575 | F31: mΩ
D32: Output Capacitor ESR | E32: 0.6 | F32: mΩ
D33: Resulting Output Voltage Ripple | E33: =Vripple2*1000 -> 9.390203719 | F33: mVpk-pk
D34: Output Capacitor Ripple Current | E34: =Icoutrms -> 1.250324177 | F34: A (rms)
A36: Step 5: Input Capacitor
D37: Input Voltage Ripple Specification | E37: 300 | F37: mVpk-pk
D38: Minimum Ideal Input Capacitance | E38: ='Variable Management'!B59*1000000 -> 11.40515833 | F38: µF
D39: Input Capacitance CIN | E39: 22 | F39: µF
D40: Maximum Permitted ESR | E40: =IF(CinEsrMax*1000<0,"N/A",CinEsrMax*1000) -> 8.937180816 | F40: mΩ
D41: Input Capacitor ESR | E41: 3 | F41: mΩ
D42: Resulting Input Voltage Ripple | E42: =Vinripple2*1000 -> 204.0217614 | F42: mVpk-pk
D43: Input Capacitor Ripple Current | E43: =Icinrms -> 5.361063234 | F43: A (rms)
A45: Step 6: Soft-start, OTP, UVLO
D46: Soft-Start Time tSS | E46: 8 | F46: ms
D47: Soft-Start Capacitance CSS | E47: =IF(Tss>1.28/1000,Css_u*1000000000,"N/A") -> 39 | F47: nF
D48: System Level OTP Setpoint | E48: 105 | F48: °C
D49: OTP Resistor ROTP | E49: =Rotp_exact/1000 -> 84.96984127 | F49: kΩ
D50: Input Voltage UVLO On | E50: 5 | F50: V
D51: Input Voltage UVLO Off | E51: 2.4 | F51: V
D52: UVLO Upper Resistor RUV1 | E52: ='Variable Management'!F76 -> 210 | F52: kΩ
D53: UVLO Lower Resistor RUV2 | E53: ='Variable Management'!F77 -> 57.6 | F53: kΩ
A54: If the SYNC feature is not required, connect SYNC to GND
A56: Step 7: Compensation Design
D57: LC Complex Pole Frequency | E57: =Fo/1000 -> 19.45355259 | F57: kHz
D58: ESR Zero Frequency | E58: =Fesr/1000 -> 2652.582388 | F58: kHz
D59: Desired Crossover Frequency | E59: 70 | F59: =" kHz " -> kHz
D60: Appropriate Midband Gain | E60: =Kmidband -> 0.3998127201 | F60: V/V
D61: Upper Feedback Resistor RFB1 | E61: 20 | F61: kΩ
D62: Lower Feedback Resistor RFB2 | E62: =IF(Vout=Vref,"OPEN",Rfb2_u/1000) -> 8.06 | F62: =IF(Vout=Vref,"","kΩ") -> kΩ
A64: Pole & Zero Placement | D64: FZ1 | E64: =Fo/1000*0.7 -> 13.61748682 | F64: =" kHz " -> kHz
A65: ="Baseline P/Z Frequencies:" -> Baseline P/Z Frequencies: | D65: FZ2 | E65: =Fo/1000 -> 19.45355259 | F65: =" kHz" -> kHz
D66: FP1 | E66: =Fesr/1000 -> 2652.582388 | F66: =" kHz" -> kHz
D67: FP2 | E67: =Fsw/2000 -> 300 | F67: =" kHz" -> kHz
A69: Compensation Components
B70: Calculated / | C70: Std Values | D70: =" Selected" -> Selected | F70: Actual P/Z Frequencies
A71: RC1 | B71: =Rcea1/1000 -> 7.996254402 | C71: ='Standard Value Calculator'!S27 -> 8.06 | D71: 8.06 | E71: kΩ | F71: =Fz1_u/1000 -> 13.16418059 | G71: kHz (FZ1)
A72: CC1 | B72: =Cc1ea*1000000000000 -> 1461.62703 | C72: ='Standard Value Calculator'!S28 -> 1500 | D72: 1500 | E72: pF | F72: =Fz2_u/1000 -> 20.24454798 | G72: kHz (FZ2)
A73: CC2 | B73: =Cc2ea*1000000000000 -> 69.50035667 | C73: ='Standard Value Calculator'!S29 -> 68 | D73: 68 | E73: pF | F73: =Fp1_u/1000 -> 2582.845558 | G73: kHz (FP1)
A74: RC2 | B74: =Rcea2 -> 147.7599754 | C74: ='Standard Value Calculator'!S30 -> 147 | D74: 158 | E74: Ω | F74: =Fp2_u/1000 -> 303.550517 | G74: kHz (FP2)
A75: CC3 | B75: =Cc3ea*1000000000000 -> 406.0639551 | C75: ='Standard Value Calculator'!S31 -> 390 | D75: =C75 -> 390 | E75: pF
A77: Efficiency / Power Loss Analyzer
A79: Step 8: Efficiency
D81: High-Side MOSFET (Q1) Specifications | E81: CSD16327
D82: On-State Resistance, RDS(on) | E82: 4 | F82: mΩ
D83: Total Gate Charge, QG | E83: 6.2 | F83: nC
D84: Gate-Drain Charge, QGD | E84: 1.1 | F84: nC
D85: Gate-Source Charge, QGS | E85: 1.8 | F85: nC
D86: Gate Resistance, RG | E86: 1.4 | F86: Ω
D87: Transconductance, gFS | E87: 96 | F87: S
D88: Gate-Source Threshold Voltage, VGS(TH) | E88: 2.2 | F88: V
D89: Body Diode Forward Voltage, VBD1 | E89: 0.85 | F89: V
D90: Thermal Resistance, θJA | E90: 55 | F90: °C/W
D92: Low-Side MOSFET (Q2) Specifications | E92: CSD18512
D93: On-State Resistance, RDS(on) | E93: 1.8 | F93: mΩ
D94: Total Gate Charge, QG | E94: 75 | F94: nC
D95: Body Diode Forward Voltage, VBD2 | E95: 0.77 | F95: V
D96: Body Diode Recovery Charge, QRR | E96: 22 | F96: nC
D97: Thermal Resistance, θJA | E97: 50 | F97: °C/W
D98: Schottky Diode (if applicable)
D99: Schottky Diode Forward Voltage, VSD | E99: 0 | F99: V
D100: Schottky Diode Recovery Charge, QRR2 | E100: 0 | F100: nC

Sheet BOM & Schematic
B36: ** Tie SYNC to GND if not used **
A37: ="VIN = "&Vin&" V, VOUT = "& Vout &" V, IOUT = " &Iout & " A, Fsw = " & Fsw/1000 &" kHz, Current Limit = "&ROUNDUP(Ilimit2,0)&" A" -> VIN = 12 V, VOUT = 2.1 V, IOUT = 14 A, Fsw = 600 kHz, Current Limit = 18 A
A38: High Efficiency Synchronous Buck Regulator BOM
A39: Count | B39: Ref Des | C39: Value | D39: Description | H39: Size | I39: Part Number | J39: MFR
A40: 3 | B40: CBOOT, COTP, CT | C40: 0.1 | D40: =C40 -> 0.1 | H40: 0603 | I40: Std | J40: Std
A41: 1 | B41: CC1 | C41: ='Design Regulator'!D72 -> 1500 | D41: 1500 | H41: 0603 | I41: Std | J41: Std
A42: 1 | B42: CC2 | C42: ='Design Regulator'!D73 -> 68 | D42: 68 | H42: 0603 | I42: Std | J42: Std
A43: 1 | B43: CC3 | C43: ='Design Regulator'!D75 -> 390 | D43: 390 | H43: 0603 | I43: Std | J43: Std
A44: 1 | B44: CCS | C44: 470 | D44: =C44 -> 470 | H44: 0603 | I44: Std | J44: Std
A45: 1 | B45: CD | C45: 1 | D45: 1 | H45: 0603 | I45: Std | J45: Std
A46: =ROUNDUP('Design Regulator'!E39/22,0) -> 1 | B46: CIN | C46: 22 | D46: 22 | H46: 1210 | I46: Std | J46: Std
A47: =ROUNDUP('Design Regulator'!E30/100,0) -> 1 | B47: COUT | C47: 100 | D47: 100 | H47: 1210 | I47: Std | J47: Std
A48: 1 | B48: CS | C48: 0.22 | D48: 0.22 | H48: 0603 | I48: Std | J48: Std
A49: 1 | B49: CSS | C49: ='Design Regulator'!E47 -> 39 | D49: 39 | H49: 0603 | I49: Std | J49: Std
A50: 1 | B50: CVDD | C50: 4.7 | D50: 4.7 | H50: 0603 | I50: Std | J50: Std
A51: 1 | B51: CVIN | C51: 1 | D51: 1 | H51: 0603 | I51: Std | J51: Std
A52: 1 | B52: DBOOT | C52: See description | D52: BAT64-02W, 40V, 200mA, Schottky | H52: SOD523 | I52: BAT64-02W | J52: Infineon
A53: 1 | B53: LOUT | C53: ='Design Regulator'!E15 -> 0.68 | D53: ="Inductor, "&Lout2*1000000&"µH, "&Rdcr*1000&"mΩ, >"&ROUNDUP(Ilimit2*1.1,0)&"A" -> Inductor, 0.68µH, 3mΩ, >20A | H53: - | I53: - | J53: Various
A54: 1 | B54: Q1 | C54: See description | D54: ='Design Regulator'!E82 -> 4 | H54: SON 5 x 6 mm | I54: ='Design Regulator'!E81 -> CSD16327 | J54: TI
A55: 1 | B55: Q2 | C55: See description | D55: ='Design Regulator'!E93 -> 1.8 | H55: SON 5 x 6 mm | I55: ='Design Regulator'!E92 -> CSD18512 | J55: TI
A56: 1 | B56: QT | C56: 2N3904 | D56: Transistor, NPN, 40V, 200mA | H56: SOT323 | I56: MMBT3904T | J56: Various
A57: 1 | B57: RC1 | C57: ='Design Regulator'!D71 -> 8.06 | D57: =C57 -> 8.06 | H57: 0603 | I57: Std | J57: Std
A58: 1 | B58: RC2 | C58: ='Design Regulator'!D74 -> 158 | D58: 158 | H58: 0603 | I58: Std | J58: Std
A59: 2 | B59: RCS, RISET | C59: ='Design Regulator'!E22 -> 6.04 | D59: 6.04 | H59: 0603 | I59: Std | J59: Std
A60: 1 | B60: RFADJ | C60: ='Design Regulator'!E11 -> 14.7 | D60: 14.7 | H60: 0603 | I60: Std | J60: Std
A61: 1 | B61: RFB1 | C61: ='Design Regulator'!E61 -> 20 | D61: 20 | H61: 0603 | I61: Std | J61: Std
A62: 1 | B62: RFB2 | C62: ='Design Regulator'!E62 -> 8.06 | D62: 8.06 | H62: 0603 | I62: Std | J62: Std
A63: 1 | B63: RPGOOD | C63: 20 | D63: 20 | H63: 0603 | I63: Std | J63: Std
A64: 1 | B64: RS | C64: ='Design Regulator'!E23 -> 1.13 | D64: 1.13 | H64: 0603 | I64: Std | J64: Std
A65: 1 | B65: ROTP | C65: ='Variable Management'!C237 -> 84.5 | D65: 84.5 | H65: 0603 | I65: Std | J65: Std
A66: 1 | B66: RUV1 | C66: ='Design Regulator'!E52 -> 210 | D66: 210 | H66: 0603 | I66: Std | J66: Std
A67: 1 | B67: RUV2 | C67: ='Design Regulator'!E53 -> 57.6 | D67: 57.6 | H67: 0603 | I67: Std | J67: Std
A68: 1 | B68: RVIN | C68: 2.2 | D68: 2.2 | H68: 0603 | I68: Std | J68: Std
A69: 1 | B69: U1 | C69: LM27403 | D69: IC, LM27403, PWM Controller with DCR Current Sensing, 3V-20V Input | H69: WQFN-24 | I69: LM27403SQ | J69: TI
A72: NOTES:
A73: ** TI PowerBlock MOSFET has vertically-stacked high- and low-side MOSFETs integrated in one package **
A74: ** Inductor saturation current should be higher than the current limit setpoint at all operating temperatures **
A75: ** Effective output capacitance should be appropriately derated for applied voltage and temperature, particularly with ceramics **

Sheet EVMs
A1: LM27403 DC-DC Regulator Design Tool
B6: LM27403EVM PCB Layout | N6: LM27403EVM-POL600 PCB Layout

Sheet Variable Management (hidden)
A1: Excel Variables Names/Calculations
B2: Input from user =
B3: Output =
B4: Constant
A5: Variable Name | B5: Value | C5: STD Units | D5: Notes | H5: iteration
A6: Step 1: Operational Specs
A7: Vin | B7: ='Design Regulator'!E6 -> 12 | C7: V | D7: Nominal input voltage | H7: 1
A8: Vout | B8: ='Design Regulator'!E7 -> 2.1 | C8: V | D8: Output Voltage | H8: 1
A9: Iout | B9: ='Design Regulator'!E8 -> 14 | C9: A | D9: Maximum output Current | H9: 1
A10: Fsw | B10: ='Design Regulator'!E9*1000 -> 600000 | C10: Hz | D10: Nominal Operational Frequency | H10: 1
A11: Vref | B11: 0.6 | C11: V | D11: Reference Voltage
A12: Rfadj | B12: =(10000/((Fsw/1000)^0.99-100)-7)*1000 -> 14606.65907 | C12: W
A13: Totp | B13: ='Design Regulator'!E48 -> 105
A17: Step 2: Inductor
A18: Don1 | B18: =Vout/Vin -> 0.175 | C18: index | D18: ideal Duty Cycle | H18: 1
A19: Doff1 | B19: =1-18:18 -> 0.825 | C19: index | D19: Ideal 1- Duty Cycle | H19: 1
A20: Lout1 | B20: =(Vin-Vout)*_Don1/(Fsw*Iout*0.333) -> 6.193693694e-07 | C20: H | D20: Calculated Inductor value for 30% ripple | H20: 1
A21: Lout2 | B21: ='Design Regulator'!E15/1000000 -> 6.8e-07 | C21: H | D21: Chosen Inductor Value | H21: 2
A22: Rdcr | B22: ='Design Regulator'!E16/1000 -> 0.003 | C22: W | D22: DCR | H22: 1
A23: Don2 | B23: =(Vout+Iout*Rdcr)/Vin -> 0.1785 | C23: index | D23: Duty Cycle with DCR accounted for | H23: 2
A24: Doff2 | B24: =1-_Don2 -> 0.8215 | C24: index | D24: 1-Duty Cycle with DCR accounted for | H24: 2
A25: Vripple1 | B25: ='Design Regulator'!E28/1000 -> 0.02 | C25: V | D25: Choosen Initial Voltage ripple Value | H25: 1
A26: Irripple1 | B26: =(Vin-Vout)*_Don2/(Fsw*Lout2) -> 4.33125 | C26: A | D26: Ripple Current after Chosen inductor (p-p) | H26: 1
A27: DCR at hot | B27: =Rdcr*(1+0.0039*(F27-25)) -> 0.0038775 | C27: Ohms | E27: Temp | F27: 100
A28: TL | B28: =Lout2/Rdcr -> 0.0002266666667 | C28: s | D28: L/R Time Constant
A30: Step 3: Current Limit
A31: Common Circuit (Y/N)? | B31: ="n" -> n
B32: yes
B33: no
A34: Ilimit | B34: ='Design Regulator'!E21+Iripple1/2 -> 20.165625 | C34: A | D34: Chosen current limit level
A35: Ics | B35: 9.9e-06 | C35: A | D35: Current Limit Current Source
A36: Rsetideal | B36: =ILimit*Rdcr/Ics -> 6110.795455 | C36: W | D36: Ideal Rset for the chossen current limit
A37: Rset | B37: ='Standard Value Calculator'!S22 -> 6040 | C37: W | D37: Starndard value current limit set resistor
A38: Csideal | B38: =0.00000022 -> 2.2e-07 | C38: F | D38: Ideal filter capacitor | H38: =Csideal*1000000000 -> 220
A39: Cs | B39: ='Standard Value Calculator'!H4 -> 2.2e-07 | C39: F | D39: Standard size based on Csideal filter capacitor
A40: Rsideal | B40: =1.1*TL/Cs -> 1133.333333 | C40: W | D40: Based on 0.22uF DCR filter capacitor
A41: Rs | B41: ='Standard Value Calculator'!S6 -> 1130 | C41: W | D41: Same as recommended filter resistor
A45: Ilimit2 | B45: =Ics*Rset/Rdcr-Iripple1/2 -> 17.766375 | C45: A | D45: Current limit setpoint after standard components are selected
A47: Step 4: Output Capacitor
A48: Icoutrms | B48: =Iripple1/SQRT(3)/2 -> 1.250324177 | D48: Output Cap rms current
A49: Coutmin | B49: =(Iripple1/(Vripple1*Fsw*8)) -> 4.51171875e-05 | C49: F | D49: Minimum Output Capacitnace | H49: 1
A50: Cout | B50: ='Design Regulator'!E30/1000000 -> 0.0001 | C50: F | D50: Choosen Output Capacitor | H50: 1
A51: Resrmax | B51: =SQRT((Vripple1/Iripple1)^2-(1/(Fsw*Cout*8))^2) -> 0.004120921575 | C51: W | D51: Max ESR before ripple exceeds Vripple1 | H51: 1
A52: CoutEsr | B52: ='Design Regulator'!E32/1000 -> 0.0006 | C52: W | D52: Chosen ESR | H52: 1
A53: Vripple | B53: =Iripple1*SQRT(CoutEsr^2+(1/(8*Fsw*Cout))^2) -> 0.009390203719 | C53: Vp-p
A56: Step 5: Input Capacitor
A57: Vinripple1 | B57: ='Design Regulator'!E37/1000 -> 0.3 | C57: Vp-p
A58: Icinrms | B58: =Iout*SQRT(_Don2*Doff2) -> 5.361063234 | C58: A
A59: Cinmin | B59: =Iout*_Don2*(1-_Don2)/(Vinripple1*Fsw) -> 1.140515833e-05 | C59: F
A60: Cin | B60: ='Design Regulator'!E39/1000000 -> 2.2e-05 | C60: F | D60: Input capacitance
A61: CinEsrMax | B61: =-(Iout*_Don2*(1-_Don2)/(Cin*Fsw)-Vinripple1)/(Iout+Iripple1/2) -> 0.008937180816 | C61: W
A62: RCinEsr | B62: ='Design Regulator'!E41/1000 -> 0.003 | C62: W | D62: Input capacitance series resistance (ESR)
A63: Vinripple2 | B63: =Iout*_Don2*(1-_Don2)/(Cin*Fsw)+(Iout +Iripple1/2)*RCinEsr -> 0.2040217614 | C63: Vp-p
B64: =Iout*_Don1*(1-_Don1)/(Cin*Fsw) -> 0.153125
A66: Step 6: Soft Start
A67: Tss | B67: ='Design Regulator'!E46/1000 -> 0.008 | C67: s | D67: Soft Start Time
A68: Iss | B68: =Cout*Vout/Tss -> 0.02625 | C68: A | D68: Load Cap current during soft start
A69: Css | B69: =0.000003*Tss/0.6 -> 4e-08 | C69: F
A70: Css_u | B70: ='Standard Value Calculator'!B4 -> 3.9e-08 | C70: F
A72: Step 7: Other Components
A74: VINUVLO_ON | B74: ='Design Regulator'!E50 -> 5 | C74: V
A75: VINUVLO_OFF | B75: ='Design Regulator'!E51 -> 2.4 | C75: V
A76: RUV1 | B76: =(VINuvlo_off-VINuvlo_on*Vuvlo_off/Vuvlo_on)/(Iuvlo1*Vuvlo_off/Vuvlo_on-Iuvlo2) -> 210.1533683 | C76: kΩ | D76: ='Standard Value Calculator'!S15 -> 210 | E76: kΩ | F76: =IF(Ruvlo1<0,"N/A",D76) -> 210 | G76: =IF(Ruvlo1<0,"N/A",D76&"kΩ") -> 210kΩ
A77: RUV2 | B77: =D76*Vuvlo_on/(VINuvlo_on-Vuvlo_on+Ruvlo1*Iuvlo1) -> 57.115476 | C77: kΩ | D77: ='Standard Value Calculator'!S16 -> 57.6 | E77: kΩ | F77: =IF(F76="N/A","N/A",D77) -> 57.6 | G77: =IF(G76="N/A","N/A",D77&"kΩ") -> 57.6kΩ
A79: VINUVLO_ON_ACTUAL | B79: =(D76+D77)/D77*Vuvlo_on-Iuvlo1*D76 -> 4.964708333
A80: VINUVLO_OFF_ACTUAL | B80: =(D76+D77)/D77*Vuvlo_off-Iuvlo2*D76 -> 2.371145833
A83: Rising UVLO/EN Threshold | B83: 1.15
A84: Falling UVLO/EN Threshold | B84: 0.985
A85: Falling UVLO/EN Threshold | B85: =B83-B84 -> 0.165
A86: UVLO/EN Current Hysteresis | B86: 0.0018
A87: Falling UVLO/EN Falling | B87: 0.0105
A88: Rising UVLO/EN Hysteresis | B88: =B87-B86 -> 0.0087
A90: RPG | C90: W
A91: RSB | C91: W
A92: Rh | C92: W
A93: Rotp | B93: =80700/(Totp+273)*398 -> 84969.84127 | C93: W
A96: CSBY | B96: 100 | C96: pF
A100: Step 8: Compensation
A101: Eadcg | B101: 3162 | C101: V/V | D101: Error Amplifier Finite DC Gain (AOL)
A102: GBP | B102: 6000000 | C102: Hz | D102: Error Amplifier Gain Bandwidth Product (GBW)
A103: Chosen Crossover | B103: ='Design Regulator'!E59*1000 -> 70000 | C103: Hz
A104: Kmidband | B104: =Fcross/Fo/9 -> 0.3998127201 | C104: V/V | D104: Midband Gain For the Error Amplifier | H104: 1
A105: Rfb1 | B105: ='Design Regulator'!E61*1000 -> 20000 | C105: W | D105: Top Feedback Resistor | H105: 1
A106: Rfb2 | B106: =IF(Vout=Vref,100000000,Vref/((Vout-Vref)/_Rfb1)) -> 8000 | C106: W | D106: Bottom Feedback Resistor
A107: Rfb2_u | B107: =IF(Vout=Vref,"N/A",'Standard Value Calculator'!S10) -> 8060 | C107: W | D107: User Chosen Feedback Resistor
A108: Vramp | B108: =Vin/9 -> 1.333333333 | C108: Vp-p | D108: Peak-to-Peak Ramp Voltage of PWM
A109: Rcea1 | B109: =Kmidband*_Rfb1 -> 7996.254402 | C109: W | D109: This component will first set the midband gain | H109: 1
A110: Cc1ea | B110: =1/(Rcea1*('Design Regulator'!E64*1000)*2*Pi) -> 1.46162703e-09 | C110: F | D110: This along with Rcea1 will set a zero | H110: 1
A111: Cc2ea | B111: =1/((Rcea1*2*Pi*'Design Regulator'!E67*1000)-1/Cc1ea) -> 6.950035667e-11 | C111: F | H111: 1
A112: Rcea2 | B112: =(1/(1000*2*Pi*'Design Regulator'!E66))*_Rfb1/(1/('Design Regulator'!E65*1000*2*Pi)-(1/(1000*2*Pi*'Design Regulator'!E66))) -> 147.7599754 | C112: W | H112: 1
A113: Cc3ea | B113: =(1/(1000*2*Pi*'Design Regulator'!E66))/Rcea2 -> 4.060639551e-10 | C113: F | H113: 1
A115: Choosen Compensation Components from the standard value sheet
A116: Rcea1_u | B116: ='Design Regulator'!D71*1000 -> 8060 | C116: W | H116: 2
A117: Cc1ea_u | B117: ='Design Regulator'!D72*0.000000000001 -> 1.5e-09 | C117: F | H117: 2
A118: Cc2ea_u | B118: ='Design Regulator'!D73*0.000000000001 -> 6.8e-11 | C118: F | H118: 2
A119: Rcea2_u | B119: ='Design Regulator'!D74 -> 158 | C119: W | H119: 2
A120: Cc3ea_u | B120: ='Design Regulator'!D75*0.000000000001 -> 3.9e-10 | C120: F | H120: 2
A122: Resulting Poles/Zero/Q Locations | D122: =Cout -> 0.0001 | E122: =CoutEsr -> 0.0006
A123: Fo | B123: =SQRT((Rfets+Rdcr+Ro)/(Cout*Lout2*(CoutEsr+Ro)))/(2*Pi) -> 19453.55259 | C123: Hz | D123: LC Double Pole Location
A124: Q | B124: =(Rfets+Rdcr+Ro)/(Lout2+Cout*(Rdcr+Rfets)*(CoutEsr+Ro)+Cout*CoutEsr*Ro)/(Fo*2*Pi) -> 1.704935604 | C124: V/V | D124: Quality Factor of LC output Filter
A125: Fesr | B125: =1/(2*Pi*Cout*CoutEsr) -> 2652582.388 | C125: Hz | D125: Cout ESR Zero Location
A126: Fz1 | B126: =1/(2*Pi*Rcea1_u*Cc1ea_u) -> 13164.18059 | C126: Hz | D126: This zero is set at or below the double pole location
A127: Fz2 | B127: =1/(2*Pi*Cc3ea_u*(_Rfb1+Rcea2_u)) -> 20244.54798 | C127: Hz | D127: This zero is set at or below the double pole location
A128: Fp1 | B128: =1/(2*Pi*Rcea2_u*Cc3ea_u) -> 2582845.558 | C128: Hz | D128: This pole cancels the zero from the Output Cap ESR
A129: Fp2 | B129: =1/(2*Pi*Rcea1_u*(Cc1ea_u*Cc2ea_u/(Cc1ea_u+Cc2ea_u))) -> 303550.517 | C129: Hz | D129: This pole is set at half the switching frequency
A130: Ro | B130: =Vout/(Iout+Vref/_Rfb2) -> 0.1499991964 | D130: Output Resistance
A131: Pi | B131: 3.14159265 | D131: PI
A132: Other Input Variables
A133: Rfets | B133: 0 | C133: W | D133: Series resistance due to FETs | G133: =_Don2*RdsonTop+Doff2*RdsonBot+B138*Vin^2*Fsw/2/(((Iripple1/SQRT(3))^2)) -> 0.0367347813
A135: Diode loss eq res | B135: =0.00000002*Fsw*0.6*4/Iripple1 -> 0.006649350649
A136: Fet loss eq res | B136: =_Don2*RdsonTop+Doff2*RdsonBot -> 0.0021927
A137: cap loss eq res | B137: =B138*Vin^2*Fsw/2/(((Iripple1/SQRT(3))^2)) -> 0.0345420813
A138: Sw cap | B138: 5e-09
A141: Step 8: Efficiency
A143: Design
A144: Ta | B144: 25 | D144: Ambient Temperature
A145: Components
A146: LTc | B146: =4000/1000000 -> 0.004 | C146: %/°C | D146: Inductor Series Resistance Temp Co
A147: ThetaCa | B147: 20 | C147: °C/W | D147: Core to Ambient Thermal Resistance
A148: RCinEsr | B148: =RCinEsr -> 0.003 | C148: W | D148: Input Capacitor Series Resistance
A149: Part Characteristics
A150: Vdd | B150: =IF(Vin>4.5,4.5,Vin) -> 4.5
A151: Top Driver
A152: RdsonDRT | B152: 1.5 | C152: W | D152: Drain to Source Resistance of pull up Top FET Driver
A153: RdsonDRT2 | B153: 1 | C153: W | D153: Drain to Source Resistance of pull down Top FET Driver
A154: Bottom Driver
A155: RdsonDRB | B155: 1.5 | C155: W | D155: Drain to Source Resistance of pull up Top FET Driver
A156: RdsonDRB2 | B156: 0.9 | C156: W | D156: Drain to Source Resistance of pull down Top FET Driver
A157: Deadtime | D157: Output Capacitor Capcitance
A158: Deadtime | B158: 2e-08 | C158: s | D158: Total Deadtime
A159: IQ
A160: IQ | B160: 0.003 | C160: A | D160: Quiescent Current Of Controller (Not Switching!)
A161: Top FET
A162: RdsonTop | B162: ='Design Regulator'!E82/1000 -> 0.004 | C162: W | D162: Drain to Source Resistance of Top FET
A163: RdsonTopTc | B163: =4000/1000000 -> 0.004 | C163: %/°C | D163: Drain to Source Resistance Temp Co
A164: QgTop | B164: ='Design Regulator'!E83/1000000000 -> 6.2e-09 | C164: C | D164: Gate Charge Of Top FET
A165: QgdTop | B165: ='Design Regulator'!E84/1000000000 -> 1.1e-09 | C165: C | D165: Gate to Drain Charge
A166: QgsTop | B166: ='Design Regulator'!E85/1000000000 -> 1.8e-09 | C166: C
A167: RGateTop | B167: ='Design Regulator'!E86 -> 1.4 | C167: W | D167: Gate Resistance
A168: GfsTop | B168: ='Design Regulator'!E87 -> 96 | C168: S | D168: Transconductance of Top FET
A169: VthTop | B169: ='Design Regulator'!E88 -> 2.2 | C169: V | D169: Threshold Voltage of Top FET
A170: VspTop | B170: =VthTop+Iout/GmTop -> 2.345833333 | C170: V | D170: Switch Point Voltage of Top FET
A171: VsdTop | B171: ='Design Regulator'!E89 -> 0.85 | C171: V | D171: Diode Forward Voltage of Top FET Body diode
A172: ThetaJaTop | B172: ='Design Regulator'!E90 -> 55 | C172: °C/W | D172: Junction to Ambient Resistance
A173: Bottom FET
A174: RdsonBot | B174: ='Design Regulator'!E93/1000 -> 0.0018 | C174: W | D174: Drain To Source Resistance of Bottom FET Driver
A175: RdsonBotTc | B175: =4000/1000000 -> 0.004 | C175: %/°C | D175: Drain To Source Resitance Temp Co
A176: QgBot | B176: ='Design Regulator'!E94/1000000000 -> 7.5e-08 | C176: C | D176: Gate Charge Of Top FET | J176: =RGateTop -> 1.4
A177: RGateBot | B177: 1 | C177: W | D177: Gate Resistance
A178: VsdBot | B178: ='Design Regulator'!E95 -> 0.77 | C178: V | D178: Diode Forward Voltage of Bottom FET Body Diode
A179: QrrBot | B179: ='Design Regulator'!E96/1000000000 -> 2.2e-08 | C179: C | D179: Reverse Recovery Charge of Body Diode
A180: TrrBot | B180: 4e-08 | C180: s | D180: Reverse Recovery Time of Body Diode
A181: ThetaJaBot | B181: ='Design Regulator'!E97 -> 50 | C181: °C/W | D181: Junction to Ambient Resistance
A182: Bottom Schottky
A183: VfdSky | B183: ='Design Regulator'!E99 -> 0 | C183: V | D183: Diode Forward Voltage
A184: QrrSky | B184: ='Design Regulator'!E100/1000000000 -> 0 | C184: C | D184: Diode Reverse Recovery Charge
A185: Ireverse | B185: 0 | C185: A | D185: Reverse Leakage Current
A186: Controller
A187: ThetaJaCtrl | B187: 30
A188: Outputs
A189: Top FET
A190: Tr | B190: =(QgdTop+QgsTop/2)*(RdsonDRT+RGateTop)/(Vdd-VspTop) -> 2.69245648e-09 | C190: s
A191: Tf | B191: =(QgdTop+QgsTop/2)*(RdsonDRT+RGateTop)/(VspTop) -> 2.472468917e-09 | C191: s
A194: Part Power Disipation | B194: Value | C194: Units
A195: Power Dis | B195: ='Power Calculations'!AI9 -> 0.62064 | C195: W
A196: Temp rise | B196: =B195*ThetaJaCtrl -> 18.6192 | C196: °C
A197: Current (switching) | B197: =(QgBot+QgTop)*Fsw+Iq -> 0.05172 | C197: A
A198: Qrr Current | B198: =QrrBot*Fsw -> 0.0132 | C198: A
A199: Diode Current | B199: =C199/Vin -> 0.0006633375664 | C199: =Deadtime*Fsw*(Ipp/2)*(VsdTop+VsdBot) -> 0.007960050797
A200: Total Application Switching IQ | B200: =SUM(B197:B199) -> 0.06558333757 | C200: A
A206: Bottom FET/Diode
A207: Part Power
A208: Power Dis
A210: SCHEMATIC LABELS
A211: ="RC1 = "&'Design Regulator'!D71&"kΩ" -> RC1 = 8.06kΩ | B211: ='Design Regulator'!D71&"kΩ" -> 8.06kΩ
A212: ="LOUT = "&'Design Regulator'!E15&"uH" -> LOUT = 0.68uH | B212: ='Design Regulator'!E15&"µH" -> 0.68µH
A213: ="Rdcr = "&'Design Regulator'!E16&"mΩ" -> Rdcr = 3mΩ | B213: ='Design Regulator'!E16&"mΩ" -> 3mΩ
A214: ="VOUT = "&'Design Regulator'!E7&"V" -> VOUT = 2.1V | B214: ='Design Regulator'!E7&"V" -> 2.1V
A216: ="COUT = "&'Design Regulator'!$E$30&"uF" -> COUT = 100uF | B216: ='Design Regulator'!$E$30&"µF" -> 100µF
A217: Capacitance per component (Cout) | B217: ="100µF" -> 100µF
A218: # of output caps | B218: =ROUNDUP(Cout*1000000/100,0)&" x" -> 1 x
A220: CIN | B220: =Cin*1000000&"µF" -> 22µF
A221: Capacitance per component (Cin) | B221: ="22µF" -> 22µF
A222: # of input caps | B222: =ROUNDUP(Cin*1000000/22,0)&" x" -> 1 x
A224: ="RC1 = "&Rcea1_u/1000&"kΩ" -> RC1 = 8.06kΩ | B224: =ROUND(Rcea1_u/1000,2)&"kΩ" -> 8.06kΩ
A225: ="CC1 = "&Cc1ea_u*10^12&"pF" -> CC1 = 1500pF | B225: =ROUND(Cc1ea_u*10^12,0)&"pF" -> 1500pF
A226: ="CC2 = "&Cc2ea_u*10^12&"pF" -> CC2 = 68pF | B226: =ROUND(Cc2ea_u*10^12,0)&"pF" -> 68pF
A227: ="RC2 = "&Rcea2_u&"Ω" -> RC2 = 158Ω | B227: =ROUND(Rcea2_u,2)&"Ω" -> 158Ω
A228: ="CC3 = "&Cc3ea_u*10^12&"pF" -> CC3 = 390pF | B228: =ROUND(Cc3ea_u*10^12,0)&"pF" -> 390pF
A229: ="RFB1 = "&'Design Regulator'!E61&"kΩ" -> RFB1 = 20kΩ | B229: ='Design Regulator'!E61&"kΩ" -> 20kΩ
A230: ="RFB2 = "&IF(Vout=Vref,"OPEN",'Design Regulator'!E62&"kΩ") -> RFB2 = 8.06kΩ | B230: =IF(Vout=Vref,"OPEN",Rfb2_u/1000&"kΩ") -> 8.06kΩ
A231: ="Crossover Frequency = "&ROUND('Bode Plots Calculations'!BK5,0)&" kHz" -> Crossover Frequency = 70 kHz | B231: =ROUND('Bode Plots Calculations'!BK5,0)&" kHz" -> 70 kHz | C231: ='Bode Plots Calculations'!BK5 -> 70
A232: ="Phase Margin = "&ROUND('Bode Plots Calculations'!BK6,0)&"°" -> Phase Margin = 58° | B232: =ROUND('Bode Plots Calculations'!BK6,0)&"°" -> 58°
A233: ="Cs = "&Cs*1000000000&"nF" -> Cs = 220nF | B233: =Cs*1000000&"µF" -> 0.22µF
A234: ="Rs = "&Rs&"Ω" -> Rs = 1130Ω | B234: ='Standard Value Calculator'!S6/1000&"kΩ" -> 1.13kΩ
A235: Rset | B235: ='Standard Value Calculator'!S22/1000&"kΩ" -> 6.04kΩ
A236: Rs | B236: ='Standard Value Calculator'!S6/1000&"kΩ" -> 1.13kΩ
A237: Rotp | B237: ='Standard Value Calculator'!S24/1000&"kΩ" -> 84.5kΩ | C237: ='Standard Value Calculator'!S24/1000 -> 84.5
A238: Rpgood | B238: 20kΩ
A239: Rfadj | B239: ='Standard Value Calculator'!S4/1000&"kΩ" -> 14.7kΩ
... 29 more rows

Sheet Standard Value Calculator (hidden)
A2: Capacitors | B2: Css | C2: Cc1ea | D2: Cc2ea | E2: Cc3ea | F2: Cout | G2: Cin | H2: Cs | I2: Cdd | J2: Csb | K2: Csby | L2: Cby | M2: Cb | N2: Sugested Cs
A3: Inputs | B3: =Css -> 4e-08 | C3: =Cc1ea -> 1.46162703e-09 | D3: =Cc2ea -> 6.950035667e-11 | E3: =Cc3ea -> 4.060639551e-10 | F3: =Cout -> 0.0001 | G3: =Cin -> 2.2e-05 | H3: =Csideal -> 2.2e-07 | I3: =Cdd -> 0 | J3: =Csb -> 0 | K3: =Csby -> 100 | L3: =Cby -> 0 | M3: =Cb -> 0 | N3: ='Variable Management'!#REF! ->  | Q3: Resistors | R3: inputs | S3: Standard Result
A4: Standard Result | B4: =SUM(B6:B158)/1000000000000 -> 3.9e-08 | C4: =SUM(C6:C158)/1000000000000 -> 1.5e-09 | D4: 6.8e-11 | E4: 3.9e-10 | F4: 0.0001 | G4: 2.2e-05 | H4: 2.2e-07 | I4: =IF(I3="OPEN","OPEN",SUM(I6:I158)/1000000000000) -> 0 | J4: 0 | K4: 0 | L4: 0 | M4: 0 | Q4: Radj | R4: =Rfadj -> 14606.65907 | S4: =IF(R4>(INT(0.5+100*POWER(10,IF(96*(LOG(R4)-INT(LOG(R4)))-ROUND(96*(LOG(R4)-INT(LOG(R4))),0)<0,ROUND(96*(LOG(R4)-INT(LOG(R4))),0)-1,ROUND(96*(LOG(R4)-INT(LOG(R4))),0))/96))*POWER(10,INT(LOG(R4))-2)+INT(0.5+100*POWER(10,(IF(96*(LOG(R4)-INT(LOG(R4)))-ROUND(96*(LOG(R4)-INT(LOG(R4))),0)<0,ROUND(96*(LOG(R4)-INT(LOG(R4))),0)-1,ROUND(96*(LOG(R4)-INT(LOG(R4))),0))+1)/96))*POWER(10,INT(LOG(R4))-2))/2,INT(0.5+100*POWER(10,(IF(96*(LOG(R4)-INT(LOG(R4)))-ROUND(96*(LOG(R4)-INT(LOG(R4))),0)<0,ROUND(96*(LOG(R4)-INT(LOG(R4))),0)-1,ROUND(96*(LOG(R4)-INT(LOG(R4))),0))+1)/96))*POWER(10,INT(LOG(R4))-2),INT(0.5+100*POWER(10,IF(96*(LOG(R4)-INT(LOG(R4)))-ROUND(96*(LOG(R4)-INT(LOG(R4))),0)<0,ROUND(96*(LOG(R4)-INT(LOG(R4))),0)-1,ROUND(96*(LOG(R4)-INT(LOG(R4))),0))/96))*POWER(10,INT(LOG(R4))-2)) -> 14700 | T4: Ω
A5: (pF) | Q5: Rs3 | R5: =Rset -> 6040 | S5: 6040 | T5: Ω
A6: 0.47 | B6: =IF(IF((B$3*10^12-$A7)*(B$3*10^12-$A6)*-1<0,0,1)*IF(ABS(B$3*10^12-$A7)>(B$3*10^12-$A6),$A6,$A7)=B7,0,IF((B$3*10^12-$A7)*(B$3*10^12-$A6)*-1<0,0,1)*IF(ABS(B$3*10^12-$A7)>(B$3*10^12-$A6),$A6,$A7)) -> 0 | C6: =IF(IF((C$3*10^12-$A7)*(C$3*10^12-$A6)*-1<0,0,1)*IF(ABS(C$3*10^12-$A7)>(C$3*10^12-$A6),$A6,$A7)=C7,0,IF((C$3*10^12-$A7)*(C$3*10^12-$A6)*-1<0,0,1)*IF(ABS(C$3*10^12-$A7)>(C$3*10^12-$A6),$A6,$A7)) -> 0 | D6: =IF(IF((D$3*10^12-$A7)*(D$3*10^12-$A6)*-1<0,0,1)*IF(ABS(D$3*10^12-$A7)>(D$3*10^12-$A6),$A6,$A7)=D7,0,IF((D$3*10^12-$A7)*(D$3*10^12-$A6)*-1<0,0,1)*IF(ABS(D$3*10^12-$A7)>(D$3*10^12-$A6),$A6,$A7)) -> 0 | E6: =IF(IF((E$3*10^12-$A7)*(E$3*10^12-$A6)*-1<0,0,1)*IF(ABS(E$3*10^12-$A7)>(E$3*10^12-$A6),$A6,$A7)=E7,0,IF((E$3*10^12-$A7)*(E$3*10^12-$A6)*-1<0,0,1)*IF(ABS(E$3*10^12-$A7)>(E$3*10^12-$A6),$A6,$A7)) -> 0 | F6: =IF(IF((F$3*10^12-$A7)*(F$3*10^12-$A6)*-1<0,0,1)*IF(ABS(F$3*10^12-$A7)>(F$3*10^12-$A6),$A6,$A7)=F7,0,IF((F$3*10^12-$A7)*(F$3*10^12-$A6)*-1<0,0,1)*IF(ABS(F$3*10^12-$A7)>(F$3*10^12-$A6),$A6,$A7)) -> 0 | G6: =IF(IF((G$3*10^12-$A7)*(G$3*10^12-$A6)*-1<0,0,1)*IF(ABS(G$3*10^12-$A7)>(G$3*10^12-$A6),$A6,$A7)=G7,0,IF((G$3*10^12-$A7)*(G$3*10^12-$A6)*-1<0,0,1)*IF(ABS(G$3*10^12-$A7)>(G$3*10^12-$A6),$A6,$A7)) -> 0 | H6: =IF(IF((H$3*10^12-$A7)*(H$3*10^12-$A6)*-1<0,0,1)*IF(ABS(H$3*10^12-$A7)>(H$3*10^12-$A6),$A6,$A7)=H7,0,IF((H$3*10^12-$A7)*(H$3*10^12-$A6)*-1<0,0,1)*IF(ABS(H$3*10^12-$A7)>(H$3*10^12-$A6),$A6,$A7)) -> 0 | I6: 0 | J6: 0 | K6: 0 | L6: =IF(IF((L$3*10^12-$A7)*(L$3*10^12-$A6)*-1<0,0,1)*IF(ABS(L$3*10^12-$A7)>(L$3*10^12-$A6),$A6,$A7)=L7,0,IF((L$3*10^12-$A7)*(L$3*10^12-$A6)*-1<0,0,1)*IF(ABS(L$3*10^12-$A7)>(L$3*10^12-$A6),$A6,$A7)) -> 0 | M6: =IF(IF((M$3*10^12-$A7)*(M$3*10^12-$A6)*-1<0,0,1)*IF(ABS(M$3*10^12-$A7)>(M$3*10^12-$A6),$A6,$A7)=M7,0,IF((M$3*10^12-$A7)*(M$3*10^12-$A6)*-1<0,0,1)*IF(ABS(M$3*10^12-$A7)>(M$3*10^12-$A6),$A6,$A7)) -> 0 | N6: =IF(IF((N$3*10^12-$A7)*(N$3*10^12-$A6)*-1<0,0,1)*IF(ABS(N$3*10^12-$A7)>(N$3*10^12-$A6),$A6,$A7)=N7,0,IF((N$3*10^12-$A7)*(N$3*10^12-$A6)*-1<0,0,1)*IF(ABS(N$3*10^12-$A7)>(N$3*10^12-$A6),$A6,$A7)) ->  | Q6: Rs | R6: =Rsideal -> 1133.333333 | S6: 1130 | T6: Ω
A7: 0.56 | B7: =IF(IF((B$3*10^12-$A8)*(B$3*10^12-$A7)*-1<0,0,1)*IF(ABS(B$3*10^12-$A8)>(B$3*10^12-$A7),$A7,$A8)=B8,0,IF((B$3*10^12-$A8)*(B$3*10^12-$A7)*-1<0,0,1)*IF(ABS(B$3*10^12-$A8)>(B$3*10^12-$A7),$A7,$A8)) -> 0 | C7: =IF(IF((C$3*10^12-$A8)*(C$3*10^12-$A7)*-1<0,0,1)*IF(ABS(C$3*10^12-$A8)>(C$3*10^12-$A7),$A7,$A8)=C8,0,IF((C$3*10^12-$A8)*(C$3*10^12-$A7)*-1<0,0,1)*IF(ABS(C$3*10^12-$A8)>(C$3*10^12-$A7),$A7,$A8)) -> 0 | D7: 0 | E7: 0 | F7: 0 | G7: 0 | H7: 0 | I7: 0 | J7: 0 | K7: 0 | L7: 0 | M7: 0 | Q7: Rc1ea | R7: =Rcea1 -> 7996.254402 | S7: 8060 | T7: Ω
A8: 0.68 | B8: 0 | C8: 0 | D8: 0 | E8: 0 | F8: 0 | G8: 0 | H8: 0 | I8: 0 | J8: 0 | K8: 0 | L8: 0 | M8: 0 | Q8: Rc2ea | R8: =Rcea2 -> 147.7599754 | S8: 147 | T8: Ω
A9: 0.82 | B9: 0 | C9: 0 | D9: 0 | E9: 0 | F9: 0 | G9: 0 | H9: 0 | I9: 0 | J9: 0 | K9: 0 | L9: 0 | M9: 0 | Q9: Rfb1 | R9: =_Rfb1 -> 20000 | S9: 20000 | T9: Ω
A10: 1 | B10: 0 | C10: 0 | D10: 0 | E10: 0 | F10: 0 | G10: 0 | H10: 0 | I10: 0 | J10: 0 | K10: 0 | L10: 0 | M10: 0 | Q10: Rfb2 | R10: =_Rfb2 -> 8000 | S10: =IF(R10="OPEN","OPEN",IF(R10>(INT(0.5+100*POWER(10,IF(96*(LOG(R10)-INT(LOG(R10)))-ROUND(96*(LOG(R10)-INT(LOG(R10))),0)<0,ROUND(96*(LOG(R10)-INT(LOG(R10))),0)-1,ROUND(96*(LOG(R10)-INT(LOG(R10))),0))/96))*POWER(10,INT(LOG(R10))-2)+INT(0.5+100*POWER(10,(IF(96*(LOG(R10)-INT(LOG(R10)))-ROUND(96*(LOG(R10)-INT(LOG(R10))),0)<0,ROUND(96*(LOG(R10)-INT(LOG(R10))),0)-1,ROUND(96*(LOG(R10)-INT(LOG(R10))),0))+1)/96))*POWER(10,INT(LOG(R10))-2))/2,INT(0.5+100*POWER(10,(IF(96*(LOG(R10)-INT(LOG(R10)))-ROUND(96*(LOG(R10)-INT(LOG(R10))),0)<0,ROUND(96*(LOG(R10)-INT(LOG(R10))),0)-1,ROUND(96*(LOG(R10)-INT(LOG(R10))),0))+1)/96))*POWER(10,INT(LOG(R10))-2),INT(0.5+100*POWER(10,IF(96*(LOG(R10)-INT(LOG(R10)))-ROUND(96*(LOG(R10)-INT(LOG(R10))),0)<0,ROUND(96*(LOG(R10)-INT(LOG(R10))),0)-1,ROUND(96*(LOG(R10)-INT(LOG(R10))),0))/96))*POWER(10,INT(LOG(R10))-2))) -> 8060 | T10: Ω
A11: 1.2 | B11: 0 | C11: 0 | D11: 0 | E11: 0 | F11: 0 | G11: 0 | H11: 0 | I11: 0 | J11: 0 | K11: 0 | L11: 0 | M11: 0 | Q11: Rs1 | R11: =_Rs1 -> 0
A12: 1.5 | B12: 0 | C12: 0 | D12: 0 | E12: 0 | F12: 0 | G12: 0 | H12: 0 | I12: 0 | J12: 0 | K12: 0 | L12: 0 | M12: 0 | Q12: Rs2 | R12: =_Rs2 -> 0
A13: 1.8 | B13: 0 | C13: 0 | D13: 0 | E13: 0 | F13: 0 | G13: 0 | H13: 0 | I13: 0 | J13: 0 | K13: 0 | L13: 0 | M13: 0 | Q13: Rs3 | R13: =_Rs3 -> 0
A14: 2.2 | B14: 0 | C14: 0 | D14: 0 | E14: 0 | F14: 0 | G14: 0 | H14: 0 | I14: 0 | J14: 0 | K14: 0 | L14: 0 | M14: 0
A15: 2.7 | B15: 0 | C15: 0 | D15: 0 | E15: 0 | F15: 0 | G15: 0 | H15: 0 | I15: 0 | J15: 0 | K15: 0 | L15: 0 | M15: 0 | Q15: Ruv1 | R15: =Ruvlo1 -> 210.1533683 | S15: =IF(R15="OPEN","OPEN",IF(R15>(INT(0.5+100*POWER(10,IF(96*(LOG(R15)-INT(LOG(R15)))-ROUND(96*(LOG(R15)-INT(LOG(R15))),0)<0,ROUND(96*(LOG(R15)-INT(LOG(R15))),0)-1,ROUND(96*(LOG(R15)-INT(LOG(R15))),0))/96))*POWER(10,INT(LOG(R15))-2)+INT(0.5+100*POWER(10,(IF(96*(LOG(R15)-INT(LOG(R15)))-ROUND(96*(LOG(R15)-INT(LOG(R15))),0)<0,ROUND(96*(LOG(R15)-INT(LOG(R15))),0)-1,ROUND(96*(LOG(R15)-INT(LOG(R15))),0))+1)/96))*POWER(10,INT(LOG(R15))-2))/2,INT(0.5+100*POWER(10,(IF(96*(LOG(R15)-INT(LOG(R15)))-ROUND(96*(LOG(R15)-INT(LOG(R15))),0)<0,ROUND(96*(LOG(R15)-INT(LOG(R15))),0)-1,ROUND(96*(LOG(R15)-INT(LOG(R15))),0))+1)/96))*POWER(10,INT(LOG(R15))-2),INT(0.5+100*POWER(10,IF(96*(LOG(R15)-INT(LOG(R15)))-ROUND(96*(LOG(R15)-INT(LOG(R15))),0)<0,ROUND(96*(LOG(R15)-INT(LOG(R15))),0)-1,ROUND(96*(LOG(R15)-INT(LOG(R15))),0))/96))*POWER(10,INT(LOG(R15))-2))) -> 210 | T15: kΩ
A16: 3.3 | B16: 0 | C16: 0 | D16: 0 | E16: 0 | F16: 0 | G16: 0 | H16: 0 | I16: 0 | J16: 0 | K16: 0 | L16: 0 | M16: 0 | Q16: Ruv2 | R16: =Ruvlo2 -> 57.115476 | S16: 57.6 | T16: kΩ
A17: 3.9 | B17: 0 | C17: 0 | D17: 0 | E17: 0 | F17: 0 | G17: 0 | H17: 0 | I17: 0 | J17: 0 | K17: 0 | L17: 0 | M17: 0
A18: 4.7 | B18: 0 | C18: 0 | D18: 0 | E18: 0 | F18: 0 | G18: 0 | H18: 0 | I18: 0 | J18: 0 | K18: 0 | L18: 0 | M18: 0
A19: 5.6 | B19: 0 | C19: 0 | D19: 0 | E19: 0 | F19: 0 | G19: 0 | H19: 0 | I19: 0 | J19: 0 | K19: 0 | L19: 0 | M19: 0
A20: 6.8 | B20: 0 | C20: 0 | D20: 0 | E20: 0 | F20: 0 | G20: 0 | H20: 0 | I20: 0 | J20: 0 | K20: 0 | L20: 0 | M20: 0
A21: 8.2 | B21: 0 | C21: 0 | D21: 0 | E21: 0 | F21: 0 | G21: 0 | H21: 0 | I21: 0 | J21: 0 | K21: 0 | L21: 0 | M21: 0 | Q21: Rotp | R21: =Rl -> 84969.84127 | S21: =IF(R21=0,0,IF(R21>(INT(0.5+100*POWER(10,IF(96*(LOG(R21)-INT(LOG(R21)))-ROUND(96*(LOG(R21)-INT(LOG(R21))),0)<0,ROUND(96*(LOG(R21)-INT(LOG(R21))),0)-1,ROUND(96*(LOG(R21)-INT(LOG(R21))),0))/96))*POWER(10,INT(LOG(R21))-2)+INT(0.5+100*POWER(10,(IF(96*(LOG(R21)-INT(LOG(R21)))-ROUND(96*(LOG(R21)-INT(LOG(R21))),0)<0,ROUND(96*(LOG(R21)-INT(LOG(R21))),0)-1,ROUND(96*(LOG(R21)-INT(LOG(R21))),0))+1)/96))*POWER(10,INT(LOG(R21))-2))/2,INT(0.5+100*POWER(10,(IF(96*(LOG(R21)-INT(LOG(R21)))-ROUND(96*(LOG(R21)-INT(LOG(R21))),0)<0,ROUND(96*(LOG(R21)-INT(LOG(R21))),0)-1,ROUND(96*(LOG(R21)-INT(LOG(R21))),0))+1)/96))*POWER(10,INT(LOG(R21))-2),INT(0.5+100*POWER(10,IF(96*(LOG(R21)-INT(LOG(R21)))-ROUND(96*(LOG(R21)-INT(LOG(R21))),0)<0,ROUND(96*(LOG(R21)-INT(LOG(R21))),0)-1,ROUND(96*(LOG(R21)-INT(LOG(R21))),0))/96))*POWER(10,INT(LOG(R21))-2))) -> 84500 | T21: Ω
A22: 10 | B22: 0 | C22: 0 | D22: 0 | E22: 0 | F22: 0 | G22: 0 | H22: 0 | I22: 0 | J22: 0 | K22: 0 | L22: 0 | M22: 0 | Q22: Riset | R22: =Rsetideal -> 6110.795455 | S22: =IF(R22=0,0,IF(R22>(INT(0.5+100*POWER(10,IF(96*(LOG(R22)-INT(LOG(R22)))-ROUND(96*(LOG(R22)-INT(LOG(R22))),0)<0,ROUND(96*(LOG(R22)-INT(LOG(R22))),0)-1,ROUND(96*(LOG(R22)-INT(LOG(R22))),0))/96))*POWER(10,INT(LOG(R22))-2)+INT(0.5+100*POWER(10,(IF(96*(LOG(R22)-INT(LOG(R22)))-ROUND(96*(LOG(R22)-INT(LOG(R22))),0)<0,ROUND(96*(LOG(R22)-INT(LOG(R22))),0)-1,ROUND(96*(LOG(R22)-INT(LOG(R22))),0))+1)/96))*POWER(10,INT(LOG(R22))-2))/2,INT(0.5+100*POWER(10,(IF(96*(LOG(R22)-INT(LOG(R22)))-ROUND(96*(LOG(R22)-INT(LOG(R22))),0)<0,ROUND(96*(LOG(R22)-INT(LOG(R22))),0)-1,ROUND(96*(LOG(R22)-INT(LOG(R22))),0))+1)/96))*POWER(10,INT(LOG(R22))-2),INT(0.5+100*POWER(10,IF(96*(LOG(R22)-INT(LOG(R22)))-ROUND(96*(LOG(R22)-INT(LOG(R22))),0)<0,ROUND(96*(LOG(R22)-INT(LOG(R22))),0)-1,ROUND(96*(LOG(R22)-INT(LOG(R22))),0))/96))*POWER(10,INT(LOG(R22))-2))) -> 6040 | T22: Ω
A23: 12 | B23: 0 | C23: 0 | D23: 0 | E23: 0 | F23: 0 | G23: 0 | H23: 0 | I23: 0 | J23: 0 | K23: 0 | L23: 0 | M23: 0
A24: 15 | B24: 0 | C24: 0 | D24: 0 | E24: 0 | F24: 0 | G24: 0 | H24: 0 | I24: 0 | J24: 0 | K24: 0 | L24: 0 | M24: 0 | Q24: Rotp | R24: =Rotp -> 84969.84127 | S24: =IF(R24=0,0,IF(R24>(INT(0.5+100*POWER(10,IF(96*(LOG(R24)-INT(LOG(R24)))-ROUND(96*(LOG(R24)-INT(LOG(R24))),0)<0,ROUND(96*(LOG(R24)-INT(LOG(R24))),0)-1,ROUND(96*(LOG(R24)-INT(LOG(R24))),0))/96))*POWER(10,INT(LOG(R24))-2)+INT(0.5+100*POWER(10,(IF(96*(LOG(R24)-INT(LOG(R24)))-ROUND(96*(LOG(R24)-INT(LOG(R24))),0)<0,ROUND(96*(LOG(R24)-INT(LOG(R24))),0)-1,ROUND(96*(LOG(R24)-INT(LOG(R24))),0))+1)/96))*POWER(10,INT(LOG(R24))-2))/2,INT(0.5+100*POWER(10,(IF(96*(LOG(R24)-INT(LOG(R24)))-ROUND(96*(LOG(R24)-INT(LOG(R24))),0)<0,ROUND(96*(LOG(R24)-INT(LOG(R24))),0)-1,ROUND(96*(LOG(R24)-INT(LOG(R24))),0))+1)/96))*POWER(10,INT(LOG(R24))-2),INT(0.5+100*POWER(10,IF(96*(LOG(R24)-INT(LOG(R24)))-ROUND(96*(LOG(R24)-INT(LOG(R24))),0)<0,ROUND(96*(LOG(R24)-INT(LOG(R24))),0)-1,ROUND(96*(LOG(R24)-INT(LOG(R24))),0))/96))*POWER(10,INT(LOG(R24))-2))) -> 84500 | T24: Ω
A25: 18 | B25: 0 | C25: 0 | D25: 0 | E25: 0 | F25: 0 | G25: 0 | H25: 0 | I25: 0 | J25: 0 | K25: 0 | L25: 0 | M25: 0
A26: 22 | B26: 0 | C26: 0 | D26: 0 | E26: 0 | F26: 0 | G26: 0 | H26: 0 | I26: 0 | J26: 0 | K26: 0 | L26: 0 | M26: 0
A27: 27 | B27: 0 | C27: 0 | D27: 0 | E27: 0 | F27: 0 | G27: 0 | H27: 0 | I27: 0 | J27: 0 | K27: 0 | L27: 0 | M27: 0 | Q27: Rc1 | R27: =S7/1000&" kΩ" -> 8.06 kΩ | S27: =S7/1000 -> 8.06 | T27: kΩ
A28: 33 | B28: 0 | C28: 0 | D28: 0 | E28: 0 | F28: 0 | G28: 0 | H28: 0 | I28: 0 | J28: 0 | K28: 0 | L28: 0 | M28: 0 | Q28: Cc1 | R28: =C4*1000000000000&" pF" -> 1500 pF | S28: =C4*1000000000000 -> 1500 | T28: pF
A29: 39 | B29: 0 | C29: 0 | D29: 0 | E29: 0 | F29: 0 | G29: 0 | H29: 0 | I29: 0 | J29: 0 | K29: 0 | L29: 0 | M29: 0 | Q29: Cc2 | R29: =D4*1000000000000&" pF" -> 68 pF | S29: =D4*1000000000000 -> 68 | T29: pF
A30: 47 | B30: 0 | C30: 0 | D30: 0 | E30: 0 | F30: 0 | G30: 0 | H30: 0 | I30: 0 | J30: 0 | K30: 0 | L30: 0 | M30: 0 | Q30: Rc2 | R30: =S8&" Ω" -> 147 Ω | S30: =S8 -> 147 | T30: Ω
A31: 56 | B31: 0 | C31: 0 | D31: 0 | E31: 0 | F31: 0 | G31: 0 | H31: 0 | I31: 0 | J31: 0 | K31: 0 | L31: 0 | M31: 0 | Q31: Cc3 | R31: =E4*1000000000000&" pF" -> 390 pF | S31: =E4*1000000000000 -> 390 | T31: pF
A32: 68 | B32: 0 | C32: 0 | D32: 68 | E32: 0 | F32: 0 | G32: 0 | H32: 0 | I32: 0 | J32: 0 | K32: 0 | L32: 0 | M32: 0
A33: 82 | B33: 0 | C33: 0 | D33: 0 | E33: 0 | F33: 0 | G33: 0 | H33: 0 | I33: 0 | J33: 0 | K33: 0 | L33: 0 | M33: 0
A34: =A22*10 -> 100 | B34: 0 | C34: 0 | D34: 0 | E34: 0 | F34: 0 | G34: 0 | H34: 0 | I34: 0 | J34: 0 | K34: 0 | L34: 0 | M34: 0
A35: =A23*10 -> 120 | B35: 0 | C35: 0 | D35: 0 | E35: 0 | F35: 0 | G35: 0 | H35: 0 | I35: 0 | J35: 0 | K35: 0 | L35: 0 | M35: 0
A36: 150 | B36: 0 | C36: 0 | D36: 0 | E36: 0 | F36: 0 | G36: 0 | H36: 0 | I36: 0 | J36: 0 | K36: 0 | L36: 0 | M36: 0
A37: 180 | B37: 0 | C37: 0 | D37: 0 | E37: 0 | F37: 0 | G37: 0 | H37: 0 | I37: 0 | J37: 0 | K37: 0 | L37: 0 | M37: 0
A38: 220 | B38: 0 | C38: 0 | D38: 0 | E38: 0 | F38: 0 | G38: 0 | H38: 0 | I38: 0 | J38: 0 | K38: 0 | L38: 0 | M38: =IF(IF((M$3*10^12-$A39)*(M$3*10^12-$A38)*-1<0,0,1)*IF(ABS(M$3*10^12-$A39)>(M$3*10^12-$A38),$A38,$A39)=M39,0,IF((M$3*10^12-$A39)*(M$3*10^12-$A38)*-1<0,0,1)*IF(ABS(M$3*10^12-$A39)>(M$3*10^12-$A38),$A38,$A39)) -> 0 | N38: =IF(IF((N$3*10^12-$A39)*(N$3*10^12-$A38)*-1<0,0,1)*IF(ABS(N$3*10^12-$A39)>(N$3*10^12-$A38),$A38,$A39)=N39,0,IF((N$3*10^12-$A39)*(N$3*10^12-$A38)*-1<0,0,1)*IF(ABS(N$3*10^12-$A39)>(N$3*10^12-$A38),$A38,$A39)) -> 
A39: 270 | B39: 0 | C39: =IF(IF((C$3*10^12-$A40)*(C$3*10^12-$A39)*-1<0,0,1)*IF(ABS(C$3*10^12-$A40)>(C$3*10^12-$A39),$A39,$A40)=C40,0,IF((C$3*10^12-$A40)*(C$3*10^12-$A39)*-1<0,0,1)*IF(ABS(C$3*10^12-$A40)>(C$3*10^12-$A39),$A39,$A40)) -> 0 | D39: 0 | E39: 0 | F39: 0 | G39: 0 | H39: 0 | I39: 0 | J39: 0 | K39: 0 | L39: 0 | M39: 0
A40: 330 | B40: 0 | C40: 0 | D40: 0 | E40: 0 | F40: 0 | G40: 0 | H40: 0 | I40: 0 | J40: 0 | K40: 0 | L40: 0 | M40: 0
A41: 390 | B41: 0 | C41: 0 | D41: 0 | E41: 390 | F41: 0 | G41: 0 | H41: 0 | I41: 0 | J41: 0 | K41: 0 | L41: 0 | M41: 0
A42: 470 | B42: 0 | C42: 0 | D42: 0 | E42: 0 | F42: 0 | G42: 0 | H42: 0 | I42: 0 | J42: 0 | K42: 0 | L42: 0 | M42: 0
A43: 560 | B43: 0 | C43: 0 | D43: 0 | E43: 0 | F43: 0 | G43: 0 | H43: 0 | I43: 0 | J43: 0 | K43: 0 | L43: 0 | M43: 0
A44: 680 | B44: 0 | C44: 0 | D44: 0 | E44: 0 | F44: 0 | G44: 0 | H44: 0 | I44: 0 | J44: 0 | K44: 0 | L44: 0 | M44: 0
A45: =A33*10 -> 820 | B45: 0 | C45: 0 | D45: 0 | E45: 0 | F45: 0 | G45: 0 | H45: 0 | I45: 0 | J45: 0 | K45: 0 | L45: 0 | M45: 0
A46: 1000 | B46: 0 | C46: 0 | D46: 0 | E46: 0 | F46: 0 | G46: 0 | H46: 0 | I46: 0 | J46: 0 | K46: 0 | L46: 0 | M46: 0
A47: 1200 | B47: 0 | C47: 1500 | D47: 0 | E47: 0 | F47: 0 | G47: 0 | H47: 0 | I47: 0 | J47: 0 | K47: 0 | L47: 0 | M47: 0
A48: 1500 | B48: 0 | C48: 0 | D48: 0 | E48: 0 | F48: 0 | G48: 0 | H48: 0 | I48: 0 | J48: 0 | K48: 0 | L48: 0 | M48: 0
A49: 1800 | B49: 0 | C49: 0 | D49: 0 | E49: 0 | F49: 0 | G49: 0 | H49: 0 | I49: 0 | J49: 0 | K49: 0 | L49: 0 | M49: 0
A50: 2200 | B50: 0 | C50: 0 | D50: 0 | E50: 0 | F50: 0 | G50: 0 | H50: 0 | I50: 0 | J50: 0 | K50: 0 | L50: 0 | M50: 0
A51: 2700 | B51: 0 | C51: 0 | D51: 0 | E51: 0 | F51: 0 | G51: 0 | H51: 0 | I51: 0 | J51: 0 | K51: 0 | L51: 0 | M51: 0
A52: 3300 | B52: 0 | C52: 0 | D52: 0 | E52: 0 | F52: 0 | G52: 0 | H52: 0 | I52: 0 | J52: 0 | K52: 0 | L52: 0 | M52: 0
A53: 3900 | B53: 0 | C53: 0 | D53: 0 | E53: 0 | F53: 0 | G53: 0 | H53: 0 | I53: 0 | J53: 0 | K53: 0 | L53: 0 | M53: 0
A54: 4700 | B54: 0 | C54: 0 | D54: 0 | E54: 0 | F54: 0 | G54: 0 | H54: 0 | I54: 0 | J54: 0 | K54: 0 | L54: 0 | M54: 0
A55: 5600 | B55: 0 | C55: 0 | D55: 0 | E55: 0 | F55: 0 | G55: 0 | H55: 0 | I55: 0 | J55: 0 | K55: 0 | L55: 0 | M55: 0
A56: 6800 | B56: 0 | C56: 0 | D56: 0 | E56: 0 | F56: 0 | G56: 0 | H56: 0 | I56: 0 | J56: 0 | K56: 0 | L56: 0 | M56: 0
A57: 8200 | B57: 0 | C57: 0 | D57: 0 | E57: 0 | F57: 0 | G57: 0 | H57: 0 | I57: 0 | J57: 0 | K57: 0 | L57: 0 | M57: 0
A58: 10000 | B58: 0 | C58: 0 | D58: 0 | E58: 0 | F58: 0 | G58: 0 | H58: 0 | I58: 0 | J58: 0 | K58: 0 | L58: 0 | M58: 0
A59: 12000 | B59: 0 | C59: 0 | D59: 0 | E59: 0 | F59: 0 | G59: 0 | H59: 0 | I59: 0 | J59: 0 | K59: 0 | L59: 0 | M59: 0
A60: 15000 | B60: 0 | C60: 0 | D60: 0 | E60: 0 | F60: 0 | G60: 0 | H60: 0 | I60: 0 | J60: 0 | K60: 0 | L60: 0 | M60: 0
A61: 18000 | B61: 0 | C61: 0 | D61: 0 | E61: 0 | F61: 0 | G61: 0 | H61: 0 | I61: 0 | J61: 0 | K61: 0 | L61: 0 | M61: 0
A62: 22000 | B62: 0 | C62: 0 | D62: 0 | E62: 0 | F62: 0 | G62: 0 | H62: 0 | I62: 0 | J62: 0 | K62: 0 | L62: 0 | M62: 0
A63: 27000 | B63: 0 | C63: 0 | D63: 0 | E63: 0 | F63: 0 | G63: 0 | H63: 0 | I63: 0 | J63: 0 | K63: 0 | L63: 0 | M63: 0
A64: 33000 | B64: 0 | C64: 0 | D64: 0 | E64: 0 | F64: 0 | G64: 0 | H64: 0 | I64: 0 | J64: 0 | K64: 0 | L64: 0 | M64: 0
A65: 39000 | B65: 39000 | C65: 0 | D65: 0 | E65: 0 | F65: 0 | G65: 0 | H65: 0 | I65: 0 | J65: 0 | K65: 0 | L65: 0 | M65: 0
A66: 47000 | B66: 0 | C66: 0 | D66: 0 | E66: 0 | F66: 0 | G66: 0 | H66: 0 | I66: 0 | J66: 0 | K66: 0 | L66: 0 | M66: 0
A67: 56000 | B67: 0 | C67: 0 | D67: 0 | E67: 0 | F67: 0 | G67: 0 | H67: 0 | I67: 0 | J67: 0 | K67: 0 | L67: 0 | M67: 0
A68: 68000 | B68: 0 | C68: 0 | D68: 0 | E68: 0 | F68: 0 | G68: 0 | H68: 0 | I68: 0 | J68: 0 | K68: 0 | L68: 0 | M68: 0
A69: 82000 | B69: 0 | C69: 0 | D69: 0 | E69: 0 | F69: 0 | G69: 0 | H69: 0 | I69: 0 | J69: 0 | K69: =IF(IF((K$3*10^12-$A70)*(K$3*10^12-$A69)*-1<0,0,1)*IF(ABS(K$3*10^12-$A70)>(K$3*10^12-$A69),$A69,$A70)=K70,0,IF((K$3*10^12-$A70)*(K$3*10^12-$A69)*-1<0,0,1)*IF(ABS(K$3*10^12-$A70)>(K$3*10^12-$A69),$A69,$A70)) -> 0 | L69: 0 | M69: 0
A70: 100000 | B70: 0 | C70: 0 | D70: =IF(IF((D$3*10^12-$A71)*(D$3*10^12-$A70)*-1<0,0,1)*IF(ABS(D$3*10^12-$A71)>(D$3*10^12-$A70),$A70,$A71)=D71,0,IF((D$3*10^12-$A71)*(D$3*10^12-$A70)*-1<0,0,1)*IF(ABS(D$3*10^12-$A71)>(D$3*10^12-$A70),$A70,$A71)) -> 0 | E70: 0 | F70: 0 | G70: 0 | H70: 0 | I70: 0 | J70: 0 | K70: 0 | L70: 0 | M70: =IF(IF((M$3*10^12-$A71)*(M$3*10^12-$A70)*-1<0,0,1)*IF(ABS(M$3*10^12-$A71)>(M$3*10^12-$A70),$A70,$A71)=M71,0,IF((M$3*10^12-$A71)*(M$3*10^12-$A70)*-1<0,0,1)*IF(ABS(M$3*10^12-$A71)>(M$3*10^12-$A70),$A70,$A71)) -> 0 | N70: =IF(IF((N$3*10^12-$A71)*(N$3*10^12-$A70)*-1<0,0,1)*IF(ABS(N$3*10^12-$A71)>(N$3*10^12-$A70),$A70,$A71)=N71,0,IF((N$3*10^12-$A71)*(N$3*10^12-$A70)*-1<0,0,1)*IF(ABS(N$3*10^12-$A71)>(N$3*10^12-$A70),$A70,$A71)) -> 
A71: 120000 | B71: =IF(IF((B$3*10^12-$A72)*(B$3*10^12-$A71)*-1<0,0,1)*IF(ABS(B$3*10^12-$A72)>(B$3*10^12-$A71),$A71,$A72)=B72,0,IF((B$3*10^12-$A72)*(B$3*10^12-$A71)*-1<0,0,1)*IF(ABS(B$3*10^12-$A72)>(B$3*10^12-$A71),$A71,$A72)) -> 0 | C71: =IF(IF((C$3*10^12-$A72)*(C$3*10^12-$A71)*-1<0,0,1)*IF(ABS(C$3*10^12-$A72)>(C$3*10^12-$A71),$A71,$A72)=C72,0,IF((C$3*10^12-$A72)*(C$3*10^12-$A71)*-1<0,0,1)*IF(ABS(C$3*10^12-$A72)>(C$3*10^12-$A71),$A71,$A72)) -> 0 | D71: 0 | E71: 0 | F71: 0 | G71: =IF(IF((G$3*10^12-$A72)*(G$3*10^12-$A71)*-1<0,0,1)*IF(ABS(G$3*10^12-$A72)>(G$3*10^12-$A71),$A71,$A72)=G72,0,IF((G$3*10^12-$A72)*(G$3*10^12-$A71)*-1<0,0,1)*IF(ABS(G$3*10^12-$A72)>(G$3*10^12-$A71),$A71,$A72)) -> 0 | H71: =IF(IF((H$3*10^12-$A72)*(H$3*10^12-$A71)*-1<0,0,1)*IF(ABS(H$3*10^12-$A72)>(H$3*10^12-$A71),$A71,$A72)=H72,0,IF((H$3*10^12-$A72)*(H$3*10^12-$A71)*-1<0,0,1)*IF(ABS(H$3*10^12-$A72)>(H$3*10^12-$A71),$A71,$A72)) -> 0 | I71: =IF(IF((I$3*10^12-$A72)*(I$3*10^12-$A71)*-1<0,0,1)*IF(ABS(I$3*10^12-$A72)>(I$3*10^12-$A71),$A71,$A72)=I72,0,IF((I$3*10^12-$A72)*(I$3*10^12-$A71)*-1<0,0,1)*IF(ABS(I$3*10^12-$A72)>(I$3*10^12-$A71),$A71,$A72)) -> 0 | J71: =IF(IF((J$3*10^12-$A72)*(J$3*10^12-$A71)*-1<0,0,1)*IF(ABS(J$3*10^12-$A72)>(J$3*10^12-$A71),$A71,$A72)=J72,0,IF((J$3*10^12-$A72)*(J$3*10^12-$A71)*-1<0,0,1)*IF(ABS(J$3*10^12-$A72)>(J$3*10^12-$A71),$A71,$A72)) -> 0 | K71: 0 | L71: 0 | M71: 0
A72: 150000 | B72: 0 | C72: 0 | D72: 0 | E72: 0 | F72: 0 | G72: 0 | H72: 0 | I72: 0 | J72: 0 | K72: 0 | L72: 0 | M72: 0
A73: 180000 | B73: 0 | C73: 0 | D73: 0 | E73: 0 | F73: 0 | G73: 0 | H73: 0 | I73: 0 | J73: 0 | K73: 0 | L73: 0 | M73: 0
A74: 220000 | B74: 0 | C74: 0 | D74: 0 | E74: 0 | F74: 0 | G74: 0 | H74: 220000 | I74: 0 | J74: 0 | K74: 0 | L74: 0 | M74: 0
A75: 270000 | B75: 0 | C75: 0 | D75: 0 | E75: 0 | F75: 0 | G75: 0 | H75: 0 | I75: 0 | J75: 0 | K75: 0 | L75: 0 | M75: 0
A76: 330000 | B76: 0 | C76: 0 | D76: 0 | E76: 0 | F76: 0 | G76: 0 | H76: 0 | I76: 0 | J76: 0 | K76: 0 | L76: 0 | M76: 0
A77: 390000 | B77: 0 | C77: 0 | D77: 0 | E77: 0 | F77: 0 | G77: 0 | H77: 0 | I77: 0 | J77: 0 | K77: 0 | L77: 0 | M77: 0
A78: 470000 | B78: 0 | C78: 0 | D78: 0 | E78: 0 | F78: 0 | G78: 0 | H78: 0 | I78: 0 | J78: 0 | K78: 0 | L78: 0 | M78: 0
A79: 560000 | B79: 0 | C79: 0 | D79: 0 | E79: 0 | F79: 0 | G79: 0 | H79: 0 | I79: 0 | J79: 0 | K79: 0 | L79: 0 | M79: 0
A80: 680000 | B80: 0 | C80: 0 | D80: 0 | E80: 0 | F80: 0 | G80: 0 | H80: 0 | I80: 0 | J80: 0 | K80: 0 | L80: 0 | M80: 0
A81: 820000 | B81: 0 | C81: 0 | D81: 0 | E81: 0 | F81: 0 | G81: 0 | H81: 0 | I81: 0 | J81: 0 | K81: 0 | L81: 0 | M81: 0
A82: 1000000 | B82: 0 | C82: 0 | D82: 0 | E82: 0 | F82: 0 | G82: 0 | H82: 0 | I82: 0 | J82: 0 | K82: 0 | L82: 0 | M82: 0
A83: 1200000 | B83: 0 | C83: 0 | D83: 0 | E83: 0 | F83: 0 | G83: 0 | H83: 0 | I83: 0 | J83: 0 | K83: 0 | L83: 0 | M83: 0
A84: 1500000 | B84: 0 | C84: 0 | D84: 0 | E84: 0 | F84: 0 | G84: 0 | H84: 0 | I84: 0 | J84: 0 | K84: 0 | L84: 0 | M84: 0
A85: 1800000 | B85: 0 | C85: 0 | D85: 0 | E85: 0 | F85: 0 | G85: 0 | H85: 0 | I85: 0 | J85: 0 | K85: 0 | L85: 0 | M85: 0
A86: 2200000 | B86: 0 | C86: 0 | D86: 0 | E86: 0 | F86: 0 | G86: 0 | H86: 0 | I86: 0 | J86: 0 | K86: 0 | L86: 0 | M86: 0
A87: 2700000 | B87: 0 | C87: 0 | D87: 0 | E87: 0 | F87: 0 | G87: 0 | H87: 0 | I87: 0 | J87: 0 | K87: 0 | L87: 0 | M87: 0
A88: 3300000 | B88: 0 | C88: 0 | D88: 0 | E88: 0 | F88: 0 | G88: 0 | H88: 0 | I88: 0 | J88: 0 | K88: 0 | L88: 0 | M88: 0
A89: 3900000 | B89: 0 | C89: 0 | D89: 0 | E89: 0 | F89: 0 | G89: 0 | H89: 0 | I89: 0 | J89: 0 | K89: 0 | L89: 0 | M89: 0
A90: 4700000 | B90: 0 | C90: 0 | D90: 0 | E90: 0 | F90: 0 | G90: 0 | H90: 0 | I90: 0 | J90: 0 | K90: 0 | L90: 0 | M90: 0
A91: 5600000 | B91: 0 | C91: 0 | D91: 0 | E91: 0 | F91: 0 | G91: 0 | H91: 0 | I91: 0 | J91: 0 | K91: 0 | L91: 0 | M91: 0
A92: 6800000 | B92: 0 | C92: 0 | D92: 0 | E92: 0 | F92: 0 | G92: 0 | H92: 0 | I92: 0 | J92: 0 | K92: 0 | L92: 0 | M92: 0
A93: 8200000 | B93: 0 | C93: 0 | D93: 0 | E93: 0 | F93: 0 | G93: 0 | H93: 0 | I93: 0 | J93: 0 | K93: 0 | L93: 0 | M93: 0
A94: 10000000 | B94: 0 | C94: 0 | D94: 0 | E94: 0 | F94: 0 | G94: 0 | H94: 0 | I94: 0 | J94: 0 | K94: 0 | L94: 0 | M94: 0
A95: 12000000 | B95: 0 | C95: 0 | D95: 0 | E95: 0 | F95: 0 | G95: 0 | H95: 0 | I95: 0 | J95: 0 | K95: 0 | L95: 0 | M95: 0
A96: 15000000 | B96: 0 | C96: 0 | D96: 0 | E96: 0 | F96: 0 | G96: 0 | H96: 0 | I96: 0 | J96: 0 | K96: 0 | L96: 0 | M96: 0
A97: 18000000 | B97: 0 | C97: 0 | D97: 0 | E97: 0 | F97: 0 | G97: 0 | H97: 0 | I97: 0 | J97: 0 | K97: 0 | L97: 0 | M97: 0
A98: 22000000 | B98: 0 | C98: 0 | D98: 0 | E98: 0 | F98: 0 | G98: 22000000 | H98: 0 | I98: 0 | J98: 0 | K98: 0 | L98: 0 | M98: 0
A99: =A87*10 -> 27000000 | B99: 0 | C99: 0 | D99: 0 | E99: 0 | F99: 0 | G99: 0 | H99: 0 | I99: 0 | J99: 0 | K99: 0 | L99: 0 | M99: 0
A100: 33000000 | B100: 0 | C100: 0 | D100: 0 | E100: 0 | F100: 0 | G100: 0 | H100: 0 | I100: 0 | J100: 0 | K100: 0 | L100: 0 | M100: 0
A101: 39000000 | B101: 0 | C101: 0 | D101: 0 | E101: 0 | F101: 0 | G101: 0 | H101: 0 | I101: 0 | J101: 0 | K101: 0 | L101: 0 | M101: 0
A102: 47000000 | B102: 0 | C102: 0 | D102: 0 | E102: 0 | F102: 0 | G102: 0 | H102: 0 | I102: 0 | J102: 0 | K102: 0 | L102: 0 | M102: =IF(IF((M$3*10^12-$A103)*(M$3*10^12-$A102)*-1<0,0,1)*IF(ABS(M$3*10^12-$A103)>(M$3*10^12-$A102),$A102,$A103)=M103,0,IF((M$3*10^12-$A103)*(M$3*10^12-$A102)*-1<0,0,1)*IF(ABS(M$3*10^12-$A103)>(M$3*10^12-$A102),$A102,$A103)) -> 0 | N102: =IF(IF((N$3*10^12-$A103)*(N$3*10^12-$A102)*-1<0,0,1)*IF(ABS(N$3*10^12-$A103)>(N$3*10^12-$A102),$A102,$A103)=N103,0,IF((N$3*10^12-$A103)*(N$3*10^12-$A102)*-1<0,0,1)*IF(ABS(N$3*10^12-$A103)>(N$3*10^12-$A102),$A102,$A103)) -> 
A103: 56000000 | B103: 0 | C103: 0 | D103: 0 | E103: 0 | F103: 0 | G103: =IF(IF((G$3*10^12-$A104)*(G$3*10^12-$A103)*-1<0,0,1)*IF(ABS(G$3*10^12-$A104)>(G$3*10^12-$A103),$A103,$A104)=G104,0,IF((G$3*10^12-$A104)*(G$3*10^12-$A103)*-1<0,0,1)*IF(ABS(G$3*10^12-$A104)>(G$3*10^12-$A103),$A103,$A104)) -> 0 | H103: =IF(IF((H$3*10^12-$A104)*(H$3*10^12-$A103)*-1<0,0,1)*IF(ABS(H$3*10^12-$A104)>(H$3*10^12-$A103),$A103,$A104)=H104,0,IF((H$3*10^12-$A104)*(H$3*10^12-$A103)*-1<0,0,1)*IF(ABS(H$3*10^12-$A104)>(H$3*10^12-$A103),$A103,$A104)) -> 0 | I103: =IF(IF((I$3*10^12-$A104)*(I$3*10^12-$A103)*-1<0,0,1)*IF(ABS(I$3*10^12-$A104)>(I$3*10^12-$A103),$A103,$A104)=I104,0,IF((I$3*10^12-$A104)*(I$3*10^12-$A103)*-1<0,0,1)*IF(ABS(I$3*10^12-$A104)>(I$3*10^12-$A103),$A103,$A104)) -> 0 | J103: =IF(IF((J$3*10^12-$A104)*(J$3*10^12-$A103)*-1<0,0,1)*IF(ABS(J$3*10^12-$A104)>(J$3*10^12-$A103),$A103,$A104)=J104,0,IF((J$3*10^12-$A104)*(J$3*10^12-$A103)*-1<0,0,1)*IF(ABS(J$3*10^12-$A104)>(J$3*10^12-$A103),$A103,$A104)) -> 0 | K103: 0 | L103: 0 | M103: 0
A104: 68000000 | B104: 0 | C104: 0 | D104: 0 | E104: 0 | F104: 0 | G104: 0 | H104: 0 | I104: 0 | J104: 0 | K104: 0 | L104: 0 | M104: 0
A105: 82000000 | B105: 0 | C105: 0 | D105: 0 | E105: 0 | F105: 0 | G105: 0 | H105: 0 | I105: 0 | J105: 0 | K105: 0 | L105: 0 | M105: 0
A106: 100000000 | B106: 0 | C106: 0 | D106: 0 | E106: 0 | F106: 100000000 | G106: 0 | H106: 0 | I106: 0 | J106: 0 | K106: 0 | L106: 0 | M106: 0
A107: 120000000 | B107: 0 | C107: 0 | D107: 0 | E107: 0 | F107: 0 | G107: 0 | H107: 0 | I107: 0 | J107: 0 | K107: 0 | L107: 0 | M107: 0
A108: 150000000 | B108: 0 | C108: 0 | D108: 0 | E108: 0 | F108: 0 | G108: 0 | H108: 0 | I108: 0 | J108: 0 | K108: 0 | L108: 0 | M108: 0
A109: 180000000 | B109: 0 | C109: 0 | D109: 0 | E109: 0 | F109: 0 | G109: 0 | H109: 0 | I109: 0 | J109: 0 | K109: 0 | L109: 0 | M109: 0
A110: 220000000 | B110: 0 | C110: 0 | D110: 0 | E110: 0 | F110: 0 | G110: 0 | H110: 0 | I110: 0 | J110: 0 | K110: 0 | L110: 0 | M110: 0
A111: 270000000 | B111: 0 | C111: 0 | D111: 0 | E111: 0 | F111: 0 | G111: 0 | H111: 0 | I111: 0 | J111: 0 | K111: 0 | L111: 0 | M111: 0
A112: 330000000 | B112: 0 | C112: 0 | D112: 0 | E112: 0 | F112: 0 | G112: 0 | H112: 0 | I112: 0 | J112: 0 | K112: 0 | L112: 0 | M112: 0
A113: 390000000 | B113: 0 | C113: 0 | D113: 0 | E113: 0 | F113: 0 | G113: 0 | H113: 0 | I113: 0 | J113: 0 | K113: 0 | L113: 0 | M113: 0
A114: 470000000 | B114: 0 | C114: 0 | D114: 0 | E114: 0 | F114: 0 | G114: 0 | H114: 0 | I114: 0 | J114: 0 | K114: 0 | L114: 0 | M114: 0
A115: 560000000 | B115: 0 | C115: 0 | D115: 0 | E115: 0 | F115: 0 | G115: 0 | H115: 0 | I115: 0 | J115: 0 | K115: 0 | L115: 0 | M115: 0
A116: 680000000 | B116: 0 | C116: 0 | D116: 0 | E116: 0 | F116: 0 | G116: 0 | H116: 0 | I116: 0 | J116: 0 | K116: 0 | L116: 0 | M116: 0
A117: 820000000 | B117: 0 | C117: 0 | D117: 0 | E117: 0 | F117: 0 | G117: 0 | H117: 0 | I117: 0 | J117: 0 | K117: 0 | L117: 0 | M117: 0
A118: 1000000000 | B118: 0 | C118: 0 | D118: 0 | E118: 0 | F118: 0 | G118: 0 | H118: 0 | I118: 0 | J118: 0 | K118: 0 | L118: 0 | M118: 0
A119: 1200000000 | B119: 0 | C119: 0 | D119: 0 | E119: 0 | F119: 0 | G119: 0 | H119: 0 | I119: 0 | J119: 0 | K119: 0 | L119: 0 | M119: 0
A120: 1500000000 | B120: 0 | C120: 0 | D120: 0 | E120: 0 | F120: 0 | G120: 0 | H120: 0 | I120: 0 | J120: 0 | K120: 0 | L120: 0 | M120: 0
A121: 1800000000 | B121: 0 | C121: 0 | D121: 0 | E121: 0 | F121: 0 | G121: 0 | H121: 0 | I121: 0 | J121: 0 | K121: 0 | L121: 0 | M121: 0
A122: 2200000000 | B122: 0 | C122: 0 | D122: 0 | E122: 0 | F122: 0 | G122: 0 | H122: 0 | I122: 0 | J122: 0 | K122: 0 | L122: 0 | M122: 0
A123: 2700000000 | B123: 0 | C123: 0 | D123: 0 | E123: 0 | F123: 0 | G123: 0 | H123: 0 | I123: 0 | J123: 0 | K123: 0 | L123: 0 | M123: 0
A124: 3300000000 | B124: 0 | C124: 0 | D124: 0 | E124: 0 | F124: 0 | G124: 0 | H124: 0 | I124: 0 | J124: 0 | K124: 0 | L124: 0 | M124: 0
A125: 3900000000 | B125: 0 | C125: 0 | D125: 0 | E125: 0 | F125: 0 | G125: 0 | H125: 0 | I125: 0 | J125: 0 | K125: 0 | L125: 0 | M125: 0
A126: 4700000000 | B126: 0 | C126: 0 | D126: 0 | E126: 0 | F126: 0 | G126: 0 | H126: 0 | I126: 0 | J126: 0 | K126: 0 | L126: 0 | M126: 0
A127: 5600000000 | B127: 0 | C127: 0 | D127: 0 | E127: 0 | F127: 0 | G127: 0 | H127: 0 | I127: 0 | J127: 0 | K127: 0 | L127: 0 | M127: 0
A128: 6800000000 | B128: 0 | C128: 0 | D128: 0 | E128: 0 | F128: 0 | G128: 0 | H128: 0 | I128: 0 | J128: 0 | K128: 0 | L128: 0 | M128: 0
A129: 8200000000 | B129: 0 | C129: 0 | D129: 0 | E129: 0 | F129: 0 | G129: 0 | H129: 0 | I129: 0 | J129: 0 | K129: 0 | L129: 0 | M129: 0
A130: 10000000000 | B130: 0 | C130: 0 | D130: 0 | E130: 0 | F130: 0 | G130: 0 | H130: 0 | I130: 0 | J130: 0 | K130: 0 | L130: 0 | M130: 0
A131: 12000000000 | B131: 0 | C131: 0 | D131: 0 | E131: 0 | F131: 0 | G131: 0 | H131: 0 | I131: 0 | J131: 0 | K131: 0 | L131: 0 | M131: 0
A132: 15000000000 | B132: 0 | C132: 0 | D132: 0 | E132: 0 | F132: 0 | G132: 0 | H132: 0 | I132: 0 | J132: 0 | K132: 0 | L132: 0 | M132: 0
A133: 18000000000 | B133: 0 | C133: 0 | D133: 0 | E133: 0 | F133: 0 | G133: 0 | H133: 0 | I133: 0 | J133: 0 | K133: =IF(IF((K$3*10^12-$A134)*(K$3*10^12-$A133)*-1<0,0,1)*IF(ABS(K$3*10^12-$A134)>(K$3*10^12-$A133),$A133,$A134)=K134,0,IF((K$3*10^12-$A134)*(K$3*10^12-$A133)*-1<0,0,1)*IF(ABS(K$3*10^12-$A134)>(K$3*10^12-$A133),$A133,$A134)) -> 0 | L133: =IF(IF((L$3*10^12-$A134)*(L$3*10^12-$A133)*-1<0,0,1)*IF(ABS(L$3*10^12-$A134)>(L$3*10^12-$A133),$A133,$A134)=L134,0,IF((L$3*10^12-$A134)*(L$3*10^12-$A133)*-1<0,0,1)*IF(ABS(L$3*10^12-$A134)>(L$3*10^12-$A133),$A133,$A134)) -> 0 | M133: 0
A134: 22000000000 | B134: 0 | C134: 0 | D134: 0 | E134: 0 | F134: =IF(IF((F$3*10^12-$A135)*(F$3*10^12-$A134)*-1<0,0,1)*IF(ABS(F$3*10^12-$A135)>(F$3*10^12-$A134),$A134,$A135)=F135,0,IF((F$3*10^12-$A135)*(F$3*10^12-$A134)*-1<0,0,1)*IF(ABS(F$3*10^12-$A135)>(F$3*10^12-$A134),$A134,$A135)) -> 0 | G134: 0 | H134: 0 | I134: 0 | J134: 0 | K134: =IF(IF((K$3*10^12-$A135)*(K$3*10^12-$A134)*-1<0,0,1)*IF(ABS(K$3*10^12-$A135)>(K$3*10^12-$A134),$A134,$A135)=K135,0,IF((K$3*10^12-$A135)*(K$3*10^12-$A134)*-1<0,0,1)*IF(ABS(K$3*10^12-$A135)>(K$3*10^12-$A134),$A134,$A135)) -> 0 | L134: =IF(IF((L$3*10^12-$A135)*(L$3*10^12-$A134)*-1<0,0,1)*IF(ABS(L$3*10^12-$A135)>(L$3*10^12-$A134),$A134,$A135)=L135,0,IF((L$3*10^12-$A135)*(L$3*10^12-$A134)*-1<0,0,1)*IF(ABS(L$3*10^12-$A135)>(L$3*10^12-$A134),$A134,$A135)) -> 0 | M134: =IF(IF((M$3*10^12-$A135)*(M$3*10^12-$A134)*-1<0,0,1)*IF(ABS(M$3*10^12-$A135)>(M$3*10^12-$A134),$A134,$A135)=M135,0,IF((M$3*10^12-$A135)*(M$3*10^12-$A134)*-1<0,0,1)*IF(ABS(M$3*10^12-$A135)>(M$3*10^12-$A134),$A134,$A135)) -> 0 | N134: =IF(IF((N$3*10^12-$A135)*(N$3*10^12-$A134)*-1<0,0,1)*IF(ABS(N$3*10^12-$A135)>(N$3*10^12-$A134),$A134,$A135)=N135,0,IF((N$3*10^12-$A135)*(N$3*10^12-$A134)*-1<0,0,1)*IF(ABS(N$3*10^12-$A135)>(N$3*10^12-$A134),$A134,$A135)) -> 
A135: 27000000000 | B135: =IF(IF((B$3*10^12-$A136)*(B$3*10^12-$A135)*-1<0,0,1)*IF(ABS(B$3*10^12-$A136)>(B$3*10^12-$A135),$A135,$A136)=B136,0,IF((B$3*10^12-$A136)*(B$3*10^12-$A135)*-1<0,0,1)*IF(ABS(B$3*10^12-$A136)>(B$3*10^12-$A135),$A135,$A136)) -> 0 | C135: =IF(IF((C$3*10^12-$A136)*(C$3*10^12-$A135)*-1<0,0,1)*IF(ABS(C$3*10^12-$A136)>(C$3*10^12-$A135),$A135,$A136)=C136,0,IF((C$3*10^12-$A136)*(C$3*10^12-$A135)*-1<0,0,1)*IF(ABS(C$3*10^12-$A136)>(C$3*10^12-$A135),$A135,$A136)) -> 0 | D135: 0 | E135: 0 | F135: 0 | G135: 0 | H135: 0 | I135: 0 | J135: 0 | K135: 0 | L135: 0 | M135: 0
A136: 33000000000 | B136: 0 | C136: 0 | D136: 0 | E136: 0 | F136: 0 | G136: 0 | H136: 0 | I136: 0 | J136: 0 | K136: 0 | L136: 0 | M136: 0
A137: 39000000000 | B137: 0 | C137: 0 | D137: 0 | E137: 0 | F137: 0 | G137: 0 | H137: 0 | I137: 0 | J137: 0 | K137: 0 | L137: 0 | M137: 0
A138: 47000000000 | B138: 0 | C138: 0 | D138: 0 | E138: 0 | F138: 0 | G138: 0 | H138: 0 | I138: 0 | J138: 0 | K138: 0 | L138: 0 | M138: 0
A139: 56000000000 | B139: 0 | C139: 0 | D139: 0 | E139: 0 | F139: 0 | G139: 0 | H139: 0 | I139: 0 | J139: 0 | K139: 0 | L139: 0 | M139: 0
A140: 68000000000 | B140: 0 | C140: 0 | D140: 0 | E140: 0 | F140: 0 | G140: 0 | H140: 0 | I140: 0 | J140: 0 | K140: 0 | L140: 0 | M140: 0
A141: 82000000000 | B141: 0 | C141: 0 | D141: 0 | E141: 0 | F141: 0 | G141: 0 | H141: 0 | I141: 0 | J141: 0 | K141: 0 | L141: 0 | M141: 0
A142: 100000000000 | B142: 0 | C142: 0 | D142: 0 | E142: 0 | F142: 0 | G142: 0 | H142: 0 | I142: 0 | J142: 0 | K142: 0 | L142: 0 | M142: 0
A143: 120000000000 | B143: 0 | C143: 0 | D143: 0 | E143: 0 | F143: 0 | G143: 0 | H143: 0 | I143: 0 | J143: 0 | K143: 0 | L143: 0 | M143: 0
A144: 150000000000 | B144: 0 | C144: 0 | D144: 0 | E144: 0 | F144: 0 | G144: 0 | H144: 0 | I144: 0 | J144: 0 | K144: 0 | L144: 0 | M144: 0
A145: 180000000000 | B145: 0 | C145: 0 | D145: 0 | E145: 0 | F145: 0 | G145: 0 | H145: 0 | I145: 0 | J145: 0 | K145: 0 | L145: 0 | M145: 0
A146: 220000000000 | B146: 0 | C146: 0 | D146: 0 | E146: 0 | F146: 0 | G146: 0 | H146: 0 | I146: 0 | J146: 0 | K146: 0 | L146: 0 | M146: 0
A147: 270000000000 | B147: 0 | C147: 0 | D147: 0 | E147: 0 | F147: 0 | G147: 0 | H147: 0 | I147: 0 | J147: 0 | K147: 0 | L147: 0 | M147: 0
A148: 330000000000 | B148: 0 | C148: 0 | D148: 0 | E148: 0 | F148: 0 | G148: 0 | H148: 0 | I148: 0 | J148: 0 | K148: 0 | L148: 0 | M148: 0
A149: 390000000000 | B149: 0 | C149: 0 | D149: 0 | E149: 0 | F149: 0 | G149: 0 | H149: 0 | I149: 0 | J149: 0 | K149: 0 | L149: 0 | M149: 0
A150: 470000000000 | B150: 0 | C150: 0 | D150: 0 | E150: 0 | F150: 0 | G150: 0 | H150: 0 | I150: 0 | J150: 0 | K150: 0 | L150: 0 | M150: 0
A151: 560000000000 | B151: 0 | C151: 0 | D151: 0 | E151: 0 | F151: 0 | G151: 0 | H151: 0 | I151: 0 | J151: 0 | K151: 0 | L151: 0 | M151: 0
A152: 680000000000 | B152: 0 | C152: 0 | D152: 0 | E152: 0 | F152: 0 | G152: 0 | H152: 0 | I152: 0 | J152: 0 | K152: 0 | L152: 0 | M152: 0
A153: 820000000000 | B153: 0 | C153: 0 | D153: 0 | E153: 0 | F153: 0 | G153: 0 | H153: 0 | I153: 0 | J153: 0 | K153: 0 | L153: 0 | M153: 0
A154: 1000000000000 | B154: 0 | C154: 0 | D154: 0 | E154: 0 | F154: 0 | G154: 0 | H154: 0 | I154: 0 | J154: 0 | K154: 0 | L154: 0 | M154: 0
A155: 1200000000000 | B155: 0 | C155: 0 | D155: 0 | E155: 0 | F155: 0 | G155: 0 | H155: 0 | I155: 0 | J155: 0 | K155: 0 | L155: 0 | M155: 0
A156: 1500000000000 | B156: 0 | C156: 0 | D156: 0 | E156: 0 | F156: 0 | G156: 0 | H156: 0 | I156: 0 | J156: 0 | K156: 0 | L156: 0 | M156: 0
A157: 1800000000000 | B157: 0 | C157: 0 | D157: 0 | E157: 0 | F157: 0 | G157: 0 | H157: 0 | I157: 0 | J157: 0 | K157: 0 | L157: 0 | M157: 0
A158: 2200000000000 | B158: 0 | C158: 0 | D158: 0 | E158: 0 | F158: 0 | G158: 0 | H158: 0 | I158: 0 | J158: 0 | K158: 0 | L158: 0 | M158: 0
A159: 2700000000000 | B159: 2700000000000 | C159: 2700000000000 | D159: 2700000000000 | E159: 2700000000000 | F159: 2700000000000 | G159: 2700000000000 | H159: 2700000000000 | I159: 2700000000000 | J159: 2700000000000 | K159: 0 | L159: 2700000000000 | M159: 2700000000000

Sheet Bode Plots Calculations (hidden)
A1: Bode Plot Setup | AC1: EA MODELING
AT3: =AT9/10000000000000 -> -1.458168929e-05 | AU3: =AU9/10000000000000 -> -0.03209488586
AT4: =AT3*1000 -> -0.01458168929 | AU4: =AU3*1000 -> -32.09488586 | BJ4: XOVER SEARCH
AC5: a | AD5: b | AE5: c | AF5: d | AJ5: a | AK5: b | AL5: c | AM5: d | BJ5: xover | BK5: =SUM(BJ9:BJ626)/1000 -> 70
C6: Output Filter | J6: Pwm | M6: Compensation | X6: Design Output | AC6: Z1 | AJ6: Z3 | AQ6: Ea Gain BW | AT6: Complex EA | BA6: Actual EA Response | BF6: Actual Open Loop System Response | BJ6: phase margin | BK6: =SUM(BK10:BK627) -> 58.32592312 | BM6: Comp To Output
C7: Esr zero | F7: LC Double Pole | M7: Origin Pole | O7: Fz1 | Q7: Fz2 | S7: Fp1 | U7: Fp2 | AC7: Num | AE7: Den | AG7: Total | AJ7: Num | AL7: Den | AN7: Total | AQ7: A(s) | AT7: Num | AW7: Den
A8: Frequency | C8: Gain | D8: Phase | F8: Gain | H8: Phase | J8: Gain | M8: Gain | N8: Phase | O8: Gain | P8: Phase | Q8: Gain | R8: Phase | S8: Gain | T8: Phase | U8: Gain | V8: Phase | X8: Total Gain | Y8: Total Phase | Z8: Phase margin | AC8: Real | AD8: Imag | AE8: Real | AF8: Imag | AG8: Z1 Real | AH8: Z1 Imag | AJ8: Real | AK8: Imag | AL8: Real | AM8: Imag | AN8: Z3 Real | AO8: Z3 Imag | AQ8: Real | AR8: Imag | AT8: Real | AU8: Imag | AV8: Phase | AW8: Real | AX8: Imag | AY8: Phase | BA8: EAGain | BB8: Ea Gain (db) | BC8: Ea Phase | BF8: Total Gain | BG8: Total Phase | BH8: Total Phase Margin | BM8: Total Gain | BN8: Total Phase margin | BT8: Output to Comp 5V In @ 500kHz 0A Iout 25DegC
A9: 1 | B9: =A9/1000 -> 0.001 | C9: =SQRT((A9/Fesr)^2+1) -> 1 | D9: =ATAN(A9/Fesr) -> 3.76991118e-07 | F9: =(Ro/(Ro+Rdcr))/SQRT((A9/(Q*Fo))^2+(1-(A9^2/Fo^2))^2) -> 0.980392056 | G9: =-ATAN(A9*Fo/(Q*(Fo^2-A9^2))) -> -3.015040134e-05 | H9: =IF(G9>0,G9-Pi,G9) -> -3.015040134e-05 | J9: =Vin/Vramp -> 9 | M9: =1/(2*Pi*_Rfb1*(Cc1ea_u+Cc2ea_u)*A9) -> 5075.093854 | N9: =-Pi/2 -> -1.570796325 | O9: =SQRT(1+(A9/Fz1_u)^2) -> 1.000000003 | P9: =ATAN2(Fz1_u,A9) -> 7.596371013e-05 | Q9: =SQRT(1+(A9/Fz2_u)^2) -> 1.000000001 | R9: =ATAN2(Fz2_u,A9) -> 4.939601518e-05 | S9: =1/SQRT(1+(A9/Fp1_u)^2) -> 1 | T9: =-ATAN2(Fp1_u,A9) -> -3.871698782e-07 | U9: =1/SQRT(1+(A9/Fp2_u)^2) -> 1 | V9: =-ATAN2(Fp2_u,A9) -> -3.294344578e-06 | X9: =20*LOG(C9*J9*O9*Q9*F9*M9*S9*U9) -> 93.02172746 | Y9: =(180/Pi)*(D9+H9+N9+P9+R9+T9+V9) -> -89.99473424 | Z9: =Y9+180 -> 90.00526576 | AC9: 1 | AD9: =Rcea1_u*Cc1ea_u*A9*2*Pi -> 7.596371028e-05 | AE9: =-Rcea1_u*Cc1ea_u*Cc2ea_u*(A9*2*Pi)^2 -> -3.245599661e-14 | AF9: =(Cc2ea_u+Cc1ea_u)*A9*2*Pi -> 9.85203455e-09 | AG9: =AC9*AE9/(AE9^2+AF9^2)+AD9*AF9/(AE9^2+AF9^2) -> 7376.077025 | AH9: =AD9*AE9/(AE9^2+AF9^2)-AC9*AF9/(AE9^2+AF9^2) -> -101501877.1 | AI9: =SQRT(AG9^2+AH9^2) -> 101501877.4 | AJ9: =_Rfb1 -> 20000 | AK9: =_Rfb1*Rcea2_u*Cc3ea_u*A9*2*Pi -> 0.007743397564 | AL9: 1 | AM9: =(_Rfb1+Rcea2_u)*Cc3ea_u*A9*2*Pi -> 4.939601522e-05 | AN9: =AJ9*AL9/(AL9^2+AM9^2)+AK9*AM9/(AL9^2+AM9^2) -> 19999.99995 | AO9: =AK9*AL9/(AL9^2+AM9^2)-AJ9*AM9/(AL9^2+AM9^2) -> -0.9801769044 | AP9: =SQRT(AN9^2+AO9^2) -> 19999.99998 | AQ9: =Eadcg/(1+(Eadcg*A9/GBP)^2) -> 3161.999122 | AR9: =-(A9*Eadcg*Eadcg/GBP)/(1+(Eadcg*A9/GBP)^2) -> -1.666373537 | AT9: =-AR9*AH9+AG9*AQ9 -> -145816892.9 | AU9: =AQ9*AH9+AG9*AR9 -> -3.209488586e+11 | AV9: =ATAN2(AT9,AU9) -> -1.571250657 | AW9: =AG9-AH9*AO9/_Rfb2+AG9*AN9/_Rfb2+AN9-AO9*AR9+AQ9*AN9 -> 63273360.7 | AX9: =AH9+AH9*AN9/_Rfb2+AG9*AO9/_Rfb2+AO9+AO9*AQ9+AN9*AR9 -> -355292998 | AY9: =ATAN2(AW9,AX9) -> -1.39455616 | BA9: =SQRT(AT9^2+AU9^2)/SQRT(AW9^2+AX9^2) -> 889.3430205 | BB9: =20*LOG(BA9) -> 58.98138602 | BC9: =AV9-AY9 -> -0.1766944978 | BD9: =BC9*180/Pi-180 -> -190.123849 | BF9: =20*LOG(BA9*J9*F9*C9) -> 77.89423188 | BG9: =(180/Pi)*(D9+H9+BC9) -> -10.12555489 | BH9: =IF(BG9>180,BG9-180,BG9+180) -> 169.8744451 | BI9: =IF(BH9>180,BH9-360,BH9) -> 169.8744451 | BJ9: =SUM((BF10<0)*(BF9>0))*A9 -> 0 | BK9: =IF(BJ9>0,BI9,0) -> 0 | BM9: =20*LOG(J9*F9*C9) -> 18.91284586 | BN9: =(H9+D9)*180/Pi -> -0.001705890749 | BQ9: =20*LOG(BA9*7) -> 75.88334682 | BT9: Frequency | BU9: Gain | BV9: Phase
A10: 2 | B10: =A10/1000 -> 0.002 | C10: 1 | D10: 7.53982236e-07 | F10: 0.9803920625 | G10: -6.03008031e-05 | H10: -6.03008031e-05 | J10: 9 | M10: 2537.546927 | N10: -1.570796325 | O10: 1.000000012 | P10: 0.0001519274194 | Q10: 1.000000005 | R10: 9.879203011e-05 | S10: 1 | T10: -7.743397564e-07 | U10: 1 | V10: -6.588689157e-06 | X10: =20*LOG(C10*J10*O10*Q10*F10*M10*S10*U10) -> 87.00112771 | Y10: -89.98946849 | Z10: =Y10+180 -> 90.01053151 | AC10: 1 | AD10: 0.0001519274206 | AE10: -1.298239864e-13 | AF10: 1.97040691e-08 | AG10: =AC10*AE10/(AE10^2+AF10^2)+AD10*AF10/(AE10^2+AF10^2) -> 7376.077025 | AH10: =AD10*AE10/(AE10^2+AF10^2)-AC10*AF10/(AE10^2+AF10^2) -> -50750938.59 | AJ10: 20000 | AK10: 0.01548679513 | AL10: 1 | AM10: 9.879203044e-05 | AN10: =AJ10*AL10/(AL10^2+AM10^2)+AK10*AM10/(AL10^2+AM10^2) -> 19999.99981 | AO10: =AK10*AL10/(AL10^2+AM10^2)-AJ10*AM10/(AL10^2+AM10^2) -> -1.960353794 | AQ10: 3161.996487 | AR10: -3.332744298 | AT10: =-AR10*AH10+AG10*AQ10 -> -145816771.5 | AU10: =AQ10*AH10+AG10*AR10 -> -1.604743141e+11 | AV10: =ATAN2(AT10,AU10) -> -1.571704988 | AW10: 63273302.64 | AX10: -177701141.1 | AY10: =ATAN2(AW10,AX10) -> -1.228727912 | BA10: 850.7371012 | BB10: =20*LOG(BA10) -> 58.59590746 | BC10: =AV10-AY10 -> -0.3429770758 | BD10: -199.6511389 | BF10: 77.50875338 | BG10: -19.65455072 | BH10: =IF(BG10>180,BG10-180,BG10+180) -> 160.3454493 | BI10: =IF(BH10>180,BH10-360,BH10) -> 160.3454493 | BJ10: 0 | BK10: =IF(BJ10>0,BI10,0) -> 0 | BM10: =20*LOG(J10*F10*C10) -> 18.91284592 | BN10: -0.003411781523 | BQ10: =20*LOG(BA10*7) -> 75.49786826 | BT10: 100 | BU10: 35.3593 | BV10: -267.6677
A11: 3 | B11: 0.003 | C11: 1 | D11: 1.130973354e-06 | F11: 0.9803920732 | G11: -9.04512057e-05 | H11: -9.04512057e-05 | J11: 9 | M11: 1691.697951 | N11: -1.570796325 | O11: 1.000000026 | P11: 0.0002278911269 | Q11: 1.000000011 | R11: 0.0001481880446 | S11: 1 | T11: -1.161509635e-06 | U11: 1 | V11: -9.883033735e-06 | X11: 83.4793028 | Y11: -89.98420273 | Z11: 90.01579727 | AC11: 1 | AD11: 0.0002278911308 | AE11: -2.921039695e-13 | AF11: 2.955610365e-08 | AG11: 7376.077024 | AH11: -33833959.1 | AJ11: 20000 | AK11: 0.02323019269 | AL11: 1 | AM11: 0.0001481880457 | AN11: 19999.99956 | AO11: -2.940530656 | AQ11: 3161.992096 | AR11: -4.999109504 | AT11: -145816569.3 | AU11: -1.069827481e+11 | AV11: -1.572159317 | AW11: 63273205.89 | AX11: -118528140.8 | AY11: =ATAN2(AW11,AX11) -> -1.080456811 | BA11: 796.2445151 | BB11: 58.02092907 | BC11: -0.4917025064 | BD11: -208.1724784 | BF11: 76.93377509 | BG11: -28.1775961 | BH11: 151.8224039 | BI11: 151.8224039 | BJ11: 0 | BK11: 0 | BM11: 18.91284601 | BN11: -0.005117672345 | BQ11: 74.92288987 | BT11: 102.329 | BU11: 34.9368 | BV11: -265.9149
A12: 4 | B12: 0.004 | C12: 1 | D12: 1.507964472e-06 | F12: 0.9803920882 | G12: -0.0001206016096 | H12: -0.0001206016096 | J12: 9 | M12: 1268.773464 | N12: -1.570796325 | O12: 1.000000046 | P12: 0.0003038548318 | Q12: 1.00000002 | R12: 0.0001975840583 | S12: 1 | T12: -1.548679513e-06 | U12: 0.9999999999 | V12: -1.317737831e-05 | X12: 80.98052845 | Y12: -89.97893697 | Z12: 90.02106303 | AC12: 1 | AD12: 0.0003038548411 | AE12: -5.192959457e-13 | AF12: 3.94081382e-08 | AG12: 7376.077024 | AH12: -25375469.37 | AJ12: 20000 | AK12: 0.03097359025 | AL12: 1 | AM12: 0.0001975840609 | AN12: 19999.99923 | AO12: -3.920707474 | AQ12: 3161.985949 | AR12: -6.665466381 | AT12: -145816286.1 | AU12: -8.023692676e+10 | AV12: -1.572613646 | AW12: 63273070.45 | AX12: -88959854.41 | AY12: -0.9525570718 | BA12: 734.9967019 | BB12: 57.32570781 | BC12: -0.6200565744 | BD12: -215.5266248 | BF12: 76.23855395 | BG12: -35.53344838 | BH12: 144.4665516 | BI12: 144.4665516 | BJ12: 0 | BK12: 0 | BM12: 18.91284615 | BN12: -0.006823563239 | BQ12: 74.22766861 | BT12: 104.713 | BU12: 34.1908 | BV12: -264.9322
A13: 5 | B13: 0.005 | C13: 1 | D13: 1.88495559e-06 | F13: 0.9803921075 | G13: -0.0001507520152 | H13: -0.0001507520152 | J13: 9 | M13: 1015.018771 | N13: -1.570796325 | O13: 1.000000072 | P13: 0.0003798185331 | Q13: 1.00000003 | R13: 0.0002469800711 | S13: 1 | T13: -1.935849391e-06 | U13: 0.9999999999 | V13: -1.647172289e-05 | X13: 79.04232868 | Y13: -89.97367122 | Z13: 90.02632878 | AC13: 1 | AD13: 0.0003798185514 | AE13: -8.113999152e-13 | AF13: 4.926017275e-08 | AG13: 7376.077023 | AH13: -20300375.54 | AJ13: 20000 | AK13: 0.03871698782 | AL13: 1 | AM13: 0.0002469800761 | AN13: 19999.99879 | AO13: -4.900884235 | AQ13: 3161.978046 | AR13: -8.33181215 | AT13: -145815922 | AU13: -6.418940323e+10 | AV13: -1.573067974 | AW13: 63272896.3 | AX13: -71233453.46 | AY13: -0.8445127124 | BA13: 673.7168348 | BB13: 56.56954799 | BC13: -0.7285552615 | BD13: -221.7431417 | BF13: 75.48239431 | BG13: -41.75167113 | BH13: 138.2483289 | BI13: 138.2483289 | BJ13: 0 | BK13: 0 | BM13: 18.91284632 | BN13: -0.008529454231 | BQ13: 73.47150879 | BT13: 107.152 | BU13: 34.4777 | BV13: -262.3057
A14: 6 | B14: 0.006 | C14: 1 | D14: 2.261946708e-06 | F14: 0.9803921311 | G14: -0.0001809024228 | H14: -0.0001809024228 | J14: 9 | M14: 845.8489757 | N14: -1.570796325 | O14: 1.000000104 | P14: 0.0004557822301 | Q14: 1.000000044 | R14: 0.0002963760826 | S14: 1 | T14: -2.323019269e-06 | U14: 0.9999999998 | V14: -1.976606747e-05 | X14: 77.45870436 | Y14: -89.96840546 | Z14: 90.03159454 | AC14: 1 | AD14: 0.0004557822617 | AE14: -1.168415878e-12 | AF14: 5.91122073e-08 | AG14: 7376.077022 | AH14: -16916979.66 | AJ14: 20000 | AK14: 0.04646038538 | AL14: 1 | AM14: 0.0002963760913 | AN14: 19999.99826 | AO14: -5.881060924 | AQ14: 3161.968386 | AR14: -9.998144036 | AT14: -145815476.9 | AU14: -5.349102862e+10 | AV14: -1.5735223 | AW14: 63272683.45 | AX14: -59427995.02 | AY14: -0.7540745313 | BA14: 616.2224317 | BB14: 55.79475007 | BC14: -0.8194477688 | BD14: -226.9508987 | BF14: 74.70759659 | BG14: -46.96113408 | BH14: 133.0388659 | BI14: 133.0388659 | BJ14: 0 | BK14: 0 | BM14: 18.91284653 | BN14: -0.01023534534 | BQ14: 72.69671087 | BT14: 109.648 | BU14: 34.1144 | BV14: -262.7662
A15: 7 | B15: 0.007 | C15: 1 | D15: 2.638937826e-06 | F15: 0.980392159 | G15: -0.0002110528331 | H15: -0.0002110528331 | J15: 9 | M15: 725.0134078 | N15: -1.570796325 | O15: 1.000000141 | P15: 0.0005317459218 | Q15: 1.00000006 | R15: 0.0003457720927 | S15: 1 | T15: -2.710189147e-06 | U15: 0.9999999997 | V15: -2.306041204e-05 | X15: 76.11976928 | Y15: -89.9631397 | Z15: 90.0368603 | AC15: 1 | AD15: 0.0005317459719 | AE15: -1.590343834e-12 | AF15: 6.896424185e-08 | AG15: 7376.077021 | AH15: -14500268.33 | AJ15: 20000 | AK15: 0.05420378295 | AL15: 1 | AM15: 0.0003457721065 | AN15: 19999.99763 | AO15: -6.861237527 | AQ15: 3161.95697 | AR15: -11.66445926 | AT15: -145814951 | AU15: -4.584931053e+10 | AV15: -1.573976625 | AW15: 63272431.9 | AX15: -51005932.12 | AY15: -0.6784687989 | BA15: 564.1549532 | BB15: 55.02796811 | BC15: -0.8955078257 | BD15: -231.308819 | BF15: 73.94081488 | BG15: -51.32076023 | BH15: 128.6792398 | BI15: 128.6792398 | BJ15: 0 | BK15: 0 | BM15: 18.91284677 | BN15: -0.0119412366 | BQ15: 71.92992891 | BT15: 112.202 | BU15: 34.2977 | BV15: -267.0128
A16: 8 | B16: 0.008 | C16: 1 | D16: 3.015928944e-06 | F16: 0.9803921912 | G16: -0.0002412032462 | H16: -0.0002412032462 | J16: 9 | M16: 634.3867318 | N16: -1.570796325 | O16: 1.000000185 | P16: 0.0006077096074 | Q16: 1.000000078 | R16: 0.0003951681012 | S16: 1 | T16: -3.097359025e-06 | U16: 0.9999999997 | V16: -2.635475662e-05 | X16: 74.95993116 | Y16: -89.95787395 | Z16: 90.04212605 | AC16: 1 | AD16: 0.0006077096822 | AE16: -2.077183783e-12 | AF16: 7.88162764e-08 | AG16: 7376.07702 | AH16: -12687734.83 | AJ16: 20000 | AK16: 0.06194718051 | AL16: 1 | AM16: 0.0003951681217 | AN16: 19999.9969 | AO16: -7.84141403 | AQ16: 3161.943798 | AR16: -13.33075505 | AT16: -145814344.2 | AU16: -4.011800278e+10 | AV16: -1.574430947 | AW16: 63272141.66 | AX16: -44698491.23 | AY16: -0.615040525 | BA16: 517.8676894 | BB16: 54.28437631 | BC16: -0.9593904219 | BD16: -234.9690221 | BF16: 73.19722337 | BG16: -54.98266927 | BH16: 125.0173307 | BI16: 125.0173307 | BJ16: 0 | BK16: 0 | BM16: 18.91284706 | BN16: -0.01364712803 | BQ16: 71.18633711 | BT16: 114.815 | BU16: 33.3465 | BV16: -266.2048
A17: 9 | B17: 0.009 | C17: 1 | D17: 3.392920062e-06 | F17: 0.9803922276 | G17: -0.0002713536628 | H17: -0.0002713536628 | J17: 9 | M17: 563.8993172 | N17: -1.570796325 | O17: 1.000000234 | P17: 0.000683673286 | Q17: 1.000000099 | R17: 0.0004445641077 | S17: 1 | T17: -3.484528904e-06 | U17: 0.9999999996 | V17: -2.96491012e-05 | X17: 73.93688164 | Y17: -89.9526082 | Z17: 90.0473918 | AC17: 1 | AD17: 0.0006836733925 | AE17: -2.628935725e-12 | AF17: 8.866831095e-08 | AG17: 7376.077019 | AH17: -11277986.56 | AJ17: 20000 | AK17: 0.06969057807 | AL17: 1 | AM17: 0.000444564137 | AN17: 19999.99608 | AO17: -8.821590418 | AQ17: 3161.928869 | AR17: -14.99702863 | AT17: -145813656.4 | AU17: -3.566030191e+10 | AV17: -1.574885267 | AW17: 63271812.72 | AX17: -39800798.15 | AY17: -0.5615025744 | BA17: 477.0707183 | BB17: 53.57165522 | BC17: -1.013382693 | BD17: -238.0625514 | BF17: 72.4845026 | BG17: -58.07790441 | BH17: 121.9220956 | BI17: 121.9220956 | BJ17: 0 | BK17: 0 | BM17: 18.91284738 | BN17: -0.01535301965 | BQ17: 70.47361602 | BT17: 117.49 | BU17: 33.0246 | BV17: -264.9049
A18: 10 | B18: 0.01 | C18: 1 | D18: 3.76991118e-06 | F18: 0.9803922684 | G18: -0.0003015040832 | H18: -0.0003015040832 | J18: 9 | M18: 507.5093854 | N18: -1.570796325 | O18: 1.000000289 | P18: 0.0007596369567 | Q18: 1.000000122 | R18: 0.000493960112 | S18: 1 | T18: -3.871698782e-06 | U18: 0.9999999995 | V18: -3.294344577e-05 | X18: 73.02173287 | Y18: -89.94734244 | Z18: 90.05265756 | AC18: 1 | AD18: 0.0007596371028 | AE18: -3.245599661e-12 | AF18: 9.85203455e-08 | AG18: 7376.077017 | AH18: -10150187.95 | AJ18: 20000 | AK18: 0.07743397564 | AL18: 1 | AM18: 0.0004939601522 | AN18: 19999.99516 | AO18: -9.801766676 | AQ18: 3161.912185 | AR18: -16.66327721 | AT18: -145812887.8 | AU18: -3.209412587e+10 | AV18: -1.575339584 | AW18: 63271445.09 | AX18: -35889928.32 | AY18: -0.5159808916 | BA18: 441.2109347 | BB18: 52.89292534 | BC18: -1.059358693 | BD18: -240.6967822 | BF18: 71.80577309 | BG18: -60.71384108 | BH18: 119.2861589 | BI18: 119.2861589 | BJ18: 0 | BK18: 0 | BM18: 18.91284774 | BN18: -0.01705891149 | BQ18: 69.79488614 | BT18: 120.226 | BU18: 33.736 | BV18: -269.9808
A19: =A10*10 -> 20 | B19: 0.02 | C19: 1 | D19: 7.53982236e-06 | F19: 0.9803929119 | G19: -0.0006030085896 | H19: -0.0006030085896 | J19: 9 | M19: 253.7546927 | N19: -1.570796325 | O19: 1.000001154 | P19: 0.001519273037 | Q19: 1.000000488 | R19: 0.000987919983 | S19: 1 | T19: -7.743397564e-06 | U19: 0.9999999978 | V19: -6.588689147e-05 | X19: 67.00114934 | Y19: -89.89468497 | Z19: 90.10531503 | AC19: 1 | AD19: 0.001519274206 | AE19: -1.298239864e-11 | AF19: 1.97040691e-07 | AG19: 7376.076993 | AH19: -5075094.34 | AJ19: 20000 | AK19: 0.1548679513 | AL19: 1 | AM19: 0.0009879203044 | AN19: 19999.98063 | AO19: -19.603519 | AQ19: 3161.648767 | AR19: -33.32377801 | AT19: -145800752.4 | AU19: -1.604591156e+10 | AV19: -1.57988255 | AW19: 63265640.87 | AX19: -18491309.94 | AY19: -0.2843596779 | BA19: 243.4523258 | BB19: 47.72827856 | BC19: -1.295522872 | BD19: -254.2279929 | BF19: 66.641132 | BG19: -74.26211079 | BH19: 105.7378892 | BI19: 105.7378892 | BJ19: 0 | BK19: 0 | BM19: 18.91285344 | BN19: -0.03411784723 | BQ19: 64.63023936 | BT19: 123.027 | BU19: 32.7649 | BV19: -265.7341
A20: =A11*10 -> 30 | B20: 0.03 | C20: 1 | D20: 1.130973354e-05 | F20: 0.9803939844 | G20: -0.0009045139424 | H20: -0.0009045139424 | J20: 9 | M20: 169.1697951 | N20: -1.570796325 | O20: 1.000002597 | P20: 0.002278907363 | Q20: 1.000001098 | R20: 0.001481879372 | S20: 0.9999999999 | T20: -1.161509635e-05 | U20: 0.9999999951 | V20: -9.883033703e-05 | X20: 63.47935146 | Y20: -89.84202768 | Z20: 90.15797232 | AC20: 1 | AD20: 0.002278911308 | AE20: -2.921039695e-11 | AF20: 2.955610365e-07 | AG20: 7376.076953 | AH20: -3383396.632 | AJ20: 20000 | AK20: 0.2323019269 | AL20: 1 | AM20: 0.001481880457 | AN20: 19999.95642 | AO20: -29.40524263 | AQ20: 3161.209836 | AR20: -49.97872751 | AT20: -145780531.3 | AU20: -1.069599536e+10 | AV20: -1.584424933 | AW20: 63255969.33 | AX20: -12934454.81 | AY20: -0.2016976087 | BA20: 165.6782512 | BB20: 44.38531003 | BC20: -1.382727324 | BD20: -259.22444 | BF20: 63.29817298 | BG20: -79.2756168 | BH20: 100.7243832 | BI20: 100.7243832 | BJ20: 0 | BK20: 0 | BM20: 18.91286295 | BN20: -0.05117683147 | BQ20: 61.28727083 | BT20: 125.893 | BU20: 32.2472 | BV20: -266.3711
A21: 40 | B21: 0.04 | C21: 1 | D21: 1.507964472e-05 | F21: 0.9803954859 | G21: -0.001206020565 | H21: -0.001206020565 | J21: 9 | M21: 126.8773464 | N21: -1.570796325 | O21: 1.000004616 | P21: 0.00303853906 | Q21: 1.000001952 | R21: 0.001975838038 | S21: 0.9999999999 | T21: -1.548679513e-05 | U21: 0.9999999913 | V21: -0.0001317737824 | X21: 60.98061496 | Y21: -89.78937065 | Z21: 90.21062935 | AC21: 1 | AD21: 0.003038548411 | AE21: -5.192959457e-11 | AF21: 3.94081382e-07 | AG21: 7376.076897 | AH21: -2537547.899 | AJ21: 20000 | AK21: 0.3097359025 | AL21: 1 | AM21: 0.001975840609 | AN21: 19999.92253 | AO21: -39.20692321 | AQ21: 3160.595538 | AR21: -66.62535393 | AT21: -145752231.2 | AU21: -8020654000 | AV21: -1.58896644 | AW21: 63242433.67 | AX21: -10337887.58 | AY21: -0.1620313667 | BA21: 125.1834057 | BB21: 41.95093525 | BC21: -1.426935073 | BD21: -261.7573574 | BF21: 60.8638115 | BG21: -81.82559331 | BH21: 98.17440669 | BI21: 98.17440669 | BJ21: 0 | BK21: 0 | BM21: 18.91287625 | BN21: -0.06823588845 | BQ21: 58.85289605 | BT21: 128.825 | BU21: 32.3142 | BV21: -268.0596
A22: 50 | B22: 0.05 | C22: 1 | D22: 1.88495559e-05 | F22: 0.9803974164 | G22: -0.00150752888 | H22: -0.00150752888 | J22: 9 | M22: 101.5018771 | N22: -1.570796325 | O22: 1.000007213 | P22: 0.00379816725 | Q22: 1.00000305 | R22: 0.002469795739 | S22: 0.9999999998 | T22: -1.935849391e-05 | U22: 0.9999999864 | V22: -0.0001647172274 | X22: 59.04246385 | Y22: -89.73671398 | Z22: 90.26328602 | AC22: 1 | AD22: 0.003798185514 | AE22: -8.113999152e-11 | AF22: 4.926017275e-07 | AG22: 7376.076825 | AH22: -2030038.757 | AJ22: 20000 | AK22: 0.3871698782 | AL22: 1 | AM22: 0.002469800761 | AN22: 19999.87896 | AO22: -49.00854639 | AQ22: 3159.806076 | AR22: -83.26089009 | AT22: =-AR22*AH22+AG22*AQ22 -> -145715861.4 | AU22: =AQ22*AH22+AG22*AR22 -> -6415142936 | AV22: -1.593506781 | AW22: 63225038.43 | AX22: -8925264.355 | AY22: -0.1402399419 | BA22: 100.4950064 | BB22: 40.04288964 | BC22: -1.453266839 | BD22: -263.2660565 | BF22: 58.95578299 | BG22: -83.35135151 | BH22: 96.64864849 | BI22: 96.64864849 | BJ22: 0 | BK22: 0 | BM22: 18.91289335 | BN22: -0.08529504242 | BQ22: 56.94485044 | BT22: 131.826 | BU22: 32.1558 | BV22: -263.3605
A23: 60 | B23: 0.06 | C23: 1 | D23: 2.261946708e-05 | F23: 0.9803997759 | G23: -0.001809039311 | H23: -0.001809039311 | J23: 9 | M23: 84.58489757 | N23: -1.570796325 | O23: 1.000010387 | P23: 0.004557791056 | Q23: 1.000004392 | R23: 0.002963752235 | S23: 0.9999999997 | T23: -2.323019269e-05 | U23: 0.9999999805 | V23: -0.0001976606721 | X23: 57.45889901 | Y23: -89.68405775 | Z23: 90.31594225 | AC23: 1 | AD23: 0.004557822617 | AE23: -1.168415878e-10 | AF23: 5.91122073e-07 | AG23: 7376.076737 | AH23: -1691699.409 | AJ23: 20000 | AK23: 0.4646038538 | AL23: 1 | AM23: 0.002963760913 | AN23: 19999.8257 | AO23: -58.81009783 | AQ23: 3158.841713 | AR23: -99.88257496 | AT23: -145671434.2 | AU23: -5344547402 | AV23: -1.598045665 | AW23: 63203789.38 | AX23: -8104429.989 | AY23: -0.1275310403 | BA23: 83.90498028 | BB23: 38.47575479 | BC23: -1.470514624 | BD23: -264.2542818 | BF23: 57.38866905 | BG23: -84.3566361 | BH23: 95.6433639 | BI23: 95.6433639 | BJ23: 0 | BK23: 0 | BM23: 18.91291426 | BN23: -0.1023543176 | BQ23: 55.37771559 | BT23: 134.896 | BU23: 32.8753 | BV23: -269.4654
A24: 70 | B24: 0.07 | C24: 1 | D24: 2.638937825e-05 | F24: 0.9804025645 | G24: -0.002110552282 | H24: -0.002110552282 | J24: 9 | M24: 72.50134078 | N24: -1.570796325 | O24: 1.000014138 | P24: 0.005317409603 | Q24: 1.000005978 | R24: 0.003457707285 | S24: 0.9999999996 | T24: -2.710189147e-05 | U24: 0.9999999734 | V24: -0.0002306041164 | X24: 56.12003421 | Y24: -89.63140204 | Z24: 90.36859796 | AC24: 1 | AD24: 0.005317459719 | AE24: -1.590343834e-10 | AF24: 6.896424185e-07 | AG24: 7376.076633 | AH24: -1450028.516 | AJ24: 20000 | AK24: 0.5420378295 | AL24: 1 | AM24: 0.003457721065 | AN24: 19999.76276 | AO24: -68.61156317 | AQ24: 3157.70277 | AR24: -116.4876552 | AT24: -145618964.2 | AU24: -4579618286 | AV24: -1.602582801 | AW24: 63178693.6 | AX24: -7621569.071 | AY24: -0.1200549797 | BA24: 72.00136734 | BB24: 37.14681488 | BC24: -1.482527821 | BD24: -264.9425873 | BF24: 56.05975384 | BG24: -85.06200099 | BH24: 94.93799901 | BI24: 94.93799901 | BJ24: 0 | BK24: 0 | BM24: 18.91293896 | BN24: -0.1194137383 | BQ24: 54.04877568 | BT24: 138.038 | BU24: 32.5387 | BV24: -267.9507
A25: 80 | B25: 0.08 | C25: 1 | D25: 3.015928943e-05 | F25: 0.980405782 | G25: -0.002412068215 | H25: -0.002412068215 | J25: 9 | M25: 63.43867318 | N25: -1.570796325 | O25: 1.000018465 | P25: 0.006077022013 | Q25: 1.000007808 | R25: 0.003951660648 | S25: 0.9999999995 | T25: -3.097359024e-05 | U25: 0.9999999653 | V25: -0.0002635475602 | X25: 54.96027719 | Y25: -89.57874696 | Z25: 90.42125304 | AC25: 1 | AD25: 0.006077096822 | AE25: -2.077183783e-10 | AF25: 7.88162764e-07 | AG25: 7376.076513 | AH25: -1268775.408 | AJ25: 20000 | AK25: 0.6194718051 | AL25: 1 | AM25: 0.003951681217 | AN25: 19999.69014 | AO25: -78.41292806 | AQ25: 3156.389626 | AR25: -133.0733866 | AT25: -145558469 | AU25: -4005731094 | AV25: -1.6071179 | AW25: 63149759.42 | AX25: -7349743.744 | AY25: -0.1158646552 | BA25: 63.04852959 | BB25: 35.99349925 | BC25: -1.491253244 | BD25: -265.4425172 | BF25: 54.90646672 | BG25: -85.57899052 | BH25: 94.42100948 | BI25: 94.42100948 | BJ25: 0 | BK25: 0 | BM25: 18.91296747 | BN25: -0.1364733288 | BQ25: 52.89546005 | BT25: 141.254 | BU25: 32.377 | BV25: -263.1143
A26: 90 | B26: 0.09 | C26: 1.000000001 | D26: 3.392920061e-05 | F26: 0.9804094286 | G26: -0.002713587534 | H26: -0.002713587534 | J26: 9 | M26: 56.38993172 | N26: -1.570796325 | O26: 1.00002337 | P26: 0.006836627409 | Q26: 1.000009882 | R26: 0.004445612083 | S26: 0.9999999994 | T26: -3.484528902e-05 | U26: 0.999999956 | V26: -0.0002964910034 | X26: 53.93731959 | Y26: -89.52609258 | Z26: 90.47390742 | AC26: 1 | AD26: 0.006836733925 | AE26: -2.628935725e-10 | AF26: 8.866831095e-07 | AG26: 7376.076377 | AH26: -1127800.821 | AJ26: 20000 | AK26: 0.6969057807 | AL26: 1 | AM26: 0.00444564137 | AN26: 19999.60783 | AO26: -88.21417817 | AQ26: 3154.902715 | AR26: -149.6370358 | AT26: -145489968.5 | AU26: -3559205608 | AV26: -1.611650672 | AW26: 63116996.46 | AX26: -7218406.32 | AY26: -0.1138707551 | BA26: 56.07219188 | BB26: 34.97495066 | BC26: -1.497779917 | BD26: -265.816468 | BF26: 53.88795044 | BG26: -85.97000109 | BH26: 94.02999891 | BI26: 94.02999891 | BJ26: 0 | BK26: 0 | BM26: 18.91299978 | BN26: -0.1535331132 | BQ26: 51.87691146 | BT26: 144.544 | BU26: 31.4991 | BV26: -266.2885
A27: 100 | B27: 0.1 | C27: 1.000000001 | D27: 3.769911178e-05 | F27: 0.9804135042 | G27: -0.003015110662 | H27: -0.003015110662 | J27: 9 | M27: 50.75093854 | N27: -1.570796325 | O27: 1.000028852 | P27: 0.007596224917 | Q27: 1.0000122 | R27: 0.004939561348 | S27: 0.9999999993 | T27: -3.87169878e-05 | U27: 0.9999999457 | V27: -0.0003294344459 | X27: 53.02227354 | Y27: -89.47343899 | Z27: 90.52656101 | AC27: 1 | AD27: 0.007596371028 | AE27: -3.245599661e-10 | AF27: 9.85203455e-07 | AG27: 7376.076225 | AH27: -1015021.201 | AJ27: 20000 | AK27: 0.7743397564 | AL27: 1 | AM27: 0.004939601522 | AN27: 19999.51584 | AO27: -98.01529914 | AQ27: 3153.242531 | AR27: -166.1758814 | AT27: -145413485.4 | AU27: -3201833746 | AV27: -1.61618083 | AW27: 63080415.56 | AX27: -7185204.343 | AY27: -0.1134166486 | BA27: 50.48384309 | BB27: 34.06304817 | BC27: -1.502764181 | BD27: -266.1020453 | BF27: 52.97608405 | BG27: -86.2726384 | BH27: 93.7273616 | BI27: 93.7273616 | BJ27: 0 | BK27: 0 | BM27: 18.91303589 | BN27: -0.1705931159 | BQ27: 50.96500897 | BT27: 147.911 | BU27: 31.4819 | BV27: -266.3463
A28: 200 | B28: 0.2 | C28: 1.000000003 | D28: 7.539822346e-05 | F28: 0.9804778596 | G28: -0.006030644571 | H28: -0.006030644571 | J28: 9 | M28: 25.37546927 | N28: -1.570796325 | O28: 1.000115403 | P28: 0.01519157329 | Q28: 1.000048798 | R28: 0.009878881663 | S28: 0.999999997 | T28: -7.743397548e-05 | U28: 0.9999997829 | V28: -0.0006588688203 | X28: 47.00331194 | Y28: -88.94696626 | Z28: 91.05303374 | AC28: 1 | AD28: 0.01519274206 | AE28: -1.298239864e-09 | AF28: 1.97040691e-06 | AG28: 7376.073823 | AH28: -507514.2453 | AJ28: 20000 | AK28: 1.548679513 | AL28: 1 | AM28: 0.009879203044 | AN28: 19998.06352 | AO28: -196.0162504 | AQ28: 3127.258782 | AR28: -329.6130756 | AT28: -144216439.7 | AU28: -1589559631 | AV28: -1.661275902 | AW28: 62507887.64 | AX28: -8981170.517 | AY28: -0.142703945 | BA28: 25.2746385 | BB28: 28.05369905 | BC28: -1.518571957 | BD28: -267.0077641 | BF28: 46.96730509 | BG28: -87.34897458 | BH28: 92.65102542 | BI28: 92.65102542 | BJ28: 0 | BK28: 0 | BM28: 18.91360604 | BN28: -0.3412104821 | BQ28: 44.95565985 | BT28: 151.356 | BU28: 31.0519 | BV28: -267.0283
A29: 300 | B29: 0.3 | C29: 1.000000006 | D29: 0.0001130973349 | F29: 0.980585133 | G29: -0.009047025147 | H29: -0.009047025147 | J29: 9 | M29: 16.91697951 | N29: -1.570796325 | O29: 1.000259638 | P29: 0.02278516918 | Q29: 1.000109792 | R29: 0.01481771999 | S29: 0.9999999933 | T29: -0.0001161509629 | U29: 0.9999995116 | V29: -0.0009883030517 | X29: 43.48421699 | Y29: -88.42067006 | Z29: 91.57932994 | AC29: 1 | AD29: 0.02278911308 | AE29: -2.921039695e-09 | AF29: 2.955610365e-06 | AG29: 7376.069821 | AH29: -338346.8801 | AJ29: 20000 | AK29: 2.323019269 | AL29: 1 | AM29: 0.01481880457 | AN29: 19995.64344 | AO29: -293.9885131 | AQ29: 3084.891261 | AR29: -487.7213084 | AT29: -142264609.7 | AU29: -1047360800 | AV29: -1.705801602 | AW29: 61574375.36 | AX29: -11843818.85 | AY29: -0.1900288946 | BA29: 16.85687813 | BB29: 24.53554294 | BC29: -1.515772707 | BD29: -266.8473789 | BF29: 43.45009927 | BG29: -87.35925527 | BH29: 92.64074473 | BI29: 92.64074473 | BJ29: 0 | BK29: 0 | BM29: 18.91455633 | BN29: -0.5118763587 | BQ29: 41.43750374 | BT29: 154.882 | BU29: 31.2487 | BV29: -260.6973
A30: 400 | B30: 0.4 | C30: 1.000000011 | D30: 0.0001507964461 | F30: 0.9807353462 | G30: -0.01206467615 | H30: -0.01206467615 | J30: 9 | M30: 12.68773464 | N30: -1.570796325 | O30: 1.000461532 | P30: 0.03037613788 | Q30: 1.000195178 | R30: 0.0197558355 | S30: 0.999999988 | T30: -0.00015486795 | U30: 0.9999991318 | V30: -0.001317737069 | X30: 40.98926396 | Y30: -87.89463858 | Z30: 92.10536142 | AC30: 1 | AD30: 0.03038548411 | AE30: -5.192959457e-09 | AF30: 3.94081382e-06 | AG30: 7376.064217 | AH30: -253764.4124 | AJ30: 20000 | AK30: 3.097359025 | AL30: 1 | AM30: 0.01975840609 | AN30: 19992.25633 | AO30: -391.9177601 | AQ30: 3027.469431 | AR30: -638.190556 | AT30: -139619242.5 | AU30: -772971335.8 | AV30: -1.749496207 | AW30: 60309196.17 | AX30: -14834071.3 | AY30: -0.2411792995 | BA30: 12.64724958 | BB30: 22.03992178 | BC30: -1.508316907 | BD30: -266.4201931 | BF30: 40.95580863 | BG30: -87.10280809 | BH30: 92.89719191 | BI30: 92.89719191 | BJ30: 0 | BK30: 0 | BM30: 18.91588684 | BN30: -0.6826150255 | BQ30: 38.94188258 | BT30: 158.489 | BU30: 31.0037 | BV30: -259.869
A31: 500 | B31: 0.5 | C31: 1.000000018 | D31: 0.0001884955568 | F31: 0.9809285296 | G31: -0.01508402186 | H31: -0.01508402186 | J31: 9 | M31: 10.15018771 | N31: -1.570796325 | O31: 1.000721051 | P31: 0.03796360645 | Q31: 1.000304949 | R31: 0.02469298759 | S31: 0.9999999813 | T31: -0.0001935849367 | U31: 0.9999986434 | V31: -0.001647170799 | X31: 39.05597625 | Y31: -87.36895993 | Z31: 92.63104007 | AC31: 1 | AD31: 0.03798185514 | AE31: -8.113999152e-09 | AF31: 4.926017275e-06 | AG31: 7376.057013 | AH31: -203015.9038 | AJ31: 20000 | AK31: 3.871698782 | AL31: 1 | AM31: 0.02469800761 | AN31: 19987.90317 | AO31: -489.7896858 | AQ31: 2956.709039 | AR31: -779.0928317 | AT31: -136359380.9 | AU31: -606005591 | AV31: -1.792123527 | AW31: 58750185.9 | AX31: -17731787.73 | AY31: -0.2931226651 | BA31: 10.12188849 | BB31: 20.10523097 | BC31: -1.499000862 | BD31: -265.886423 | BF31: 39.02282863 | BG31: -86.73987379 | BH31: 93.26012621 | BI31: 93.26012621 | BJ31: 0 | BK31: 0 | BM31: 18.91759766 | BN31: -0.8534507918 | BQ31: 37.00719177 | BT31: 162.181 | BU31: 30.4293 | BV31: -262.3986
A32: 600 | B32: 0.6 | C32: 1.000000026 | D32: 0.0002261946669 | F32: 0.9811647222 | G32: -0.01810548724 | H32: -0.01810548724 | J32: 9 | M32: 8.458489757 | N32: -1.570796325 | O32: 1.001038148 | P32: 0.04554670443 | Q32: 1.000439098 | R32: 0.02962893593 | S32: 0.999999973 | T32: -0.0002323019227 | U32: 0.9999980465 | V32: -0.001976604173 | X32: 37.47835394 | Y32: -86.84372208 | Z32: 93.15627792 | AC32: 1 | AD32: 0.04557822617 | AE32: -1.168415878e-08 | AF32: 5.91122073e-06 | AG32: 7376.048207 | AH32: -169184.3747 | AJ32: 20000 | AK32: 4.646038538 | AL32: 1 | AM32: 0.02963760913 | AN32: 19982.58524 | AO32: -587.5900121 | AQ32: 2874.591343 | AR32: -908.9457828 | AT32: -132576299.6 | AU32: -493040366.9 | AV32: -1.833478354 | AW32: 56941035.4 | AX32: -20445074.12 | AY32: -0.3447204708 | BA32: 8.438869794 | BB32: 18.52568572 | BC32: -1.488757883 | BD32: -265.2995435 | BF32: 37.44537463 | BG32: -86.32395151 | BH32: 93.67604849 | BI32: 93.67604849 | BJ32: 0 | BK32: 0 | BM32: 18.91968891 | BN32: -1.024408007 | BQ32: 35.42764652 | BT32: 165.959 | BU32: 29.9194 | BV32: -264.8295
A33: 700 | B33: 0.7 | C33: 1.000000035 | D33: 0.0002638937765 | F33: 0.9814439718 | G33: -0.02112949813 | H33: -0.02112949813 | J33: 9 | M33: 7.250134078 | N33: -1.570796325 | O33: 1.001412771 | P33: 0.05312456432 | Q33: 1.000597613 | R33: 0.03456344055 | S33: 0.9999999633 | T33: -0.0002710189081 | U33: 0.9999973411 | V33: -0.002306037117 | X33: 36.14650984 | Y33: -86.3190129 | Z33: 93.6809871 | AC33: 1 | AD33: 0.05317459719 | AE33: -1.590343834e-08 | AF33: 6.896424185e-06 | AG33: 7376.037801 | AH33: -145019.691 | AJ33: 20000 | AK33: 5.420378295 | AL33: 1 | AM33: 0.03457721065 | AN33: 19976.30408 | AO33: -685.304496 | AQ33: 2783.237037 | AR33: -1026.736143 | AT33: -128367696.6 | AU33: -411197419.7 | AV33: -1.873389829 | AW33: 54928510.24 | AX33: -22926214.79 | AY33: -0.3954011514 | BA33: 7.237250827 | BB33: 17.19147249 | BC33: -1.477988678 | BD33: -264.6825135 | BF33: 36.11363322 | BG33: -85.87802457 | BH33: 94.12197543 | BI33: 94.12197543 | BJ33: 0 | BK33: 0 | BM33: 18.92216073 | BN33: -1.195511068 | BQ33: 34.09343329 | BT33: 169.824 | BU33: 29.8089 | BV33: -267.7277
A34: 800 | B34: 0.8 | C34: 1.000000045 | D34: 0.0003015928853 | F34: 0.9817663351 | G34: -0.02415648138 | H34: -0.02415648138 | J34: 9 | M34: 6.343867318 | N34: -1.570796325 | O34: 1.001844854 | P34: 0.06069632226 | Q34: 1.000780485 | R34: 0.03949626189 | S34: 0.999999952 | T34: -0.0003097358926 | U34: 0.9999965272 | V34: -0.002635469561 | X34: 34.99485054 | Y34: -85.79492006 | Z34: 94.20507994 | AC34: 1 | AD34: 0.06077096822 | AE34: -2.077183783e-08 | AF34: 7.88162764e-06 | AG34: 7376.025793 | AH34: -126896.7857 | AJ34: 20000 | AK34: 6.194718051 | AL34: 1 | AM34: 0.03951681217 | AN34: 19969.06154 | AO34: -782.9189361 | AQ34: 2684.788143 | AR34: -1131.906681 | AT34: -123832253 | AU34: -349039958.5 | AV34: -1.91172277 | AW34: 52759846.37 | AX34: -25150238.42 | AY34: -0.4448285956 | BA34: 6.336528974 | BB34: 16.0370285 | BC34: -1.466894174 | BD34: -264.0468453 | BF34: 34.9620418 | BG34: -85.41362971 | BH34: 94.58637029 | BI34: 94.58637029 | BJ34: 0 | BK34: 0 | BM34: 18.9250133 | BN34: -1.366784433 | BQ34: 32.9389893 | BT34: 173.78 | BU34: 30.0709 | BV34: -269.952
A35: 900 | B35: 0.9 | C35: 1.000000058 | D35: 0.0003392919932 | F35: 0.9821318772 | G35: -0.02718686506 | H35: -0.02718686506 | J35: 9 | M35: 5.638993172 | N35: -1.570796325 | O35: 1.002334322 | P35: 0.06826111855 | Q35: 1.000987699 | R35: 0.0444271609 | S35: 0.9999999393 | T35: -0.0003484528763 | U35: 0.9999956047 | V35: -0.002964901433 | X35: 33.98106634 | Y35: -85.27153103 | Z35: 94.72846897 | AC35: 1 | AD35: 0.06836733925 | AE35: -2.628935725e-08 | AF35: 8.866831095e-06 | AG35: 7376.012185 | AH35: -112801.7326 | AJ35: 20000 | AK35: 6.969057807 | AL35: 1 | AM35: 0.0444564137 | AN35: 19960.85972 | AO35: -880.4191797 | AQ35: 2581.307745 | AR35: -1224.314263 | AT35: -119065012.8 | AU35: -300206543 | AV35: -1.948377154 | AW35: 50480538.75 | AX35: -27106944.46 | AY35: -0.4927906622 | BA35: 5.636414579 | BB35: 15.02005859 | BC35: -1.455586492 | BD35: -263.3989628 | BF35: 33.94830543 | BG35: -84.93721542 | BH35: 95.06278458 | BI35: 95.06278458 | BJ35: 0 | BK35: 0 | BM35: 18.92824683 | BN35: -1.538252628 | BQ35: 31.92201939 | BT35: 177.828 | BU35: 29.7201 | BV35: -271.5601
A36: 1000 | B36: 1 | C36: 1.000000071 | D36: 0.0003769911001 | F36: 0.9825406722 | G36: -0.03022107862 | H36: -0.03022107862 | J36: 9 | M36: 5.075093854 | N36: -1.570796325 | O36: 1.002881092 | P36: 0.07581809827 | Q36: 1.00121924 | R36: 0.04935589906 | S36: 0.999999925 | T36: -0.0003871698588 | U36: 0.9999945737 | V36: -0.003294332661 | X36: 33.07626793 | Y36: -84.74893306 | Z36: 95.25106694 | AC36: 1 | AD36: 0.07596371028 | AE36: -3.245599661e-08 | AF36: 9.85203455e-06 | AG36: 7375.996976 | AH36: -101526.1762 | AJ36: 20000 | AK36: 7.743397564 | AL36: 1 | AM36: 0.04939601522 | AN36: 19951.70101 | AO36: -977.7911294 | AQ36: 2474.703165 | AR36: -1304.168568 | AT36: -114153844.7 | AU36: -260866692.9 | AV36: -1.983286131 | AW36: 48132647.42 | AX36: -28796732.12 | AY36: -0.5391527915 | BA36: 5.076729778 | BB36: 14.11168095 | BC36: -1.444133339 | BD36: -262.7427455 | BF36: 33.0435425 | BG36: -84.45268575 | BH36: 95.54731425 | BI36: 95.54731425 | BJ36: 0 | BK36: 0 | BM36: 18.93186155 | BN36: -1.70994026 | BQ36: 31.01364175 | BT36: 181.97 | BU36: 30.0421 | BV36: -268.8459
A37: =A36+500 -> 1500 | B37: 1.5 | C37: 1.00000016 | D37: 0.0005654866167 | F37: 0.9852366465 | G37: -0.04546474485 | H37: -0.04546474485 | J37: 9 | M37: 3.383395903 | N37: -1.570796325 | O37: 1.00647086 | P37: 0.1134562309 | Q37: 1.002741205 | R37: 0.07395887752 | S37: 0.9999998314 | T37: -0.000580754752 | U37: 0.9999877909 | V37: -0.004941476646 | X37: 29.62241293 | Y37: -82.15084381 | Z37: 97.84915619 | AC37: 1 | AD37: 0.1139455654 | AE37: -7.302599237e-08 | AF37: 1.477805183e-05 | AG37: 7375.896916 | AH37: -67704.36618 | AJ37: 20000 | AK37: 11.61509635 | AL37: 1 | AM37: 0.07409402283 | AN37: 19891.65692 | AO37: -1462.237786 | AQ37: 1945.977582 | AR37: -1538.295279 | AT37: -89795976.79 | AU37: -143097486.2 | AV37: -2.131202928 | AW37: 36492597.38 | AX37: -33683582.65 | AY37: -0.7453914841 | BA37: 3.401779787 | BB37: 10.63412393 | BC37: -1.385811444 | BD37: -259.4011471 | BF37: 29.58978665 | BG37: -81.97368505 | BH37: 98.02631495 | BI37: 98.02631495 | BJ37: 0 | BK37: 0 | BM37: 18.95566272 | BN37: -2.572538003 | BQ37: 27.53608473 | BT37: 186.209 | BU37: 29.9018 | BV37: -265.3796
A38: =A37+500 -> 2000 | B38: 2 | C38: 1.000000284 | D38: 0.0007539820931 | F38: 0.9890301195 | G38: -0.06086968379 | H38: -0.06086968379 | J38: 9 | M38: 2.537546927 | N38: -1.570796325 | O38: 1.011475131 | P38: 0.1507744204 | Q38: 1.004868084 | R38: 0.09847250053 | S38: 0.9999997002 | T38: -0.0007743396016 | U38: 0.9999782953 | V38: -0.006588593819 | X38: 27.21841877 | Y38: -79.58544436 | Z38: 100.4145556 | AC38: 1 | AD38: 0.1519274206 | AE38: -1.298239864e-07 | AF38: 1.97040691e-05 | AG38: 7375.756838 | AH38: -50799.53511 | AJ38: 20000 | AK38: 15.48679513 | AL38: 1 | AM38: 0.09879203044 | AN38: 19808.20456 | AO38: -1941.405953 | AQ38: 1497.927914 | AR38: -1578.816021 | AT38: -69154767.85 | AU38: -87739004.71 | AV38: -2.238292775 | AW38: 26639258.42 | AX38: -34361908.69 | AY38: -0.9113266581 | BA38: 2.569451631 | BB38: 8.196808934 | BC38: -1.326966117 | BD38: -256.0295581 | BF38: 27.18585194 | BG38: -79.47393411 | BH38: 100.5260659 | BI38: 100.5260659 | BJ38: 0 | BK38: 0 | BM38: 18.98904301 | BN38: -3.444375994 | BQ38: 25.09876973 | BT38: 190.546 | BU38: 29.5667 | BV38: -265.8945
A39: 2500 | B39: 2.5 | C39: 1.000000444 | D39: 0.0009424775159 | F39: 0.9939403468 | G39: -0.07649221536 | H39: -0.07649221536 | J39: 9 | M39: 2.030037542 | N39: -1.570796325 | O39: 1.017873044 | P39: 0.1876743818 | Q39: 1.007596045 | R39: 0.1228679875 | S39: 0.9999995316 | T39: -0.0009679243932 | U39: 0.999966087 | V39: -0.008235675242 | X39: 25.40144454 | Y39: -77.0632414 | Z39: 102.9367586 | AC39: 1 | AD39: 0.1899092757 | AE39: -2.028499788e-07 | AF39: 2.463008638e-05 | AG39: 7375.576744 | AH39: -40661.49506 | AJ39: 20000 | AK39: 19.35849391 | AL39: 1 | AM39: 0.123490038 | AN39: 19701.94014 | AO39: -2413.634844 | AQ39: 1155.783601 | AR39: -1522.744895 | AT39: -53392513.37 | AU39: -58227011.03 | AV39: -2.31290925 | AW39: 19128803.11 | AX39: -32936107.5 | AY39: -1.0446252 | BA39: 2.074166414 | BB39: 6.336871954 | BC39: -1.268284049 | BD39: -252.6673233 | BF39: 25.3689324 | BG39: -76.99600447 | BH39: 103.0039955 | BI39: 103.0039955 | BJ39: 0 | BK39: 0 | BM39: 19.03206045 | BN39: -4.328681127 | BQ39: 23.23883275 | BT39: 194.984 | BU39: 29.6856 | BV39: -265.6327
A40: 3000 | B40: 3 | C40: 1.00000064 | D40: 0.001130972872 | F40: 0.99999229 | G40: -0.09239091287 | H40: -0.09239091287 | J40: 9 | M40: 1.691697951 | N40: -1.570796325 | O40: 1.025638517 | P40: 0.2240645526 | Q40: 1.010920223 | R40: 0.1471173958 | S40: 0.9999993254 | T40: -0.001161509112 | U40: 0.9999511664 | V40: -0.009882711981 | X40: 23.96503934 | Y40: -74.59443756 | Z40: 105.4055624 | AA40: =20*LOG(7) -> 16.9019608 | AC40: 1 | AD40: 0.2278911308 | AE40: -2.921039695e-07 | AF40: 2.955610365e-05 | AG40: 7375.356642 | AH40: -33906.84993 | AJ40: 20000 | AK40: 23.23019269 | AL40: 1 | AM40: 0.1481880457 | AN40: 19573.61185 | AO40: -2877.345094 | AQ40: 903.5419014 | AR40: -1428.499746 | AT40: -41771982.75 | AU40: -41171954.74 | AV40: -2.363428503 | AW40: 13608090.79 | AX40: -30683098.24 | AY40: -1.15335721 | BA40: 1.747390004 | BB40: 4.847796942 | BC40: -1.210071293 | BD40: -249.3319781 | BF40: 23.93258572 | BG40: -74.56078751 | BH40: 105.4392125 | BI40: 105.4392125 | BJ40: 0 | BK40: 0 | BM40: 19.08478878 | BN40: -5.228809406 | BQ40: 21.74975774 | BT40: 199.526 | BU40: 29.051 | BV40: -267.8015
A41: 3500 | B41: 3.5 | C41: 1.00000087 | D41: 0.001319468147 | F41: 1.007216758 | G41: -0.108627239 | H41: -0.108627239 | J41: 9 | M41: 1.450026816 | N41: -1.570796325 | O41: 1.034740762 | P41: 0.2598612572 | Q41: 1.014834759 | R41: 0.171193802 | S41: 0.9999990819 | T41: -0.001355093744 | U41: 0.9999335338 | V41: -0.0115296951 | X41: 22.7987898 | Y41: -72.18889075 | Z41: 107.8111093 | AC41: 1 | AD41: 0.265872986 | AE41: -3.975859584e-07 | AF41: 3.448212093e-05 | AG41: 7375.096538 | AH41: -29085.57269 | AJ41: 20000 | AK41: 27.10189147 | AL41: 1 | AM41: 0.1728860533 | AN41: 19424.107 | AO41: -3331.055305 | AQ41: 718.2804475 | AR41: -1324.868285 | AT41: -33237165.18 | AU41: -30662629.68 | AV41: -2.39646291 | AW41: 9571342.064 | AX41: -28233122.87 | AY41: -1.243944515 | BA41: 1.516890542 | BB41: 3.619084871 | BC41: -1.152518395 | BD41: -246.0344399 | BF41: 22.76640148 | BG41: -72.18272231 | BH41: 107.8172777 | BI41: 107.8172777 | BJ41: 0 | BK41: 0 | BM41: 19.14731661 | BN41: -6.148282385 | BQ41: 20.52104567 | BT41: 204.174 | BU41: 28.4243 | BV41: -264.1684
A42: 4000 | B42: 4 | C42: 1.000001137 | D42: 0.001507963329 | F42: 1.015650569 | G42: -0.125266232 | H42: -0.125266232 | J42: 9 | M42: 1.268773464 | N42: -1.570796325 | O42: 1.045144853 | P42: 0.2949895831 | Q42: 1.019332851 | R42: 0.1950714659 | S42: 0.9999988008 | T42: -0.001548678275 | U42: 0.9999131897 | V42: -0.01317661567 | X42: 21.83651379 | Y42: -69.85609384 | Z42: 110.1439062 | AC42: 1 | AD42: 0.3038548411 | AE42: -5.192959457e-07 | AF42: 3.94081382e-05 | AG42: 7374.796441 | AH42: -25472.64975 | AJ42: 20000 | AK42: 30.97359025 | AL42: 1 | AM42: 0.1975840609 | AN42: 19254.43704 | AO42: -3773.39627 | AQ42: 580.8587745 | AR42: -1224.450297 | AT42: -26906278.33 | AU42: -23826083.81 | AV42: -2.41683464 | AW42: 6596136.649 | AX42: -25861943.72 | AY42: -1.32106866 | BA42: 1.346550421 | BB42: 2.5844524 | BC42: -1.095765981 | BD42: -242.7827661 | BF42: 21.80419879 | BG42: -69.87359257 | BH42: 110.1264074 | BI42: 110.1264074 | BJ42: 0 | BK42: 0 | BM42: 19.21974639 | BN42: -7.090826481 | BQ42: 19.4864132 | BT42: 208.93 | BU42: 28.5109 | BV42: -267.6911
A43: 4500 | B43: 4.5 | C43: 1.000001439 | D43: 0.001696458404 | F43: 1.025336712 | G43: -0.1423772539 | H43: -0.1423772539 | J43: 9 | M43: 1.127798634 | N43: -1.570796325 | O43: 1.056812342 | P43: 0.3293839595 | Q43: 1.024406813 | R43: 0.2187259751 | S43: 0.9999984823 | T43: -0.001742262689 | U43: 0.9998901345 | V43: -0.01482346476 | X43: 21.03526331 | Y43: -67.60517612 | Z43: 112.3948239 | AC43: 1 | AD43: 0.3418366962 | AE43: -6.572339313e-07 | AF43: 4.433415548e-05 | AG43: 7374.456361 | AH43: -22665.29569 | AJ43: 20000 | AK43: 34.84528904 | AL43: 1 | AM43: 0.2222820685 | AN43: 19065.7212 | AO43: -4203.122657 | AQ43: 477.3541897 | AR43: -1132.045461 | AT43: -22137917.46 | AU43: -19167593.71 | AV43: -2.427981994 | AW43: 4375082.936 | AX43: -23674400.52 | AY43: -1.388055755 | BA43: 1.216303255 | BB43: 1.70083738 | BC43: -1.039926239 | BD43: -239.5833846 | BF43: 21.00303022 | BG43: -67.64380042 | BH43: 112.3561996 | BI43: 112.3561996 | BJ43: 0 | BK43: 0 | BM43: 19.30219284 | BN43: -8.060415852 | BQ43: 18.60279818 | BT43: 213.796 | BU43: 28.179 | BV43: -266.9667
A44: 5000 | B44: 5 | C44: 1.000001777 | D44: 0.001884953358 | F44: 1.036324509 | G44: -0.1600348138 | H44: -0.1600348138 | J44: 9 | M44: 1.015018771 | N44: -1.570796325 | O44: 1.069701889 | P44: 0.3629884469 | Q44: 1.030048134 | R44: 0.2421343684 | S44: 0.9999981262 | T44: -0.001935846973 | U44: 0.9998643688 | V44: -0.01647023344 | X44: 20.3654737 | Y44: -65.44492683 | Z44: 114.5550732 | AC44: 1 | AD44: 0.3798185514 | AE44: -8.113999152e-07 | AF44: 4.926017275e-05 | AG44: 7374.076308 | AH44: -20421.83916 | AJ44: 20000 | AK44: 38.71698782 | AL44: 1 | AM44: 0.2469800761 | AN44: 18859.1689 | AO44: -4619.121982 | AQ44: 398.0750891 | AR44: -1048.92786 | AT44: -18485599.96 | AU44: -15864299.52 | AV44: -2.432358608 | AW44: 2694065.099 | AX44: -21698106.12 | AY44: -1.447267213 | BA44: 1.114108587 | BB44: 0.938550432 | BC44: -0.985091395 | BD44: -236.4415794 | BF44: 20.33333144 | BG44: -65.50289898 | BH44: 114.497101 | BI44: 114.497101 | BJ44: 0 | BK44: 0 | BM44: 19.39478101 | BN44: -9.061319545 | BQ44: 17.84051123 | BT44: 218.776 | BU44: 27.7064 | BV44: -263.5369
A45: 5500 | B45: 5.5 | C45: 1.00000215 | D45: 0.002073448178 | F45: 1.048669732 | G45: -0.1783194783 | H45: -0.1783194783 | J45: 9 | M45: 0.9227443372 | N45: -1.570796325 | O45: 1.083769892 | P45: 0.3957567576 | Q45: 1.036247548 | R45: 0.2652752364 | S45: 0.9999977328 | T45: -0.002129431111 | U45: 0.9998358932 | V45: -0.01811691279 | X45: 19.80583803 | Y45: -63.38384033 | Z45: 116.6161597 | AC45: 1 | AD45: 0.4178004065 | AE45: -9.817938974e-07 | AF45: 5.418619003e-05 | AG45: 7373.656295 | AH45: -18588.48925 | AJ45: 20000 | AK45: 42.5886866 | AL45: 1 | AM45: 0.2716780837 | AN45: 18636.06169 | AO45: -5020.42084 | AQ45: 336.3363836 | AR45: -974.8710079 | AT45: -15641350.36 | AU45: -13440349 | AV45: -2.431733863 | AW45: 1405244.32 | AX45: -19927844.73 | AY45: -1.500396239 | BA45: 1.032303994 | BB45: 0.2761521548 | BC45: -0.9313376232 | BD45: -233.3617152 | BF45: 19.77379567 | BG45: -63.45986886 | BH45: 116.5401311 | BI45: 116.5401311 | BJ45: 0 | BK45: 0 | BM45: 19.49764352 | BN45: -10.09815369 | BQ45: 17.17811296 | BT45: 223.872 | BU45: 27.9371 | BV45: -265.1945
A46: 6000 | B46: 6 | C46: 1.000002558 | D46: 0.00226194285 | F46: 1.062434663 | G46: -0.1973188851 | H46: -0.1973188851 | J46: 9 | M46: 0.8458489757 | N46: -1.570796325 | O46: 1.098971096 | P46: 0.4276520405 | Q46: 1.042995104 | R46: 0.2881288005 | S46: 0.9999973018 | T46: -0.00232301509 | U46: 0.9998047085 | V46: -0.01976349389 | X46: 19.34042451 | Y46: -61.43018203 | Z46: 118.569818 | AC46: 1 | AD46: 0.4557822617 | AE46: -1.168415878e-06 | AF46: 5.91122073e-05 | AG46: 7373.196336 | AH46: -17062.71861 | AJ46: 20000 | AK46: 46.46038538 | AL46: 1 | AM46: 0.2963760913 | AN46: 18397.73501 | AO46: -5406.188406 | AQ46: 287.500441 | AR46: -909.0763944 | AT46: -13391517.51 | AU46: -11608337.87 | AV46: -2.427401494 | AW46: 405915.3266 | AX46: -18345919.1 | AY46: -1.548674289 | BA46: 0.9657811186 | BB46: -0.3024257899 | BC46: -0.8787272046 | BD46: -230.3473602 | BF46: 19.30849125 | BG46: -61.52329979 | BH46: 118.4767002 | BI46: 118.4767002 | BJ46: 0 | BK46: 0 | BM46: 19.61091704 | BN46: -11.17593957 | BQ46: 16.59953501 | BT46: 229.087 | BU46: 27.6763 | BV46: -266.7544
A47: 6500 | B47: 6.5 | C47: 1.000003002 | D47: 0.002450437362 | F47: 1.077688036 | G47: -0.2171288719 | H47: -0.2171288719 | J47: 9 | M47: 0.7807836699 | N47: -1.570796325 | O47: 1.115259164 | P47: 0.4586464694 | Q47: 1.050280237 | R47: 0.3106769683 | S47: 0.9999968334 | T47: -0.002516598895 | U47: 0.9997708154 | V47: -0.02140996781 | X47: 18.95695341 | Y47: -59.59207345 | Z47: 120.4079266 | AC47: 1 | AD47: 0.4937641168 | AE47: -1.371265857e-06 | AF47: 6.403822458e-05 | AG47: 7372.696446 | AH47: -15773.54671 | AJ47: 20000 | AK47: 50.33208416 | AL47: 1 | AM47: 0.3210740989 | AN47: 18145.56033 | AO47: -5775.73735 | AQ47: 248.3106269 | AR47: -850.5880523 | AT47: -11586071.5 | AU47: -10187866.78 | AV47: -2.420321044 | AW47: -376184.734 | AX47: -16931223.39 | AY47: -1.593011074 | BA47: 0.9110035069 | BB47: -0.8095990245 | BC47: -0.8273099696 | BD47: -227.4013697 | BF47: 18.92513848 | BG47: -59.70153793 | BH47: 120.2984621 | BI47: 120.2984621 | BJ47: 0 | BK47: 0 | BM47: 19.7347375 | BN47: -12.30016827 | BQ47: 16.09236178 | BT47: 234.423 | BU47: 27.6703 | BV47: -266.7612
A48: 7000 | B48: 7 | C48: 1.000003482 | D48: 0.0026389317 | F48: 1.094504804 | G48: -0.2378547356 | H48: -0.2378547356 | J48: 9 | M48: 0.7250134078 | N48: -1.570796325 | O48: 1.132587206 | P48: 0.4887206768 | Q48: 1.058091844 | R48: 0.3329033679 | S48: 0.9999963275 | T48: -0.002710182512 | U48: 0.9997342147 | V48: -0.02305632564 | X48: 18.64571421 | Y48: -57.87759486 | Z48: 122.1224051 | AC48: 1 | AD48: 0.5317459719 | AE48: -1.590343834e-06 | AF48: 6.896424185e-05 | AG48: 7372.156641 | AH48: -14670.27313 | AJ48: 20000 | AK48: 54.20378295 | AL48: 1 | AM48: 0.3457721065 | AN48: 17880.92792 | AO48: -6128.522332 | AQ48: 216.446053 | AR48: -798.4694896 | AT48: -10118091.29 | AU48: -9061764.864 | AV48: -2.41121369 | AW48: -992689.5021 | AX48: -15663105.97 | AY48: -1.634089238 | BA48: 0.8654453541 | BB48: -1.255206982 | BC48: -0.7771244516 | BD48: -224.5259513 | BF48: 18.61402689 | BG48: -58.00282414 | BH48: 121.9971759 | BI48: 121.9971759 | BJ48: 0 | BK48: 0 | BM48: 19.86923388 | BN48: -13.47687285 | BQ48: 15.64675382 | BT48: 239.883 | BU48: 27.2761 | BV48: -267.5957
A49: 7500 | B49: 7.5 | C49: 1.000003997 | D49: 0.002827425851 | F49: 1.112965632 | G49: -0.2596126319 | H49: -0.2596126319 | J49: 9 | M49: 0.6766791806 | N49: -1.570796325 | O49: 1.150908249 | P49: 0.5178630754 | Q49: 1.066418354 | R49: 0.3547933611 | S49: 0.9999957841 | T49: -0.002903765925 | U49: 0.9996949073 | V49: -0.02470255848 | X49: 18.39885552 | Y49: -56.29490361 | Z49: 123.7050964 | AC49: 1 | AD49: 0.5697278271 | AE49: -1.825649809e-06 | AF49: 7.389025913e-05 | AG49: 7371.576938 | AH49: -13715.71747 | AJ49: 20000 | AK49: 58.07548173 | AL49: 1 | AM49: 0.3704701141 | AN49: 17605.23067 | AO49: -6464.136335 | AQ49: 190.2268833 | AR49: -751.8717563 | AT49: -8910188.477 | AU49: -8151578.685 | AV49: -2.400627782 | AW49: -1481096.815 | AX49: -14522847.97 | AY49: -1.672428858 | BA49: 0.8272547274 | BB49: -1.647214847 | BC49: -0.7281989242 | BD49: -221.722725 | BF49: 18.36730513 | BG49: -56.43543361 | BH49: 123.5645664 | BI49: 123.5645664 | BJ49: 0 | BK49: 0 | BM49: 20.01451998 | BN49: -14.71270856 | BQ49: 15.25474595 | BT49: 245.471 | BU49: 27.0755 | BV49: -266.8096
A50: 8000 | B50: 8 | C50: 1.000004548 | D50: 0.0030159198 | F50: 1.133155998 | G50: -0.2825311237 | H50: -0.2825311237 | J50: 9 | M50: 0.6343867318 | N50: -1.570796325 | O50: 1.170175653 | P50: 0.5460691078 | Q50: 1.075247806 | R50: 0.3763340372 | S50: 0.9999952032 | T50: -0.003097349121 | U50: 0.9996528942 | V50: -0.0263486574 | X50: 18.2099009 | Y50: -54.85236614 | Z50: 125.1476339 | AC50: 1 | AD50: 0.6077096822 | AE50: -2.077183783e-06 | AF50: 7.88162764e-05 | AG50: 7370.957356 | AH50: -12881.99442 | AJ50: 20000 | AK50: 61.94718051 | AL50: 1 | AM50: 0.3951681217 | AN50: 17319.84923 | AO50: -6782.305108 | AQ50: 168.4185319 | AR50: -710.0525304 | AT50: -7905486.92 | AU50: -7403333.51 | AV50: -2.388984308 | AW50: -1869081.736 | AX50: -13494071.23 | AY50: -1.708431917 | BA50: 0.7950430603 | BB50: -1.992186978 | BC50: -0.6805523912 | BD50: -218.9927798 | BF50: 18.17849675 | BG50: -55.00782131 | BH50: 124.9921787 | BI50: 124.9921787 | BJ50: 0 | BK50: 0 | BM50: 20.17068373 | BN50: -16.01504151 | BQ50: 14.90977382 | BT50: 251.189 | BU50: 27.0434 | BV50: -265.9205
A51: 8500 | B51: 8.5 | C51: 1.000005134 | D51: 0.003204413535 | F51: 1.155164732 | G51: -0.3067528765 | H51: -0.3067528765 | J51: 9 | M51: 0.5970698652 | N51: -1.570796325 | O51: 1.190343464 | P51: 0.5733404591 | Q51: 1.084567917 | R51: 0.3975141892 | S51: 0.9999945849 | T51: -0.003290932084 | U51: 0.9996081764 | V51: -0.02799461351 | X51: 18.07340611 | Y51: -53.55870162 | Z51: 126.4412984 | AC51: 1 | AD51: 0.6456915374 | AE51: -2.344945755e-06 | AF51: 8.374229368e-05 | AG51: 7370.297915 | AH51: -12147.77986 | AJ51: 20000 | AK51: 65.81887929 | AL51: 1 | AM51: 0.4198661294 | AN51: 17026.13858 | AO51: -7082.880024 | AQ51: 150.1002549 | AR51: -672.374092 | AT51: -7061568.859 | AU51: -6778982.223 | AV51: -2.37660895 | AW51: -2177390.041 | AX51: -12562686.31 | AY51: -1.742413402 | BA51: 0.7677489247 | BB51: -2.295615663 | BC51: -0.6341955484 | BD51: -216.3367284 | BF51: 18.04215754 | BG51: -53.72877418 | BH51: 126.2712258 | BI51: 126.2712258 | BJ51: 0 | BK51: 0 | BM51: 20.3377732 | BN51: -17.39204583 | BQ51: 14.60634514 | BT51: 257.04 | BU51: 26.6776 | BV51: -267.6031
A52: 9000 | B52: 9 | C52: 1.000005756 | D52: 0.003392907042 | F52: 1.179081738 | G52: -0.3324364867 | H52: -0.3324364867 | J52: 9 | M52: 0.5638993172 | N52: -1.570796325 | O52: 1.211366711 | P52: 0.5996842627 | Q52: 1.094366151 | R52: 0.4183242746 | S52: 0.9999939291 | T52: -0.003484514801 | U52: 0.999560755 | V52: -0.02964041791 | X52: 17.98470674 | Y52: -52.42313449 | Z52: 127.5768655 | AC52: 1 | AD52: 0.6836733925 | AE52: -2.628935725e-06 | AF52: 8.866831095e-05 | AG52: 7369.598638 | AH52: -11496.48832 | AJ52: 20000 | AK52: 69.69057807 | AL52: 1 | AM52: 0.444564137 | AN52: 16725.41629 | AO52: -7365.829678 | AQ52: 134.5758174 | AR52: -638.293102 | AT52: -6346359.43 | AU52: -6251113.288 | AV52: -2.36375508 | AW52: -2421804.387 | AX52: -11716663.56 | AY52: -1.774623362 | BA52: 0.7445471956 | BB52: -2.562155357 | BC52: -0.5891317178 | BD52: -213.754761 | BF52: 17.95362309 | BG52: -52.60756946 | BH52: 127.3924305 | BI52: 127.3924305 | BJ52: 0 | BK52: 0 | BM52: 20.51577845 | BN52: -18.85280841 | BQ52: 14.33980544 | BT52: 263.027 | BU52: 26.2703 | BV52: -267.3229
A53: 9500 | B53: 9.5 | C53: 1.000006413 | D53: 0.003581400309 | F53: 1.204994617 | G53: -0.3597584073 | H53: -0.3597584073 | J53: 9 | M53: 0.5342204057 | N53: -1.570796325 | O53: 1.233201645 | P53: 0.6251123238 | Q53: 1.104629784 | R53: 0.4387563619 | S53: 0.9999932358 | T53: -0.003678097256 | U53: 0.9995106311 | V53: -0.03128606171 | X53: 17.93972397 | Y53: -51.45555231 | Z53: 128.5444477 | AC53: 1 | AD53: 0.7216552476 | AE53: -2.929153694e-06 | AF53: 9.359432823e-05 | AG53: 7368.859546 | AH53: -10915.02596 | AJ53: 20000 | AK53: 73.56227686 | AL53: 1 | AM53: 0.4692621446 | AN53: 16418.95239 | AO53: -7631.230535 | AQ53: 121.3119077 | AR53: -607.348066 | AT53: -5735289.497 | AU53: -5799585.215 | AV53: -2.35062052 | AW53: -2614499.123 | AX53: -10945755.22 | AY53: -1.805262774 | BA53: 0.7247868863 | BB53: -2.795793461 | BC53: -0.5453577458 | BD53: -211.2466972 | BF53: 17.90881457 | BG53: -51.65413648 | BH53: 128.3458635 | BI53: 128.3458635 | BJ53: 0 | BK53: 0 | BM53: 20.70460803 | BN53: -20.40743928 | BQ53: 14.10616734 | BT53: 269.153 | BU53: 26.2359 | BV53: -265.677
A54: 10000 | B54: 10 | C54: 1.000007106 | D54: 0.003769893321 | F54: 1.232983728 | G54: -0.3889148994 | H54: -0.3889148994 | J54: 9 | M54: 0.5075093854 | N54: -1.570796325 | O54: 1.255805928 | P54: 0.649640378 | Q54: 1.11534597 | R54: 0.4588040668 | S54: 0.9999925051 | T54: -0.003871679436 | U54: 0.999457806 | V54: -0.03293153602 | X54: 17.93480718 | Y54: -50.66666371 | Z54: 129.3333363 | AC54: 1 | AD54: 0.7596371028 | AE54: -3.245599661e-06 | AF54: 9.85203455e-05 | AG54: 7368.080664 | AH54: -10392.91767 | AJ54: 20000 | AK54: 77.43397564 | AL54: 1 | AM54: 0.4939601522 | AN54: 16107.96105 | AO54: -7879.256918 | AQ54: 109.8950749 | AR54: -579.1470446 | AT54: -5209311.78 | AU54: -5409332.607 | AV54: -2.33735996 | AW54: -2764987.194 | AX54: -10241224.71 | AY54: -1.834495103 | BA54: 0.7079476221 | BB54: -2.999977453 | BC54: -0.502864857 | BD54: -208.812034 | BF54: 17.90408136 | BG54: -50.87921738 | BH54: 129.1207826 | BI54: 129.1207826 | BJ54: 0 | BK54: 0 | BM54: 20.90405881 | BN54: -22.06718337 | BQ54: 13.90198335 | BT54: 275.423 | BU54: 25.8456 | BV54: -266.4657
A55: 10500 | B55: 10.5 | C55: 1.000007834 | D55: 0.003958386064 | F55: 1.263115175 | G55: -0.4201238889 | H55: -0.4201238889 | J55: 9 | M55: 0.4833422718 | N55: -1.570796325 | O55: 1.279138774 | P55: 0.6732874 | Q55: 1.126501792 | R55: 0.4784624775 | S55: 0.9999917368 | T55: -0.004065261326 | U55: 0.9994022809 | V55: -0.03457683195 | X55: 17.96659884 | Y55: -50.06814866 | Z55: 129.9318513 | AC55: 1 | AD55: 0.7976189579 | AE55: -3.578273626e-06 | AF55: 0.0001034463628 | AG55: 7367.262016 | AH55: -9921.683584 | AJ55: 20000 | AK55: 81.30567442 | AL55: 1 | AM55: 0.5186581598 | AN55: 15793.59382 | AO55: -8110.170634 | AQ55: 100.0011947 | AR55: -553.3566107 | AT55: -4753494.197 | AU55: -5068903.351 | AV55: -2.324094302 | AW55: -2880791.304 | AX55: -9595604.255 | AY55: -1.862454848 | BA55: 0.6936085405 | BB55: -3.17771136 | BC55: -0.4616394541 | BD55: -206.4499924 | BF55: 17.93606594 | BG55: -50.29451932 | BH55: 129.7054807 | BI55: 129.7054807 | BJ55: 0 | BK55: 0 | BM55: 21.1137773 | BN55: -23.84452692 | BQ55: 13.72424944 | BT55: 281.838 | BU55: 26.1068 | BV55: -266.6757
A56: 11000 | B56: 11 | C56: 1.000008598 | D56: 0.004146878527 | F56: 1.295430995 | G56: -0.453626526 | H56: -0.453626526 | J56: 9 | M56: 0.4613721686 | N56: -1.570796325 | O56: 1.303161049 | P56: 0.6960749695 | Q56: 1.138084322 | R56: 0.4977280739 | S56: 0.9999909311 | T56: -0.004258842911 | U56: 0.9993440572 | V56: -0.03622194063 | X56: 18.03191095 | Y56: -49.67278882 | Z56: 130.3272112 | AC56: 1 | AD56: 0.835600813 | AE56: -3.927175589e-06 | AF56: 0.0001083723801 | AG56: 7366.40363 | AH56: -9494.385562 | AJ56: 20000 | AK56: 85.1773732 | AL56: 1 | AM56: 0.5433561674 | AN56: 15476.93456 | AO56: -8324.310475 | AQ56: 91.37352703 | AR56: -529.6923362 | AT56: -4356008.988 | AU56: -4769463.044 | AV56: -2.310917765 | AW56: -2967926.134 | AX56: -9002486.958 | AY56: -1.889253906 | BA56: 0.6814256656 | BB56: -3.331630259 | BC56: -0.4216638584 | BD56: -204.1595595 | BF56: 18.00158029 | BG56: -49.91284629 | BH56: 130.0871537 | BI56: 130.0871537 | BJ56: 0 | BK56: 0 | BM56: 21.33321055 | BN56: -25.75328681 | BQ56: 13.57033054 | BT56: 288.403 | BU56: 25.7844 | BV56: -268.0599
A57: 11500 | B57: 11.5 | C57: 1.000009398 | D57: 0.004335370695 | F57: 1.329935685 | G57: -0.4896881375 | H57: -0.4896881375 | J57: 9 | M57: 0.4413125091 | N57: -1.570796325 | O57: 1.327835335 | P57: 0.718026699 | Q57: 1.150080669 | R57: 0.516598641 | S57: 0.999990088 | T57: -0.004452424177 | U57: 0.9992831364 | V57: -0.03786685319 | X57: 18.12760494 | Y57: -49.49455979 | Z57: 130.5054402 | AC57: 1 | AD57: 0.8735826682 | AE57: -4.292305551e-06 | AF57: 0.0001132983973 | AG57: 7365.505533 | AH57: -9105.292084 | AJ57: 20000 | AK57: 89.04907198 | AL57: 1 | AM57: 0.568054175 | AN57: 15158.99585 | AO57: -8522.081809 | AQ57: 83.80674459 | AR57: -507.9107756 | AT57: -4007396.923 | AU57: -4504104.516 | AV57: -2.297903378 | AW57: -3031249.383 | AX57: -8456352.212 | AY57: -1.914986391 | BA57: 0.6711151804 | BB57: -3.46405875 | BC57: -0.3829169868 | BD57: -201.9395273 | BF57: 18.09748585 | BG57: -49.74819241 | BH57: 130.2518076 | BI57: 130.2518076 | BJ57: 0 | BK57: 0 | BM57: 21.5615446 | BN57: -27.80866514 | BQ57: 13.43790205 | BT57: 295.121 | BU57: 25.5811 | BV57: -265.88
A58: 12000 | B58: 12 | C58: 1.000010233 | D58: 0.004523862555 | F58: 1.366578092 | G58: -0.5285981026 | H58: -0.5285981026 | J58: 9 | M58: 0.4229244879 | N58: -1.570796325 | O58: 1.353125966 | P58: 0.7391677257 | Q58: 1.162478021 | R58: 0.5350731783 | S58: 0.9999892073 | T58: -0.004646005109 | U58: 0.9992195198 | V58: -0.03951156076 | X58: 18.25046881 | Y58: -49.54865834 | Z58: 130.4513417 | AC58: 1 | AD58: 0.9115645233 | AE58: -4.673663511e-06 | AF58: 0.0001182244146 | AG58: 7364.567755 | AH58: -8749.626844 | AJ58: 20000 | AK58: 92.92077076 | AL58: 1 | AM58: 0.5927521826 | AN58: 14840.71674 | AO58: -8703.946466 | AQ58: 77.13516579 | AR58: -487.8027885 | AT58: -3700025.218 | AU58: -4267360.604 | AV58: -2.285107258 | AW58: -3074720.529 | AX58: -7952420.875 | AY58: -1.939732294 | BA58: 0.6624408759 | BB58: -3.577057545 | BC58: -0.3453749638 | BD58: -199.7885278 | BF58: 18.22057061 | BG58: -49.81576994 | BH58: 130.1842301 | BI58: 130.1842301 | BJ58: 0 | BK58: 0 | BM58: 21.79762815 | BN58: -30.02724214 | BQ58: 13.32490326 | BT58: 301.995 | BU58: 24.917 | BV58: -267.1358
A59: 12500 | B59: 12.5 | C59: 1.000011103 | D59: 0.004712354093 | F59: 1.40522759 | G59: -0.5706679748 | H59: -0.5706679748 | J59: 9 | M59: 0.4060075084 | N59: -1.570796325 | O59: 1.37899903 | P59: 0.7595242664 | Q59: 1.175263688 | R59: 0.553151808 | S59: 0.9999882892 | T59: -0.004839585693 | U59: 0.9991532091 | V59: -0.04115605448 | X59: 18.3970869 | Y59: -49.85142554 | Z59: 130.1485745 | AC59: 1 | AD59: 0.9495463785 | AE59: -5.07124947e-06 | AF59: 0.0001231504319 | AG59: 7363.590325 | AH59: -8423.377715 | AJ59: 20000 | AK59: 96.79246955 | AL59: 1 | AM59: 0.6174501902 | AN59: 14522.96178 | AO59: -8870.413043 | AQ59: 71.22398629 | AR59: -469.1880097 | AT59: -3427683.569 | AU59: -4054854.827 | AV59: -2.272571973 | AW59: -3101593.87 | AX59: -7486535.809 | AY59: -1.963560303 | BA59: 0.6552046109 | BB59: -3.672461099 | BC59: -0.3090116701 | BD59: -197.7050645 | BF59: 18.36741889 | BG59: -50.13193303 | BH59: 129.868067 | BI59: 129.868067 | BJ59: 0 | BK59: 0 | BM59: 22.03987999 | BN59: -32.42686849 | BQ59: 13.2294997 | BT59: 309.03 | BU59: 24.8252 | BV59: -265.0361
A60: 13000 | B60: 13 | C60: 1.000012009 | D60: 0.004900845297 | F60: 1.445643676 | G60: -0.6162269065 | H60: -0.6162269065 | J60: 9 | M60: 0.390391835 | N60: -1.570796325 | O60: 1.405422361 | P60: 0.7791232323 | Q60: 1.188425138 | R60: 0.5708356819 | S60: 0.9999873336 | T60: -0.005033165915 | U60: 0.9990842059 | V60: -0.04280032551 | X60: 18.56369985 | Y60: -50.42011205 | Z60: 129.579888 | AC60: 1 | AD60: 0.9875282336 | AE60: -5.485063427e-06 | AF60: 0.0001280764492 | AG60: 7362.573275 | AH60: -8123.149793 | AJ60: 20000 | AK60: 100.6641683 | AL60: 1 | AM60: 0.6421481978 | AN60: 14206.52113 | AO60: -9022.02777 | AQ60: 65.96267401 | AR60: -451.9102797 | AT60: -3185279.874 | AU60: -3863047.23 | AV60: -2.260329214 | AW60: -3114564.218 | AX60: -7055063.57 | AY60: -1.986529986 | BA60: 0.6492389711 | BB60: -3.751908384 | BC60: -0.2737992281 | BD60: -195.6875402 | BF60: 18.53427133 | BG60: -50.71394347 | BH60: 129.2860565 | BI60: 129.2860565 | BJ60: 0 | BK60: 0 | BM60: 22.28617972 | BN60: -35.02640325 | BQ60: 13.15005242 | BT60: 316.228 | BU60: 24.722 | BV60: -265.2184
A61: 13500 | B61: 13.5 | C61: 1.000012951 | D61: 0.005089336152 | F61: 1.487438669 | G61: -0.6656131341 | H61: -0.6656131341 | J61: 9 | M61: 0.3759328781 | N61: -1.570796325 | O61: 1.432365506 | P61: 0.7979918998 | Q61: 1.201950025 | R61: 0.5881268893 | S61: 0.9999863406 | T61: -0.005226745759 | U61: 0.9990125118 | V61: -0.04444436499 | X61: 18.74605542 | Y61: -51.27241434 | Z61: 128.7275857 | AC61: 1 | AD61: 1.025510089 | AE61: -5.915105382e-06 | AF61: 0.0001330024664 | AG61: 7361.516639 | AH61: -7846.05109 | AJ61: 20000 | AK61: 104.5358671 | AL61: 1 | AM61: 0.6668462054 | AN61: 13892.11154 | AO61: -9159.365999 | AQ61: 61.25994355 | AR61: -435.8338684 | AT61: -2968608.704 | AU61: -3689046.921 | AV61: -2.248401931 | AW61: -3115878.049 | AX61: -6654813.503 | AY61: -2.008693501 | BA61: 0.644401559 | BB61: -3.816868352 | BC61: -0.2397084297 | BD61: -193.7342814 | BF61: 18.71687568 | BG61: -51.57950729 | BH61: 128.4204927 | BI61: 128.4204927 | BJ61: 0 | BK61: 0 | BM61: 22.53374403 | BN61: -37.84522594 | BQ61: 13.08509245 | BT61: 323.594 | BU61: 24.5962 | BV61: -266.9949
A62: 14000 | B62: 14 | C62: 1.000013928 | D62: 0.005277826646 | F62: 1.530034426 | G62: -0.719159994 | H62: -0.719159994 | J62: 9 | M62: 0.3625067039 | N62: -1.570796325 | O62: 1.459799683 | P62: 0.8161576333 | Q62: 1.215826221 | R62: 0.6050283672 | S62: 0.9999853101 | T62: -0.005420325211 | U62: 0.9989381285 | V62: -0.0460881641 | X62: 18.93925567 | Y62: -52.42569453 | Z62: 127.5743055 | AC62: 1 | AD62: 1.063491944 | AE62: -6.361375335e-06 | AF62: 0.0001379284837 | AG62: 7360.420451 | AH62: -7589.602735 | AJ62: 20000 | AK62: 108.4075659 | AL62: 1 | AM62: 0.6915442131 | AN62: 13580.3782 | AO62: -9283.024391 | AQ62: 57.03989567 | AR62: -420.8403503 | AT62: -2774173.459 | AU62: -3530472.069 | AV62: -2.236806039 | AW62: -3107419.229 | AX62: -6282971.069 | AY62: -2.030096931 | BA62: 0.6405705072 | BB62: -3.868661215 | BC62: -0.2067091084 | BD62: -191.8435595 | BF62: 18.910334 | BG62: -52.74599482 | BH62: 127.2540052 | BI62: 127.2540052 | BJ62: 0 | BK62: 0 | BM62: 22.77899521 | BN62: -40.9024353 | BQ62: 13.03329958 | BT62: 331.131 | BU62: 24.3868 | BV62: -265.0934
A63: 14500 | B63: 14.5 | C63: 1.00001494 | D63: 0.005466316765 | F63: 1.572616358 | G63: -0.7771747888 | H63: -0.7771747888 | J63: 9 | M63: 0.3500064727 | N63: -1.570796325 | O63: 1.487697728 | P63: 0.8336476551 | Q63: 1.230041836 | R63: 0.621543812 | S63: 0.9999842421 | T63: -0.005613904257 | U63: 0.998861058 | V63: -0.047731714 | X63: 19.13761367 | Y63: -53.89578775 | Z63: 126.1042122 | AC63: 1 | AD63: 1.101473799 | AE63: -6.823873287e-06 | AF63: 0.000142854501 | AG63: 7359.284746 | AH63: -7351.667741 | AJ63: 20000 | AK63: 112.2792647 | AL63: 1 | AM63: 0.7162422207 | AN63: 13271.89717 | AO63: -9393.613835 | AQ63: 53.23902539 | AR63: -406.8260125 | AT63: -2599048.525 | AU63: -3385344.094 | AV63: -2.225551808 | AW63: -3090775.789 | AX63: -5937042.737 | AY63: -2.050781347 | BA63: 0.6376409203 | BB63: -3.908476401 | BC63: -0.1747704617 | BD63: -190.0136098 | BF63: 19.10895934 | BG63: -54.22924836 | BH63: 125.7707516 | BI63: 125.7707516 | BJ63: 0 | BK63: 0 | BM63: 23.01743574 | BN63: -44.21563851 | BQ63: 12.9934844 | BT63: 338.844 | BU63: 24.1369 | BV63: -266.4201
A64: 15000 | B64: 15 | C64: 1.000015989 | D64: 0.005654806495 | F64: 1.61409165 | G64: -0.8399090266 | H64: -0.8399090266 | J64: 9 | M64: 0.3383395903 | N64: -1.570796325 | O64: 1.516034033 | P64: 0.8504888559 | Q64: 1.244585241 | R64: 0.6376775958 | S64: 0.9999831366 | T64: -0.005807482883 | U64: 0.998781302 | V64: -0.04937500588 | X64: 19.3345428 | Y64: -55.69531263 | Z64: 124.3046874 | AC64: 1 | AD64: 1.139455654 | AE64: -7.302599237e-06 | AF64: 0.0001477805183 | AG64: 7358.10956 | AH64: -7130.394031 | AJ64: 20000 | AK64: 116.1509635 | AL64: 1 | AM64: 0.7409402283 | AN64: 12967.1783 | AO64: -9491.753087 | AQ64: 49.80388343 | AR64: -393.6996985 | AT64: -2440771.549 | AU64: -3252006.828 | AV64: -2.214644981 | AW64: -3067292.457 | AX64: -5614810.305 | AY64: -2.070783654 | BA64: 0.6355220288 | BB64: -3.937387822 | BC64: -0.143861327 | BD64: -188.2426469 | BF64: 19.30616506 | BG64: -56.04189279 | BH64: 123.9581072 | BI64: 123.9581072 | BJ64: 0 | BK64: 0 | BM64: 23.24355288 | BN64: -47.79924591 | BQ64: 12.96457298 | BT64: 346.737 | BU64: 24.0404 | BV64: -265.8794
A65: 15500 | B65: 15.5 | C65: 1.000017072 | D65: 0.005843295823 | F65: 1.653063573 | G65: -0.9075194137 | H65: -0.9075194137 | J65: 9 | M65: 0.32742541 | N65: -1.570796325 | O65: 1.54478448 | P65: 0.8667076427 | Q65: 1.259445079 | R65: 0.6534346856 | S65: 0.9999819937 | T65: -0.006001061073 | U65: 0.9986988625 | V65: -0.05101803092 | X65: 19.52251452 | Y65: -57.83144966 | Z65: 122.1685503 | AC65: 1 | AD65: 1.177437509 | AE65: -7.797553185e-06 | AF65: 0.0001527065355 | AG65: 7356.894932 | AH65: -6924.168477 | AJ65: 20000 | AK65: 120.0226622 | AL65: 1 | AM65: 0.7656382359 | AN65: 12666.66862 | AO65: -9578.063156 | AQ65: 46.68923404 | AR65: -381.3810083 | AT65: -2297258.566 | AU65: -3129064.129 | AV65: -2.204087681 | AW65: -3038112.361 | AX65: -5314292.883 | AY65: -2.090137264 | BA65: 0.6341348947 | BB65: -3.956366963 | BC65: -0.1139504175 | BD65: -186.528878 | BF65: 19.49442263 | BG65: -58.1911141 | BH65: 121.8088859 | BI65: 121.8088859 | BJ65: 0 | BK65: 0 | BM65: 23.45078959 | BN65: -51.6622361 | BQ65: 12.94559384 | BT65: 354.813 | BU65: 23.629 | BV65: -265.9549
A66: 16000 | B66: 16 | C66: 1.000018191 | D66: 0.006031784737 | F66: 1.687839118 | G66: -0.9800208828 | H66: -0.9800208828 | J66: 9 | M66: 0.3171933659 | N66: -1.570796325 | O66: 1.573926374 | P66: 0.8823298187 | Q66: 1.274610285 | R66: 0.6688205678 | S66: 0.9999808133 | T66: -0.006194638813 | U66: 0.9986137415 | V66: -0.05266078031 | X66: 19.69313179 | Y66: -60.30326115 | Z66: 119.6967388 | AC66: 1 | AD66: 1.215419364 | AE66: -8.308735131e-06 | AF66: 0.0001576325528 | AG66: 7355.640901 | AH66: -6731.57957 | AJ66: 20000 | AK66: 123.894361 | AL66: 1 | AM66: 0.7903362435 | AN66: 12370.7559 | AO66: -9653.162387 | AQ66: 43.85659288 | AR66: -369.7987912 | AT66: -2166736.639 | AU66: -3015331.258 | AV66: -2.19387916 | AW66: -3004210.454 | AX66: -5033715.123 | AY66: -2.10887264 | BA66: 0.6334105484 | BB66: -3.966294169 | BC66: -0.08500651952 | BD66: -184.8705148 | BF66: 19.66533499 | BG66: -60.67597948 | BH66: 119.3240205 | BI66: 119.3240205 | BJ66: 0 | BK66: 0 | BM66: 23.63162916 | BN66: -55.80546467 | BQ66: 12.93566663 | BT66: 363.078 | BU66: 23.6126 | BV66: -265.3916
A67: 16500 | B67: 16.5 | C67: 1.000019346 | D67: 0.006220273221 | F67: 1.716490368 | G67: -1.057236083 | H67: -1.057236083 | J67: 9 | M67: 0.3075814457 | N67: -1.570796325 | O67: 1.603438373 | P67: 0.8973804905 | Q67: 1.290070087 | R67: 0.6838411763 | S67: 0.9999795954 | T67: -0.006388216089 | U67: 0.9985259411 | V67: -0.05430324527 | X67: 19.83736969 | Y67: -63.09880669 | Z67: 116.9011933 | AC67: 1 | AD67: 1.25340122 | AE67: -8.836145076e-06 | AF67: 0.0001625585701 | AG67: 7354.347508 | AH67: -6551.386869 | AJ67: 20000 | AK67: 127.7660598 | AL67: 1 | AM67: 0.8150342511 | AN67: 12079.77244 | AO67: -9717.662228 | AQ67: 41.27305835 | AR67: -358.8898789 | AT67: -2047690.026 | AU67: -2909796.659 | AV67: -2.184016395 | AW67: -2966420.512 | AX67: -4771480.549 | AY67: -2.127017736 | BA67: 0.6332884653 | BB67: -3.967968443 | BC67: -0.05699865942 | BD67: -183.2657826 | BF67: 19.8098772 | BG67: -63.48455281 | BH67: 116.5154472 | BI67: 116.5154472 | BJ67: 0 | BK67: 0 | BM67: 23.77784564 | BN67: -60.21877018 | BQ67: 12.93399236 | BT67: 371.535 | BU67: 23.316 | BV67: -265.2439
A68: 17000 | B68: 17 | C68: 1.000020536 | D68: 0.006408761264 | F68: 1.736987026 | G68: -1.138749861 | H68: -1.138749861 | J68: 9 | M68: 0.2985349326 | N68: -1.570796325 | O68: 1.633300415 | P68: 0.9118839983 | Q68: 1.305814024 | R68: 0.6985028262 | S68: 0.9999783401 | T68: -0.006581792886 | U68: 0.9984354633 | V68: -0.055945417 | X68: 19.94602304 | Y68: -66.19254278 | Z68: 113.8074572 | AC68: 1 | AD68: 1.291383075 | AE68: -9.379783019e-06 | AF68: 0.0001674845874 | AG68: 7353.014794 | AH68: -6382.495847 | AJ68: 20000 | AK68: 131.6377586 | AL68: 1 | AM68: 0.8397322587 | AN68: 11793.99896 | AO68: -9772.16363 | AQ68: 38.91037129 | AR68: -348.5980164 | AT68: -1938816.856 | AU68: -2811591.655 | AV68: -2.174494591 | AW68: -2925457.133 | AX68: -4526149.07 | AY68: -2.144598351 | BA68: 0.6337153118 | BB68: -3.962115987 | BC68: -0.02989624023 | BD68: -181.7129284 | BF68: 19.91884407 | BG68: -66.59129447 | BH68: 113.4087055 | BI68: 113.4087055 | BJ68: 0 | BK68: 0 | BM68: 23.88096005 | BN68: -64.87836608 | BQ68: 12.93984481 | BT68: 380.189 | BU68: 23.2133 | BV68: -265.4987
A69: 17500 | B69: 17.5 | C69: 1.000021762 | D69: 0.006597248851 | F69: 1.747403749 | G69: -1.223881077 | H69: -1.223881077 | J69: 9 | M69: 0.2900053631 | N69: -1.570796325 | O69: 1.663493648 | P69: 0.9258638672 | Q69: 1.321831943 | R69: 0.712812152 | S69: 0.9999770473 | T69: -0.00677536919 | U69: 0.9983423104 | V69: -0.05758728674 | X69: 20.01036303 | Y69: -69.54371445 | Z69: 110.4562855 | AC69: 1 | AD69: 1.32936493 | AE69: -9.939648961e-06 | AF69: 0.0001724106046 | AG69: 7351.642802 | AH69: -6223.937043 | AJ69: 20000 | AK69: 135.5094574 | AL69: 1 | AM69: 0.8644302663 | AN69: 11513.66847 | AO69: -9817.254045 | AQ69: 36.74415365 | AR69: -338.872957 | AT69: -1838994.057 | AU69: -2719966.234 | AV69: -2.165307576 | AW69: -2881933.793 | AX69: -4296417.925 | AY69: -2.161638422 | BA69: 0.6346439082 | BB69: -3.949397686 | BC69: -0.003669154208 | BD69: -180.2102271 | BF69: 19.98350679 | BG69: -69.95545295 | BH69: 110.044547 | BI69: 110.044547 | BJ69: 0 | BK69: 0 | BM69: 23.93290447 | BN69: -69.7452259 | BQ69: 12.95256311 | BT69: 389.045 | BU69: 22.9552 | BV69: -266.0672
A70: 18000 | B70: 18 | C70: 1.000023024 | D70: 0.00678573597 | F70: 1.746180459 | G70: -1.311685338 | H70: -1.311685338 | J70: 9 | M70: 0.2819496586 | N70: -1.570796325 | O70: 1.694000363 | P70: 0.9393427743 | Q70: 1.338114004 | R70: 0.7267760502 | S70: 0.999975717 | T70: -0.006968944987 | U70: 0.9982464846 | V70: -0.05922884571 | X70: 20.02294127 | Y70: -73.09651706 | Z70: 106.9034829 | AC70: 1 | AD70: 1.367346785 | AE70: -1.05157429e-05 | AF70: 0.0001773366219 | AG70: 7350.231576 | AH70: -6074.848691 | AJ70: 20000 | AK70: 139.3811561 | AL70: 1 | AM70: 0.8891282739 | AN70: 11238.97014 | AO70: -9853.504964 | AQ70: 34.75328836 | AR70: -329.6696934 | AT70: -1747248.788 | AU70: -2634269.559 | AV70: -2.156448138 | AW70: -2836377.778 | AX70: -4081105.466 | AY70: -2.178160264 | BA70: 0.636032364 | BB70: -3.930415701 | BC70: 0.02171212661 | BD70: -178.7559868 | BF70: 19.99641694 | BG70: -73.52122674 | BH70: 106.4787733 | BI70: 106.4787733 | BJ70: 0 | BK70: 0 | BM70: 23.92683264 | BN70: -74.76523996 | BQ70: 12.9715451 | BT70: 398.107 | BU70: 22.7385 | BV70: -265.2319
A71: 18500 | B71: 18.5 | C71: 1.00002432 | D71: 0.006974222606 | F71: 1.732383333 | G71: -1.400998416 | H71: -1.400998416 | J71: 9 | M71: 0.2743293975 | N71: -1.570796325 | O71: 1.724803927 | P71: 0.9523425295 | Q71: 1.354650683 | R71: 0.7404016279 | S71: 0.9999743493 | T71: -0.007162520261 | U71: 0.9981479883 | V71: -0.06087008516 | X71: 19.97840533 | Y71: -76.78258794 | Z71: 103.2174121 | AC71: 1 | AD71: 1.40532864 | AE71: -1.110806484e-05 | AF71: 0.0001822626392 | AG71: 7348.781163 | AH71: -5934.462172 | AJ71: 20000 | AK71: 143.2528549 | AL71: 1 | AM71: 0.9138262815 | AN71: 10970.05306 | AO71: -9881.469945 | AQ71: 32.91941138 | AR71: -320.9478013 | AT71: -1662735.036 | AU71: -2553934.158 | AV71: -2.147908286 | AW71: -2789242.615 | AX71: -3879137.283 | AY71: -2.194184765 | BA71: 0.6378433561 | BB71: -3.905719277 | BC71: 0.04627647857 | BD71: -177.3485531 | BF71: 19.95222209 | BG71: -77.22025598 | BH71: 102.779744 | BI71: 102.779744 | BJ71: 0 | BK71: 0 | BM71: 23.85794137 | BN71: -79.8717029 | BQ71: 12.99624152 | BT71: 407.38 | BU71: 22.7593 | BV71: -265.7319
A72: 19000 | B72: 19 | C72: 1.000025653 | D72: 0.007162708747 | F72: 1.705894757 | G72: -1.490520409 | H72: -1.490520409 | J72: 9 | M72: 0.2671102029 | N72: -1.570796325 | O72: 1.755888717 | P72: 0.9648840686 | Q72: 1.37143277 | R72: 0.7536961542 | S72: 0.9999729441 | T72: -0.007356094998 | U72: 0.9980468238 | V72: -0.06251099635 | X72: 19.87414078 | Y72: -80.52583169 | Z72: 99.47416831 | AC72: 1 | AD72: 1.443310495 | AE72: -1.171661478e-05 | AF72: 0.0001871886565 | AG72: 7347.291608 | AH72: -5802.089752 | AJ72: 20000 | AK72: 147.1245537 | AL72: 1 | AM72: 0.9385242891 | AN72: 10707.02992 | AO72: -9901.683089 | AQ72: 31.22649341 | AR72: -312.6708785 | AT72: -1584714.347 | AU72: -2478463.039 | AV72: -2.139679476 | AW72: -2740918.477 | AX72: -3689534.278 | AY72: -2.209731547 | BA72: 0.6400435197 | BB72: -3.875809904 | BC72: 0.07005207071 | BD72: -175.986312 | BF72: 19.84830779 | BG72: -80.97644786 | BH72: 99.02355214 | BI72: 99.02355214 | BJ72: 0 | BK72: 0 | BM72: 23.72411769 | BN72: -84.99013586 | BQ72: 13.0261509 | BT72: 416.869 | BU72: 22.4206 | BV72: -265.2494
A73: 19500 | B73: 19.5 | C73: =SQRT((A73/Fesr)^2+1) -> 1.000027021 | D73: =ATAN(A73/Fesr) -> 0.007351194378 | F73: =(Ro/(Ro+Rdcr))/SQRT((A73/(Q*Fo))^2+(1-(A73^2/Fo^2))^2) -> 1.667468799 | G73: =-ATAN(A73*Fo/(Q*(Fo^2-A73^2))) -> 1.562664775 | H73: =IF(G73>0,G73-Pi,G73) -> -1.578927875 | J73: =Vin/Vramp -> 9 | M73: =1/(2*Pi*_Rfb1*(Cc1ea_u+Cc2ea_u)*A73) -> 0.2602612233 | N73: =-Pi/2 -> -1.570796325 | O73: =SQRT(1+(A73/Fz1_u)^2) -> 1.787240059 | P73: =ATAN2(Fz1_u,A73) -> 0.976987455 | Q73: =SQRT(1+(A73/Fz2_u)^2) -> 1.388451365 | R73: =ATAN2(Fz2_u,A73) -> 0.7666670182 | S73: =1/SQRT(1+(A73/Fp1_u)^2) -> 0.9999715014 | T73: =-ATAN2(Fp1_u,A73) -> -0.007549669184 | U73: =1/SQRT(1+(A73/Fp2_u)^2) -> 0.9979429936 | V73: =-ATAN2(Fp2_u,A73) -> -0.06415157053 | X73: 19.71056691 | Y73: =(180/Pi)*(D73+H73+N73+P73+R73+T73+V73) -> -84.24884714 | Z73: 95.75115286 | AC73: 1 | AD73: =Rcea1_u*Cc1ea_u*A73*2*Pi -> 1.48129235 | AE73: =-Rcea1_u*Cc1ea_u*Cc2ea_u*(A73*2*Pi)^2 -> -1.234139271e-05 | AF73: =(Cc2ea_u+Cc1ea_u)*A73*2*Pi -> 0.0001921146737 | AG73: 7345.76296 | AH73: -5677.114216 | AJ73: =_Rfb1 -> 20000 | AK73: =_Rfb1*Rcea2_u*Cc3ea_u*A73*2*Pi -> 150.9962525 | AL73: 1 | AM73: =(_Rfb1+Rcea2_u)*Cc3ea_u*A73*2*Pi -> 0.9632222968 | AN73: 10449.98044 | AO73: -9914.657907 | AQ73: =Eadcg/(1+(Eadcg*A73/GBP)^2) -> 29.66049365 | AR73: =-(A73*Eadcg*Eadcg/GBP)/(1+(Eadcg*A73/GBP)^2) -> -304.806063 | AT73: -1512539.878 | AU73: -2407419.098 | AV73: -2.131752785 | AW73: -2691740.967 | AX73: -3511402.373 | AY73: -2.224819108 | BA73: =SQRT(AT73^2+AU73^2)/SQRT(AW73^2+AX73^2) -> 0.6426029359 | BB73: -3.841145892 | BC73: 0.09306632289 | BD73: =BC73*180/Pi-180 -> -174.6676925 | BF73: =20*LOG(BA73*J73*F73*C73) -> 19.68509332 | BG73: =(180/Pi)*(D73+H73+BC73) -> -84.71240354 | BH73: 95.28759646 | BI73: 95.28759646 | BJ73: =SUM((BF74<0)*(BF73>0))*A73 -> 0 | BK73: 0 | BM73: 23.52623921 | BN73: =(H73+D73)*180/Pi -> -90.04471107 | BQ73: 13.06081491 | BT73: 426.58 | BU73: 22.3737 | BV73: -265.1406
A74: 20000 | B74: =A74/1000 -> 20 | C74: 1.000028424 | D74: 0.007539679488 | F74: 1.618628434 | G74: 1.476601634 | H74: -1.664991016 | J74: 9 | M74: 0.2537546927 | N74: -1.570796325 | O74: 1.818844169 | P74: 0.9886718888 | Q74: 1.405697879 | R74: 0.7793216889 | S74: 0.9999700212 | T74: -0.007743242804 | U74: 0.9978365002 | V74: -0.06579179898 | X74: =20*LOG(C74*J74*O74*Q74*F74*M74*S74*U74) -> 19.49099899 | Y74: -87.87964365 | Z74: =Y74+180 -> 92.12035635 | AC74: 1 | AD74: 1.519274206 | AE74: -1.298239864e-05 | AF74: 0.000197040691 | AG74: =AC74*AE74/(AE74^2+AF74^2)+AD74*AF74/(AE74^2+AF74^2) -> 7344.195268 | AH74: =AD74*AE74/(AE74^2+AF74^2)-AC74*AF74/(AE74^2+AF74^2) -> -5558.980052 | AJ74: 20000 | AK74: 154.8679513 | AL74: 1 | AM74: 0.9879203044 | AN74: =AJ74*AL74/(AL74^2+AM74^2)+AK74*AM74/(AL74^2+AM74^2) -> 10198.95476 | AO74: =AK74*AL74/(AL74^2+AM74^2)-AJ74*AM74/(AL74^2+AM74^2) -> -9920.886535 | AQ74: 28.20907187 | AR74: -297.3236175 | AT74: -1445643.126 | AU74: -2340416.372 | AV74: =ATAN2(AT74,AU74) -> -2.124119056 | AW74: =AG74-AH74*AO74/_Rfb2+AG74*AN74/_Rfb2+AN74-AO74*AR74+AQ74*AN74 -> -2641998.537 | AX74: =AH74+AH74*AN74/_Rfb2+AG74*AO74/_Rfb2+AO74+AO74*AQ74+AN74*AR74 -> -3343923.579 | AY74: -2.239464931 | BA74: 0.6454946947 | BB74: =20*LOG(BA74) -> -3.802146456 | BC74: =AV74-AY74 -> 0.1153458757 | BD74: -173.3911681 | BF74: 19.46589392 | BG74: -88.35613457 | BH74: =IF(BG74>180,BG74-180,BG74+180) -> 91.64386543 | BI74: =IF(BH74>180,BH74-360,BH74) -> 91.64386543 | BJ74: 0 | BK74: =IF(BJ74>0,BI74,0) -> 0 | BM74: =20*LOG(J74*F74*C74) -> 23.26804038 | BN74: -94.96496643 | BQ74: =20*LOG(BA74*7) -> 13.09981434 | BT74: 436.516 | BU74: 22.0741 | BV74: -264.9151
A75: 20500 | B75: 20.5 | C75: 1.000029863 | D75: 0.007728164062 | F75: 1.561434343 | G75: 1.393921621 | H75: -1.747671029 | J75: 9 | M75: 0.2475655539 | N75: -1.570796325 | O75: 1.850688099 | P75: 0.9999557222 | Q75: 1.423164026 | R75: 0.7916676814 | S75: 0.9999685036 | T75: -0.007936815844 | U75: 0.9977273461 | V75: -0.067431673 | X75: 19.22111619 | Y75: -91.3572196 | Z75: 88.6427804 | AC75: 1 | AD75: 1.557256061 | AE75: -1.363963257e-05 | AF75: 0.0002019667083 | AG75: 7342.588582 | AH75: -5447.185924 | AJ75: 20000 | AK75: 158.7396501 | AL75: 1 | AM75: 1.012618312 | AN75: 9953.976512 | AO75: -9920.839243 | AQ75: 26.86134778 | AR75: -290.1965708 | AT75: -1383522.85 | AU75: -2277112.782 | AV75: -2.116769012 | AW75: -2591938.825 | AX75: -3186348.213 | AY75: =ATAN2(AW75,AX75) -> -2.253685582 | BA75: 0.6486945245 | BB75: -3.759195357 | BC75: 0.1369165703 | BD75: -172.1552584 | BF75: 19.19638876 | BG75: -91.84664126 | BH75: 88.15335874 | BI75: 88.15335874 | BJ75: 0 | BK75: 0 | BM75: 22.95558412 | BN75: -99.69138289 | BQ75: 13.14276544 | BT75: 446.684 | BU75: 21.7611 | BV75: -265.3082
A76: 21000 | B76: 21 | C76: 1.000031337 | D76: 0.007916648086 | F76: 1.498194383 | G76: 1.315412429 | H76: -1.826180221 | J76: 9 | M76: 0.2416711359 | N76: -1.570796325 | O76: 1.882759679 | P76: 1.010856479 | Q76: 1.440841819 | R76: 0.8037125248 | S76: 0.9999669486 | T76: -0.008130388289 | U76: 0.997615534 | V76: -0.06907118387 | X76: 18.90818219 | Y76: -94.63500748 | Z76: 85.36499252 | AC76: 1 | AD76: 1.595237916 | AE76: -1.43130945e-05 | AF76: 0.0002068927256 | AG76: 7340.942953 | AH76: -5341.278226 | AJ76: 20000 | AK76: 162.6113488 | AL76: 1 | AM76: 1.03731632 | AN76: 9715.045811 | AO76: -9914.964216 | AQ76: 25.60769917 | AR76: -283.4004067 | AT76: -1325735.763 | AU76: -2217204.064 | AV76: -2.109693354 | AW76: -2541774.055 | AX76: -3037988.091 | AY76: -2.26749679 | BA76: 0.6521804733 | BB76: -3.712644168 | BC76: 0.1578034366 | BD76: -170.9585291 | BF76: 18.8838415 | BG76: -95.13735797 | BH76: 84.86264203 | BI76: 84.86264203 | BJ76: 0 | BK76: 0 | BM76: 22.59648567 | BN76: -104.1788289 | BQ76: 13.18931663 | BT76: 457.088 | BU76: 21.6126 | BV76: -265.6514
A77: 21500 | B77: 21.5 | C77: 1.000032847 | D77: 0.008105131548 | F77: 1.4311894 | G77: 1.241592684 | H77: -1.899999966 | J77: 9 | M77: 0.2360508769 | N77: -1.570796325 | O77: 1.915047472 | P77: 1.021390878 | Q77: 1.458723562 | R77: 0.8154637355 | S77: 0.999965356 | T77: -0.008323960125 | U77: 0.9975010666 | V77: -0.07071032291 | X77: 18.56020738 | Y77: -97.68190322 | Z77: 82.31809678 | AC77: 1 | AD77: 1.633219771 | AE77: -1.500278443e-05 | AF77: 0.0002118187428 | AG77: 7339.258436 | AH77: -5240.845533 | AJ77: 20000 | AK77: 166.4830476 | AL77: 1 | AM77: 1.062014327 | AN77: 9482.141938 | AO77: -9903.687543 | AQ77: 24.43959169 | AR77: -276.9127936 | AT77: -1271888.698 | AU77: -2160418.682 | AV77: -2.102882831 | AW77: -2491685.683 | AX77: -2898210.547 | AY77: -2.28091352 | BA77: 0.6559326365 | BB77: -3.662815197 | BC77: 0.1780306891 | BD77: -169.7995929 | BF77: 18.53626252 | BG77: -98.19718231 | BH77: 81.80281769 | BI77: 81.80281769 | BJ77: 0 | BK77: 0 | BM77: 22.19907771 | BN77: -108.3975894 | BQ77: 13.2391456 | BT77: 467.735 | BU77: 21.3672 | BV77: -265.0501
A78: 22000 | B78: 22 | C78: 1.000034393 | D78: 0.008293614435 | F78: 1.362468305 | G78: 1.172729528 | H78: -1.968863122 | J78: 9 | M78: 0.2306860843 | N78: -1.570796325 | O78: 1.947540725 | P78: 1.031574859 | Q78: 1.476801848 | R78: 0.8269287922 | S78: 0.999963726 | T78: -0.008517531337 | U78: 0.9973839466 | V78: -0.07234908143 | X78: 18.18521293 | Y78: -100.4812584 | Z78: 79.51874162 | AC78: 1 | AD78: 1.671201626 | AE78: -1.570870236e-05 | AF78: 0.0002167447601 | AG78: 7337.535083 | AH78: -5145.513802 | AJ78: 20000 | AK78: 170.3547464 | AL78: 1 | AM78: 1.086712335 | AN78: 9255.225899 | AO78: -9887.4134 | AQ78: 23.34943494 | AR78: -270.7133487 | AT78: -1221631.974 | AU78: -2106513.533 | AV78: -2.096328301 | AW78: -2441828.395 | AX78: -2766433.156 | AY78: -2.293950028 | BA78: 0.659932921 | BB78: -3.610004124 | BC78: 0.1976217272 | BD78: -168.6771091 | BF78: 18.16167296 | BG78: -101.0094674 | BH78: 78.99053258 | BI78: 78.99053258 | BJ78: 0 | BK78: 0 | BM78: 21.77167708 | BN78: -112.3323583 | BQ78: 13.29195668 | BT78: 478.63 | BU78: 21.1958 | BV78: -264.3513
A79: 22500 | B79: 22.5 | C79: 1.000035974 | D79: 0.008482096732 | F79: 1.293731248 | G79: 1.108878966 | H79: -2.032713684 | J79: 9 | M79: 0.2255597269 | N79: -1.570796325 | O79: 1.980229323 | P79: 1.04142361 | Q79: 1.495069547 | R79: 0.8381151152 | S79: 0.9999620586 | T79: -0.00871110191 | U79: 0.9972641769 | V79: -0.07398745078 | X79: 17.79068768 | Y79: -103.0285684 | Z79: 76.97143162 | AC79: 1 | AD79: 1.709183481 | AE79: -1.643084828e-05 | AF79: 0.0002216707774 | AG79: 7335.77295 | AH79: -5054.942224 | AJ79: 20000 | AK79: 174.2264452 | AL79: 1 | AM79: 1.111410342 | AN79: 9034.242753 | AO79: -9866.524387 | AQ79: 22.33046018 | AR79: -264.7834316 | AT79: -1174653.763 | AU79: -2055270.321 | AV79: -2.090020776 | AW79: -2392333.566 | AX79: -2642119.064 | AY79: -2.306619918 | BA79: 0.6641648416 | BB79: -3.55448236 | BC79: 0.216599142 | BD79: -167.5897833 | BF79: 17.76756165 | BG79: -103.5697102 | BH79: 76.43028983 | BI79: 76.43028983 | BJ79: 0 | BK79: 0 | BM79: 21.32204401 | BN79: -115.9799269 | BQ79: 13.34747844 | BT79: 489.779 | BU79: 20.9448 | BV79: -263.9108
A80: 23000 | B80: 23 | C80: 1.000037591 | D80: 0.008670578426 | F80: 1.226291929 | G80: 1.049935671 | H80: -2.091656979 | J80: 9 | M80: 0.2206562545 | N80: -1.570796325 | O80: 2.013103751 | P80: 1.050951596 | Q80: 1.513519799 | R80: 0.8490300474 | S80: 0.9999603537 | T80: -0.008904671831 | U80: 0.9971417604 | V80: -0.0756254223 | X80: 17.38325795 | Y80: -105.3286178 | Z80: 74.67138216 | AC80: 1 | AD80: 1.747165336 | AE80: -1.71692222e-05 | AF80: 0.0002265967947 | AG80: 7333.972093 | AH80: -4968.819608 | AJ80: 20000 | AK80: 178.098144 | AL80: 1 | AM80: 1.13610835 | AN80: 8819.123749 | AO80: -9841.381987 | AQ80: 21.37661608 | AR80: -259.1059635 | AT80: -1130675.286 | AU80: -2006492.455 | AV80: -2.083951457 | AW80: -2343312.249 | AX80: -2524772.834 | AY80: -2.318936183 | BA80: 0.6686133449 | BB80: -3.496499191 | BC80: 0.2349847259 | BD80: -166.5363669 | BF80: 17.36055489 | BG80: -105.8826966 | BH80: 74.1173034 | BI80: 74.1173034 | BJ80: 0 | BK80: 0 | BM80: 20.85705409 | BN80: -119.3463297 | BQ80: 13.40546161 | BT80: 501.187 | BU80: 20.7819 | BV80: -264.7826
A81: 23500 | B81: 23.5 | C81: 1.000039243 | D81: 0.008859059504 | F81: 1.161096096 | G81: 0.9956821052 | H81: -2.145910545 | J81: 9 | M81: 0.2159614406 | N81: -1.570796325 | O81: 2.046155052 | P81: 1.060172588 | Q81: 1.532146011 | R81: 0.8596808386 | S81: 0.9999586113 | T81: -0.009098241084 | U81: 0.9970166999 | V81: -0.07726298734 | X81: 16.9685417 | Y81: -107.392666 | Z81: 72.60733399 | AC81: 1 | AD81: 1.785147192 | AE81: -1.792382413e-05 | AF81: 0.0002315228119 | AG81: 7332.132571 | AH81: -4886.861235 | AJ81: 20000 | AK81: 181.9698427 | AL81: 1 | AM81: 1.160806358 | AN81: 8609.788282 | AO81: -9812.327132 | AQ81: 20.48247961 | AR81: -253.6652687 | AT81: -1089446.712 | AU81: -1960002.414 | AV81: -2.078111762 | AW81: -2294857.786 | AX81: -2413936.752 | AY81: -2.330911248 | BA81: 0.6732646544 | BB81: -3.436283698 | BC81: 0.2527994862 | BD81: -165.5156564 | BF81: 16.94627064 | BG81: -107.9596872 | BH81: 72.04031279 | BI81: 72.04031279 | BJ81: 0 | BK81: 0 | BM81: 20.38255433 | BN81: -122.4440308 | BQ81: 13.4656771 | BT81: 512.861 | BU81: 20.6348 | BV81: -265.043
A82: 24000 | B82: 24 | C82: 1.00004093 | D82: 0.009047539953 | F82: 1.098771531 | G82: 0.9458309549 | H82: -2.195761695 | J82: 9 | M82: 0.2114622439 | N82: -1.570796325 | O82: 2.079374791 | P82: 1.069099693 | Q82: 1.550941843 | R82: 0.8700746318 | S82: 0.9999568314 | T82: -0.009291809656 | U82: 0.9968889986 | V82: -0.07890013729 | X82: 16.55113724 | Y82: -109.2360139 | Z82: 70.76398607 | AC82: 1 | AD82: 1.823129047 | AE82: -1.869465405e-05 | AF82: 0.0002364488292 | AG82: 7330.254441 | AH82: -4808.806094 | AJ82: 20000 | AK82: 185.8415415 | AL82: 1 | AM82: 1.185504365 | AN82: 8406.145669 | AO82: -9779.680844 | AQ82: 19.64317947 | AR82: -248.4469339 | AT82: -1050743.626 | AU82: -1915639.482 | AV82: -2.072493345 | AW82: -2247048.068 | AX82: -2309187.515 | AY82: -2.342557005 | BA82: 0.678106137 | BB82: -3.374046503 | BC82: 0.2700636602 | BD82: -164.5264921 | BF82: 16.52930716 | BG82: -109.8159843 | BH82: 70.18401572 | BI82: 70.18401572 | BJ82: 0 | BK82: 0 | BM82: 19.90335367 | BN82: -125.2894922 | BQ82: 13.5279143 | BT82: 524.807 | BU82: 20.2436 | BV82: -263.9557
A83: 24500 | B83: 24.5 | C83: 1.000042654 | D83: 0.009236019759 | F83: 1.039689895 | G83: 0.9000585443 | H83: -2.241534106 | J83: 9 | M83: 0.2071466879 | N83: -1.570796325 | O83: 2.112755023 | P83: 1.077745383 | Q83: 1.569901202 | R83: 0.8802184518 | S83: 0.9999550141 | T83: -0.009485377531 | U83: 0.9967586594 | V83: -0.08053686351 | X83: 16.13469589 | Y83: -110.8760893 | Z83: 69.12391072 | AC83: 1 | AD83: 1.861110902 | AE83: -1.948171196e-05 | AF83: 0.0002413748465 | AG83: 7328.337764 | AH83: -4734.414468 | AJ83: 20000 | AK83: 189.7132403 | AL83: 1 | AM83: 1.210202373 | AN83: 8208.09676 | AO83: -9743.744935 | AQ83: 18.85433025 | AR83: -243.437685 | AT83: -1014363.998 | AU83: -1873257.794 | AV83: -2.067088108 | AW83: -2199947.511 | AX83: -2210133.266 | AY83: -2.353884842 | BA83: 0.6831261849 | BB83: -3.309981348 | BC83: 0.2867967339 | BD83: -163.5677576 | BF83: 16.11331578 | BG83: -111.4690166 | BH83: 68.53098336 | BI83: 68.53098336 | BJ83: 0 | BK83: 0 | BM83: 19.42329713 | BN83: -127.9012591 | BQ83: 13.59197945 | BT83: 537.032 | BU83: 20.2926 | BV83: -264.5682
A84: 25000 | B84: 25 | C84: 1.000044412 | D84: 0.009424498908 | F84: 0.9840277485 | G84: 0.8580292212 | H84: -2.283563429 | J84: 9 | M84: 0.2030037542 | N84: -1.570796325 | O84: 2.146288261 | P84: 1.086121525 | Q84: 1.589018235 | R84: 0.8901191953 | S84: 0.9999531594 | T84: -0.009678944696 | U84: 0.9966256855 | V84: -0.08217315742 | X84: 15.72203751 | Y84: -112.3310479 | Z84: 67.66895207 | AC84: 1 | AD84: 1.899092757 | AE84: -2.028499788e-05 | AF84: 0.0002463008638 | AG84: 7326.382602 | AH84: -4663.465804 | AJ84: 20000 | AK84: 193.5849391 | AL84: 1 | AM84: 1.23490038 | AN84: 8015.535384 | AO84: -9704.802756 | AQ84: 18.11197548 | AR84: -238.625277 | AT84: -980125.5571 | AU84: -1832724.656 | AV84: -2.061888212 | AW84: -2153608.79 | AX84: -2116410.929 | AY84: -2.364905672 | BA84: 0.6883141121 | BB84: -3.244266526 | BC84: 0.3030174606 | BD84: -162.6383784 | BF84: 15.70111632 | BG84: -112.9369412 | BH84: 67.06305877 | BI84: 67.06305877 | BJ84: 0 | BK84: 0 | BM84: 18.94538284 | BN84: -130.2985629 | BQ84: 13.65769427 | BT84: 549.541 | BU84: 19.992 | BV84: -264.4762
A85: 25500 | B85: 25.5 | C85: 1.000046206 | D85: 0.009612977388 | F85: 0.9318201133 | G85: 0.8194119639 | H85: -2.322180686 | J85: 9 | M85: 0.1990232884 | N85: -1.570796325 | O85: 2.179967443 | P85: 1.09423941 | Q85: 1.608287319 | R85: 0.8997836235 | S85: 0.9999512672 | T85: -0.009872511135 | U85: 0.9964900801 | V85: -0.08380901043 | X85: 15.31528029 | Y85: -113.6188213 | Z85: 66.3811787 | AC85: 1 | AD85: 1.937074612 | AE85: -2.110451179e-05 | AF85: 0.000251226881 | AG85: 7324.389015 | AH85: -4595.75683 | AJ85: 20000 | AK85: 197.4566379 | AL85: 1 | AM85: 1.259598388 | AN85: 7828.349658 | AO85: -9663.119973 | AQ85: 17.4125384 | AR85: -233.9983973 | AT85: -947863.5274 | AU85: -1793919.083 | AV85: -2.056886082 | AW85: -2108074.342 | AX85: -2027683.803 | AY85: -2.375629964 | BA85: 0.6936600635 | BB85: -3.177066174 | BC85: 0.3187438818 | BD85: -161.7373208 | BF85: 15.29482696 | BG85: -114.2376905 | BH85: 65.76230949 | BI85: 65.76230949 | BJ85: 0 | BK85: 0 | BM85: 18.47189313 | BN85: -132.5003697 | BQ85: 13.72489463 | BT85: 562.341 | BU85: 19.6823 | BV85: -264.604
A86: 26000 | B86: 26 | C86: 1.000048036 | D86: 0.009801455185 | F86: 0.8830041431 | G86: 0.7838908651 | H86: -2.357701785 | J86: 9 | M86: 0.1951959175 | N86: -1.570796325 | O86: 2.213785908 | P86: 1.102109778 | Q86: 1.627703054 | R86: 0.909218355 | S86: 0.9999493375 | T86: -0.01006607683 | U86: 0.9963518464 | V86: -0.08544441396 | X86: 14.91596732 | Y86: -114.7565144 | Z86: 65.24348557 | AC86: 1 | AD86: 1.975056467 | AE86: -2.194025371e-05 | AF86: 0.0002561528983 | AG86: 7322.35707 | AH86: -4531.0999 | AJ86: 20000 | AK86: 201.3283367 | AL86: 1 | AM86: 1.284296396 | AN86: 7646.42315 | AO86: -9618.945355 | AQ86: 16.75277906 | AR86: -229.5465787 | AT86: =-AR86*AH86+AG86*AQ86 -> -917428.6494 | AU86: =AQ86*AH86+AG86*AR86 -> -1756730.529 | AV86: -2.052074407 | AW86: -2063377.699 | AX86: -1943639.392 | AY86: -2.386067756 | BA86: 0.6991549343 | BB86: -3.108531459 | BC86: 0.3339933484 | BD86: -160.8635907 | BF86: 14.89599078 | BG86: -115.3883705 | BH86: 64.61162951 | BI86: 64.61162951 | BJ86: 0 | BK86: 0 | BM86: 18.00452224 | BN86: -134.5247798 | BQ86: 13.79342934 | BT86: 575.44 | BU86: 19.596 | BV86: -264.9076
A87: 26500 | B87: 26.5 | C87: 1.000049901 | D87: 0.009989932286 | F87: 0.8374529172 | G87: 0.7511711069 | H87: -2.390421543 | J87: 9 | M87: 0.1915129756 | N87: -1.570796325 | O87: 2.247737371 | P87: 1.109742847 | Q87: 1.647260255 | R87: 0.9184298616 | S87: 0.9999473703 | T87: -0.01025964178 | U87: 0.9962109878 | V87: -0.08707935945 | X87: 14.52518082 | Y87: -115.7600624 | Z87: 64.23993763 | AC87: 1 | AD87: 2.013038322 | AE87: -2.279222362e-05 | AF87: 0.0002610789156 | AG87: 7320.286829 | AH87: -4469.321514 | AJ87: 20000 | AK87: 205.2000354 | AL87: 1 | AM87: 1.308994403 | AN87: 7469.635919 | AO87: -9572.511578 | AQ87: 16.12975709 | AR87: -225.2601227 | AT87: -888685.4641 | AU87: -1721057.779 | AV87: -2.047446144 | AW87: -2019544.641 | AX87: -1863987.44 | AY87: -2.396228687 | BA87: 0.7047902991 | BB87: -3.038801645 | BC87: 0.3487825429 | BD87: -160.0162323 | BF87: 14.50568997 | BG87: -116.4049172 | BH87: 63.59508282 | BI87: 63.59508282 | BJ87: 0 | BK87: 0 | BM87: 17.54449161 | BN87: -136.3886849 | BQ87: 13.86315915 | BT87: 588.844 | BU87: 19.3732 | BV87: -263.8817
A88: 27000 | B88: 27 | C88: 1.000051802 | D88: 0.01017840868 | F88: 0.7950005659 | G88: 0.7209817904 | H88: -2.42061086 | J88: 9 | M88: 0.1879664391 | N88: -1.570796325 | O88: 2.281815893 | P88: 1.11714834 | Q88: 1.666953943 | R88: 0.9274244636 | S88: 0.9999453657 | T88: -0.01045320596 | U88: 0.9960675076 | V88: -0.08871383836 | X88: 14.14364009 | Y88: -116.6440668 | Z88: 63.35593319 | AC88: 1 | AD88: 2.051020177 | AE88: -2.366042153e-05 | AF88: 0.0002660049329 | AG88: 7318.178358 | AH88: -4410.261013 | AJ88: 20000 | AK88: 209.0717342 | AL88: 1 | AM88: 1.333692411 | AN88: 7297.86544 | AO88: -9524.036019 | AQ88: 15.54079909 | AR88: -221.1300303 | AT88: -861510.8119 | AU88: -1686807.982 | AV88: -2.042994508 | AW88: -1976594.219 | AX88: -1788458.144 | AY88: -2.406122009 | BA88: 0.7105583482 | BB88: -2.968005075 | BC88: 0.3631275009 | BD88: -159.1943267 | BF88: 14.12464381 | BG88: -117.3019331 | BH88: 62.69806685 | BI88: 62.69806685 | BJ88: 0 | BK88: 0 | BM88: 17.09264888 | BN88: -138.1076064 | BQ88: 13.93395573 | BT88: 602.56 | BU88: 19.198 | BV88: -264.0026
A89: 27500 | B89: 27.5 | C89: 1.000053739 | D89: 0.01036688434 | F89: 0.7554603335 | G89: 0.6930766765 | H89: -2.448515974 | J89: 9 | M89: 0.1845488674 | N89: -1.570796325 | O89: 2.316015866 | P89: 1.124335508 | Q89: 1.686779336 | R89: 0.9362083282 | S89: 0.9999433237 | T89: -0.01064676935 | U89: 0.9959214092 | V89: -0.09034784217 | X89: 13.77178307 | Y89: -117.4217523 | Z89: 62.57824766 | AC89: 1 | AD89: 2.089002033 | AE89: -2.454484743e-05 | AF89: 0.0002709309501 | AG89: 7316.031726 | AH89: -4353.769409 | AJ89: 20000 | AK89: 212.943433 | AL89: 1 | AM89: 1.358390419 | AN89: 7130.987418 | AO89: -9473.72155 | AQ89: 14.98347012 | AR89: -217.1479407 | AT89: -835792.5184 | AU89: -1653895.797 | AV89: -2.038712977 | AW89: -1934539.653 | AX89: -1716800.538 | AY89: -2.415756611 | BA89: 0.7164518317 | BB89: -2.896260054 | BC89: 0.3770436341 | BD89: -158.3969911 | BF89: 13.75329021 | BG89: -118.0926438 | BH89: 61.90735616 | BI89: 61.90735616 | BJ89: 0 | BK89: 0 | BM89: 16.64955026 | BN89: -139.6956528 | BQ89: 14.00570075 | BT89: 616.595 | BU89: 18.9837 | BV89: -264.1331
A90: 28000 | B90: 28 | C90: 1.00005571 | D90: 0.01055535928 | F90: 0.7186371609 | G90: 0.6672336158 | H90: -2.474359034 | J90: 9 | M90: 0.1812533519 | N90: -1.570796325 | O90: 2.350331989 | P90: 1.131313154 | Q90: 1.706731846 | R90: 0.9447874668 | S90: 0.9999412442 | T90: -0.01084033194 | U90: 0.9957726962 | V90: -0.09198136234 | X90: 13.40983241 | Y90: -118.1049978 | Z90: 61.89500216 | AC90: 1 | AD90: 2.126983888 | AE90: -2.544550134e-05 | AF90: 0.0002758569674 | AG90: 7313.847 | AH90: -4299.708341 | AJ90: 20000 | AK90: 216.8151318 | AL90: 1 | AM90: 1.383088426 | AN90: 6968.876509 | AO90: -9421.757311 | AQ90: 14.45554863 | AR90: -213.3060756 | AT90: -811428.2414 | AU90: -1622242.644 | AV90: -2.03459528 | AW90: -1893389.109 | AX90: -1648781.015 | AY90: -2.425141032 | BA90: 0.7224640091 | BB90: -2.823675664 | BC90: 0.390545752 | BD90: -157.6233767 | BF90: 13.39185182 | BG90: -118.788929 | BH90: 61.21107104 | BI90: 61.21107104 | BJ90: 0 | BK90: 0 | BM90: 16.21552749 | BN90: -141.1655523 | BQ90: 14.07828514 | BT90: 630.957 | BU90: 18.8029 | BV90: -263.7485
A91: 28500 | B91: 28.5 | C91: 1.000057718 | D91: 0.01074383346 | F91: 0.6843361649 | G91: 0.6432532105 | H91: -2.49833944 | J91: 9 | M91: 0.1780734686 | N91: -1.570796325 | O91: 2.384759247 | P91: 1.138089659 | Q91: 1.726807066 | R91: 0.9531677346 | S91: 0.9999391272 | T91: -0.01103389373 | U91: 0.9956213721 | V91: -0.09361439039 | X91: 13.05784833 | Y91: -118.7044119 | Z91: 61.29558812 | AC91: 1 | AD91: 2.164965743 | AE91: -2.636238324e-05 | AF91: 0.0002807829847 | AG91: 7311.624249 | AH91: -4247.949148 | AJ91: 20000 | AK91: 220.6868306 | AL91: 1 | AM91: 1.407786434 | AN91: 6811.406949 | AO91: -9368.319466 | AQ91: 13.9550045 | AR91: -209.59719 | AT91: -788324.4555 | AU91: -1591776.046 | AV91: -2.030635393 | AW91: -1853146.402 | AX91: -1584181.983 | AY91: -2.434283477 | BA91: 0.728588605 | BB91: -2.750352507 | BC91: 0.4036480841 | BD91: -156.8726683 | BF91: 13.04038883 | BG91: -119.4013979 | BH91: 60.59860213 | BI91: 60.59860213 | BJ91: 0 | BK91: 0 | BM91: 15.79074134 | BN91: -142.5287295 | BQ91: 14.15160829 | BT91: 645.654 | BU91: 18.5986 | BV91: -263.7636
A92: 29000 | B92: 29 | C92: 1.000059761 | D92: 0.01093230688 | F92: 0.6523681272 | G92: 0.620957076 | H92: -2.520635574 | J92: 9 | M92: 0.1750032364 | N92: -1.570796325 | O92: 2.419292897 | P92: 1.144672999 | Q92: 1.747000765 | R92: 0.9613548301 | S92: 0.9999369728 | T92: -0.01122745468 | U92: 0.9954674405 | V92: -0.09524691784 | X92: 12.71577019 | Y92: -119.2294311 | Z92: 60.77056893 | AC92: 1 | AD92: 2.202947598 | AE92: -2.729549315e-05 | AF92: 0.000285709002 | AG92: 7309.363544 | AH92: -4198.37203 | AJ92: 20000 | AK92: 224.5585293 | AL92: 1 | AM92: 1.432484441 | AN92: 6658.453101 | AO92: -9313.571941 | AQ92: 13.47997954 | AR92: -206.0145273 | AT92: -766395.5581 | AU92: -1562429.044 | AV92: -2.026827533 | AW92: -1813811.591 | AX92: -1522800.64 | AY92: -2.443191835 | BA92: 0.7348197682 | BB92: -2.676383375 | BC92: 0.416364302 | BD92: -156.1440827 | BF92: 12.69884056 | BG92: -119.9394879 | BH92: 60.06051207 | BI92: 60.06051207 | BJ92: 0 | BK92: 0 | BM92: 15.37522394 | BN92: -143.7954052 | BQ92: 14.22557743 | BT92: 660.693 | BU92: 18.468 | BV92: -263.6098
A93: 29500 | B93: 29.5 | C93: 1.000061839 | D93: 0.01112077952 | F93: 0.6225528538 | G93: 0.6001859437 | H93: -2.541406706 | J93: 9 | M93: 0.1720370798 | N93: -1.570796325 | O93: 2.453928445 | P93: 1.151070772 | Q93: 1.767308883 | R93: 0.9693542961 | S93: 0.9999347809 | T93: -0.0114210148 | U93: 0.9953109051 | V93: -0.09687893621 | X93: 12.38344896 | Y93: -119.6884275 | Z93: 60.31157246 | AC93: 1 | AD93: 2.240929453 | AE93: -2.824483105e-05 | AF93: 0.0002906350192 | AG93: 7307.064956 | AH93: -4150.865296 | AJ93: 20000 | AK93: 228.4302281 | AL93: 1 | AM93: 1.457182449 | AN93: 6509.889937 | AO93: -9257.667132 | AQ93: 13.02877039 | AR93: -202.5517788 | AT93: -745563.0779 | AU93: -1534139.676 | AV93: -2.02316615 | AW93: -1775381.522 | AX93: -1464447.845 | AY93: -2.45187369 | BA93: 0.7411520366 | BB93: -2.601853873 | BC93: 0.4287075399 | BD93: -155.4368673 | BF93: 12.36705799 | BG93: -120.411572 | BH93: 59.58842798 | BI93: 59.58842798 | BJ93: 0 | BK93: 0 | BM93: 14.96891187 | BN93: -144.9747047 | BQ93: 14.30010693 | BT93: 676.083 | BU93: 18.2744 | BV93: -263.3252
A94: 30000 | B94: 30 | C94: 1.000063953 | D94: 0.01130925137 | F94: 0.5947210485 | G94: 0.5807977521 | H94: -2.560794898 | J94: 9 | M94: 0.1691697951 | N94: -1.570796325 | O94: 2.488661639 | P94: 1.157290211 | Q94: 1.78772752 | R94: 0.9771715201 | S94: 0.9999325516 | T94: -0.01161457406 | U94: 0.9951517695 | V94: -0.09851043705 | X94: 12.06067242 | Y94: -120.0888171 | Z94: 59.91118287 | AC94: 1 | AD94: 2.278911308 | AE94: -2.921039695e-05 | AF94: 0.0002955610365 | AG94: 7304.72856 | AH94: -4105.324691 | AJ94: 20000 | AK94: 232.3019269 | AL94: 1 | AM94: 1.481880457 | AN94: 6365.593443 | AO94: -9200.74659 | AQ94: 12.59981327 | AR94: -199.2030479 | AT94: -725754.975 | AU94: -1506850.517 | AV94: -2.01964592 | AW94: -1737850.293 | AX94: -1408947.099 | AY94: -2.460336337 | BA94: 0.7475803039 | BB94: -2.526842985 | BC94: 0.4406904164 | BD94: -154.750299 | BF94: 12.04482886 | BG94: -120.8250667 | BH94: 59.17493332 | BI94: 59.17493332 | BJ94: 0 | BK94: 0 | BM94: 14.57167185 | BN94: -146.0747676 | BQ94: 14.37511782 | BT94: 691.831 | BU94: 18.0926 | BV94: -263.5782
A95: 30500 | B95: 30.5 | C95: 1.000066102 | D95: 0.01149772242 | F95: 0.5687151727 | G95: 0.5626658179 | H95: -2.578926832 | J95: 9 | M95: 0.1663965198 | N95: -1.570796325 | O95: 2.523488445 | P95: 1.163338209 | Q95: 1.808252933 | R95: 0.9848117362 | S95: 0.9999302848 | T95: -0.01180813244 | U95: 0.9949900377 | V95: -0.1001414119 | X95: 11.74718446 | Y95: -120.437163 | Z95: 59.562837 | AC95: 1 | AD95: 2.316893163 | AE95: -3.019219084e-05 | AF95: 0.0003004870538 | AG95: 7302.354427 | AH95: -4061.652784 | AJ95: 20000 | AK95: 236.1736257 | AL95: 1 | AM95: 1.506578464 | AN95: 6225.440974 | AO95: -9142.941675 | AQ95: 12.19167054 | AR95: -195.9628164 | AT95: -706905.0194 | AU95: -1480508.272 | AV95: -2.016261736 | AW95: -1701209.665 | AX95: -1356133.596 | AY95: -2.46858679 | BA95: 0.7540997913 | BB95: -2.451423588 | BC95: 0.4523250541 | BD95: -154.0836834 | BF95: 11.73189704 | BG95: -121.1865358 | BH95: 58.81346424 | BI95: 58.81346424 | BJ95: 0 | BK95: 0 | BM95: 14.18332063 | BN95: -147.1028524 | BQ95: 14.45053721 | BT95: 707.946 | BU95: 17.887 | BV95: -262.8499
A96: 31000 | B96: 31 | C96: 1.000068287 | D96: 0.01168619265 | F96: 0.5443896313 | G96: 0.5456771324 | H96: -2.595915518 | J96: 9 | M96: 0.163712705 | N96: -1.570796325 | O96: 2.558405041 | P96: 1.169221334 | Q96: 1.828881525 | R96: 0.9922800268 | S96: 0.9999279806 | T96: -0.01200168995 | U96: 0.9948257134 | V96: -0.1017718524 | X96: 11.44269985 | Y96: -120.7392721 | Z96: 59.26072794 | AC96: 1 | AD96: 2.354875019 | AE96: -3.119021274e-05 | AF96: 0.0003054130711 | AG96: 7299.942634 | AH96: -4019.758419 | AJ96: 20000 | AK96: 240.0453245 | AL96: 1 | AM96: 1.531276472 | AN96: 6089.311552 | AO96: -9084.374184 | AQ96: 11.80301864 | AR96: -192.8259155 | AT96: -688952.2383 | AU96: -1455063.405 | AV96: -2.013008699 | AW96: -1665449.427 | AX96: -1305853.367 | AY96: -2.476631799 | BA96: 0.7607060204 | BB96: -2.375662933 | BC96: 0.4636230999 | BD96: -153.4363531 | BF96: 11.42797727 | BG96: -121.5017868 | BH96: 58.49821316 | BI96: 58.49821316 | BJ96: 0 | BK96: 0 | BM96: 13.8036402 | BN96: -148.0654338 | BQ96: 14.52629787 | BT96: 724.436 | BU96: 17.7536 | BV96: -262.8169
A97: 31500 | B97: 31.5 | C97: 1.000070508 | D97: 0.01187466205 | F97: 0.5216105227 | G97: 0.5297308088 | H97: -2.611861841 | J97: 9 | M97: 0.1611140906 | N97: -1.570796325 | O97: 2.5934078 | P97: 1.174945845 | Q97: 1.849609845 | R97: 0.9995813248 | S97: 0.9999256389 | T97: -0.01219524655 | U97: 0.9946588006 | V97: -0.1034017501 | X97: 11.14691546 | Y97: -121.0002829 | Z97: 58.99971707 | AC97: 1 | AD97: 2.392856874 | AE97: -3.220446263e-05 | AF97: 0.0003103390883 | AG97: 7297.493256 | AH97: -3979.556219 | AJ97: 20000 | AK97: 243.9170233 | AL97: 1 | AM97: 1.555974479 | AN97: 5957.086118 | AO97: -9025.156947 | AQ97: 11.43263746 | AR97: -189.7874981 | AT97: -671840.4236 | AU97: -1430469.811 | AV97: -2.009882115 | AW97: -1630557.712 | AX97: -1257962.479 | AY97: -2.484477859 | BA97: 0.76739479 | BB97: -2.299623073 | BC97: 0.4745957442 | BD97: -152.8076669 | BF97: 11.1327664 | BG97: -121.7759592 | BH97: 58.22404082 | BI97: 58.22404082 | BJ97: 0 | BK97: 0 | BM97: 13.43238947 | BN97: -148.9682923 | BQ97: 14.60233773 | BT97: 741.31 | BU97: 17.4164 | BV97: -262.1972
A98: 32000 | B98: 32 | C98: 1.000072764 | D98: 0.0120631306 | F98: 0.5002551227 | G98: 0.5147366829 | H98: -2.626855967 | J98: 9 | M98: 0.1585966829 | N98: -1.570796325 | O98: 2.628493281 | P98: 1.180517712 | Q98: 1.870434578 | R98: 1.006720416 | S98: 0.9999232598 | T98: -0.01238880224 | U98: 0.9944893031 | V98: -0.1050310967 | X98: 10.85951869 | Y98: -121.2247449 | Z98: 58.77525506 | AC98: 1 | AD98: 2.430838729 | AE98: -3.323494053e-05 | AF98: 0.0003152651056 | AG98: 7295.006371 | AH98: -3940.966129 | AJ98: 20000 | AK98: 247.788722 | AL98: 1 | AM98: 1.580672487 | AN98: 5828.647741 | AO98: -8965.394398 | AQ98: 11.07940077 | AR98: -186.8430147 | AT98: -655517.693 | AU98: -1406684.525 | AV98: -2.006877481 | AW98: -1596521.275 | AX98: -1212326.312 | AY98: -2.49213122 | BA98: 0.7741621544 | BB98: -2.223361267 | BC98: 0.4852537391 | BD98: -152.1970087 | BF98: 10.84595181 | BG98: -122.0136027 | BH98: 57.98639727 | BI98: 57.98639727 | BJ98: 0 | BK98: 0 | BM98: 13.06931308 | BN98: -149.816594 | BQ98: 14.67859953 | BT98: 758.578 | BU98: 17.2832 | BV98: -262.5669
A99: 32500 | B99: 32.5 | C99: 1.000075056 | D99: 0.0122515983 | F99: 0.4802112157 | G99: 0.5006140667 | H99: -2.640978583 | J99: 9 | M99: 0.156156734 | N99: -1.570796325 | O99: 2.663658213 | P99: 1.185942627 | Q99: 1.891352539 | R99: 1.013701944 | S99: 0.9999208432 | T99: -0.012582357 | U99: 0.9943172251 | V99: -0.1066598837 | X99: 10.58019378 | Y99: -121.4166885 | Z99: 58.58331145 | AC99: 1 | AD99: 2.468820584 | AE99: -3.428164642e-05 | AF99: 0.0003201911229 | AG99: 7292.482057 | AH99: -3903.913013 | AJ99: 20000 | AK99: 251.6604208 | AL99: 1 | AM99: 1.605370495 | AN99: 5703.881789 | AO99: -8905.183108 | AQ99: 10.74226773 | AR99: -183.9881905 | AT99: -639936.0964 | AU99: -1383667.456 | AV99: -2.003990481 | AW99: -1563325.737 | AX99: -1168818.89 | AY99: -2.499597898 | BA99: 0.7810044037 | BB99: -2.146930347 | BC99: 0.495607417 | BD99: -151.6037867 | BF99: 10.56721772 | BG99: -122.2187486 | BH99: 57.78125142 | BI99: 57.78125142 | BJ99: 0 | BK99: 0 | BM99: 12.71414807 | BN99: -150.6149619 | BQ99: 14.75503045 | BT99: 776.247 | BU99: 17.0071 | BV99: -262.7177
A100: 33000 | B100: 33 | C100: 1.000077383 | D100: 0.01244006513 | F100: 0.461376351 | G100: 0.4872906432 | H100: -2.654302007 | J100: 9 | M100: 0.1537907229 | N100: -1.570796325 | O100: 2.698899492 | P100: 1.191226021 | Q100: 1.912360667 | R100: 1.020530407 | S100: 0.9999183892 | T100: -0.01277591082 | U100: 0.9941425706 | V100: -0.1082881028 | X100: 10.30862648 | Y100: -121.5796877 | Z100: 58.42031229 | AC100: 1 | AD100: 2.506802439 | AE100: -3.53445803e-05 | AF100: 0.0003251171402 | AG100: 7289.920394 | AH100: -3868.326278 | AJ100: 20000 | AK100: 255.5321196 | AL100: 1 | AM100: 1.630068502 | AN100: 5582.676071 | AO100: -8844.612303 | AQ100: 10.42027517 | AR100: -181.2190055 | AT100: -625051.2646 | AU100: -1361381.148 | AV100: -2.001216977 | AW100: -1530955.801 | AX100: -1127322.255 | AY100: -2.506883684 | BA100: 0.787918046 | BB100: -2.070379051 | BC100: 0.5056667075 | BD100: -151.0274318 | BF100: 10.29624985 | BG100: -122.3949713 | BH100: 57.60502873 | BI100: 57.60502873 | BJ100: 0 | BK100: 0 | BM100: 12.3666289 | BN100: -151.3675395 | BQ100: 14.83158175 | BT100: 794.328 | BU100: 16.8354 | BV100: -262.7938
A101: 33500 | B101: 33.5 | C101: 1.000079745 | D101: 0.01262853108 | F101: 0.4436570776 | G101: 0.4747014919 | H101: -2.666891158 | J101: 9 | M101: 0.1514953389 | N101: -1.570796325 | O101: 2.734214166 | P101: 1.196373077 | Q101: 1.933456025 | R101: 1.02721017 | S101: 0.9999158977 | T101: -0.01296946369 | U101: 0.9939653437 | V101: -0.1099157458 | X101: 10.04450739 | Y101: -121.7169147 | Z101: 58.2830853 | AC101: 1 | AD101: 2.544784294 | AE101: -3.642374219e-05 | AF101: 0.0003300431574 | AG101: 7287.321461 | AH101: -3834.139535 | AJ101: 20000 | AK101: 259.4038184 | AL101: 1 | AM101: 1.65476651 | AN101: 5464.920944 | AO101: -8783.764338 | AQ101: 10.11253084 | AR101: -178.5316757 | AT101: -610822.0931 | AU101: -1339790.566 | AV101: -1.998553002 | AW101: -1499395.435 | AX101: -1087725.908 | AY101: -2.513994156 | BA101: 0.7948997916 | BB101: -1.993752337 | BC101: 0.5154411542 | BD101: -150.4673972 | BF101: 10.03273877 | BG101: -122.5454437 | BH101: 57.45455634 | BI101: 57.45455634 | BJ101: 0 | BK101: 0 | BM101: 12.0264911 | BN101: -152.0780464 | BQ101: 14.90820846 | BT101: 812.831 | BU101: 16.6614 | BV101: -262.2369
A102: =A101+500 -> 34000 | B102: 34 | C102: 1.000082143 | D102: 0.01281699613 | F102: 0.4269681882 | G102: 0.4627882318 | H102: -2.678804418 | J102: 9 | M102: 0.1492674663 | N102: -1.570796325 | O102: 2.769599426 | P102: 1.201388741 | Q102: 1.954635788 | R102: 1.03374546 | S102: 0.9999133688 | T102: -0.01316301558 | U102: 0.9937855487 | V102: -0.1115428041 | X102: 9.787534417 | Y102: -121.8311883 | Z102: 58.1688117 | AC102: 1 | AD102: 2.582766149 | AE102: -3.751913208e-05 | AF102: 0.0003349691747 | AG102: 7284.685342 | AH102: -3801.290291 | AJ102: 20000 | AK102: 263.2755172 | AL102: 1 | AM102: 1.679464517 | AN102: 5350.509394 | AO102: -8722.71516 | AQ102: 9.818207169 | AR102: -175.9226361 | AT102: -597210.4585 | AU102: -1318862.904 | AV102: -1.995994752 | AW102: -1468628.039 | AX102: -1049926.281 | AY102: -2.520934683 | BA102: 0.8019465379 | BB102: -1.917091663 | BC102: 0.5249399312 | BD102: -149.9231574 | BF102: 9.776382356 | BG102: -122.6729851 | BH102: 57.32701489 | BI102: 57.32701489 | BJ102: 0 | BK102: 0 | BM102: 11.69347402 | BN102: -152.7498277 | BQ102: 14.98486914 | BT102: 831.764 | BU102: 16.5098 | BV102: -262.3432
A103: 34500 | B103: 34.5 | C103: 1.000084577 | D103: 0.01300546026 | F103: 0.4112319945 | G103: 0.4514982689 | H103: -2.690094381 | J103: 9 | M103: 0.1471041697 | N103: -1.570796325 | O103: 2.805052603 | P103: 1.20627774 | Q103: 1.975897242 | R103: 1.040140374 | S103: 0.9999108024 | T103: -0.01335656648 | U103: 0.9936031897 | V103: -0.1131692697 | X103: 9.537414412 | Y103: -121.925016 | Z103: 58.07498398 | AC103: 1 | AD103: 2.620748005 | AE103: -3.863074996e-05 | AF103: 0.000339895192 | AG103: 7282.012118 | AH103: -3769.719665 | AJ103: 20000 | AK103: 267.1472159 | AL103: 1 | AM103: 1.704162525 | AN103: 5239.337103 | AO103: -8661.534731 | AQ103: 9.536535755 | AR103: -173.3885248 | AT103: -584180.9628 | AU103: -1298567.405 | AV103: -1.993538581 | AW103: -1438636.585 | AX103: -1013826.251 | AY103: -2.52771044 | BA103: 0.8090553561 | BB103: -1.840435253 | BC103: 0.5341718582 | BD103: -149.394207 | BF103: 9.526887453 | BG103: -122.7801037 | BH103: 57.21989633 | BI103: 57.21989633 | BJ103: 0 | BK103: 0 | BM103: 11.36732271 | BN103: -153.3858967 | BQ103: 15.06152555 | BT103: 851.138 | BU103: 16.2768 | BV103: -262.197
A104: 35000 | B104: 35 | C104: 1.000087046 | D104: 0.01319392348 | F104: 0.3963776451 | G104: 0.4407841369 | H104: -2.700808513 | J104: 9 | M104: 0.1450026816 | N104: -1.570796325 | O104: 2.840571152 | P104: 1.211044586 | Q104: 1.997237778 | R104: 1.046398879 | S104: 0.9999081986 | T104: -0.01355011638 | U104: 0.9934182711 | V104: -0.1147951342 | X104: 9.293864307 | Y104: -122.0006311 | Z104: 57.99936892 | AC104: 1 | AD104: 2.65872986 | AE104: -3.975859584e-05 | AF104: 0.0003448212093 | AG104: 7279.301873 | AH104: -3739.372134 | AJ104: 20000 | AK104: 271.0189147 | AL104: 1 | AM104: 1.728860533 | AN104: 5131.302486 | AO104: -8600.287434 | AQ104: 9.266802362 | AR104: -170.9261696 | AT104: -571700.7037 | AU104: -1278875.209 | AV104: -1.991180992 | AW104: -1409403.74 | AX104: -979334.6945 | AY104: -2.534326407 | BA104: 0.8162234788 | BB104: -1.763818336 | BC104: 0.5431454155 | BD104: -148.88006 | BF104: 9.283970956 | BG104: -122.8690331 | BH104: 57.13096689 | BI104: 57.13096689 | BJ104: 0 | BK104: 0 | BM104: 11.04778929 | BN104: -153.9889731 | BQ104: 15.13814246 | BT104: 870.964 | BU104: 16.1061 | BV104: -261.768
A105: 35500 | B105: 35.5 | C105: 1.000089551 | D105: 0.01338238576 | F105: 0.3823404925 | G105: 0.4306029181 | H105: -2.710989732 | J105: 9 | M105: 0.1429603903 | N105: -1.570796325 | O105: 2.876152651 | P105: 1.215693593 | Q105: 2.018654887 | R105: 1.05252482 | S105: 0.9999055573 | T105: -0.01374366527 | U105: 0.9932307973 | V105: -0.1164203893 | X105: 9.056611777 | Y105: -122.0600247 | Z105: 57.93997534 | AC105: 1 | AD105: 2.696711715 | AE105: -4.090266972e-05 | AF105: 0.0003497472265 | AG105: 7276.554692 | AH105: -3710.195292 | AJ105: 20000 | AK105: 274.8906135 | AL105: 1 | AM105: 1.75355854 | AN105: 5026.306716 | AO105: -8539.032454 | AQ105: 9.008342402 | AR105: -168.5325738 | AT105: -559739.0658 | AU105: -1259759.2 | AV105: -1.988918629 | AW105: -1380911.974 | AX105: -946366.0781 | AY105: -2.540787387 | BA105: 0.823448289 | BB105: -1.68727337 | BC105: 0.5518687585 | BD105: -148.3802493 | BF105: 9.047360516 | BG105: -122.9417651 | BH105: 57.05823485 | BI105: 57.05823485 | BJ105: 0 | BK105: 0 | BM105: 10.73463389 | BN105: -154.5615159 | BQ105: 15.21468743 | BT105: 891.251 | BU105: 15.8824 | BV105: -261.3831
A106: 36000 | B106: 36 | C106: 1.000092091 | D106: 0.01357084708 | F106: 0.3690615101 | G106: 0.4209157369 | H106: -2.720676913 | J106: 9 | M106: 0.1409748293 | N106: -1.570796325 | O106: 2.911794794 | P106: 1.220228882 | Q106: 2.040146159 | R106: 1.058521918 | S106: 0.9999028786 | T106: -0.01393721313 | U106: 0.9930407726 | V106: -0.1180450268 | X106: 8.825395604 | Y106: -122.1049742 | Z106: 57.89502577 | AC106: 1 | AD106: 2.73469357 | AE106: -4.20629716e-05 | AF106: 0.0003546732438 | AG106: 7273.770661 | AH106: -3682.139636 | AJ106: 20000 | AK106: 278.7623123 | AL106: 1 | AM106: 1.778256548 | AN106: 4924.253731 | AO106: -8477.824129 | AQ106: 8.760536859 | AR106: -166.2049053 | AT106: -548267.5334 | AU106: -1241193.884 | AV106: -1.986748275 | AW106: -1353143.656 | AX106: -914840.0719 | AY106: -2.547098006 | BA106: 0.8307273093 | BB106: -1.610830246 | BC106: 0.5603497311 | BD106: -147.8943253 | BF106: 8.816794887 | BG106: -123.0000778 | BH106: 56.99992222 | BI106: 56.99992222 | BJ106: 0 | BK106: 0 | BM106: 10.42762513 | BN106: -155.1057525 | BQ106: 15.29113055 | BT106: 912.011 | BU106: 15.6715 | BV106: -261.7487
A107: 36500 | B107: 36.5 | C107: 1.000094667 | D107: 0.01375930744 | F107: 0.3564867606 | G107: 0.4116873143 | H107: -2.729905336 | J107: 9 | M107: 0.1390436672 | N107: -1.570796325 | O107: 2.94749538 | P107: 1.224654395 | Q107: 2.061709274 | R107: 1.064393778 | S107: 0.9999001625 | T107: -0.01413075994 | U107: 0.9928482016 | V107: -0.1196690385 | X107: 8.599965793 | Y107: -122.1370683 | Z107: 57.86293172 | AC107: 1 | AD107: 2.772675425 | AE107: -4.323950148e-05 | AF107: 0.0003595992611 | AG107: 7270.949867 | AH107: -3655.158366 | AJ107: 20000 | AK107: 282.6340111 | AL107: 1 | AM107: 1.802954555 | AN107: 4825.050235 | AO107: -8416.71229 | AQ107: 8.522808588 | AR107: -163.9404846 | AT107: -537259.5198 | AU107: -1223155.26 | AV107: -1.984666844 | AW107: -1326081.127 | AX107: -884681.1991 | AY107: -2.553262723 | BA107: 0.8380581931 | BB107: -1.534516476 | BC107: 0.568595879 | BD107: -147.4218558 | BF107: 8.592024047 | BG107: -123.04556 | BH107: 56.95444001 | BI107: 56.95444001 | BJ107: 0 | BK107: 0 | BM107: 10.12654052 | BN107: -155.6237041 | BQ107: 15.36744432 | BT107: 933.254 | BU107: 15.4714 | BV107: -261.2073
A108: 37000 | B108: 37 | C108: 1.000097278 | D108: 0.01394776683 | F108: 0.344566912 | G108: 0.4028855776 | H108: -2.738707072 | J108: 9 | M108: 0.1371646988 | N108: -1.570796325 | O108: 2.98325231 | P108: 1.228973905 | Q108: 2.083342001 | R108: 1.070143891 | S108: 0.9998974089 | T108: -0.0143243057 | U108: 0.9926530887 | V108: -0.1212924162 | X108: 8.380083516 | Y108: -122.157728 | Z108: 57.84227204 | AC108: 1 | AD108: 2.81065728 | AE108: -4.443225935e-05 | AF108: 0.0003645252784 | AG108: 7268.092398 | AH108: -3629.207204 | AJ108: 20000 | AK108: 286.5057099 | AL108: 1 | AM108: 1.827652563 | AN108: 4728.605674 | AO108: -8355.742571 | AQ108: 8.294618969 | AR108: -161.7367753 | AT108: -526690.213 | AU108: -1205620.718 | AV108: -1.982671375 | AW108: -1299706.775 | AX108: -855818.5088 | AY108: -2.559285837 | BA108: 0.8454387152 | BB108: -1.458357368 | BC108: 0.5766144624 | BD108: -146.9624249 | BF108: 8.372809141 | BG108: -123.0796334 | BH108: 56.92036656 | BI108: 56.92036656 | BJ108: 0 | BK108: 0 | BM108: 9.831166509 | BN108: -156.1172086 | BQ108: 15.44360343 | BT108: 954.993 | BU108: 15.3525 | BV108: -261.2661
A109: 37500 | B109: 37.5 | C109: 1.000099925 | D109: 0.01413622522 | F109: 0.3332568002 | G109: 0.394481317 | H109: -2.747111333 | J109: 9 | M109: 0.1353358361 | N109: -1.570796325 | O109: 3.019063584 | P109: 1.233191017 | Q109: 2.105042194 | R109: 1.075775634 | S109: 0.9998946179 | T109: -0.01451785038 | U109: 0.9924554386 | V109: -0.1229151516 | X109: 8.165520923 | Y109: -122.1682261 | Z109: 57.83177394 | AC109: 1 | AD109: 2.848639135 | AE109: -4.564124523e-05 | AF109: 0.0003694512956 | AG109: 7265.198343 | AH109: -3604.244226 | AJ109: 20000 | AK109: 290.3774086 | AL109: 1 | AM109: 1.852350571 | AN109: 4634.832221 | AO109: -8294.956701 | AQ109: 8.075464862 | AR109: -159.5913743 | AT109: -516536.4355 | AU109: -1188568.936 | AV109: -1.980759023 | AW109: -1274003.094 | AX109: -828185.2728 | AY109: -2.565171491 | BA109: 0.8528667643 | BB109: -1.382376189 | BC109: 0.5844124679 | BD109: -146.5156321 | BF109: 8.158922292 | BG109: -123.1035714 | BH109: 56.89642857 | BI109: 56.89642857 | BJ109: 0 | BK109: 0 | BM109: 9.541298481 | BN109: -156.5879394 | BQ109: 15.51958461 | BT109: 977.237 | BU109: 15.0807 | BV109: -260.9324
A110: 38000 | B110: 38 | C110: 1.000102607 | D110: 0.01432468261 | F110: 0.3225150331 | G110: 0.3864478833 | H110: -2.755144767 | J110: 9 | M110: 0.1335551014 | N110: -1.570796325 | O110: 3.054927289 | P110: 1.237309187 | Q110: 2.126807788 | R110: 1.081292279 | S110: 0.9998917894 | T110: -0.01471139397 | U110: 0.9922552559 | V110: -0.1245372368 | X110: 7.956060865 | Y110: -122.1697037 | Z110: 57.83029631 | AC110: 1 | AD110: 2.886620991 | AE110: -4.68664591e-05 | AF110: 0.0003743773129 | AG110: 7262.267792 | AH110: -3580.229705 | AJ110: 20000 | AK110: 294.2491074 | AL110: 1 | AM110: 1.877048578 | AN110: 4543.644735 | AO110: -8234.392782 | AQ110: 7.864875842 | AR110: -157.5020036 | AT110: -506776.5173 | AU110: -1171979.79 | AV110: -1.978927061 | AW110: -1248952.729 | AX110: -801718.7059 | AY110: -2.570923681 | BA110: 0.8603403353 | BB110: -1.306594312 | BC110: 0.5919966201 | BD110: -146.0810921 | BF110: 7.950146321 | BG110: -123.1185155 | BH110: 56.88148445 | BI110: 56.88148445 | BJ110: 0 | BK110: 0 | BM110: 9.256740633 | BN110: -157.0374234 | BQ110: 15.59536649 | BT110: 1000 | BU110: 14.8838 | BV110: -260.5154
A111: 38500 | B111: 38.5 | C111: 1.000105325 | D111: 0.01451313898 | F111: 0.3123036349 | G111: 0.3787609218 | H111: -2.762831728 | J111: 9 | M111: 0.1318206196 | N111: -1.570796325 | O111: 3.090841601 | P111: 1.241331721 | Q111: 2.148636795 | R111: 1.086696994 | S111: 0.9998889235 | T111: -0.01490493647 | U111: 0.9920525452 | V111: -0.1261586634 | X111: 7.751496548 | Y111: -122.1631849 | Z111: 57.83681511 | AC111: 1 | AD111: 2.924602846 | AE111: -4.810790097e-05 | AF111: 0.0003793033302 | AG111: 7259.300836 | AH111: -3557.125968 | AJ111: 20000 | AK111: 298.1208062 | AL111: 1 | AM111: 1.901746586 | AN111: 4454.960725 | AO111: -8174.085543 | AQ111: 7.662411681 | AR111: -155.4665018 | AT111: -497390.1793 | AU111: -1155834.27 | AV111: -1.977172869 | AW111: -1224538.524 | AX111: -776359.705 | AY111: -2.576546262 | BA111: 0.8678575228 | BB111: -1.231031352 | BC111: 0.5993733927 | BD111: -145.6584342 | BF111: 7.746274408 | BG111: -123.1254903 | BH111: 56.87450969 | BI111: 56.87450969 | BJ111: 0 | BK111: 0 | BM111: 8.97730576 | BN111: -157.4670561 | BQ111: 15.67092945 | BT111: 1023.293 | BU111: 14.7437 | BV111: -261.1239
A112: 39000 | B112: 39 | C112: 1.000108078 | D112: 0.01470159432 | F112: 0.3025877244 | G112: 0.3713981369 | H112: -2.770194513 | J112: 9 | M112: 0.1301306117 | N112: -1.570796325 | O112: 3.126804776 | P112: 1.245261787 | Q112: 2.170527303 | R112: 1.091992844 | S112: 0.9998860201 | T112: -0.01509847784 | U112: 0.9918473113 | V112: -0.1277794234 | X112: 7.551631152 | Y112: -122.1495895 | Z112: 57.85041052 | AC112: 1 | AD112: 2.962584701 | AE112: -4.936557084e-05 | AF112: 0.0003842293475 | AG112: 7256.297567 | AH112: -3534.89727 | AJ112: 20000 | AK112: 301.992505 | AL112: 1 | AM112: 1.926444594 | AN112: 4368.700306 | AO112: -8114.06658 | AQ112: 7.467660055 | AR112: -153.4828171 | AT112: -488358.4278 | AU112: -1140114.403 | AV112: -1.975493931 | AW112: -1200743.556 | AX112: -752052.6083 | AY112: -2.58204295 | BA112: 0.8754165145 | BB112: -1.155705295 | BC112: 0.606549019 | BD112: -145.2473011 | BF112: 7.547109703 | BG112: -123.125416 | BH112: 56.87458399 | BI112: 56.87458399 | BJ112: 0 | BK112: 0 | BM112: 8.702814999 | BN112: -157.8781149 | BQ112: 15.7462555 | BT112: 1047.129 | BU112: 14.5866 | BV112: -260.4077
A113: 39500 | B113: 39.5 | C113: 1.000110867 | D113: 0.01489004862 | F113: 0.293335227 | G113: 0.364339085 | H113: -2.777253565 | J113: 9 | M113: 0.1284833887 | N113: -1.570796325 | O113: 3.162815147 | P113: 1.249102418 | Q113: 2.192477469 | R113: 1.097182798 | S113: 0.9998830794 | T113: -0.01529201809 | U113: 0.9916395591 | V113: -0.1293995087 | X113: 7.35627742 | Y113: -122.1297444 | Z113: 57.87025561 | AC113: 1 | AD113: 3.000566556 | AE113: -5.063946871e-05 | AF113: 0.0003891553647 | AG113: 7253.258079 | AH113: -3513.509666 | AJ113: 20000 | AK113: 305.8642038 | AL113: 1 | AM113: 1.951142601 | AN113: 4284.786144 | AO113: -8054.364579 | AQ113: 7.280234446 | AR113: -151.5490003 | AT113: -479663.4582 | AU113: -1124803.185 | AV113: -1.973887831 | AW113: -1177551.162 | AX113: -728744.9714 | AY113: -2.587417333 | BA113: 0.8830155856 | BB113: -1.080632617 | BC113: 0.6135295021 | BD113: -144.8473489 | BF113: 7.35246492 | BG113: -123.11912 | BH113: 56.88087997 | BI113: 56.88087997 | BJ113: 0 | BK113: 0 | BM113: 8.433097537 | BN113: -158.2717712 | BQ113: 15.82132818 | BT113: 1071.519 | BU113: 14.3581 | BV113: -260.5301
A114: 40000 | B114: 40 | C114: 1.000113691 | D114: 0.01507850186 | F114: 0.2845166147 | G114: 0.3575649899 | H114: -2.78402766 | J114: 9 | M114: 0.1268773464 | N114: -1.570796325 | O114: 3.198871121 | P114: 1.252856525 | Q114: 2.214485518 | R114: 1.102269729 | S114: 0.9998801012 | T114: -0.01548555718 | U114: 0.9914292933 | V114: -0.1310189112 | X114: 7.16525723 | Y114: -122.1043936 | Z114: 57.89560635 | AC114: 1 | AD114: 3.038548411 | AE114: -5.192959457e-05 | AF114: 0.000394081382 | AG114: 7250.182465 | AH114: -3492.930899 | AJ114: 20000 | AK114: 309.7359025 | AL114: 1 | AM114: 1.975840609 | AN114: 4203.143409 | AO114: -7995.005529 | AQ114: 7.099772232 | AR114: -149.6631987 | AT114: -471288.5669 | AU114: -1109884.512 | AV114: -1.972352246 | AW114: -1154944.97 | AX114: -706387.359 | AY114: -2.592672871 | BA114: 0.8906530932 | BB114: -1.005828389 | BC114: 0.6203206244 | BD114: -144.4582462 | BF114: 7.162161908 | BG114: -123.1073469 | BH114: 56.89265312 | BI114: 56.89265312 | BJ114: 0 | BK114: 0 | BM114: 8.167990297 | BN114: -158.6491006 | BQ114: 15.89613241 | BT114: 1096.478 | BU114: 14.1501 | BV114: -260.5471
A115: 40500 | B115: 40.5 | C115: 1.000116551 | D115: 0.01526695403 | F115: 0.2761046727 | G115: 0.3510585801 | H115: -2.79053407 | J115: 9 | M115: 0.1253109594 | N115: -1.570796325 | O115: 3.234971171 | P115: 1.256526897 | Q115: 2.236549744 | R115: 1.107256418 | S115: 0.9998770855 | T115: -0.01567909512 | U115: 0.991216519 | V115: -0.1326376229 | X115: 6.978401178 | Y115: -122.0742072 | Z115: 57.92579283 | AC115: 1 | AD115: 3.076530266 | AE115: -5.323594843e-05 | AF115: 0.0003990073993 | AG115: 7247.070821 | AH115: -3473.1303 | AJ115: 20000 | AK115: 313.6076013 | AL115: 1 | AM115: 2.000538616 | AN115: 4123.69971 | AO115: -7936.012912 | AQ115: 6.925932939 | AR115: -147.8236497 | AT115: -463218.0703 | AU115: -1095343.126 | AV115: -1.970884946 | AW115: -1132908.912 | AX115: -684933.1521 | AY115: -2.597812903 | BA115: 0.8983274716 | BB115: -0.9313063805 | BC115: 0.6269279569 | BD115: -144.079674 | BF115: 6.976031232 | BG115: -123.0907669 | BH115: 56.90923309 | BI115: 56.90923309 | BJ115: 0 | BK115: 0 | BM115: 7.907337612 | BN115: -159.0110929 | BQ115: 15.97065442 | BT115: 1122.018 | BU115: 13.9679 | BV115: -259.931
A116: 41000 | B116: 41 | C116: 1.000119447 | D116: 0.01545540511 | F116: 0.2680742893 | G116: 0.3448039442 | H116: -2.796788706 | J116: 9 | M116: 0.1237827769 | N116: -1.570796325 | O116: 3.27111384 | P116: 1.260116207 | Q116: 2.258668498 | R116: 1.112145559 | S116: 0.9998740324 | T116: -0.01587263189 | U116: 0.9910012409 | V116: -0.1342556357 | X116: 6.795548142 | Y116: -122.0397886 | Z116: 57.9602114 | AC116: 1 | AD116: 3.114512121 | AE116: -5.45585303e-05 | AF116: 0.0004039334166 | AG116: 7243.923242 | AH116: -3454.078688 | AJ116: 20000 | AK116: 317.4793001 | AL116: 1 | AM116: 2.025236624 | AN116: 4046.385045 | AO116: -7877.407887 | AQ116: 6.758396633 | AR116: -146.028676 | AT116: -455437.2314 | AU116: -1081164.554 | AV116: -1.969483786 | AW116: -1111427.247 | AX116: -664338.3682 | AY116: -2.602840655 | BA116: 0.9060372275 | BB116: -0.8570791506 | BC116: 0.6333568683 | BD116: -143.7113245 | BF116: 6.793911742 | BG116: -123.0699842 | BH116: 56.93001579 | BI116: 56.93001579 | BJ116: 0 | BK116: 0 | BM116: 7.650990893 | BN116: -159.3586597 | BQ116: 16.04488165 | BT116: 1148.154 | BU116: 13.7508 | BV116: -259.948
A117: 41500 | B117: 41.5 | C117: 1.000122378 | D117: 0.0156438551 | F117: 0.260402267 | G117: 0.3387864013 | H117: -2.802806249 | J117: 9 | M117: 0.1222914182 | N117: -1.570796325 | O117: 3.30729773 | P117: 1.263627023 | Q117: 2.280840195 | R117: 1.11693976 | S117: 0.9998709419 | T117: -0.01606616746 | U117: 0.9907834642 | V117: -0.1358729415 | X117: 6.616544875 | Y117: -122.0016821 | Z117: 57.99831785 | AC117: 1 | AD117: 3.152493976 | AE117: -5.589734016e-05 | AF117: 0.0004088594338 | AG117: 7240.739827 | AH117: -3435.748281 | AJ117: 20000 | AK117: 321.3509989 | AL117: 1 | AM117: 2.049934632 | AN117: 3971.131731 | AO117: -7819.209463 | AQ117: 6.596862456 | AR117: -144.2766803 | AT117: -447932.1918 | AU117: -1067335.064 | AV117: -1.968146704 | AW117: -1090484.566 | AX117: -644561.4942 | AY117: -2.607759237 | BA117: 0.9137809358 | BB117: -0.7831581369 | BC117: 0.639612533 | BD117: -143.3529013 | BF117: 6.61565016 | BG117: -123.0455434 | BH117: 56.95445656 | BI117: 56.95445656 | BJ117: 0 | BK117: 0 | BM117: 7.398808297 | BN117: -159.6926422 | BQ117: 16.11880266 | BT117: 1174.898 | BU117: 13.6038 | BV117: -260.1987
A118: 42000 | B118: 42 | C118: 1.000125344 | D118: 0.01583230397 | F118: 0.2530671523 | G118: 0.3329923871 | H118: -2.808600263 | J118: 9 | M118: 0.120835568 | N118: -1.570796325 | O118: 3.343521502 | P118: 1.267061809 | Q118: 2.303063305 | R118: 1.121641545 | S118: 0.999867814 | T118: -0.01625970183 | U118: 0.9905631939 | V118: -0.1374895325 | X118: 6.441245596 | Y118: -121.9603788 | Z118: 58.03962123 | AC118: 1 | AD118: 3.190475832 | AE118: -5.725237801e-05 | AF118: 0.0004137854511 | AG118: 7237.520672 | AH118: -3418.112613 | AJ118: 20000 | AK118: 325.2226977 | AL118: 1 | AM118: 2.074632639 | AN118: 3897.874349 | AO118: -7761.43465 | AQ118: 6.441047278 | AR118: -142.5661405 | AT118: -440689.91 | AU118: -1053841.614 | AV118: -1.966871717 | AW118: -1070065.808 | AX118: -625563.3313 | AY118: -2.612571657 | BA118: 0.9215572355 | BB118: -0.7095537339 | BC118: 0.6456999394 | BD118: -143.0041186 | BF118: 6.441100674 | BG118: -123.017936 | BH118: 56.98206402 | BI118: 56.98206402 | BJ118: 0 | BK118: 0 | BM118: 7.150654408 | BN118: -160.0138174 | BQ118: 16.19240707 | BT118: 1202.264 | BU118: 13.4128 | BV118: -259.341
A119: 42500 | B119: 42.5 | C119: 1.000128346 | D119: 0.01602075172 | F119: 0.2460490825 | G119: 0.3274093506 | H119: -2.814183299 | J119: 9 | M119: 0.119413973 | N119: -1.570796325 | O119: 3.379783874 | P119: 1.270422928 | Q119: 2.325336355 | R119: 1.12625336 | S119: 0.9998646486 | T119: -0.01645323498 | U119: 0.9903404351 | V119: -0.1391054006 | X119: 6.269511598 | Y119: -121.9163215 | Z119: 58.08367845 | AC119: 1 | AD119: 3.228457687 | AE119: -5.862364387e-05 | AF119: 0.0004187114684 | AG119: 7234.265877 | AH119: -3401.146455 | AJ119: 20000 | AK119: 329.0943965 | AL119: 1 | AM119: 2.099330647 | AN119: 3826.549677 | AO119: -7704.098612 | AQ119: 6.290684456 | AR119: -140.8956051 | AT119: -433698.104 | AU119: -1040671.807 | AV119: -1.965656918 | AW119: -1050156.265 | AX119: -607306.8499 | AY119: -2.617280815 | BA119: 0.9293648261 | BB119: -0.6362753678 | BC119: 0.6516238975 | BD119: -142.6647008 | BF119: 6.270124546 | BG119: -122.9876054 | BH119: 57.01239464 | BI119: 57.01239464 | BJ119: 0 | BK119: 0 | BM119: 6.906399914 | BN119: -160.3229046 | BQ119: 16.26568543 | BT119: 1230.269 | BU119: 13.1837 | BV119: -259.551
A120: 43000 | B120: 43 | C120: 1.000131383 | D120: 0.01620919833 | F120: 0.2393296471 | G120: 0.3220256627 | H120: -2.819566987 | J120: 9 | M120: 0.1180254385 | N120: -1.570796325 | O120: 3.416083617 | P120: 1.273712653 | Q120: 2.347657923 | R120: 1.13077757 | S120: 0.9998614458 | T120: -0.0166467669 | U120: 0.9901151931 | V120: -0.140720538 | X120: 6.101210876 | Y120: -121.8699106 | Z120: 58.13008944 | AC120: 1 | AD120: 3.266439542 | AE120: -6.001113773e-05 | AF120: 0.0004236374857 | AG120: 7230.975543 | AH120: -3384.825748 | AJ120: 20000 | AK120: 332.9660952 | AL120: 1 | AM120: 2.124028654 | AN120: 3757.09663 | AO120: -7647.214804 | AQ120: 6.145522701 | AR120: -139.2636899 | AT120: -426945.199 | AU120: -1027813.859 | AV120: -1.964500471 | AW120: -1030741.583 | AX120: -589757.0554 | AY120: -2.621889517 | BA120: 0.9372024641 | BB120: -0.5633315649 | BC120: 0.6573890464 | BD120: -142.3343821 | BF120: 6.102589739 | BG120: -122.9549521 | BH120: 57.04504795 | BI120: 57.04504795 | BJ120: 0 | BK120: 0 | BM120: 6.665921304 | BN120: -160.62057 | BQ120: 16.33862924 | BT120: 1258.925 | BU120: 13.0792 | BV120: -259.272
A121: 43500 | B121: 43.5 | C121: 1.000134456 | D121: 0.01639764379 | F121: 0.2328917635 | G121: 0.3168305344 | H121: -2.824762116 | J121: 9 | M121: 0.1166688242 | N121: -1.570796325 | O121: 3.452419553 | P121: 1.276933164 | Q121: 2.370026639 | R121: 1.135216469 | S121: 0.9998582055 | T121: -0.01684029758 | U121: 0.9898874729 | V121: -0.1423349366 | X121: 5.936217763 | Y121: -121.8215072 | Z121: 58.17849285 | AC121: 1 | AD121: 3.304421397 | AE121: -6.141485958e-05 | AF121: 0.0004285635029 | AG121: 7227.649769 | AH121: -3369.127529 | AJ121: 20000 | AK121: 336.837794 | AL121: 1 | AM121: 2.148726662 | AN121: 3689.456193 | AO121: -7590.795095 | AQ121: 6.005325023 | AR121: -137.6690735 | AT121: -420420.2793 | AU121: -1015256.553 | AV121: -1.963400609 | AW121: -1011807.771 | AX121: -572880.8621 | AY121: -2.626400471 | BA121: 0.9450689596 | BB121: -0.4907300161 | BC121: 0.6629998613 | BD121: -142.0129061 | BF121: 5.938370556 | BG121: -122.9203378 | BH121: 57.07966216 | BI121: 57.07966216 | BJ121: 0 | BK121: 0 | BM121: 6.429100573 | BN121: -160.9074318 | BQ121: 16.41123078 | BT121: 1288.25 | BU121: 12.807 | BV121: -258.861
A122: 44000 | B122: 44 | C122: 1.000137565 | D122: 0.01658608809 | F122: 0.226719564 | G122: 0.3118139428 | H122: -2.829778707 | J122: 9 | M122: 0.1153430421 | N122: -1.570796325 | O122: 3.48879055 | P122: 1.28008656 | Q122: 2.392441179 | R122: 1.139572278 | S122: 0.9998549279 | T122: -0.01703382699 | U122: 0.9896572799 | V122: -0.1439485885 | X122: 5.774412593 | Y122: -121.7714378 | Z122: 58.22856222 | AC122: 1 | AD122: 3.342403252 | AE122: -6.283480943e-05 | AF122: 0.0004334895202 | AG122: 7224.288658 | AH122: -3354.029874 | AJ122: 20000 | AK122: 340.7094928 | AL122: 1 | AM122: 2.17342467 | AN122: 3623.57136 | AO122: -7534.849893 | AQ122: 5.869867772 | AR122: -136.1104939 | AT122: -414113.0436 | AU122: -1002989.209 | AV122: -1.962355633 | AW122: -993341.1938 | AX122: -556646.9769 | AY122: -2.630816293 | BA122: 0.9529631739 | BB122: -0.418477636 | BC122: 0.6684606599 | BD122: -141.7000254 | BF122: 5.777347298 | BG122: -122.8840896 | BH122: 57.11591041 | BI122: 57.11591041 | BJ122: 0 | BK122: 0 | BM122: 6.195824934 | BN122: -161.1840642 | BQ122: 16.48348316 | BT122: 1318.257 | BU122: 12.6826 | BV122: -258.683
A123: 44500 | B123: 44.5 | C123: 1.000140709 | D123: 0.01677453121 | F123: 0.220798294 | G123: 0.306966565 | H123: -2.834626085 | J123: 9 | M123: 0.1140470529 | N123: -1.570796325 | O123: 3.525195523 | P123: 1.283174855 | Q123: 2.414900268 | R123: 1.143847147 | S123: 0.9998516128 | T123: -0.01722735512 | U123: 0.9894246194 | V123: -0.1455614859 | X123: 5.61568137 | Y123: -121.7199974 | Z123: 58.28000256 | AC123: 1 | AD123: 3.380385107 | AE123: -6.427098728e-05 | AF123: 0.0004384155375 | AG123: 7220.892313 | AH123: -3339.511839 | AJ123: 20000 | AK123: 344.5811916 | AL123: 1 | AM123: 2.198122677 | AN123: 3559.387073 | AO123: -7479.388251 | AQ123: 5.738939745 | AR123: -134.5867454 | AT123: -408013.7639 | AU123: -991001.6526 | AV123: -1.961363906 | AW123: -975328.5795 | AX123: -541025.7895 | AY123: -2.635139515 | BA123: 0.960884016 | BB123: -0.3465806179 | BC123: 0.6737756094 | BD123: -141.3955012 | BF123: 5.619405938 | BG123: -122.8465027 | BH123: 57.15349729 | BI123: 57.15349729 | BJ123: 0 | BK123: 0 | BM123: 5.965986556 | BN123: -161.4510015 | BQ123: 16.55538018 | BT123: 1348.963 | BU123: 12.4759 | BV123: -258.797
A124: 45000 | B124: 45 | C124: 1.000143888 | D124: 0.01696297313 | F124: 0.2151142199 | G124: 0.302279719 | H124: -2.839312931 | J124: 9 | M124: 0.1127798634 | N124: -1.570796325 | O124: 3.56163343 | P124: 1.286199987 | Q124: 2.437402674 | R124: 1.148043159 | S124: 0.9998482603 | T124: -0.01742088197 | U124: 0.9891894968 | V124: -0.147173621 | X124: 5.459915466 | Y124: -121.6674527 | Z124: 58.33254728 | AC124: 1 | AD124: 3.418366962 | AE124: -6.572339313e-05 | AF124: 0.0004433415548 | AG124: 7217.460837 | AH124: -3325.553403 | AJ124: 20000 | AK124: 348.4528904 | AL124: 1 | AM124: 2.222820685 | AN124: 3496.850158 | AO124: -7424.417973 | AQ124: 5.612341365 | AR124: -133.0966755 | AT124: -402113.248 | AU124: -979284.1836 | AV124: -1.960423849 | AW124: -957757.0115 | AX124: -525989.2711 | AY124: -2.639372581 | BA124: 0.9688304403 | BB124: -0.2750444852 | BC124: 0.6789487321 | BD124: -141.0991031 | BF124: 5.464437813 | BG124: -122.8078442 | BH124: 57.19215582 | BI124: 57.19215582 | BJ124: 0 | BK124: 0 | BM124: 5.739482299 | BN124: -161.7087411 | BQ124: 16.62691632 | BT124: 1380.384 | BU124: 12.2584 | BV124: -258.41
A125: 45500 | B125: 45.5 | C125: 1.000147104 | D125: 0.01715141385 | F125: 0.2096545455 | G125: 0.2977453092 | H125: -2.843847341 | J125: 9 | M125: 0.1115405243 | N125: -1.570796325 | O125: 3.598103271 | P125: 1.289163822 | Q125: 2.459947209 | R125: 1.152162332 | S125: 0.9998448703 | T125: -0.01761440751 | U125: 0.9889519175 | V125: -0.1487849859 | X125: 5.307011322 | Y125: -121.6140445 | Z125: 58.38595546 | AC125: 1 | AD125: 3.456348818 | AE125: -6.719202698e-05 | AF125: 0.000448267572 | AG125: 7213.994335 | AH125: -3312.135418 | AJ125: 20000 | AK125: 352.3245891 | AL125: 1 | AM125: 2.247518692 | AN125: 3435.909263 | AO125: -7369.945706 | AQ125: 5.489883921 | AR125: -131.6391816 | AT125: -396402.8042 | AU125: -967827.5493 | AV125: -1.959533944 | AW125: -940613.9281 | AX125: -511510.879 | AY125: -2.643517855 | BA125: 0.9768014443 | BB125: -0.2038741386 | BC125: 0.6839839115 | BD125: -140.8106086 | BF125: 5.312339335 | BG125: -122.7683553 | BH125: 57.23164466 | BI125: 57.23164466 | BJ125: 0 | BK125: 0 | BM125: 5.516213473 | BN125: -161.9577468 | BQ125: 16.69808666 | BT125: 1412.538 | BU125: 12.0929 | BV125: -258.136
A126: 46000 | B126: 46 | C126: 1.000150354 | D126: 0.01733985336 | F126: 0.2044073359 | G126: 0.293355779 | H126: -2.848236871 | J126: 9 | M126: 0.1103281273 | N126: -1.570796325 | O126: 3.634604084 | P126: 1.292068152 | Q126: 2.482532725 | R126: 1.156206623 | S126: 0.999841443 | T126: -0.01780793173 | U126: 0.9887118869 | V126: -0.1503955727 | X126: 5.15687018 | Y126: -121.5599906 | Z126: 58.4400094 | AC126: 1 | AD126: 3.494330673 | AE126: -6.867688882e-05 | AF126: 0.0004531935893 | AG126: 7210.492913 | AH126: -3299.239564 | AJ126: 20000 | AK126: 356.1962879 | AL126: 1 | AM126: 2.2722167 | AN126: 3376.514803 | AO126: -7315.977035 | AQ126: 5.371388868 | AR126: -130.2132089 | AT126: -390874.2094 | AU126: -956622.9189 | AV126: -1.958692726 | AW126: -923887.1177 | AX126: -497565.4682 | AY126: -2.647577624 | BA126: 0.9847960658 | BB126: -0.1330739007 | BC126: 0.6888848979 | BD126: -140.5298027 | BF126: 5.163011708 | BG126: -122.7282543 | BH126: 57.27174574 | BI126: 57.27174574 | BJ126: 0 | BK126: 0 | BM126: 5.296085609 | BN126: -162.1984515 | BQ126: 16.7688869 | BT126: 1445.44 | BU126: 11.9189 | BV126: -257.929
A127: 46500 | B127: 46.5 | C127: 1.00015364 | D127: 0.01752829163 | F127: 0.1993614493 | G127: 0.2891040663 | H127: -2.852488584 | J127: 9 | M127: 0.1091418033 | N127: -1.570796325 | O127: 3.671134946 | P127: 1.294914706 | Q127: 2.505158114 | R127: 1.160177925 | S127: 0.9998379782 | T127: -0.01800145461 | U127: 0.9884694106 | V127: -0.1520053738 | X127: 5.009397814 | Y127: -121.5054876 | Z127: 58.49451242 | AC127: 1 | AD127: 3.532312528 | AE127: -7.017797866e-05 | AF127: 0.0004581196066 | AG127: 7206.956677 | AH127: -3286.848304 | AJ127: 20000 | AK127: 360.0679867 | AL127: 1 | AM127: 2.296914708 | AN127: 3318.618895 | AO127: -7262.516562 | AQ127: 5.256687175 | AR127: -128.8177476 | AT127: -385519.6783 | AU127: -945661.8593 | AV127: -1.957898785 | AW127: -907564.7141 | AX127: -484129.2085 | AY127: -2.651554098 | BA127: 0.9928133816 | BB127: -0.06264755691 | BC127: 0.6936553136 | BD127: -140.256478 | BF127: 5.016360677 | BG127: -122.6877381 | BH127: 57.31226195 | BI127: 57.31226195 | BJ127: 0 | BK127: 0 | BM127: 5.079008234 | BN127: -162.43126 | BQ127: 16.83931324 | BT127: 1479.108 | BU127: 11.7147 | BV127: -257.745
A128: 47000 | B128: 47 | C128: 1.000156962 | D128: 0.01771672866 | F128: 0.1945064742 | G128: 0.2849835642 | H128: -2.856609086 | J128: 9 | M128: 0.1079807203 | N128: -1.570796325 | O128: 3.707694969 | P128: 1.297705144 | Q128: 2.527822304 | R128: 1.164078075 | S128: 0.999834476 | T128: -0.01819497615 | U128: 0.9882244942 | V128: -0.1536143812 | X128: 4.864504292 | Y128: -121.4507131 | Z128: 58.54928685 | AC128: 1 | AD128: 3.570294383 | AE128: -7.16952965e-05 | AF128: 0.0004630456239 | AG128: 7203.385735 | AH128: -3274.944839 | AJ128: 20000 | AK128: 363.9396855 | AL128: 1 | AM128: 2.321612715 | AN128: 3262.175304 | AO128: -7209.567981 | AQ128: 5.145618723 | AR128: -127.4518302 | AT128: -380331.8369 | AU128: -934936.3128 | AV128: -1.957150759 | AW128: -891635.1913 | AX128: -471179.5066 | AY128: -2.655449417 | BA128: 1.000852505 | BB128: 0.007401606312 | BC128: 0.6982986583 | BD128: -139.990434 | BF128: 4.872296272 | BG128: -122.6469847 | BH128: 57.35301526 | BI128: 57.35301526 | BJ128: 0 | BK128: 0 | BM128: 4.864894666 | BN128: -162.6565507 | BQ128: 16.90936241 | BT128: 1513.561 | BU128: 11.5252 | BV128: -257.61
A129: 47500 | B129: 47.5 | C129: 1.000160319 | D129: 0.01790516442 | F129: 0.1898326724 | G129: 0.280988085 | H129: -2.860604565 | J129: 9 | M129: 0.1068440811 | N129: -1.570796325 | O129: 3.744283297 | P129: 1.300441068 | Q129: 2.550524261 | R129: 1.167908853 | S129: 0.9998309364 | T129: -0.01838849632 | U129: 0.9879771432 | V129: -0.1552225874 | X129: 4.722103738 | Y129: -121.3958277 | Z129: 58.60417232 | AC129: 1 | AD129: 3.608276238 | AE129: -7.322884234e-05 | AF129: 0.0004679716411 | AG129: 7199.780195 | AH129: -3263.513073 | AJ129: 20000 | AK129: 367.8113843 | AL129: 1 | AM129: 2.346310723 | AN129: 3207.139389 | AO129: -7157.134154 | AQ129: 5.038031752 | AR129: -126.1145298 | AT129: -375303.6956 | AU129: -924438.5768 | AV129: -1.956447336 | AW129: -876087.357 | AX129: -458694.9343 | AY129: -2.659265649 | BA129: 1.008912582 | BB129: 0.07707076588 | BC129: 0.7028183134 | BD129: -139.7314768 | BF129: 4.730732587 | BG129: -122.6061551 | BH129: 57.39384491 | BI129: 57.39384491 | BJ129: 0 | BK129: 0 | BM129: 4.653661821 | BN129: -162.8746783 | BQ129: 16.97903157 | BT129: 1548.817 | BU129: 11.3354 | BV129: -257.471
A130: 48000 | B130: 48 | C130: 1.000163711 | D130: 0.01809359892 | F130: 0.1853309272 | G130: 0.2771118276 | H130: -2.864480822 | J130: 9 | M130: 0.105731122 | N130: -1.570796325 | O130: 3.78089911 | P130: 1.30312402 | Q130: 2.573262987 | R130: 1.171671984 | S130: 0.9998273593 | T130: -0.01858201512 | U130: 0.9877273634 | V130: -0.1568299846 | X130: 4.58211412 | Y130: -121.3409759 | Z130: 58.65902408 | AC130: 1 | AD130: 3.646258093 | AE130: -7.477861618e-05 | AF130: 0.0004728976584 | AG130: 7196.140166 | AH130: -3252.537576 | AJ130: 20000 | AK130: 371.6830831 | AL130: 1 | AM130: 2.37100873 | AN130: 3153.468042 | AO130: -7105.217177 | AQ130: 4.933782337 | AR130: -124.804958 | AT130: -370428.6263 | AU130: -914161.2837 | AV130: -1.955787251 | AW130: -860910.3467 | AX130: -446655.1604 | AY130: -2.663004798 | BA130: 1.016992796 | BB130: 0.146357529 | BC130: 0.7072175476 | BD130: -139.4794193 | BF130: 4.591587552 | BG130: -122.5653942 | BH130: 57.43460577 | BI130: 57.43460577 | BJ130: 0 | BK130: 0 | BM130: 4.445230023 | BN130: -163.085975 | BQ130: 17.04831833 | BT130: 1584.893 | BU130: 11.1604 | BV130: -256.942
A131: 48500 | B131: 48.5 | C131: 1.00016714 | D131: 0.01828203213 | F131: 0.1809926965 | G131: 0.2733493477 | H131: -2.868243302 | J131: 9 | M131: 0.1046411104 | N131: -1.570796325 | O131: 3.817541617 | P131: 1.305755486 | Q131: 2.596037514 | R131: 1.17536914 | S131: 0.9998237449 | T131: -0.01877553253 | U131: 0.9874751604 | V131: -0.158436565 | X131: 4.444457038 | Y131: -121.2862884 | Z131: 58.71371163 | AC131: 1 | AD131: 3.684239948 | AE131: -7.634461802e-05 | AF131: 0.0004778236757 | AG131: 7192.465759 | AH131: -3242.003546 | AJ131: 20000 | AK131: 375.5547818 | AL131: 1 | AM131: 2.395706738 | AN131: 3101.119641 | AO131: -7053.818437 | AQ131: 4.832733911 | AR131: -123.5222624 | AT131: -365700.3396 | AU131: -904097.3833 | AV131: -1.955169281 | AW131: -846093.6165 | AX131: -435040.8871 | AY131: -2.666668802 | BA131: 1.025092356 | BB131: 0.2152599023 | BC131: 0.7114995203 | BD131: -139.2340803 | BF131: 4.454782735 | BG131: -122.5248331 | BH131: 57.47516695 | BI131: 57.47516695 | BJ131: 0 | BK131: 0 | BM131: 4.239522833 | BN131: -163.2907527 | BQ131: 17.1172207 | BT131: 1621.81 | BU131: 10.9787 | BV131: -256.753
A132: 49000 | B132: 49 | C132: 1.000170603 | D132: 0.01847046405 | F132: 0.1768099694 | G132: 0.2696955314 | H132: -2.871897119 | J132: 9 | M132: 0.103573344 | N132: -1.570796325 | O132: 3.854210056 | P132: 1.308336899 | Q132: 2.618846909 | R132: 1.179001942 | S132: 0.999820093 | T132: -0.01896904853 | U132: 0.98722054 | V132: -0.1600423211 | X132: 4.309057536 | Y132: -121.2318826 | Z132: 58.76811736 | AC132: 1 | AD132: 3.722221804 | AE132: -7.792684785e-05 | AF132: 0.000482749693 | AG132: 7188.757083 | AH132: -3231.896783 | AJ132: 20000 | AK132: 379.4264806 | AL132: 1 | AM132: 2.420404746 | AN132: 3050.053992 | AO132: -7002.938677 | AQ132: 4.734756819 | AR132: -122.2656253 | AT132: -361112.8645 | AU132: -894240.1255 | AV132: -1.954592249 | AW132: -831626.9363 | AX132: -423833.7914 | AY132: -2.670259536 | BA132: 1.033210505 | BB132: 0.2837762633 | BC132: 0.7156672868 | BD132: -138.9952849 | BF132: 4.320243145 | BG132: -122.4845895 | BH132: 57.51541047 | BI132: 57.51541047 | BJ132: 0 | BK132: 0 | BM132: 4.036466882 | BN132: -163.4893046 | BQ132: 17.18573706 | BT132: 1659.587 | BU132: 10.7578 | BV132: -256.857
A133: 49500 | B133: 49.5 | C133: 1.000174102 | D133: 0.01865889465 | F133: 0.1727752266 | G133: 0.2661455699 | H133: -2.87544708 | J133: 9 | M133: 0.1025271486 | N133: -1.570796325 | O133: 3.890903694 | P133: 1.31086964 | Q133: 2.641690268 | R133: 1.182571964 | S133: 0.9998164037 | T133: -0.0191625631 | U133: 0.986963508 | V133: -0.1616472452 | X133: 4.175843919 | Y133: -121.1778646 | Z133: 58.82213541 | AC133: 1 | AD133: 3.760203659 | AE133: -7.952530569e-05 | AF133: 0.0004876757102 | AG133: 7185.014252 | AH133: -3222.203652 | AJ133: 20000 | AK133: 383.2981794 | AL133: 1 | AM133: 2.445102753 | AN133: 3000.232286 | AO133: -6952.578043 | AQ133: 4.6397279 | AR133: -121.0342619 | AT133: -356660.5296 | AU133: -884583.0446 | AV133: -1.954055016 | AW133: -817500.3823 | AX133: -413016.4686 | AY133: -2.673778817 | BA133: 1.041346512 | BB133: 0.3519053334 | BC133: 0.7197238016 | BD133: -138.7628637 | BF133: 4.18789705 | BG133: -122.4447699 | BH133: 57.55523012 | BI133: 57.55523012 | BJ133: 0 | BK133: 0 | BM133: 3.835991717 | BN133: -163.6819062 | BQ133: 17.25386613 | BT133: 1698.244 | BU133: 10.5805 | BV133: -256.313
A134: 50000 | B134: 50 | C134: 1.000177637 | D134: 0.01884732392 | F134: 0.1688814049 | G134: 0.2626949374 | H134: -2.878897713 | J134: 9 | M134: 0.1015018771 | N134: -1.570796325 | O134: 3.927621825 | P134: 1.313355041 | Q134: 2.664566719 | R134: 1.186080729 | S134: 0.999812677 | T134: -0.01935607625 | U134: 0.9867040702 | V134: -0.1632513296 | X134: 4.044747578 | Y134: -121.1243294 | Z134: 58.87567061 | AC134: 1 | AD134: 3.798185514 | AE134: -8.113999152e-05 | AF134: 0.0004926017275 | AG134: 7181.237377 | AH134: -3212.911063 | AJ134: 20000 | AK134: 387.1698782 | AL134: 1 | AM134: 2.469800761 | AN134: 2951.617041 | AO134: -6902.736135 | AQ134: 4.547530103 | AR134: -119.8274182 | AT134: -352337.9444 | AU134: -875119.9442 | AV134: -1.953556482 | AW134: -803704.3298 | AX134: -402572.3808 | AY134: -2.677228405 | BA134: 1.049499673 | BB134: 0.4196461534 | BC134: 0.723671923 | BD134: -138.536653 | BF134: 4.057675807 | BG134: -122.4054697 | BH134: 57.59453034 | BI134: 57.59453034 | BJ134: 0 | BK134: 0 | BM134: 3.638029653 | BN134: -163.8688167 | BQ134: 17.32160695 | BT134: 1737.801 | BU134: 10.4643 | BV134: -256.379
A135: 50500 | B135: 50.5 | C135: 1.000181207 | D135: 0.01903575186 | F135: 0.1651218639 | G135: 0.2593393707 | H135: -2.882253279 | J135: 9 | M135: 0.100496908 | N135: -1.570796325 | O135: 3.964363768 | P135: 1.315794387 | Q135: 2.687475415 | R135: 1.189529717 | S135: 0.9998089129 | T135: -0.01954958794 | U135: 0.9864422326 | V135: -0.1648545669 | X135: 3.915702834 | Y135: -121.0713625 | Z135: 58.92863749 | AC135: 1 | AD135: 3.836167369 | AE135: -8.277090535e-05 | AF135: 0.0004975277448 | AG135: 7177.426572 | AH135: -3204.006434 | AJ135: 20000 | AK135: 391.041577 | AL135: 1 | AM135: 2.494498769 | AN135: 2904.172063 | AO135: -6853.412057 | AQ135: 4.458052126 | AR135: -118.6443703 | AT135: -348139.9839 | AU135: -865844.8834 | AV135: -1.953095587 | AW135: -790229.4454 | AX135: -392485.8082 | AY135: -2.680610004 | BA135: 1.057669311 | BB135: 0.4869980598 | BC135: 0.7275144163 | BD135: -138.3164944 | BF135: 3.929513699 | BG135: -122.3667747 | BH135: 57.6332253 | BI135: 57.6332253 | BJ135: 0 | BK135: 0 | BM135: 3.442515639 | BN135: -164.0502803 | BQ135: 17.38895886 | BT135: 1778.279 | BU135: 10.2137 | BV135: -256.015
A136: 51000 | B136: 51 | C136: 1.000184813 | D136: 0.01922417845 | F136: 0.1614903556 | G136: 0.2560748501 | H136: -2.8855178 | J136: 9 | M136: 0.0995116442 | N136: -1.570796325 | O136: 4.001128867 | P136: 1.318188918 | Q136: 2.71041554 | R136: 1.192920363 | S136: 0.9998051114 | T136: -0.01974309817 | U136: 0.9861780012 | V136: -0.1664569493 | X136: 3.788646781 | Y136: -121.0190406 | Z136: 58.98095944 | AC136: 1 | AD136: 3.874149224 | AE136: -8.441804717e-05 | AF136: 0.0005024537621 | AG136: 7173.581951 | AH136: -3195.477675 | AJ136: 20000 | AK136: 394.9132757 | AL136: 1 | AM136: 2.519196776 | AN136: 2857.862394 | AO136: -6804.604455 | AQ136: 4.371188082 | AR136: -117.4844221 | AT136: -344061.772 | AU136: -856752.1636 | AV136: -1.952671305 | AW136: -777066.6798 | AX136: -382741.8027 | AY136: -2.683925263 | BA136: 1.06585477 | BB136: 0.5539606638 | BC136: 0.7312539575 | BD136: -138.1022344 | BF136: 3.803347786 | BG136: -122.328762 | BH136: 57.67123803 | BI136: 57.67123803 | BJ136: 0 | BK136: 0 | BM136: 3.249387122 | BN136: -164.2265275 | BQ136: 17.45592146 | BT136: 1819.701 | BU136: 10.0452 | BV136: -255.833
A137: 51500 | B137: 51.5 | C137: =SQRT((A137/Fesr)^2+1) -> 1.000188454 | D137: =ATAN(A137/Fesr) -> 0.01941260367 | F137: =(Ro/(Ro+Rdcr))/SQRT((A137/(Q*Fo))^2+(1-(A137^2/Fo^2))^2) -> 0.1579809969 | G137: =-ATAN(A137*Fo/(Q*(Fo^2-A137^2))) -> 0.2528975827 | H137: =IF(G137>0,G137-Pi,G137) -> -2.888695067 | J137: =Vin/Vramp -> 9 | M137: =1/(2*Pi*_Rfb1*(Cc1ea_u+Cc2ea_u)*A137) -> 0.09854551174 | N137: =-Pi/2 -> -1.570796325 | O137: =SQRT(1+(A137/Fz1_u)^2) -> 4.03791649 | P137: =ATAN2(Fz1_u,A137) -> 1.320539832 | Q137: =SQRT(1+(A137/Fz2_u)^2) -> 2.733386301 | R137: =ATAN2(Fz2_u,A137) -> 1.196254057 | S137: =1/SQRT(1+(A137/Fp1_u)^2) -> 0.9998012724 | T137: =-ATAN2(Fp1_u,A137) -> -0.01993660692 | U137: =1/SQRT(1+(A137/Fp2_u)^2) -> 0.9859113818 | V137: =-ATAN2(Fp2_u,A137) -> -0.1680584695 | X137: 3.663519147 | Y137: =(180/Pi)*(D137+H137+N137+P137+R137+T137+V137) -> -120.9674321 | Z137: 59.0325679 | AC137: 1 | AD137: =Rcea1_u*Cc1ea_u*A137*2*Pi -> 3.912131079 | AE137: =-Rcea1_u*Cc1ea_u*Cc2ea_u*(A137*2*Pi)^2 -> -8.6081417e-05 | AF137: =(Cc2ea_u+Cc1ea_u)*A137*2*Pi -> 0.0005073797793 | AG137: 7169.70363 | AH137: -3187.31316 | AJ137: =_Rfb1 -> 20000 | AK137: =_Rfb1*Rcea2_u*Cc3ea_u*A137*2*Pi -> 398.7849745 | AL137: 1 | AM137: =(_Rfb1+Rcea2_u)*Cc3ea_u*A137*2*Pi -> 2.543894784 | AN137: 2812.654272 | AO137: -6756.311557 | AQ137: =Eadcg/(1+(Eadcg*A137/GBP)^2) -> 4.286837182 | AR137: =-(A137*Eadcg*Eadcg/GBP)/(1+(Eadcg*A137/GBP)^2) -> -116.3469045 | AT137: -340098.6679 | AU137: -847836.3165 | AV137: -1.952282646 | AW137: -764207.2599 | AX137: -373326.1456 | AY137: -2.687175783 | BA137: =SQRT(AT137^2+AU137^2)/SQRT(AW137^2+AX137^2) -> 1.074055421 | BB137: 0.6205338307 | BC137: 0.734893137 | BD137: =BC137*180/Pi-180 -> -137.8937248 | BF137: =20*LOG(BA137*J137*F137*C137) -> 3.679117759 | BG137: =(180/Pi)*(D137+H137+BC137) -> -122.2915004 | BH137: 57.70849961 | BI137: 57.70849961 | BJ137: =SUM((BF138<0)*(BF137>0))*A137 -> 0 | BK137: 0 | BM137: 3.058583928 | BN137: =(H137+D137)*180/Pi -> -164.3977756 | BQ137: 17.52249463 | BT137: 1862.087 | BU137: 9.87672 | BV137: -255.47
A138: 52000 | B138: =A138/1000 -> 52 | C138: 1.000192131 | D138: 0.01960102751 | F138: 0.1545882442 | G138: 0.2498039862 | H138: -2.891788664 | J138: 9 | M138: 0.09759795874 | N138: -1.570796325 | O138: 4.074726027 | P138: 1.322848284 | Q138: 2.756386934 | R138: 1.199532152 | S138: 0.9997973961 | T138: -0.02013011417 | U138: 0.9856423806 | V138: -0.1696591198 | X138: =20*LOG(C138*J138*O138*Q138*F138*M138*S138*U138) -> 3.540262157 | Y138: -120.9165984 | Z138: =Y138+180 -> 59.08340165 | AC138: 1 | AD138: 3.950112934 | AE138: -8.776101482e-05 | AF138: 0.0005123057966 | AG138: =AC138*AE138/(AE138^2+AF138^2)+AD138*AF138/(AE138^2+AF138^2) -> 7165.791725 | AH138: =AD138*AE138/(AE138^2+AF138^2)-AC138*AF138/(AE138^2+AF138^2) -> -3179.501705 | AJ138: 20000 | AK138: 402.6566733 | AL138: 1 | AM138: 2.568592791 | AN138: =AJ138*AL138/(AL138^2+AM138^2)+AK138*AM138/(AL138^2+AM138^2) -> 2768.515084 | AO138: =AK138*AL138/(AL138^2+AM138^2)-AJ138*AM138/(AL138^2+AM138^2) -> -6708.531214 | AQ138: 4.20490345 | AR138: -115.2311742 | AT138: -336246.2523 | AU138: -839092.0919 | AV138: =ATAN2(AT138,AU138) -> -1.95192865 | AW138: =AG138-AH138*AO138/_Rfb2+AG138*AN138/_Rfb2+AN138-AO138*AR138+AQ138*AN138 -> -751642.6812 | AX138: =AH138+AH138*AN138/_Rfb2+AG138*AO138/_Rfb2+AO138+AO138*AQ138+AN138*AR138 -> -364225.3072 | AY138: -2.690363113 | BA138: 1.082270655 | BB138: =20*LOG(BA138) -> 0.6867176612 | BC138: =AV138-AY138 -> 0.7384344624 | BD138: -137.6908218 | BF138: 3.556765806 | BG138: -122.2550515 | BH138: =IF(BG138>180,BG138-180,BG138+180) -> 57.74494847 | BI138: =IF(BH138>180,BH138-360,BH138) -> 57.74494847 | BJ138: 0 | BK138: =IF(BJ138>0,BI138,0) -> 0 | BM138: =20*LOG(J138*F138*C138) -> 2.870048144 | BN138: -164.5642297 | BQ138: =20*LOG(BA138*7) -> 17.58867846 | BT138: 1905.461 | BU138: 9.71342 | BV138: -255.059
A139: 52500 | B139: 52.5 | C139: 1.000195843 | D139: 0.01978944996 | F139: 0.1513068695 | G139: 0.2467906746 | H139: -2.894801975 | J139: 9 | M139: 0.09666845437 | N139: -1.570796325 | O139: 4.111556889 | P139: 1.32511539 | Q139: 2.779416696 | R139: 1.202755958 | S139: 0.9997934823 | T139: -0.02032361992 | U139: 0.9853710035 | V139: -0.1712588928 | X139: 3.418820408 | Y139: -120.8665938 | Z139: 59.13340617 | AC139: 1 | AD139: 3.98809479 | AE139: -8.945684065e-05 | AF139: 0.0005172318139 | AG139: 7161.846352 | AH139: -3172.032547 | AJ139: 20000 | AK139: 406.5283721 | AL139: 1 | AM139: 2.593290799 | AN139: 2725.413325 | AO139: -6661.260928 | AQ139: 4.125295445 | AR139: -114.1366117 | AT139: -332500.315 | AU139: -830514.4476 | AV139: -1.951608393 | AW139: -739364.7003 | AX139: -355426.4087 | AY139: =ATAN2(AW139,AX139) -> -2.693488755 | BA139: 1.090499884 | BB139: 0.7525124741 | BC139: 0.7418803619 | BD139: -137.4933863 | BF139: 3.436236487 | BG139: -122.2194703 | BH139: 57.78052975 | BI139: 57.78052975 | BJ139: 0 | BK139: 0 | BM139: 2.683724013 | BN139: -164.7260839 | BQ139: 17.65447327 | BT139: 1949.845 | BU139: 9.52685 | BV139: -254.971
A140: 53000 | B140: 53 | C140: 1.000199591 | D140: 0.019977871 | F140: 0.1481319395 | G140: 0.2438544449 | H140: -2.897738205 | J140: 9 | M140: 0.09575648782 | N140: -1.570796325 | O140: 4.148408508 | P140: 1.327342229 | Q140: 2.802474869 | R140: 1.205926746 | S140: 0.9997895312 | T140: -0.02051712415 | U140: 0.9850972569 | V140: -0.172857781 | X140: 3.299140749 | Y140: -120.8174669 | Z140: 59.18253305 | AC140: 1 | AD140: 4.026076645 | AE140: -9.116889447e-05 | AF140: 0.0005221578312 | AG140: 7157.867629 | AH140: -3164.895324 | AJ140: 20000 | AK140: 410.4000709 | AL140: 1 | AM140: 2.617988807 | AN140: 2683.318562 | AO140: -6614.49789 | AQ140: 4.047926005 | AR140: -113.0626212 | AT140: -328856.8428 | AU140: -822098.5387 | AV140: -1.951320978 | AW140: -727365.3278 | AX140: -346917.1869 | AY140: -2.696554166 | BA140: 1.09874254 | BB140: 0.8179187895 | BC140: 0.7452331875 | BD140: -137.3012836 | BF140: 3.317476614 | BG140: -122.1848053 | BH140: 57.81519467 | BI140: 57.81519467 | BJ140: 0 | BK140: 0 | BM140: 2.499557825 | BN140: -164.8835218 | BQ140: 17.71987959 | BT140: 1995.262 | BU140: 9.33494 | BV140: -254.804
A141: 53500 | B141: 53.5 | C141: 1.000203374 | D141: 0.02016629063 | F141: 0.1450587953 | G141: 0.2409922651 | H141: -2.900600385 | J141: 9 | M141: 0.09486156737 | N141: -1.570796325 | O141: 4.185280336 | P141: 1.329529841 | Q141: 2.825560758 | R141: 1.209045752 | S141: 0.9997855426 | T141: -0.02071062684 | U141: 0.9848211467 | V141: -0.174455777 | X141: 3.181172168 | Y141: -120.7692606 | Z141: 59.23073944 | AC141: 1 | AD141: 4.0640585 | AE141: -9.289717629e-05 | AF141: 0.0005270838484 | AG141: 7153.855674 | AH141: -3158.08006 | AJ141: 20000 | AK141: 414.2717697 | AL141: 1 | AM141: 2.642686814 | AN141: 2642.20139 | AO141: -6568.239005 | AQ141: 3.972712015 | AR141: -112.0086289 | AT141: -325312.0091 | AU141: -813839.7081 | AV141: -1.95106554 | AW141: -715636.8202 | AX141: -338685.9608 | AY141: -2.699560758 | BA141: 1.106998075 | BB141: 0.8829373143 | BC141: 0.7484952174 | BD141: -137.114383 | BF141: 3.200435137 | BG141: -122.1511 | BH141: 57.84890004 | BI141: 57.84890004 | BJ141: 0 | BK141: 0 | BM141: 2.317497822 | BN141: -165.036717 | BQ141: 17.78489811 | BT141: 2041.738 | BU141: 9.08847 | BV141: -254.411
A142: 54000 | B142: 54 | C142: 1.000207193 | D142: 0.02035470882 | F142: 0.1420830341 | G142: 0.2382012624 | H142: -2.903391388 | J142: 9 | M142: 0.09398321953 | N142: -1.570796325 | O142: 4.222171843 | P142: 1.331679235 | Q142: 2.848673689 | R142: 1.212114175 | S142: 0.9997815167 | T142: -0.02090412798 | U142: 0.9845426793 | V142: -0.1760528734 | X142: 3.064865685 | Y142: -120.7220124 | Z142: 59.27798755 | AC142: 1 | AD142: 4.102040355 | AE142: -9.464168611e-05 | AF142: 0.0005320098657 | AG142: 7149.810606 | AH142: -3151.57714 | AJ142: 20000 | AK142: 418.1434684 | AL142: 1 | AM142: 2.667384822 | AN142: 2602.033396 | AO142: -6522.480919 | AQ142: 3.89957418 | AR142: -110.974082 | AT142: -321862.1632 | AU142: -805733.4774 | AV142: -1.95084124 | AW142: -704171.6731 | AX142: -330721.6003 | AY142: -2.702509899 | BA142: 1.115265959 | BB142: 0.9475689273 | BC142: 0.7516686589 | BD142: -136.9325582 | BF142: 3.085063038 | BG142: -122.1183923 | BH142: 57.88160773 | BI142: 57.88160773 | BJ142: 0 | BK142: 0 | BM142: 2.137494111 | BN142: -165.1858341 | BQ142: 17.84952973 | BT142: 2089.296 | BU142: 8.96986 | BV142: -254.113
A143: 54500 | B143: 54.5 | C143: 1.000211047 | D143: 0.02054312557 | F143: 0.1392004926 | G143: 0.2354787133 | H143: -2.906113937 | J143: 9 | M143: 0.09312098815 | N143: -1.570796325 | O143: 4.259082519 | P143: 1.333791384 | Q143: 2.871813009 | R143: 1.215133179 | S143: 0.9997774533 | T143: -0.02109762755 | U143: 0.9842618609 | V143: -0.1776490627 | X143: 2.950174254 | Y143: -120.6757557 | Z143: 59.32424426 | AC143: 1 | AD143: 4.14002221 | AE143: -9.640242392e-05 | AF143: 0.000536935883 | AG143: 7145.732546 | AH143: -3145.3773 | AJ143: 20000 | AK143: 422.0151672 | AL143: 1 | AM143: 2.692082829 | AN143: 2562.787125 | AO143: -6477.220048 | AQ143: 3.828436814 | AR143: -109.958448 | AT143: -318503.8207 | AU143: -797775.5386 | AV143: -1.950647268 | AW143: -692962.6141 | AX143: -323013.4966 | AY143: -2.705402919 | BA143: 1.123545678 | BB143: 1.011814666 | BC143: 0.7547556514 | BD143: -136.7556866 | BF143: 2.971313235 | BG143: -122.0867157 | BH143: 57.91328428 | BI143: 57.91328428 | BJ143: 0 | BK143: 0 | BM143: 1.959498568 | BN143: -165.3310292 | BQ143: 17.91377547 | BT143: 2137.962 | BU143: 8.68736 | BV143: -254.34
A144: 55000 | B144: 55 | C144: 1.000214937 | D144: 0.02073154086 | F144: 0.136407231 | G144: 0.2328220337 | H144: -2.908770616 | J144: 9 | M144: 0.09227443372 | N144: -1.570796325 | O144: 4.296011868 | P144: 1.335867229 | Q144: 2.894978086 | R144: 1.218103895 | S144: 0.9997733525 | T144: -0.02129112554 | U144: 0.9839786978 | V144: -0.1792443378 | X144: 2.83705267 | Y144: -120.6305194 | Z144: 59.36948064 | AC144: 1 | AD144: 4.178004065 | AE144: -9.817938974e-05 | AF144: 0.0005418619003 | AG144: 7141.621614 | AH144: -3139.471609 | AJ144: 20000 | AK144: 425.886866 | AL144: 1 | AM144: 2.716780837 | AN144: 2524.436043 | AO144: -6432.452599 | AQ144: 3.759227651 | AR144: -108.9612135 | AT144: -315233.6547 | AU144: -789961.7456 | AV144: -1.950482837 | AW144: -682002.5953 | AX144: -315551.5347 | AY144: -2.708241105 | BA144: 1.131836736 | BB144: 1.075675716 | BC144: 0.7577582682 | BD144: -136.5836493 | BF144: 2.859140481 | BG144: -122.0560996 | BH144: 57.94390043 | BI144: 57.94390043 | BJ144: 0 | BK144: 0 | BM144: 1.783464766 | BN144: -165.4724503 | BQ144: 17.97763652 | BT144: 2187.762 | BU144: 8.53088 | BV144: -253.785
A145: 55500 | B145: 55.5 | C145: 1.000218862 | D145: 0.02091995468 | F145: 0.133699519 | G145: 0.2302287703 | H145: -2.91136388 | J145: 9 | M145: 0.09144313251 | N145: -1.570796325 | O145: 4.332959414 | P145: 1.337907681 | Q145: 2.918168305 | R145: 1.221027421 | S145: 0.9997692144 | T145: -0.02148462194 | U145: 0.9836931963 | V145: -0.1808386911 | X145: 2.725457474 | Y145: -120.5863284 | Z145: 59.41367164 | AC145: 1 | AD145: 4.21598592 | AE145: -9.997258355e-05 | AF145: 0.0005467879175 | AG145: 7137.477931 | AH145: -3133.851451 | AJ145: 20000 | AK145: 429.7585648 | AL145: 1 | AM145: 2.741478845 | AN145: 2486.954502 | AO145: -6388.174591 | AQ145: 3.691877655 | AR145: -107.9818836 | AT145: -312048.4873 | AU145: -782288.1072 | AV145: -1.950347188 | AW145: -671284.7868 | AX145: -308326.0668 | AY145: -2.711025708 | BA145: 1.140138654 | BB145: 1.139153395 | BC145: 0.7606785197 | BD145: -136.4163312 | BF145: 2.748501282 | BG145: -122.0265692 | BH145: 57.97343078 | BI145: 57.97343078 | BJ145: 0 | BK145: 0 | BM145: 1.609347887 | BN145: -165.610238 | BQ145: 18.04111419 | BT145: 2238.721 | BU145: 8.34969 | BV145: -253.783
A146: 56000 | B146: 56 | C146: 1.000222823 | D146: 0.02110836701 | F146: 0.1310738221 | G146: 0.2276965923 | H146: -2.913896058 | J146: 9 | M146: 0.09062667597 | N146: -1.570796325 | O146: 4.369924694 | P146: 1.339913621 | Q146: 2.941383072 | R146: 1.223904823 | S146: 0.9997650388 | T146: -0.02167811673 | U146: 0.9834053628 | V146: -0.1824321155 | X146: 2.615346876 | Y146: -120.5432043 | Z146: 59.45679572 | AC146: 1 | AD146: 4.253967776 | AE146: -0.0001017820054 | AF146: 0.0005517139348 | AG146: 7133.30162 | AH146: -3128.508516 | AJ146: 20000 | AK146: 433.6302636 | AL146: 1 | AM146: 2.766176852 | AN146: 2450.317713 | AO146: -6344.381876 | AQ146: 3.626320852 | AR146: -107.019981 | AT146: -308945.2816 | AU146: -774750.7795 | AV146: -1.950239586 | AW146: -660802.5699 | AX146: -301327.8885 | AY146: -2.713757941 | BA146: 1.148450966 | BB146: 1.202249147 | BC146: 0.763518355 | BD146: -136.2536206 | BF146: 2.639353807 | BG146: -121.9981465 | BH146: 58.00185348 | BI146: 58.00185348 | BJ146: 0 | BK146: 0 | BM146: 1.43710466 | BN146: -165.7445259 | BQ146: 18.10420995 | BT146: 2290.868 | BU146: 8.28183 | BV146: -253.62
A147: 56500 | B147: 56.5 | C147: 1.000226819 | D147: 0.02129677785 | F147: 0.1285267896 | G147: 0.2252232834 | H147: -2.916369367 | J147: 9 | M147: 0.08982466999 | N147: -1.570796325 | O147: 4.406907264 | P147: 1.341885901 | Q147: 2.964621811 | R147: 1.226737139 | S147: 0.9997608259 | T147: -0.0218716099 | U147: 0.9831152038 | V147: -0.1840246036 | X147: 2.506680672 | Y147: -120.5011654 | Z147: 59.49883456 | AC147: 1 | AD147: 4.291949631 | AE147: -0.0001036076552 | AF147: 0.0005566399521 | AG147: 7129.092803 | AH147: -3123.434785 | AJ147: 20000 | AK147: 437.5019624 | AL147: 1 | AM147: 2.79087486 | AN147: 2414.501709 | AO147: -6301.070157 | AQ147: 3.562494169 | AR147: -106.0750451 | AT147: -305921.1341 | AU147: -767346.059 | AV147: -1.950159316 | AW147: -650549.5303 | AX147: -294548.2149 | AY147: -2.716438981 | BA147: 1.156773222 | BB147: 1.264964529 | BC147: 0.7662796647 | BD147: -136.0954092 | BF147: 2.531657813 | BG147: -121.9708501 | BH147: 58.02914986 | BI147: 58.02914986 | BJ147: 0 | BK147: 0 | BM147: 1.266693284 | BN147: -165.8754409 | BQ147: 18.16692533 | BT147: 2344.229 | BU147: 8.06623 | BV147: -253.171
A148: 57000 | B148: 57 | C148: 1.000230851 | D148: 0.02148518717 | F148: 0.1260552427 | G148: 0.2228067357 | H148: -2.918785914 | J148: 9 | M148: 0.08903673429 | N148: -1.570796325 | O148: 4.44390669 | P148: 1.343825347 | Q148: 2.987883962 | R148: 1.229525374 | S148: 0.9997565755 | T148: -0.02206510142 | U148: 0.9828227257 | V148: -0.1856161482 | X148: 2.399420169 | Y148: -120.4602272 | Z148: 59.53977278 | AC148: 1 | AD148: 4.329931486 | AE148: -0.000105449533 | AF148: 0.0005615659694 | AG148: 7124.851605 | AH148: -3118.622512 | AJ148: 20000 | AK148: 441.3736611 | AL148: 1 | AM148: 2.815572867 | AN148: 2379.483318 | AO148: -6258.235007 | AQ148: 3.500337277 | AR148: -105.1466315 | AT148: -302973.2683 | AU148: -760070.3766 | AV148: -1.950105688 | AW148: -640519.4517 | AX148: -287978.6595 | AY148: -2.719069971 | BA148: 1.165104985 | BB148: 1.327301205 | BC148: 0.7689642827 | BD148: -135.941592 | BF148: 2.425374568 | BG148: -121.9446958 | BH148: 58.05530421 | BI148: 58.05530421 | BJ148: 0 | BK148: 0 | BM148: 1.098073363 | BN148: -166.0031038 | BQ148: 18.22926201 | BT148: 2398.833 | BU148: 7.81402 | BV148: -252.658
A149: 57500 | B149: 57.5 | C149: 1.000234918 | D149: 0.02167359496 | F149: 0.1236561644 | G149: 0.2204449422 | H149: -2.921147708 | J149: 9 | M149: 0.08826250182 | N149: -1.570796325 | O149: 4.480922556 | P149: 1.345732757 | Q149: 3.011168983 | R149: 1.232270509 | S149: 0.9997522878 | T149: -0.0222585913 | U149: 0.9825279351 | V149: -0.187206742 | X149: 2.293528116 | Y149: -120.4204024 | Z149: 59.57959764 | AC149: 1 | AD149: 4.367913341 | AE149: -0.0001073076388 | AF149: 0.0005664919866 | AG149: 7120.57815 | AH149: -3114.064223 | AJ149: 20000 | AK149: 445.2453599 | AL149: 1 | AM149: 2.840270875 | AN149: 2345.240132 | AO149: -6215.871882 | AQ149: 3.439792458 | AR149: -104.2343109 | AT149: -300099.0275 | AU149: -752920.2916 | AV149: -1.950078033 | AW149: -630706.3097 | AX149: -281611.2132 | AY149: -2.721652021 | BA149: 1.173445832 | BB149: 1.389260933 | BC149: 0.7715739881 | BD149: -135.7920668 | BF149: 2.320466781 | BG149: -121.9196965 | BH149: 58.08030349 | BI149: 58.08030349 | BJ149: 0 | BK149: 0 | BM149: 0.9312058487 | BN149: -166.1276297 | BQ149: 18.29122173 | BT149: 2454.709 | BU149: 7.64239 | BV149: -251.974
A150: 58000 | B150: 58 | C150: 1.000239021 | D150: 0.02186200122 | F150: 0.1213266891 | G150: 0.2181359914 | H150: -2.923456659 | J150: 9 | M150: 0.08750161818 | N150: -1.570796325 | O150: 4.517954457 | P150: 1.347608905 | Q150: 3.034476347 | R150: 1.234973493 | S150: 0.9997479627 | T150: -0.02245207951 | U150: 0.9822308385 | V150: -0.188796378 | X150: 2.188968637 | Y150: -120.3817011 | Z150: 59.61829887 | AC150: 1 | AD150: 4.405895196 | AE150: -0.0001091819726 | AF150: 0.0005714180039 | AG150: 7116.272562 | AH150: -3109.752692 | AJ150: 20000 | AK150: 449.1170587 | AL150: 1 | AM150: 2.864968883 | AN150: 2311.750482 | AO150: -6173.976138 | AQ150: 3.380804461 | AR150: -103.3376692 | AT150: =-AR150*AH150+AG150*AQ150 -> -297295.8688 | AU150: =AQ150*AH150+AG150*AR150 -> -745892.4855 | AV150: -1.950075702 | AW150: -621104.2657 | AX150: -275438.2251 | AY150: -2.724186209 | BA150: 1.181795353 | BB150: 1.450845558 | BC150: 0.7741105076 | BD150: -135.646735 | BF150: 2.216898536 | BG150: -121.8958629 | BH150: 58.1041371 | BI150: 58.1041371 | BJ150: 0 | BK150: 0 | BM150: 0.7660529777 | BN150: -166.2491279 | BQ150: 18.35280636 | BT150: 2511.886 | BU150: 7.45716 | BV150: -252.252
A151: 58500 | B151: 58.5 | C151: 1.000243159 | D151: 0.02205040592 | F151: 0.119064094 | G151: 0.2158780613 | H151: -2.925714589 | J151: 9 | M151: 0.0867537411 | N151: -1.570796325 | O151: 4.555002003 | P151: 1.349454541 | Q151: 3.057805543 | R151: 1.237635253 | S151: 0.9997436001 | T151: -0.02264556603 | U151: 0.9819314424 | V151: -0.1903850489 | X151: 2.085707163 | Y151: -120.3441316 | Z151: 59.65586843 | AC151: 1 | AD151: 4.443877051 | AE151: -0.0001110725344 | AF151: 0.0005763440212 | AG151: 7111.934968 | AH151: -3105.68094 | AJ151: 20000 | AK151: 452.9887575 | AL151: 1 | AM151: 2.88966689 | AN151: 2278.993411 | AO151: -6132.543045 | AQ151: 3.323320385 | AR151: -102.4563058 | AT151: -294561.3576 | AU151: -738983.7567 | AV151: -1.950098065 | AW151: -611707.6605 | AX151: -269452.3843 | AY151: -2.726673582 | BA151: 1.19015315 | BB151: 1.512057008 | BC151: 0.7765755171 | BD151: -135.5055003 | BF151: 2.114635225 | BG151: -121.8732033 | BH151: 58.12679666 | BI151: 58.12679666 | BJ151: 0 | BK151: 0 | BM151: 0.6025782171 | BN151: -166.367703 | BQ151: 18.41401781 | BT151: 2570.396 | BU151: 7.31271 | BV151: -251.702
A152: 59000 | B152: 59 | C152: 1.000247333 | D152: 0.02223880906 | F152: 0.1168657899 | G152: 0.2136694143 | H152: -2.927923236 | J152: 9 | M152: 0.0860185399 | N152: -1.570796325 | O152: 4.592064814 | P152: 1.35127039 | Q152: 3.081156075 | R152: 1.240256686 | S152: 0.9997392002 | T152: -0.02283905087 | U152: 0.9816297536 | V152: -0.1919727476 | X152: 1.983710381 | Y152: -120.3076997 | Z152: 59.69230027 | AC152: 1 | AD152: 4.481858906 | AE152: -0.0001129793242 | AF152: 0.0005812700385 | AG152: 7107.565495 | AH152: -3101.842219 | AJ152: 20000 | AK152: 456.8604563 | AL152: 1 | AM152: 2.914364898 | AN152: 2246.948643 | AO152: -6091.567796 | AQ152: 3.267289553 | AR152: -101.5898341 | AT152: -291893.1619 | AU152: -732191.0159 | AV152: -1.950144513 | AW152: -602511.009 | AX152: -263646.7028 | AY152: -2.729115156 | BA152: 1.198518837 | BB152: 1.572897281 | BC152: 0.7789706432 | BD152: -135.3682697 | BF152: 2.013643493 | BG152: -121.8517242 | BH152: 58.14827584 | BI152: 58.14827584 | BJ152: 0 | BK152: 0 | BM152: 0.4407462116 | BN152: -166.4834544 | BQ152: 18.47485808 | BT152: 2630.268 | BU152: 7.13504 | BV152: -251.401
A153: 59500 | B153: 59.5 | C153: 1.000251543 | D153: 0.02242721062 | F153: 0.1147293142 | G153: 0.2115083925 | H153: -2.930084257 | J153: 9 | M153: 0.08529569503 | N153: -1.570796325 | O153: 4.629142524 | P153: 1.353057157 | Q153: 3.104527462 | R153: 1.242838668 | S153: 0.9997347629 | T153: -0.02303253399 | U153: 0.9813257786 | V153: -0.193559467 | X153: 1.88294617 | Y153: -120.2724098 | Z153: 59.72759022 | AC153: 1 | AD153: 4.519840761 | AE153: -0.000114902342 | AF153: 0.0005861960557 | AG153: 7103.164269 | AH153: -3098.230007 | AJ153: 20000 | AK153: 460.732155 | AL153: 1 | AM153: 2.939062905 | AN153: 2215.596565 | AO153: -6051.045523 | AQ153: 3.212663406 | AR153: -100.7378801 | AT153: -289289.047 | AU153: -725511.2804 | AV153: -1.950214454 | AW153: -593508.9944 | AX153: -258014.4989 | AY153: -2.73151192 | BA153: 1.206892038 | BB153: 1.633368444 | BC153: 0.7812974656 | BD153: -135.2349526 | BF153: 1.913891178 | BG153: -121.8314299 | BH153: 58.16857013 | BI153: 58.16857013 | BJ153: 0 | BK153: 0 | BM153: 0.2805227341 | BN153: -166.5964772 | BQ153: 18.53532924 | BT153: 2691.535 | BU153: 6.88093 | BV153: -251.244
A154: 60000 | B154: 60 | C154: 1.000255787 | D154: 0.02261561059 | F154: 0.1126523224 | G154: 0.2093934129 | H154: -2.932199237 | J154: 9 | M154: 0.08458489757 | N154: -1.570796325 | O154: 4.666234778 | P154: 1.354815523 | Q154: 3.127919236 | R154: 1.245382049 | S154: 0.9997302882 | T154: -0.02322601538 | U154: 0.9810195243 | V154: -0.1951452 | X154: 1.78338355 | Y154: -120.2382642 | Z154: 59.76173579 | AC154: 1 | AD154: 4.557822617 | AE154: -0.0001168415878 | AF154: 0.000591122073 | AG154: 7098.731418 | AH154: -3094.837993 | AJ154: 20000 | AK154: 464.6038538 | AL154: 1 | AM154: 2.963760913 | AN154: 2184.918199 | AO154: -6010.971304 | AQ154: 3.159395394 | AR154: -99.90008237 | AT154: -286746.8711 | AU154: -718941.6703 | AV154: -1.950307315 | AW154: -584696.4627 | AX154: -252549.3823 | AY154: -2.733864833 | BA154: 1.21527239 | BB154: 1.693472622 | BC154: 0.7835575183 | BD154: -135.1054611 | BF154: 1.815347259 | BG154: -121.8123233 | BH154: 58.18767673 | BI154: 58.18767673 | BJ154: 0 | BK154: 0 | BM154: 0.1218746376 | BN154: -166.7068621 | BQ154: 18.59543342 | BT154: 2754.229 | BU154: 6.70094 | BV154: -251.051
A155: 60500 | B155: 60.5 | C155: 1.000260068 | D155: 0.02280400895 | F155: 0.1106325824 | G155: 0.2073229633 | H155: -2.934269687 | J155: 9 | M155: 0.08388584883 | N155: -1.570796325 | O155: 4.703341232 | P155: 1.356546149 | Q155: 3.151330944 | R155: 1.247887655 | S155: 0.9997257762 | T155: -0.02341949504 | U155: 0.9807109973 | V155: -0.1967299396 | X155: 1.68499263 | Y155: -120.205264 | Z155: 59.79473599 | AC155: 1 | AD155: 4.595804472 | AE155: -0.0001187970616 | AF155: 0.0005960480903 | AG155: 7094.267071 | AH155: -3091.660073 | AJ155: 20000 | AK155: 468.4755526 | AL155: 1 | AM155: 2.988458921 | AN155: 2154.895182 | AO155: -5971.340176 | AQ155: 3.107440882 | AR155: -99.07609137 | AT155: -284264.5803 | AU155: -712479.4034 | AV155: -1.950422537 | AW155: -576068.4173 | AX155: -247245.2394 | AY155: -2.736174828 | BA155: 1.223659538 | BB155: 1.753211995 | BC155: 0.7857522911 | BD155: -134.9797099 | BF155: 1.717981806 | BG155: -121.7944056 | BH155: 58.20559435 | BI155: 58.20559435 | BJ155: 0 | BK155: 0 | BM155: -0.03523018917 | BN155: -166.8146957 | BQ155: 18.6551728 | BT155: 2818.383 | BU155: 6.53562 | BV155: -250.48
A156: 61000 | B156: 61 | C156: 1.000264384 | D156: 0.02299240569 | F156: 0.108667967 | G156: 0.2052955984 | H156: -2.936297052 | J156: 9 | M156: 0.08319825991 | N156: -1.570796325 | O156: 4.740461552 | P156: 1.358249677 | Q156: 3.174762145 | R156: 1.250356292 | S156: 0.9997212267 | T156: -0.02361297294 | U156: 0.9804002045 | V156: -0.1983136787 | X156: 1.587744563 | Y156: -120.1734087 | Z156: 59.82659125 | AC156: 1 | AD156: 4.633786327 | AE156: -0.0001207687634 | AF156: 0.0006009741076 | AG156: 7089.771357 | AH156: -3088.690338 | AJ156: 20000 | AK156: 472.3472514 | AL156: 1 | AM156: 3.013156928 | AN156: 2125.509738 | AO156: -5932.147142 | AQ156: 3.05675705 | AR156: -98.26556889 | AT156: -281840.2046 | AU156: -706121.7917 | AV156: -1.950559581 | AW156: -567620.0141 | AX156: -242096.2197 | AY156: -2.738442813 | BA156: 1.232053139 | BB156: 1.812588794 | BC156: 0.7878832315 | BD156: -134.857616 | BF156: 1.621765929 | BG156: -121.7776769 | BH156: 58.22232312 | BI156: 58.22232312 | BJ156: 0 | BK156: 0 | BM156: -0.190822865 | BN156: -166.9200608 | BQ156: 18.71454959 | BT156: 2884.032 | BU156: 6.32652 | BV156: -250.202
A157: 61500 | B157: 61.5 | C157: 1.000268735 | D157: 0.0231808008 | F157: 0.1067564487 | G157: 0.2033099358 | H157: -2.938282714 | J157: 9 | M157: 0.08252185129 | N157: -1.570796325 | O157: 4.777595415 | P157: 1.359926729 | Q157: 3.198212409 | R157: 1.252788741 | S157: 0.9997166399 | T157: -0.02380644908 | U157: 0.9800871527 | V157: -0.1998964104 | X157: 1.491611498 | Y157: -120.1426967 | Z157: 59.85730326 | AC157: 1 | AD157: 4.671768182 | AE157: -0.0001227566932 | AF157: 0.0006059001248 | AG157: 7085.244407 | AH157: -3085.92307 | AJ157: 20000 | AK157: 476.2189502 | AL157: 1 | AM157: 3.037854936 | AN157: 2096.744665 | AO157: -5893.38718 | AQ157: 3.007302809 | AR157: -97.46818769 | AT157: -279471.8536 | AU157: -699866.2368 | AV157: -1.950717922 | AW157: -559346.5565 | AX157: -237096.7228 | AY157: -2.740669668 | BA157: 1.240452859 | BB157: 1.871605291 | BC157: 0.7899517458 | BD157: -134.7390989 | BF157: 1.526671735 | BG157: -121.7621356 | BH157: 58.23786442 | BI157: 58.23786442 | BJ157: 0 | BK157: 0 | BM157: -0.3449335563 | BN157: -167.0230367 | BQ157: 18.77356609 | BT157: 2951.209 | BU157: 6.18308 | BV157: -249.926
A158: 62000 | B158: 62 | C158: 1.000273122 | D158: 0.02336919426 | F158: 0.1048960937 | G158: 0.2013646531 | H158: -2.940227997 | J158: 9 | M158: 0.08185635249 | N158: -1.570796325 | O158: 4.814742507 | P158: 1.361577907 | Q158: 3.221681321 | R158: 1.255185766 | S158: 0.9997120157 | T158: -0.02399992343 | U158: 0.9797718486 | V158: -0.2014781277 | X158: 1.396566536 | Y158: -120.1131251 | Z158: 59.88687486 | AC158: 1 | AD158: 4.709750037 | AE158: -0.000124760851 | AF158: 0.0006108261421 | AG158: 7080.68635 | AH158: -3083.352732 | AJ158: 20000 | AK158: 480.090649 | AL158: 1 | AM158: 3.062552944 | AN158: 2068.583308 | AO158: -5855.05525 | AQ158: 2.959038718 | AR158: -96.68363106 | AT158: -277157.713 | AU158: -693710.2268 | AV158: -1.950897051 | AW158: -551243.4903 | AX158: -232241.3863 | AY158: -2.742856251 | BA158: 1.248858373 | BB158: 1.930263799 | BC158: 0.7919592007 | BD158: -134.6240802 | BF158: 1.432672283 | BG158: -121.7477792 | BH158: 58.25222078 | BI158: 58.25222078 | BJ158: 0 | BK158: 0 | BM158: -0.4975915158 | BN158: -167.123699 | BQ158: 18.8322246 | BT158: 3019.952 | BU158: 6.01306 | BV158: -249.651
A159: 62500 | B159: 62.5 | C159: 1.000277544 | D159: 0.02355758607 | F159: 0.103085057 | G159: 0.1994584842 | H159: -2.942134166 | J159: 9 | M159: 0.08120150167 | N159: -1.570796325 | O159: 4.851902526 | P159: 1.363203797 | Q159: 3.245168476 | R159: 1.257548106 | S159: 0.9997073541 | T159: -0.02419339599 | U159: 0.9794542994 | V159: -0.2030588237 | X159: 1.30258369 | Y159: -120.0846901 | Z159: 59.91530991 | AC159: 1 | AD159: 4.747731892 | AE159: -0.0001267812367 | AF159: 0.0006157521594 | AG159: 7076.097317 | AH159: -3080.97396 | AJ159: 20000 | AK159: 483.9623477 | AL159: 1 | AM159: 3.087250951 | AN159: 2041.009542 | AO159: -5817.146303 | AQ159: 2.911926903 | AR159: -95.91159235 | AT159: -274896.0404 | AU159: -687651.3323 | AV159: -1.951096472 | AW159: -543306.3992 | AX159: -227525.0741 | AY159: -2.745003397 | BA159: 1.257269364 | BB159: 1.988566665 | BC159: 0.7939069248 | BD159: -134.5124838 | BF159: 1.339741545 | BG159: -121.7346042 | BH159: 58.26539577 | BI159: 58.26539577 | BJ159: 0 | BK159: 0 | BM159: -0.6488251194 | BN159: -167.2221204 | BQ159: 18.89052747 | BT159: 3090.295 | BU159: 5.85449 | BV159: -248.418
A160: 63000 | B160: 63 | C160: 1.000282002 | D160: 0.0237459762 | F160: 0.1013215771 | G160: 0.1975902167 | H160: -2.944002433 | J160: 9 | M160: 0.08055704531 | N160: -1.570796325 | O160: 4.889075176 | P160: 1.364804968 | Q160: 3.26867348 | R160: 1.259876484 | S160: 0.9997026551 | T160: -0.02438686673 | U160: 0.9791345118 | V160: -0.2046384914 | X160: 1.209637847 | Y160: -120.0573868 | Z160: 59.94261323 | AC160: 1 | AD160: 4.785713747 | AE160: -0.0001288178505 | AF160: 0.0006206781767 | AG160: 7071.477442 | AH160: -3078.781558 | AJ160: 20000 | AK160: 487.8340465 | AL160: 1 | AM160: 3.111948959 | AN160: 2014.007754 | AO160: -5779.655285 | AQ160: 2.865930984 | AR160: -95.15177462 | AT160: -272685.1626 | AU160: -681687.2032 | AV160: -1.951315706 | AW160: -535531.0003 | AX160: -222942.8658 | AY160: -2.747111915 | BA160: 1.265685525 | BB160: 2.046516266 | BC160: 0.7957962093 | BD160: -134.4042358 | BF160: 1.247854365 | BG160: -121.7226061 | BH160: 58.27739392 | BI160: 58.27739392 | BJ160: 0 | BK160: 0 | BM160: -0.7986619006 | BN160: -167.3183703 | BQ160: 18.94847707 | BT160: 3162.278 | BU160: 5.60993 | BV160: -248.626
A161: 63500 | B161: 63.5 | C161: 1.000286495 | D161: 0.02393436465 | F161: 0.09960397162 | G161: 0.1957586886 | H161: -2.945833961 | J161: 9 | M161: 0.07992273786 | N161: -1.570796325 | O161: 4.92626017 | P161: 1.36638197 | Q161: 3.292195953 | R161: 1.262171603 | S161: 0.9996979188 | T161: -0.02458033565 | U161: 0.9788124929 | V161: -0.206217124 | X161: 1.117704731 | Y161: -120.0312095 | Z161: 59.96879048 | AC161: 1 | AD161: 4.823695603 | AE161: -0.0001308706923 | AF161: 0.000625604194 | AG161: 7066.826855 | AH161: -3076.770491 | AJ161: 20000 | AK161: 491.7057453 | AL161: 1 | AM161: 3.136646966 | AN161: 1987.56282 | AO161: -5742.577145 | AQ161: 2.821016008 | AR161: -94.40389021 | AT161: -270523.472 | AU161: -675815.5654 | AV161: -1.951554285 | AW161: -527913.1398 | AX161: -218490.0461 | AY161: -2.749182595 | BA161: 1.274106556 | BB161: 2.104115007 | BC161: 0.7976283101 | BD161: -134.2992642 | BF161: 1.156986423 | BG161: -121.7117794 | BH161: 58.2882206 | BI161: 58.2882206 | BJ161: 0 | BK161: 0 | BM161: -0.9471285838 | BN161: -167.4125152 | BQ161: 19.00607581 | BT161: 3235.937 | BU161: 5.43209 | BV161: -248.575
A162: 64000 | B162: 64 | C162: 1.000291024 | D162: 0.0241227514 | F162: 0.09793063329 | G162: 0.193962786 | H162: -2.947629864 | J162: 9 | M162: 0.07929834147 | N162: -1.570796325 | O162: 4.963457233 | P162: 1.367935339 | Q162: 3.315735521 | R162: 1.264434145 | S162: 0.999693145 | T162: -0.02477380272 | U162: 0.9784882497 | V162: -0.2077947147 | X162: 1.026760865 | Y162: -120.0061519 | Z162: 59.99384811 | AC162: 1 | AD162: 4.861677458 | AE162: -0.0001329397621 | AF162: 0.0006305302112 | AG162: 7062.14569 | AH162: -3074.935877 | AJ162: 20000 | AK162: 495.5774441 | AL162: 1 | AM162: 3.161344974 | AN162: 1961.660095 | AO162: -5705.906838 | AQ162: 2.777148377 | AR162: -93.66766045 | AT162: -268409.4232 | AU162: -670034.2177 | AV162: -1.951811756 | AW162: -520448.7884 | AX162: -214162.0949 | AY162: -2.751216204 | BA162: 1.282532165 | BB162: 2.161365317 | BC162: 0.7994044483 | BD162: -134.1974989 | BF162: 1.067114201 | BG162: -121.7021181 | BH162: 58.29788194 | BI162: 58.29788194 | BJ162: 0 | BK162: 0 | BM162: -1.094251116 | BN162: -167.5046191 | BQ162: 19.06332612 | BT162: 3311.311 | BU162: 5.23561 | BV162: -247.758
A163: 64500 | B163: 64.5 | C163: 1.000295588 | D163: 0.02431113643 | F163: 0.09630002553 | G163: 0.1922014405 | H163: -2.949391209 | J163: 9 | M163: 0.07868362565 | N163: -1.570796325 | O163: 5.000666094 | P163: 1.369465595 | Q163: 3.339291823 | R163: 1.266664778 | S163: 0.999688334 | T163: -0.02496726795 | U163: 0.9781617892 | V163: -0.2093712566 | X163: 0.9367835398 | Y163: -119.9822068 | Z163: 60.01779324 | AC163: 1 | AD163: 4.899659313 | AE163: -0.0001350250599 | AF163: 0.0006354562285 | AG163: 7057.434081 | AH163: -3073.272984 | AJ163: 20000 | AK163: 499.4491429 | AL163: 1 | AM163: 3.186042982 | AN163: 1936.28539 | AO163: -5669.639335 | AQ163: 2.734295787 | AR163: -92.94281524 | AT163: -266341.5308 | AU163: -664341.0293 | AV163: -1.952087678 | AW163: -513134.0376 | AX163: -209954.6785 | AY163: -2.75321349 | BA163: 1.290962069 | BB163: 2.218269643 | BC163: 0.8011258115 | BD163: -134.0988721 | BF163: 0.9782149459 | BG163: -121.6936152 | BH163: 58.3063848 | BI163: 58.3063848 | BJ163: 0 | BK163: 0 | BM163: -1.240054697 | BN163: -167.5947431 | BQ163: 19.12023044 | BT163: 3388.442 | BU163: 5.05282 | BV163: -247.756
A164: 65000 | B164: 65 | C164: 1.000300188 | D164: 0.02449951974 | F164: 0.09471067889 | G164: 0.1904736271 | H164: -2.951119023 | J164: 9 | M164: 0.07807836699 | N164: -1.570796325 | O164: 5.037886492 | P164: 1.370973244 | Q164: 3.362864508 | R164: 1.268864149 | S164: 0.9996834855 | T164: -0.0251607313 | U164: 0.9778331185 | V164: -0.2109467429 | X164: 0.8477507842 | Y164: -119.9593664 | Z164: 60.04063362 | AC164: 1 | AD164: 4.937641168 | AE164: -0.0001371265857 | AF164: 0.0006403822458 | AG164: 7052.692162 | AH164: -3071.777222 | AJ164: 20000 | AK164: 503.3208416 | AL164: 1 | AM164: 3.210740989 | AN164: 1911.424958 | AO164: -5633.76962 | AQ164: 2.692427172 | AR164: -92.22909277 | AT164: -264318.3664 | AU164: -658733.9362 | AV164: -1.952381623 | AW164: -505965.0955 | AX164: -205863.6404 | AY164: -2.755175178 | BA164: 1.299395991 | BB164: 2.274830449 | BC164: 0.8027935553 | BD164: -134.0033174 | BF164: 0.890266643 | BG164: -121.6862634 | BH164: 58.31373663 | BI164: 58.31373663 | BJ164: 0 | BK164: 0 | BM164: -1.384563806 | BN164: -167.682946 | BQ164: 19.17679125 | BT164: 3467.369 | BU164: 4.9029 | BV164: -247.513
A165: 65500 | B165: 65.5 | C165: 1.000304824 | D165: 0.02468790131 | F165: 0.09316118752 | G165: 0.1887783616 | H165: -2.952814288 | J165: 9 | M165: 0.07748234892 | N165: -1.570796325 | O165: 5.075118173 | P165: 1.372458775 | Q165: 3.386453233 | R165: 1.27103289 | S165: 0.9996785997 | T165: -0.02535419277 | U165: 0.9775022448 | V165: -0.2125211669 | X165: 0.7596413313 | Y165: -119.9376224 | Z165: 60.06237756 | AC165: 1 | AD165: 4.975623023 | AE165: -0.0001392443394 | AF165: 0.0006453082631 | AG165: 7047.920068 | AH165: -3070.444139 | AJ165: 20000 | AK165: 507.1925404 | AL165: 1 | AM165: 3.235438997 | AN165: 1887.065479 | AO165: -5598.292701 | AQ165: 2.651512644 | AR165: -91.52623919 | AT165: -262338.5555 | AU165: -653210.9394 | AV165: -1.952693173 | AW165: -498938.2831 | AX165: -201884.9932 | AY165: -2.757101977 | BA165: 1.30783366 | BB165: 2.331050216 | BC165: 0.8044088038 | BD165: -133.9107705 | BF165: 0.8032479817 | BG165: -121.6800545 | BH165: 58.31994546 | BI165: 58.31994546 | BJ165: 0 | BK165: 0 | BM165: -1.527802234 | BN165: -167.7692841 | BQ165: 19.23301102 | BT165: 3548.134 | BU165: 4.65226 | BV165: -246.726
A166: =A165+500 -> 66000 | B166: 66 | C166: 1.000309494 | D166: 0.02487628113 | F166: 0.0916502058 | G166: 0.1871146987 | H166: -2.954477951 | J166: 9 | M166: 0.07689536143 | N166: -1.570796325 | O166: 5.112360891 | P166: 1.373922666 | Q166: 3.410057666 | R166: 1.273171618 | S166: 0.9996736765 | T166: -0.02554765234 | U166: 0.9771691751 | V166: -0.214094522 | X166: 0.6724345915 | Y166: -119.9169661 | Z166: 60.08303387 | AC166: 1 | AD166: 5.013604878 | AE166: -0.0001413783212 | AF166: 0.0006502342803 | AG166: 7043.117934 | AH166: -3069.269416 | AJ166: 20000 | AK166: 511.0642392 | AL166: 1 | AM166: 3.260137004 | AN166: 1863.194044 | AO166: -5563.203611 | AQ166: 2.61152344 | AR166: -90.8340083 | AT166: -260400.776 | AU166: -647770.1019 | AV166: -1.953021924 | AW166: -492050.0305 | AX166: -198014.9109 | AY166: -2.758994575 | BA166: 1.316274814 | BB166: 2.386931432 | BC166: 0.805972651 | BD166: -133.8211686 | BF166: 0.717138329 | BG166: -121.6749802 | BH166: 58.32501981 | BI166: 58.32501981 | BJ166: 0 | BK166: 0 | BM166: -1.669793103 | BN166: -167.8538115 | BQ166: 19.28889223 | BT166: 3630.781 | BU166: 4.4951 | BV166: -246.212
A167: 66500 | B167: 66.5 | C167: 1.000314201 | D167: 0.02506465918 | F167: 0.09017644528 | G167: 0.1854817305 | H167: -2.95611092 | J167: 9 | M167: 0.07631720082 | N167: -1.570796325 | O167: 5.149614405 | P167: 1.37536538 | Q167: 3.433677483 | R167: 1.275280931 | S167: 0.9996687159 | T167: -0.02574111 | U167: 0.9768339167 | V167: -0.2156668013 | X167: 0.5861106252 | Y167: -119.8973882 | Z167: 60.1026118 | AC167: 1 | AD167: 5.051586733 | AE167: -0.000143528531 | AF167: 0.0006551602976 | AG167: 7038.285896 | AH167: -3068.248859 | AJ167: 20000 | AK167: 514.935938 | AL167: 1 | AM167: 3.284835012 | AN167: 1839.798141 | AO167: -5528.497411 | AQ167: 2.572431875 | AR167: -90.15216128 | AT167: -258503.755 | AU167: -642409.5464 | AV167: -1.953367482 | AW167: -485296.8734 | AX167: -194249.721 | AY167: -2.760853644 | BA167: 1.324719197 | BB167: 2.442476596 | BC167: 0.8074861616 | BD167: -133.7344509 | BF167: 0.631917701 | BG167: -121.6710313 | BH167: 58.32896866 | BI167: 58.32896866 | BJ167: 0 | BK167: 0 | BM167: -1.810558895 | BN167: -167.9365805 | BQ167: 19.3444374 | BT167: 3715.352 | BU167: 4.3437 | BV167: -245.97
A168: 67000 | B168: 67 | C168: 1.000318943 | D168: 0.02525303545 | F168: 0.08873867174 | G168: 0.1838785839 | H168: -2.957714066 | J168: 9 | M168: 0.07574766947 | N168: -1.570796325 | O168: 5.186878485 | P168: 1.376787366 | Q168: 3.457312368 | R168: 1.277361414 | S168: 0.999663718 | T168: -0.02593456573 | U168: 0.9764964768 | V168: -0.2172379982 | X168: 0.5006501166 | Y168: -119.878879 | Z168: 60.121121 | AC168: 1 | AD168: 5.089568589 | AE168: -0.0001456949688 | AF168: 0.0006600863149 | AG168: 7033.42409 | AH168: -3067.378398 | AJ168: 20000 | AK168: 518.8076368 | AL168: 1 | AM168: 3.30953302 | AN168: 1816.865641 | AO168: -5494.169193 | AQ168: 2.534211289 | AR168: -89.48046642 | AT168: -256646.267 | AU168: -637127.4531 | AV168: -1.953729463 | AW168: -478675.4495 | AX168: -190585.8977 | AY168: -2.762679835 | BA168: 1.333166557 | BB168: 2.497688214 | BC168: 0.8089503723 | BD168: -133.6505578 | BF168: 0.5475667378 | BG168: -121.6681986 | BH168: 58.33180139 | BI168: 58.33180139 | BJ168: 0 | BK168: 0 | BM168: -1.950121476 | BN168: -168.0176408 | BQ168: 19.39964901 | BT168: 3801.894 | BU168: 4.14374 | BV168: -245.169
A169: 67500 | B169: 67.5 | C169: 1.00032372 | D169: 0.02544140993 | F169: 0.08733570246 | G169: 0.1823044196 | H169: -2.95928823 | J169: 9 | M169: 0.07518657562 | N169: -1.570796325 | O169: 5.224152903 | P169: 1.378189064 | Q169: 3.480962014 | R169: 1.279413636 | S169: 0.9996586827 | T169: -0.02612801952 | U169: 0.9761568626 | V169: -0.2188081061 | X169: 0.416034349 | Y169: -119.8614285 | Z169: 60.13857147 | AC169: 1 | AD169: 5.127550444 | AE169: -0.0001478776345 | AF169: 0.0006650123322 | AG169: 7028.532654 | AH169: -3066.654082 | AJ169: 20000 | AK169: 522.6793356 | AL169: 1 | AM169: 3.334231027 | AN169: 1794.384784 | AO169: -5460.214085 | AQ169: 2.496836006 | AR169: -88.81869883 | AT169: -254827.1319 | AU169: -631922.0573 | AV169: -1.954107494 | AW169: -472182.4953 | AX169: -187020.0553 | AY169: -2.764473786 | BA169: 1.341616651 | BB169: 2.552568795 | BC169: 0.810366292 | BD169: -133.5694316 | BF169: 0.4640666782 | BG169: -121.6664723 | BH169: 58.3335277 | BI169: 58.3335277 | BJ169: 0 | BK169: 0 | BM169: -2.088502116 | BN169: -168.0970407 | BQ169: 19.45452959 | BT169: 3890.451 | BU169: 3.9573 | BV169: -244.768
A170: 68000 | B170: 68 | C170: 1.000328533 | D170: 0.0256297826 | F170: 0.08596640358 | G170: 0.1807584301 | H170: -2.96083422 | J170: 9 | M170: 0.07463373315 | N170: -1.570796325 | O170: 5.26143744 | P170: 1.379570898 | Q170: 3.504626123 | R170: 1.281438152 | S170: 0.9996536101 | T170: -0.02632147135 | U170: 0.9758150815 | V170: -0.2203771183 | X170: 0.3322451814 | Y170: -119.8450265 | Z170: 60.15497351 | AC170: 1 | AD170: 5.165532299 | AE170: -0.0001500765283 | AF170: 0.0006699383494 | AG170: 7023.611726 | AH170: -3066.072073 | AJ170: 20000 | AK170: 526.5510343 | AL170: 1 | AM170: 3.358929035 | AN170: 1772.344168 | AO170: -5426.62725 | AQ170: 2.460281287 | AR170: -88.16664021 | AT170: -253045.2129 | AU170: -626791.6478 | AV170: -1.954501213 | AW170: -465814.8429 | AX170: -183548.9416 | AY170: -2.766236117 | BA170: 1.35006924 | BB170: 2.60712085 | BC170: 0.8117349035 | BD170: -133.4910159 | BF170: 0.3813993365 | BG170: -121.6658424 | BH170: 58.33415765 | BI170: 58.33415765 | BJ170: 0 | BK170: 0 | BM170: -2.225721514 | BN170: -168.1748265 | BQ170: 19.50908165 | BT170: 3981.072 | BU170: 3.89809 | BV170: -244.315
A171: 68500 | B171: 68.5 | C171: 1.000333381 | D171: 0.02581815346 | F171: 0.08462968774 | G171: 0.1792398382 | H171: -2.962352812 | J171: 9 | M171: 0.07408896138 | N171: -1.570796325 | O171: 5.298731881 | P171: 1.380933284 | Q171: 3.528304403 | R171: 1.283435503 | S171: 0.9996485001 | T171: -0.02651492122 | U171: 0.9754711408 | V171: -0.2219450284 | X171: 0.2492650256 | Y171: -119.8296623 | Z171: 60.1703377 | AC171: 1 | AD171: 5.203514154 | AE171: -0.0001522916501 | AF171: 0.0006748643667 | AG171: 7018.661442 | AH171: -3065.628643 | AJ171: 20000 | AK171: 530.4227331 | AL171: 1 | AM171: 3.383627042 | AN171: 1750.732735 | AO171: -5393.403894 | AQ171: 2.424523294 | AR171: -87.52407864 | AT171: -251299.4142 | AU171: -621734.5641 | AV171: -1.954910266 | AW171: -459569.4167 | AX171: -180169.432 | AY171: -2.76796743 | BA171: 1.358524092 | BB171: 2.661346892 | BC171: 0.8130571636 | BD171: -133.415256 | BF171: 0.2995470796 | BG171: -121.6662985 | BH171: 58.33370152 | BI171: 58.33370152 | BJ171: 0 | BK171: 0 | BM171: -2.361799813 | BN171: -168.2510425 | BQ171: 19.56330769 | BT171: 4073.803 | BU171: 3.5601 | BV171: -244.142
A172: 69000 | B172: 69 | C172: 1.000338265 | D172: 0.02600652248 | F172: 0.08332451175 | G172: 0.1777478958 | H172: -2.963844754 | J172: 9 | M172: 0.07355208485 | N172: -1.570796325 | O172: 5.336036021 | P172: 1.382276623 | Q172: 3.551996572 | R172: 1.285406217 | S172: 0.9996433527 | T172: -0.02670836909 | U172: 0.9751250478 | V172: -0.2235118298 | X172: 0.1670768253 | Y172: -119.8153252 | Z172: 60.18467484 | AC172: 1 | AD172: 5.241496009 | AE172: -0.0001545229998 | AF172: 0.000679790384 | AG172: 7013.681943 | AH172: -3065.320168 | AJ172: 20000 | AK172: 534.2944319 | AL172: 1 | AM172: 3.40832505 | AN172: 1729.539761 | AO172: -5360.539259 | AQ172: 2.389539044 | AR172: -86.89080827 | AT172: -249588.6801 | AU172: -616749.1952 | AV172: -1.955334309 | AW172: -453443.2304 | AX172: -176878.5238 | AY172: -2.769668314 | BA172: 1.366980979 | BB172: 2.715249432 | BC172: 0.8143340047 | BD172: -133.3420984 | BF172: 0.2184928061 | BG172: -121.6678301 | BH172: 58.33216987 | BI172: 58.33216987 | BJ172: 0 | BK172: 0 | BM172: -2.496756626 | BN172: -168.3257318 | BQ172: 19.61721023 | BT172: 4168.694 | BU172: 3.40988 | BV172: -243.709
A173: 69500 | B173: 69.5 | C173: 1.000343184 | D173: 0.02619488965 | F173: 0.08204987439 | G173: 0.1762818822 | H173: -2.965310768 | J173: 9 | M173: 0.07302293316 | N173: -1.570796325 | O173: 5.373349655 | P173: 1.383601307 | Q173: 3.575702353 | R173: 1.287350808 | S173: 0.999638168 | T173: -0.02690181497 | U173: 0.9747768098 | V173: -0.2250775159 | X173: 0.08566403517 | Y173: -119.8020041 | Z173: 60.19799595 | AC173: 1 | AD173: 5.279477864 | AE173: -0.0001567705776 | AF173: 0.0006847164013 | AG173: 7008.673367 | AH173: -3065.143128 | AJ173: 20000 | AK173: 538.1661307 | AL173: 1 | AM173: 3.433023058 | AN173: 1708.75484 | AO173: -5328.028636 | AQ173: 2.355306381 | AR173: -86.26662918 | AT173: -247911.9925 | AU173: -611833.9776 | AV173: -1.955773007 | AW173: -447433.3844 | AX173: -173673.3306 | AY173: -2.771339342 | BA173: 1.375439679 | BB173: 2.768830977 | BC173: 0.8155663347 | BD173: -133.2714911 | BF173: 0.1382199255 | BG173: -121.6704266 | BH173: 58.32957343 | BI173: 58.32957343 | BJ173: 0 | BK173: 0 | BM173: -2.630611051 | BN173: -168.3989355 | BQ173: 19.67079178 | BT173: 4265.795 | BU173: 3.2245 | BV173: -243.324
A174: 70000 | B174: 70 | C174: 1.000348139 | D174: 0.02638325497 | F174: 0.08080481447 | G174: 0.1748411032 | H174: -2.966751547 | J174: 9 | M174: 0.07250134078 | N174: -1.570796325 | O174: 5.410672589 | P174: 1.384907718 | Q174: 3.599421476 | R174: 1.289269778 | S174: 0.9996329459 | T174: -0.02709525884 | U174: 0.9744264344 | V174: -0.2266420804 | X174: 0.005010601854 | Y174: -119.7896878 | Z174: 60.2103122 | AC174: 1 | AD174: 5.317459719 | AE174: -0.0001590343834 | AF174: 0.0006896424185 | AG174: 7003.635854 | AH174: -3065.094102 | AJ174: 20000 | AK174: 542.0378295 | AL174: 1 | AM174: 3.457721065 | AN174: 1688.367881 | AO174: -5295.867357 | AQ174: 2.321803934 | AR174: -85.65134714 | AT174: -246268.3697 | AU174: -606987.3933 | AV174: -1.956226035 | AW174: -441537.0627 | AX174: -170551.0772 | AY174: -2.772981074 | BA174: 1.383899975 | BB174: 2.82209403 | BC174: 0.8167550384 | BD174: -133.2033833 | BF174: 0.05871233875 | BG174: -121.6740769 | BH174: 58.32592312 | BI174: 58.32592312 | BJ174: 70000 | BK174: 58.32592312 | BM174: -2.763381691 | BN174: -168.4706935 | BQ174: 19.72405483 | BT174: 4365.158 | BU174: 3.07782 | BV174: -242.172
A175: 70500 | B175: 70.5 | C175: 1.000353129 | D175: 0.02657161841 | F175: 0.07958840881 | G175: 0.1734248897 | H175: -2.96816776 | J175: 9 | M175: 0.07198714687 | N175: -1.570796325 | O175: 5.448004631 | P175: 1.386196228 | Q175: 3.623153681 | R175: 1.291163615 | S175: 0.9996276865 | T175: -0.02728870067 | U175: 0.974073929 | V175: -0.2282055166 | X175: -0.074899055 | Y175: -119.7783651 | Z175: 60.22163492 | AC175: 1 | AD175: 5.355441575 | AE175: -0.0001613144171 | AF175: 0.0006945684358 | AG175: 6998.569544 | AH175: -3065.169762 | AJ175: 20000 | AK175: 545.9095282 | AL175: 1 | AM175: 3.482419073 | AN175: 1668.369087 | AO175: -5264.050802 | AQ175: 2.289011087 | AR175: -85.04477341 | AT175: -244656.8646 | AU175: -602207.9686 | AV175: -1.956693074 | AW175: -435751.5302 | AX175: -167509.0947 | AY175: -2.774594053 | BA175: 1.392361655 | BB175: 2.875041089 | BC175: 0.8179009783 | BD175: -133.1377258 | BF175: -0.02004558013 | BG175: -121.67877 | BH175: 58.32123001 | BI175: 58.32123001 | BJ175: 0 | BK175: 0 | BM175: -2.895086669 | BN175: -168.5410442 | BQ175: 19.77700189 | BT175: 4466.836 | BU175: 2.92332 | BV175: -240.903
A176: 71000 | B176: 71 | C176: 1.000358155 | D176: 0.02675997997 | F176: 0.07839977049 | G176: 0.1720325965 | H176: -2.969560054 | J176: 9 | M176: 0.07148019513 | N176: -1.570796325 | O176: 5.485345595 | P176: 1.387467196 | Q176: 3.646898712 | R176: 1.293032798 | S176: 0.9996223897 | T176: -0.02748214047 | U176: 0.973719301 | V176: -0.2297678183 | X176: -0.1540800604 | Y176: -119.7680245 | Z176: 60.23197555 | AC176: 1 | AD176: 5.39342343 | AE176: -0.0001636106789 | AF176: 0.0006994944531 | AG176: 6993.474578 | AH176: -3065.366872 | AJ176: 20000 | AK176: 549.781227 | AL176: 1 | AM176: 3.50711708 | AN176: 1648.748956 | AO176: -5232.574397 | AQ176: 2.256907944 | AR176: -84.44672454 | AT176: -243076.5635 | AU176: -597494.2721 | AV176: -1.957173816 | AW176: -430074.1302 | AX176: -164544.816 | AY176: -2.776178811 | BA176: 1.400824511 | BB176: 2.927674644 | BC176: 0.8190049945 | BD176: -133.0744704 | BF176: -0.09806900202 | BG176: -121.6844947 | BH176: 58.31550528 | BI176: 58.31550528 | BJ176: 0 | BK176: 0 | BM176: -3.025743646 | BN176: -168.6100244 | BQ176: 19.82963544 | BT176: 4570.882 | BU176: 2.72669 | BV176: -241.252
A177: 71500 | B177: 71.5 | C177: 1.000363216 | D177: 0.02694833963 | F177: 0.07723804711 | G177: 0.1706636013 | H177: -2.970929049 | J177: 9 | M177: 0.07098033363 | N177: -1.570796325 | O177: 5.522695299 | P177: 1.388720976 | Q177: 3.67065632 | R177: 1.294877791 | S177: 0.9996170556 | T177: -0.0276755782 | U177: 0.9733625579 | V177: -0.2313289791 | X177: -0.2325471007 | Y177: -119.7586544 | Z177: 60.24134562 | AC177: 1 | AD177: 5.431405285 | AE177: -0.0001659231687 | AF177: 0.0007044204704 | AG177: 6988.351096 | AH177: -3065.682285 | AJ177: 20000 | AK177: 553.6529258 | AL177: 1 | AM177: 3.531815088 | AN177: 1629.498261 | AO177: -5201.43362 | AQ177: 2.225475304 | AR177: -83.85702219 | AT177: -241526.5847 | AU177: -592844.9131 | AV177: -1.957667959 | AW177: -424502.2816 | AX177: -161655.7709 | AY177: -2.777735865 | BA177: 1.40928834 | BB177: 2.979997176 | BC177: 0.8200679064 | BD177: -133.01357 | BF177: -0.1753726595 | BG177: -121.6912398 | BH177: 58.30876021 | BI177: 58.30876021 | BJ177: 0 | BK177: 0 | BM177: -3.155369836 | BN177: -168.6776698 | BQ177: 19.88195798 | BT177: 4677.351 | BU177: 2.54392 | BV177: -240.638
A178: 72000 | B178: 72 | C178: 1.000368313 | D178: 0.02713669738 | F178: 0.07610241918 | G178: 0.1693173036 | H178: -2.972275346 | J178: 9 | M178: 0.07048741464 | N178: -1.570796325 | O178: 5.560053569 | P178: 1.389957909 | Q178: 3.694426261 | R178: 1.296699049 | S178: 0.9996116842 | T178: -0.02786901387 | U178: 0.9730037073 | V178: -0.2328889925 | X178: -0.3103144404 | Y178: -119.7502432 | Z178: 60.24975676 | AC178: 1 | AD178: 5.46938714 | AE178: -0.0001682518864 | AF178: 0.0007093464876 | AG178: 6983.199241 | AH178: -3066.112941 | AJ178: 20000 | AK178: 557.5246246 | AL178: 1 | AM178: 3.556513096 | AN178: 1610.608049 | AO178: -5170.623995 | AQ178: 2.194694628 | AR178: -83.27549297 | AT178: -240006.0768 | AU178: -588258.5409 | AV178: -1.958175208 | AW178: -419033.4771 | AX178: -158839.5824 | AY178: -2.779265721 | BA178: 1.417752944 | BB178: 3.032011159 | BC178: 0.8210905125 | BD178: -132.954979 | BF178: -0.2519708633 | BG178: -121.6989938 | BH178: 58.30100616 | BI178: 58.30100616 | BJ178: 0 | BK178: 0 | BM178: -3.283982022 | BN178: -168.7440149 | BQ178: 19.93397196 | BT178: 4786.301 | BU178: 2.53075 | BV178: -240.031
A179: 72500 | B179: 72.5 | C179: 1.000373445 | D179: 0.0273250532 | F179: 0.07499209857 | G179: 0.1679931241 | H179: -2.973599526 | J179: 9 | M179: 0.07000129454 | N179: -1.570796325 | O179: 5.597420231 | P179: 1.391178329 | Q179: 3.718208301 | R179: 1.298497015 | S179: 0.9996062754 | T179: -0.02806244745 | U179: 0.9726427568 | V179: -0.2344478523 | X179: -0.387395937 | Y179: -119.7427794 | Z179: 60.25722062 | AC179: 1 | AD179: 5.507368995 | AE179: -0.0001705968322 | AF179: 0.0007142725049 | AG179: 6978.019154 | AH179: -3066.655859 | AJ179: 20000 | AK179: 561.3963234 | AL179: 1 | AM179: 3.581211103 | AN179: 1592.069626 | AO179: -5140.141098 | AQ179: 2.164548014 | AR179: -82.70196825 | AT179: -238514.218 | AU179: -583733.8424 | AV179: -1.958695278 | AW179: -413665.2799 | AX179: -156093.9624 | AY179: -2.78076887 | BA179: 1.426218129 | BB179: 3.083719053 | BC179: 0.8220735917 | BD179: -132.8986527 | BF179: -0.3278775175 | BG179: -121.7077455 | BH179: 58.29225454 | BI179: 58.29225454 | BJ179: 0 | BK179: 0 | BM179: -3.411596571 | BN179: -168.8090928 | BQ179: 19.98567985 | BT179: 4897.788 | BU179: 2.17956 | BV179: -239.481
A180: 73000 | B180: 73 | C180: 1.000378613 | D180: 0.02751340708 | F180: 0.0739063271 | G180: 0.1666905032 | H180: -2.974902147 | J180: 9 | M180: 0.06952183362 | N180: -1.570796325 | O180: 5.634795121 | P180: 1.392382562 | Q180: 3.742002207 | R180: 1.300272121 | S180: 0.9996008292 | T180: -0.02825587892 | U180: 0.9722797139 | V180: -0.2360055521 | X180: -0.4638050562 | Y180: -119.7362511 | Z180: 60.26374891 | AC180: 1 | AD180: 5.54535085 | AE180: -0.0001729580059 | AF180: 0.0007191985222 | AG180: 6972.810978 | AH180: -3067.308141 | AJ180: 20000 | AK180: 565.2680222 | AL180: 1 | AM180: 3.605909111 | AN180: 1573.87455 | AO180: -5109.980558 | AQ180: 2.13501817 | AR180: -82.136284 | AT180: -237050.2145 | AU180: -579269.5414 | AV180: -1.959227891 | AW180: -408395.3224 | AX180: -153416.7079 | AY180: -2.782245794 | BA180: 1.434683705 | BB180: 3.13512331 | BC180: 0.8230179034 | BD180: -132.8445476 | BF180: -0.4031061342 | BG180: -121.7174832 | BH180: 58.28251682 | BI180: 58.28251682 | BJ180: 0 | BK180: 0 | BM180: -3.538229445 | BN180: -168.8729356 | BQ180: 20.03708411 | BT180: 5011.872 | BU180: 2.08934 | BV180: -238.507
A181: 73500 | B181: 73.5 | C181: 1.000383816 | D181: 0.027701759 | F181: 0.07284437515 | G181: 0.1654089005 | H181: -2.976183749 | J181: 9 | M181: 0.06904889598 | N181: -1.570796325 | O181: 5.672178074 | P181: 1.393570922 | Q181: 3.765807755 | R181: 1.30202479 | S181: 0.9995953457 | T181: -0.02844930829 | U181: 0.9719145863 | V181: -0.2375620858 | X181: -0.5395548857 | Y181: -119.7306466 | Z181: 60.26935337 | AC181: 1 | AD181: 5.583332705 | AE181: -0.0001753354077 | AF181: 0.0007241245395 | AG181: 6967.574856 | AH181: -3068.066965 | AJ181: 20000 | AK181: 569.1397209 | AL181: 1 | AM181: 3.630607119 | AN181: 1556.014625 | AO181: -5080.138052 | AQ181: 2.106088387 | AR181: -81.57828064 | AT181: -235613.2994 | AU181: -574864.3972 | AV181: -1.959772772 | AW181: -403221.3033 | AX181: -150805.6974 | AY181: -2.78369696 | BA181: 1.443149484 | BB181: 3.186226368 | BC181: 0.8239241882 | BD181: -132.7926213 | BF181: -0.4776698484 | BG181: -121.7281955 | BH181: 58.27180446 | BI181: 58.27180446 | BJ181: 0 | BK181: 0 | BM181: -3.663896217 | BN181: -168.9355742 | BQ181: 20.08818717 | BT181: 5128.614 | BU181: 1.79547 | BV181: -237.881
A182: 74000 | B182: 74 | C182: 1.000389055 | D182: 0.02789010896 | F182: 0.07180554036 | G182: 0.1641477941 | H182: -2.977444856 | J182: 9 | M182: 0.06858234938 | N182: -1.570796325 | O182: 5.709568932 | P182: 1.39474372 | Q182: 3.789624726 | R182: 1.303755435 | S182: 0.9995898249 | T182: -0.02864273552 | U182: 0.9715473817 | V182: -0.2391174471 | X182: -0.6146581493 | Y182: -119.7259543 | Z182: 60.27404571 | AC182: 1 | AD182: 5.62131456 | AE182: -0.0001777290374 | AF182: 0.0007290505567 | AG182: 6962.310931 | AH182: -3068.929581 | AJ182: 20000 | AK182: 573.0114197 | AL182: 1 | AM182: 3.655305126 | AN182: 1538.481888 | AO182: -5050.609313 | AQ182: 2.077742523 | AR182: -81.0278029 | AT182: -234202.7318 | AU182: -570517.2033 | AV182: -1.960329658 | AW182: -398140.9858 | AX182: -148258.8875 | AY182: -2.785122827 | BA182: 1.451615285 | BB182: 3.237030653 | BC182: 0.8247931689 | BD182: -132.7428324 | BF182: -0.5515814307 | BG182: -121.739871 | BH182: 58.26012897 | BI182: 58.26012897 | BJ182: 0 | BK182: 0 | BM182: -3.788612083 | BN182: -168.9970386 | BQ182: 20.13899145 | BT182: 5248.075 | BU182: 1.60241 | BV182: -238.28
A183: 74500 | B183: 74.5 | C183: 1.000394329 | D183: 0.02807845695 | F183: 0.0707891464 | G183: 0.1629066793 | H183: -2.978685971 | J183: 9 | M183: 0.06812206516 | N183: -1.570796325 | O183: 5.746967541 | P183: 1.395901255 | Q183: 3.813452906 | R183: 1.305464456 | S183: 0.9995842667 | T183: -0.02883616061 | U183: 0.9711781076 | V183: -0.2406716298 | X183: -0.6891272193 | Y183: -119.7221623 | Z183: 60.27783767 | AC183: 1 | AD183: 5.659296416 | AE183: -0.0001801388952 | AF183: 0.000733976574 | AG183: 6957.019347 | AH183: -3069.893316 | AJ183: 20000 | AK183: 576.8831185 | AL183: 1 | AM183: 3.680003134 | AN183: 1521.268607 | AO183: -5021.390124 | AQ183: 2.049964969 | AR183: -80.48469964 | AT183: -232817.7955 | AU183: -566226.7863 | AV183: -1.96089829 | AW183: -393152.1952 | AX183: -145774.3093 | AY183: -2.78652384 | BA183: 1.46008093 | BB183: 3.287538575 | BC183: 0.8256255503 | BD183: -132.6951405 | BF183: -0.6248533007 | BG183: -121.7524982 | BH183: 58.24750181 | BI183: 58.24750181 | BJ183: 0 | BK183: 0 | BM183: -3.912391875 | BN183: -169.0573577 | BQ183: 20.18949937 | BT183: 5370.318 | BU183: 1.48515 | BV183: -237.347
A184: 75000 | B184: 75 | C184: 1.000399639 | D184: 0.02826680294 | F184: 0.06979454183 | G184: 0.1616850685 | H184: -2.979907581 | J184: 9 | M184: 0.06766791806 | N184: -1.570796325 | O184: 5.784373751 | P184: 1.397043821 | Q184: 3.837292085 | R184: 1.307152248 | S184: 0.9995786712 | T184: -0.02902958354 | U184: 0.9708067719 | V184: -0.2422246278 | X184: -0.7629741291 | Y184: -119.7192591 | Z184: 60.28074095 | AC184: 1 | AD184: 5.697278271 | AE184: -0.0001825649809 | AF184: 0.0007389025913 | AG184: 6951.700248 | AH184: -3070.955563 | AJ184: 20000 | AK184: 580.7548173 | AL184: 1 | AM184: 3.704701141 | AN184: 1504.367269 | AO184: -4992.476323 | AQ184: 2.022740639 | AR184: -79.94882377 | AT184: -231457.7985 | AU184: -561992.0046 | AV184: -1.961478414 | AW184: -388252.8177 | AX184: -143350.0658 | AY184: -2.787900434 | BA184: 1.468546243 | BB184: 3.337752531 | BC184: 0.8264220202 | BD184: -132.6495061 | BF184: -0.6974975392 | BG184: -121.7660655 | BH184: 58.23393447 | BI184: 58.23393447 | BJ184: 0 | BK184: 0 | BM184: -4.03525007 | BN184: -169.1165594 | BQ184: 20.23971333 | BT184: 5495.409 | BU184: 1.35836 | BV184: -235.612
A185: 75500 | B185: 75.5 | C185: 1.000404984 | D185: 0.02845514692 | F185: 0.06882109899 | G185: 0.16048249 | H185: -2.98111016 | J185: 9 | M185: 0.06721978615 | N185: -1.570796325 | O185: 5.821787416 | P185: 1.398171703 | Q185: 3.861142061 | R185: 1.308819194 | S185: 0.9995730384 | T185: -0.0292230043 | U185: 0.9704333822 | V185: -0.2437764349 | X185: -0.8362105852 | Y185: -119.7172328 | Z185: 60.28276723 | AC185: 1 | AD185: 5.735260126 | AE185: -0.0001850072947 | AF185: 0.0007438286086 | AG185: 6946.353779 | AH185: -3072.113783 | AJ185: 20000 | AK185: 584.6265161 | AL185: 1 | AM185: 3.729399149 | AN185: 1487.770575 | AO185: -4963.863798 | AQ185: 1.996054942 | AR185: -79.42003205 | AT185: -230122.0713 | AU185: -557811.7476 | AV185: -1.962069785 | AW185: -383440.7975 | AX185: -140984.3285 | AY185: -2.789253036 | BA185: 1.477011053 | BB185: 3.387674904 | BC185: 0.8271832501 | BD185: -132.6058908 | BF185: -0.7695259004 | BG185: -121.7805616 | BH185: 58.21943837 | BI185: 58.21943837 | BJ185: 0 | BK185: 0 | BM185: -4.157200805 | BN185: -169.1746708 | BQ185: 20.2896357 | BT185: 5623.413 | BU185: 1.07298 | BV185: -235.138
A186: 76000 | B186: 76 | C186: 1.000410365 | D186: 0.02864348888 | F186: 0.06786821292 | G186: 0.1592984876 | H186: -2.982294162 | J186: 9 | M186: 0.06677755072 | N186: -1.570796325 | O186: 5.859208391 | P186: 1.399285179 | Q186: 3.885002633 | R186: 1.310465668 | S186: 0.9995673682 | T186: -0.02941642287 | U186: 0.9700579463 | V186: -0.245327045 | X186: -0.9088479785 | Y186: -119.7160719 | Z186: 60.28392814 | AC186: 1 | AD186: 5.773241981 | AE186: -0.0001874658364 | AF186: 0.0007487546258 | AG186: 6940.980085 | AH186: -3073.365503 | AJ186: 20000 | AK186: 588.4982148 | AL186: 1 | AM186: 3.754097157 | AN186: 1471.47143 | AO186: -4935.548495 | AQ186: 1.969893763 | AR186: -78.89818502 | AT186: -228809.9667 | AU186: -553684.9345 | AV186: -1.962672164 | AW186: -378714.1357 | AX186: -138675.3345 | AY186: -2.790582059 | BA186: 1.485475191 | BB186: 3.437308061 | BC186: 0.8279098951 | BD186: -132.5642571 | BF186: -0.8409498228 | BG186: -121.7959751 | BH186: 58.20402492 | BI186: 58.20402492 | BJ186: 0 | BK186: 0 | BM186: -4.278257884 | BN186: -169.2317179 | BQ186: 20.33926886 | BT186: 5754.399 | BU186: 0.869153 | BV186: -234.689
A187: 76500 | B187: 76.5 | C187: 1.000415781 | D187: 0.02883182882 | F187: 0.06693530044 | G187: 0.1581326199 | H187: -2.98346003 | J187: 9 | M187: 0.06634109614 | N187: -1.570796325 | O187: 5.896636539 | P187: 1.400384521 | Q187: 3.908873609 | R187: 1.312092038 | S187: 0.9995616607 | T187: -0.02960983924 | U187: 0.969680472 | V187: -0.246876452 | X187: -0.980897395 | Y187: -119.7157647 | Z187: 60.28423527 | AC187: 1 | AD187: 5.811223836 | AE187: -0.0001899406061 | AF187: 0.0007536806431 | AG187: 6935.579311 | AH187: -3074.708312 | AJ187: 20000 | AK187: 592.3699136 | AL187: 1 | AM187: 3.778795164 | AN187: 1455.462941 | AO187: -4907.526408 | AQ187: 1.944243451 | AR187: -78.38314684 | AT187: -227520.8585 | AU187: -549610.5131 | AV187: -1.963285314 | AW187: -374070.8882 | AX187: -136421.384 | AY187: -2.791887908 | BA187: 1.493938493 | BB187: 3.486654351 | BC187: 0.8286025947 | BD187: -132.5245684 | BF187: -0.9117804406 | BG187: -121.8122945 | BH187: 58.18770547 | BI187: 58.18770547 | BJ187: 0 | BK187: 0 | BM187: -4.398434792 | BN187: -169.2877262 | BQ187: 20.38861515 | BT187: 5888.437 | BU187: 0.803236 | BV187: -233.954
A188: 77000 | B188: 77 | C188: 1.000421233 | D188: 0.0290201667 | F188: 0.06602179912 | G188: 0.1569844597 | H188: -2.98460819 | J188: 9 | M188: 0.0659103098 | N188: -1.570796325 | O188: 5.934071723 | P188: 1.401469994 | Q188: 3.932754799 | R188: 1.313698659 | S188: 0.9995559159 | T188: -0.0298032534 | U188: 0.9693009671 | V188: -0.24842465 | X188: -1.052369627 | Y188: -119.7162999 | Z188: 60.28370015 | AC188: 1 | AD188: 5.849205691 | AE188: -0.0001924316039 | AF188: 0.0007586066604 | AG188: 6930.151603 | AH188: -3076.139863 | AJ188: 20000 | AK188: 596.2416124 | AL188: 1 | AM188: 3.803493172 | AN188: 1439.738407 | AO188: -4879.793588 | AQ188: 1.919090791 | AR188: -77.87478521 | AT188: -226254.141 | AU188: -545587.4593 | AV188: -1.963909007 | AW188: -369509.1641 | AX188: -134220.8379 | AY188: -2.793170981 | BA188: 1.502400797 | BB188: 3.535716108 | BC188: 0.8292619733 | BD188: -132.4867888 | BF188: -0.9820285936 | BG188: -121.8295087 | BH188: 58.17049131 | BI188: 58.17049131 | BJ188: 0 | BK188: 0 | BM188: -4.517744702 | BN188: -169.3427199 | BQ188: 20.43767691 | BT188: 6025.596 | BU188: 0.769928 | BV188: -234.147
A189: 77500 | B189: 77.5 | C189: 1.00042672 | D189: 0.02920850253 | F189: 0.06512716649 | G189: 0.1558535932 | H189: -2.985739057 | J189: 9 | M189: 0.06548508199 | N189: -1.570796325 | O189: 5.971513812 | P189: 1.402541857 | Q189: 3.956646017 | R189: 1.315285882 | S189: 0.9995501338 | T189: -0.02999666532 | U189: 0.9689194395 | V189: -0.2499716329 | X189: -1.123275181 | Y189: -119.7176658 | Z189: 60.28233423 | AC189: 1 | AD189: 5.887187546 | AE189: -0.0001949388296 | AF189: 0.0007635326777 | AG189: 6924.697108 | AH189: -3077.657864 | AJ189: 20000 | AK189: 600.1133112 | AL189: 1 | AM189: 3.828191179 | AN189: 1424.291315 | AO189: -4852.346138 | AQ189: 1.894422996 | AR189: -77.37297122 | AT189: -225009.2279 | AU189: -541614.7758 | AV189: -1.964543021 | AW189: -365027.1238 | AX189: -132072.1146 | AY189: -2.794431662 | BA189: 1.510861945 | BB189: 3.58449565 | BC189: 0.8298886407 | BD189: -132.4508834 | BF189: -1.051704838 | BG189: -121.8476063 | BH189: 58.15239368 | BI189: 58.15239368 | BJ189: 0 | BK189: 0 | BM189: -4.636200488 | BN189: -169.396723 | BQ189: 20.48645645 | BT189: 6165.95 | BU189: 0.469478 | BV189: -232.056
A190: 78000 | B190: 78 | C190: 1.000432243 | D190: 0.02939683628 | F190: 0.06425087908 | G190: 0.1547396199 | H190: -2.98685303 | J190: 9 | M190: 0.06506530583 | N190: -1.570796325 | O190: 6.008962676 | P190: 1.40360036 | Q190: 3.980547084 | R190: 1.316854049 | S190: 0.9995443143 | T190: -0.030190075 | U190: 0.9685358969 | V190: -0.2515173948 | X190: -1.19362429 | Y190: -119.7198511 | Z190: 60.2801489 | AC190: 1 | AD190: 5.925169402 | AE190: -0.0001974622834 | AF190: 0.0007684586949 | AG190: 6919.21597 | AH190: -3079.260083 | AJ190: 20000 | AK190: 603.98501 | AL190: 1 | AM190: 3.852889187 | AN190: 1409.115331 | AO190: -4825.180213 | AQ190: 1.870227686 | AR190: -76.87757924 | AT190: -223785.5517 | AU190: -537691.4915 | AV190: -1.965187137 | AW190: -360622.9778 | AX190: -129973.6885 | AY190: -2.795670329 | BA190: 1.51932178 | BB190: 3.632995275 | BC190: 0.8304831923 | BD190: -132.4168181 | BF190: -1.120819454 | BG190: -121.8665763 | BH190: 58.13342374 | BI190: 58.13342374 | BJ190: 0 | BK190: 0 | BM190: -4.753814729 | BN190: -169.4497582 | BQ190: 20.53495608 | BT190: 6309.573 | BU190: 0.369853 | BV190: -231.369
A191: 78500 | B191: 78.5 | C191: 1.000437801 | D191: 0.02958516795 | F191: 0.06339243171 | G191: 0.1536421519 | H191: -2.987950498 | J191: 9 | M191: 0.06465087713 | N191: -1.570796325 | O191: 6.046418189 | P191: 1.404645751 | Q191: 4.004457822 | R191: 1.318403492 | S191: 0.9995384575 | T191: -0.03038348242 | U191: 0.9681503474 | V191: -0.2530619297 | X191: -1.263426923 | Y191: -119.7228445 | Z191: 60.27715548 | AC191: 1 | AD191: 5.963151257 | AE191: -0.0002000019651 | AF191: 0.0007733847122 | AG191: 6913.708339 | AH191: -3080.944343 | AJ191: 20000 | AK191: 607.8567088 | AL191: 1 | AM191: 3.877587195 | AN191: 1394.204298 | AO191: -4798.292022 | AQ191: 1.846492872 | AR191: -76.38848686 | AT191: -222582.5633 | AU191: -533816.6604 | AV191: -1.965841141 | AW191: -356294.9848 | AX191: -127924.0872 | AY191: -2.796887351 | BA191: 1.527780151 | BB191: 3.681217266 | BC191: 0.8310462094 | BD191: -132.3845596 | BF191: -1.189382459 | BG191: -121.8864074 | BH191: 58.11359257 | BI191: 58.11359257 | BJ191: 0 | BK191: 0 | BM191: -4.870599725 | BN191: -169.5018479 | BQ191: 20.58317807 | BT191: 6456.542 | BU191: 0.127676 | BV191: -230.779
A192: 79000 | B192: 79 | C192: 1.000443394 | D192: 0.02977349752 | F192: 0.06255133666 | G192: 0.1525608132 | H192: -2.989031837 | J192: 9 | M192: 0.06424169436 | N192: -1.570796325 | O192: 6.083880228 | P192: 1.405678268 | Q192: 4.028378061 | R192: 1.319934538 | S192: 0.9995325634 | T192: -0.03057688756 | U192: 0.9677627988 | V192: -0.2546052317 | X192: -1.332692789 | Y192: -119.7266348 | Z192: 60.27336518 | AC192: 1 | AD192: 6.001133112 | AE192: -0.0002025578748 | AF192: 0.0007783107295 | AG192: 6908.17436 | AH192: -3082.70852 | AJ192: 20000 | AK192: 611.7284075 | AL192: 1 | AM192: 3.902285202 | AN192: 1379.552225 | AO192: -4771.677827 | AQ192: 1.823206945 | AR192: -75.90557474 | AT192: -221399.7305 | AU192: -529989.3607 | AV192: -1.966504827 | AW192: -352041.4502 | AX192: -125921.8895 | AY192: -2.798083087 | BA192: 1.536236906 | BB192: 3.729163887 | BC192: 0.8315782603 | BD192: -132.3540753 | BF192: -1.257403612 | BG192: -121.9070888 | BH192: 58.09291118 | BI192: 58.09291118 | BJ192: 0 | BK192: 0 | BM192: -4.986567499 | BN192: -169.5530135 | BQ192: 20.63112469 | BT192: 6606.934 | BU192: 0.0369381 | BV192: -229.609
A193: 79500 | B193: 79.5 | C193: 1.000449023 | D193: 0.02996182497 | F193: 0.06172712298 | G193: 0.1514952394 | H193: -2.990097411 | J193: 9 | M193: 0.06383765855 | N193: -1.570796325 | O193: 6.121348674 | P193: 1.406698147 | Q193: 4.05230763 | R193: 1.321447505 | S193: 0.999526632 | T193: -0.03077029042 | U193: 0.967373259 | V193: -0.256147295 | X193: -1.401431351 | Y193: -119.7312109 | Z193: 60.26878914 | AC193: 1 | AD193: 6.039114967 | AE193: -0.0002051300126 | AF193: 0.0007832367468 | AG193: 6902.614181 | AH193: -3084.550544 | AJ193: 20000 | AK193: 615.6001063 | AL193: 1 | AM193: 3.92698321 | AN193: 1365.15329 | AO193: -4745.333941 | AQ193: 1.800358659 | AR193: -75.42872654 | AT193: -220236.5383 | AU193: -526208.6947 | AV193: -1.96717799 | AW193: -347860.7251 | AX193: -123965.7234 | AY193: -2.79925789 | BA193: 1.5446919 | BB193: 3.776837382 | BC193: 0.8320798996 | BD193: -132.3253335 | BF193: -1.324892425 | BG193: -121.9286095 | BH193: 58.07139048 | BI193: 58.07139048 | BJ193: 0 | BK193: 0 | BM193: -5.101729807 | BN193: -169.603276 | BQ193: 20.67879818 | BT193: 6760.83 | BU193: -0.0490191 | BV193: -229.1
A194: 80000 | B194: 80 | C194: 1.000454688 | D194: 0.0301501503 | F194: 0.06091933578 | G194: 0.1504450772 | H194: -2.991147573 | J194: 9 | M194: 0.06343867318 | N194: -1.570796325 | O194: 6.158823409 | P194: 1.407705615 | Q194: 4.076246367 | R194: 1.322942704 | S194: 0.9995206632 | T194: -0.03096369098 | U194: 0.966981736 | V194: -0.2576881137 | X194: -1.469651833 | Y194: -119.7365616 | Z194: 60.2634384 | AC194: 1 | AD194: 6.077096822 | AE194: -0.0002077183783 | AF194: 0.000788162764 | AG194: 6897.02795 | AH194: -3086.468394 | AJ194: 20000 | AK194: 619.4718051 | AL194: 1 | AM194: 3.951681217 | AN194: 1351.001824 | AO194: -4719.256729 | AQ194: 1.777937116 | AR194: -74.95782882 | AT194: -219092.4876 | AU194: -522473.7871 | AV194: -1.967860434 | AW194: -343751.2044 | AX194: -122054.264 | AY194: -2.800412103 | BA194: 1.553144986 | BB194: 3.824239981 | BC194: 0.8325516696 | BD194: -132.298303 | BF194: -1.391858169 | BG194: -121.9509587 | BH194: 58.0490413 | BI194: 58.0490413 | BJ194: 0 | BK194: 0 | BM194: -5.21609815 | BN194: -169.6526557 | BQ194: 20.72620078 | BT194: 6918.31 | BU194: -0.217983 | BV194: -228.376
A195: 80500 | B195: 80.5 | C195: 1.000460388 | D195: 0.03033847349 | F195: 0.06012753556 | G195: 0.1494099841 | H195: -2.992182666 | J195: 9 | M195: 0.06304464415 | N195: -1.570796325 | O195: 6.19630432 | P195: 1.408700896 | Q195: 4.10019411 | R195: 1.324420442 | S195: 0.9995146572 | T195: -0.03115708922 | U195: 0.9665882378 | V195: -0.2592276821 | X195: -1.537363224 | Y195: -119.7426761 | Z195: 60.2573239 | AC195: 1 | AD195: 6.115078677 | AE195: -0.000210322972 | AF195: 0.0007930887813 | AG195: 6891.415815 | AH195: -3088.460099 | AJ195: 20000 | AK195: 623.3435039 | AL195: 1 | AM195: 3.976379225 | AN195: 1337.092317 | AO195: -4693.442609 | AQ195: 1.755931758 | AR195: -74.49277095 | AT195: -217967.0948 | AU195: -518783.785 | AV195: -1.968551963 | AW195: -339711.3256 | AX195: -120186.232 | AY195: -2.801546063 | BA195: 1.561596024 | BB195: 3.87137389 | BC195: 0.8329941001 | BD195: -132.2729536 | BF195: -1.458309884 | BG195: -121.9741256 | BH195: 58.02587436 | BI195: 58.02587436 | BJ195: 0 | BK195: 0 | BM195: -5.329683775 | BN195: -169.701172 | BQ195: 20.77333469 | BT195: 7079.458 | BU195: -0.384014 | BV195: -227.044
A196: 81000 | B196: 81 | C196: 1.000466124 | D196: 0.03052679453 | F196: 0.05935129761 | G196: 0.1483896279 | H196: -2.993203022 | J196: 9 | M196: 0.06265547968 | N196: -1.570796325 | O196: 6.233791295 | P196: 1.409684208 | Q196: 4.124150703 | R196: 1.325881014 | S196: 0.9995086138 | T196: -0.03135048512 | U196: 0.9661927724 | V196: -0.2607659943 | X196: -1.60457429 | Y196: -119.7495435 | Z196: 60.25045649 | AC196: 1 | AD196: 6.153060532 | AE196: -0.0002129437937 | AF196: 0.0007980147986 | AG196: 6885.777925 | AH196: -3090.523733 | AJ196: 20000 | AK196: 627.2152027 | AL196: 1 | AM196: 4.001077233 | AN196: 1323.419405 | AO196: -4667.888048 | AQ196: 1.73433235 | AR196: -74.03344502 | AT196: -216859.8915 | AU196: -515137.8568 | AV196: -1.969252388 | AW196: -335739.5676 | AX196: -118360.3912 | AY196: -2.802660097 | BA196: 1.570044873 | BB196: 3.918241301 | BC196: 0.8334077089 | BD196: -132.2492556 | BF196: -1.524256386 | BG196: -121.9980997 | BH196: 58.00190029 | BI196: 58.00190029 | BJ196: 0 | BK196: 0 | BM196: -5.442497687 | BN196: -169.7488441 | BQ196: 20.8202021 | BT196: 7244.36 | BU196: -0.57486 | BV196: -226.239
A197: 81500 | B197: 81.5 | C197: 1.000471895 | D197: 0.03071511341 | F197: 0.05859021139 | G197: 0.1473836863 | H197: -2.994208964 | J197: 9 | M197: 0.06227109024 | N197: -1.570796325 | O197: 6.271284226 | P197: 1.410655763 | Q197: 4.148115992 | R197: 1.327324713 | S197: 0.9995025331 | T197: -0.03154387868 | U197: 0.9657953478 | V197: -0.2623030447 | X197: -1.67129358 | Y197: -119.7571531 | Z197: 60.2428469 | AC197: 1 | AD197: 6.191042388 | AE197: -0.0002155808435 | AF197: 0.0008029408159 | AG197: 6880.114429 | AH197: -3092.65742 | AJ197: 20000 | AK197: 631.0869014 | AL197: 1 | AM197: 4.02577524 | AN197: 1309.977869 | AO197: -4642.589567 | AQ197: 1.713128969 | AR197: -73.57974578 | AT197: -215770.4234 | AU197: -511535.1916 | AV197: -1.969961524 | AW197: -331834.4495 | AX197: -116575.5477 | AY197: -2.803754526 | BA197: 1.578491397 | BB197: 3.964844383 | BC197: 0.8337930019 | BD197: -132.2271799 | BF197: -1.589706272 | BG197: -122.0228704 | BH197: 57.97712963 | BI197: 57.97712963 | BJ197: 0 | BK197: 0 | BM197: -5.554550655 | BN197: -169.7956904 | BQ197: 20.86680518 | BT197: 7413.102 | BU197: -0.7333 | BV197: -225.834
A198: 82000 | B198: 82 | C198: 1.000477701 | D198: 0.0309034301 | F198: 0.05784387996 | G198: 0.1463918465 | H198: -2.995200804 | J198: 9 | M198: 0.06189138847 | N198: -1.570796325 | O198: 6.308783006 | P198: 1.41161577 | Q198: 4.172089828 | R198: 1.328751823 | S198: 0.9994964151 | T198: -0.03173726988 | U198: 0.965395972 | V198: -0.2638388274 | X198: -1.737529432 | Y198: -119.7654942 | Z198: 60.23450576 | AC198: 1 | AD198: 6.229024243 | AE198: -0.0002182341212 | AF198: 0.0008078668331 | AG198: 6874.425474 | AH198: -3094.859325 | AJ198: 20000 | AK198: 634.9586002 | AL198: 1 | AM198: 4.050473248 | AN198: 1296.762629 | AO198: -4617.543735 | AQ198: 1.692311994 | AR198: -73.13157051 | AT198: -214698.2503 | AU198: -507974.9989 | AV198: -1.970679191 | AW198: -327994.529 | AX198: -114830.5476 | AY198: -2.804829665 | BA198: 1.58693546 | BB198: 4.011185289 | BC198: 0.834150474 | BD198: -132.2066983 | BF198: -1.65466793 | BG198: -122.0484272 | BH198: 57.95157278 | BI198: 57.95157278 | BJ198: 0 | BK198: 0 | BM198: -5.665853219 | BN198: -169.8417289 | BQ198: 20.91314609 | BT198: 7585.776 | BU198: -0.870902 | BV198: -224.429
A199: 82500 | B199: 82.5 | C199: 1.000483543 | D199: 0.0310917446 | F199: 0.05711191946 | G199: 0.1454138048 | H199: -2.996178845 | J199: 9 | M199: 0.06151628914 | N199: -1.570796325 | O199: 6.346287531 | P199: 1.412564431 | Q199: 4.196072063 | R199: 1.330162624 | S199: 0.9994902598 | T199: -0.03193065871 | U199: 0.9649946532 | V199: -0.2653733369 | X199: -1.803289979 | Y199: -119.7745564 | Z199: 60.22544358 | AC199: 1 | AD199: 6.267006098 | AE199: -0.0002209036269 | AF199: 0.0008127928504 | AG199: 6868.711212 | AH199: -3097.12766 | AJ199: 20000 | AK199: 638.830299 | AL199: 1 | AM199: 4.075171256 | AN199: 1283.768741 | AO199: -4592.747172 | AQ199: 1.671872095 | AR199: -72.688819 | AT199: -213642.9453 | AU199: -504456.5073 | AV199: -1.971405212 | AW199: -324218.4017 | AX199: -113124.2755 | AY199: -2.805885821 | BA199: 1.59537693 | BB199: 4.057266151 | BC199: 0.8344806086 | BD199: -132.187783 | BF199: -1.719149544 | BG199: -122.0747599 | BH199: 57.92524006 | BI199: 57.92524006 | BJ199: 0 | BK199: 0 | BM199: -5.776415695 | BN199: -169.8869769 | BQ199: 20.95922695 | BT199: 7762.471 | BU199: -1.03486 | BV199: -223.255
A200: 83000 | B200: 83 | C200: 1.000489421 | D200: 0.03128005689 | F200: 0.05639395855 | G200: 0.1444492664 | H200: -2.997143384 | J200: 9 | M200: 0.06114570909 | N200: -1.570796325 | O200: 6.383797701 | P200: 1.413501944 | Q200: 4.220062556 | R200: 1.331557386 | S200: 0.9994840672 | T200: -0.03212404514 | U200: 0.9645913994 | V200: -0.2669065676 | X200: -1.868583158 | Y200: -119.7843292 | Z200: 60.21567078 | AC200: 1 | AD200: 6.304987953 | AE200: -0.0002235893606 | AF200: 0.0008177188677 | AG200: 6862.971791 | AH200: -3099.460676 | AJ200: 20000 | AK200: 642.7019978 | AL200: 1 | AM200: 4.099869263 | AN200: 1270.991393 | AO200: -4568.196546 | AQ200: 1.65180022 | AR200: -72.25139342 | AT200: -212604.0944 | AU200: -500978.9648 | AV200: -1.972139413 | AW200: -320504.6998 | AX200: -111455.6534 | AY200: -2.806923292 | BA200: 1.603815676 | BB200: 4.103089082 | BC200: 0.8347838787 | BD200: -132.1704069 | BF200: -1.7831591 | BG200: -122.1018583 | BH200: 57.89814169 | BI200: 57.89814169 | BJ200: 0 | BK200: 0 | BM200: -5.886248183 | BN200: -169.9314514 | BQ200: 21.00504988 | BT200: 7943.282 | BU200: -1.2308 | BV200: -223.135
A201: =A200+500 -> 83500 | B201: 83.5 | C201: =SQRT((A201/Fesr)^2+1) -> 1.000495333 | D201: =ATAN(A201/Fesr) -> 0.03146836697 | F201: =(Ro/(Ro+Rdcr))/SQRT((A201/(Q*Fo))^2+(1-(A201^2/Fo^2))^2) -> 0.05568963797 | G201: =-ATAN(A201*Fo/(Q*(Fo^2-A201^2))) -> 0.1434979452 | H201: =IF(G201>0,G201-Pi,G201) -> -2.998094705 | J201: =Vin/Vramp -> 9 | M201: =1/(2*Pi*_Rfb1*(Cc1ea_u+Cc2ea_u)*A201) -> 0.06077956712 | N201: =-Pi/2 -> -1.570796325 | O201: =SQRT(1+(A201/Fz1_u)^2) -> 6.421313416 | P201: =ATAN2(Fz1_u,A201) -> 1.414428503 | Q201: =SQRT(1+(A201/Fz2_u)^2) -> 4.244061165 | R201: =ATAN2(Fz2_u,A201) -> 1.332936377 | S201: =1/SQRT(1+(A201/Fp1_u)^2) -> 0.9994778373 | T201: =-ATAN2(Fp1_u,A201) -> -0.03231742918 | U201: =1/SQRT(1+(A201/Fp2_u)^2) -> 0.9641862187 | V201: =-ATAN2(Fp2_u,A201) -> -0.2684385137 | X201: -1.933416715 | Y201: =(180/Pi)*(D201+H201+N201+P201+R201+T201+V201) -> -119.7948023 | Z201: 60.20519765 | AC201: 1 | AD201: =Rcea1_u*Cc1ea_u*A201*2*Pi -> 6.342969808 | AE201: =-Rcea1_u*Cc1ea_u*Cc2ea_u*(A201*2*Pi)^2 -> -0.0002262913223 | AF201: =(Cc2ea_u+Cc1ea_u)*A201*2*Pi -> 0.000822644885 | AG201: 6857.207362 | AH201: -3101.856668 | AJ201: =_Rfb1 -> 20000 | AK201: =_Rfb1*Rcea2_u*Cc3ea_u*A201*2*Pi -> 646.5736966 | AL201: 1 | AM201: =(_Rfb1+Rcea2_u)*Cc3ea_u*A201*2*Pi -> 4.124567271 | AN201: 1258.425898 | AO201: -4543.888576 | AQ201: =Eadcg/(1+(Eadcg*A201/GBP)^2) -> 1.632087589 | AR201: =-(A201*Eadcg*Eadcg/GBP)/(1+(Eadcg*A201/GBP)^2) -> -71.81919832 | AT201: -211581.2961 | AU201: -497541.6372 | AV201: -1.972881626 | AW201: -316852.0907 | AX201: -109823.6389 | AY201: -2.807942373 | BA201: =SQRT(AT201^2+AU201^2)/SQRT(AW201^2+AX201^2) -> 1.612251571 | BB201: 4.148656178 | BC201: 0.8350607468 | BD201: =BC201*180/Pi-180 -> -132.1545435 | BF201: =20*LOG(BA201*J201*F201*C201) -> -1.846704394 | BG201: =(180/Pi)*(D201+H201+BC201) -> -122.1297123 | BH201: 57.87028774 | BI201: 57.87028774 | BJ201: =SUM((BF202<0)*(BF201>0))*A201 -> 0 | BK201: 0 | BM201: -5.995360572 | BN201: =(H201+D201)*180/Pi -> -169.9751687 | BQ201: 21.05061698 | BT201: 8128.305 | BU201: -1.35261 | BV201: -221.982
... 491 more rows

Sheet Power Calculations (hidden)
A1: BUCK CONTROLLER POWER TOOL
AC3: =VsdBot -> 0.77
A6: Enter the values of your design and FET datasheet specifications below. Note that thermal resistance ("Theta JA") will change when components are placed on the PCB | BC6: 80 | BD6: 100 | BE6: 120 | BF6: 140 | BG6: 160 | BH6: 180 | BI6: 20 | BJ6: 30 | BK6: 40 | BL6: 50
G7: Currents | K7: INDUCTOR | O7: Cout | R7: Cin | U7: HIGH SIDE FET losses | Z7: LOW SIDE FET Losses | AD7: External Diode | AE7: Diod/eFET | AF7: Part Losses | AJ7: RESULSTS
A8: Input Parameters | G8: Step | H8: Iout | I8: Duty Cycle | J8: Current Ripple p-p | K8: IRMS | L8: DCR Loss | M8: Core | N8: Total Inductor Loss/Diss | O8: Irms | P8: Cout Esr Loss | Q8: Total Cout Loss/Diss | R8: Irms | S8: Cin Esr Loss | T8: Total Cin Loss/Diss | U8: Irms | V8: RDSON Loss | W8: Transitional Loss | X8: Dead Time Loss | Y8: Total Top FET Loss/Diss | Z8: Irms | AA8: RDSON Loss | AB8: DeadTime Loss | AC8: Total Bottom Fet Diss/Loss | AD8: DeadTime Loss | AE8: Reverse Recovery Loss | AF8: IQ Loss | AG8: Switching Current Loss | AH8: Switching Current Diss | AI8: Total Part Loss | AJ8: Total Loss | AK8: OUTPUT POWER | AL8: EFF | AM8: Top FET Temp Rise | AN8: Bottom FET Temp Rise | BA8: Qg | BC8: θJA=80 | BD8: θJA=100 | BE8: θJA=120 | BF8: θJA=140 | BG8: θJA=160 | BH8: θJA=180 | BI8: θJA=20 | BJ8: θJA=30 | BK8: θJA=40 | BL8: θJA=50
A9: Design | B9: Input Value | C9: Units | D9: Description | G9: 0 | H9: =Iout*(G9/100) -> 0 | I9: =(Vout+Rdcr*H9+RdsonBot*H9)/(Vin-RdsonTop*H9+RdsonBot*H9) -> 0.175 | J9: =(Vin-Vout)*I9/(Fsw*Lout2) -> 4.246323529 | K9: =SQRT(H9^2+(J9^2)/12) -> 1.225808016 | L9: =(K9^2*Rdcr*(1+Ltc*Ta-Ltc*25))/(1-K9^2*Rdcr*Ltc*ThetaCa) -> 0.004509442098 | N9: =L9 -> 0.004509442098 | O9: =J9/(2*SQRT(3)) -> 1.225808016 | P9: =RCoutEsr*O9^2 -> 0.0009015631758 | Q9: =P9 -> 0.0009015631758 | R9: =SQRT(I9)*SQRT(H9^2+(J9^2)/12) -> 0.5127922838 | S9: =RCinEsr*R9^2 -> 0.0007888677788 | T9: =S9 -> 0.0007888677788 | U9: =SQRT(I9)*SQRT(H9^2+(J9^2)/12) -> 0.5127922838 | V9: =RdsonTop*U9^2 -> 0.001051823705 | W9: =(Vin*H9/2)*(Fsw)*(Tr+Tf) -> 0 | X9: =IF(H9>J9/2,0,ABS(H9-J9/2)*VsdTop*Deadtime*Fsw) -> 0.02165625 | Y9: =(X9+W9+V9*(1+RdsonTopTc*Ta-RdsonTopTc*25))/(1-V9*RdsonTopTc*ThetaJaTop) -> 0.0227133296 | Z9: =SQRT(1-I9)*SQRT(H9^2+(J9^2)/12) -> 1.113395422 | AA9: =RdsonBot*Z9^2 -> 0.00223136886 | AB9: =2*Deadtime*Fsw*IF(VfdSky>0,0,VsdBot)*(H9+J9/2) -> 0.03923602941 | AC9: =(AB9+AA9*(1+RdsonBotTc*Ta-RdsonBotTc*25))/(1-AA9*RdsonBotTc*ThetaJaBot) -> 0.04148591235 | AD9: =2*Deadtime*Fsw*IF(VfdSky>0,VfdSky,0)*H9 -> 0 | AE9: =IF(QrrSky>0,QrrSky,QrrBot)*Fsw*(Vin-H9*RdsonTop) -> 0.1584 | AF9: =Iq*Vin -> 0.036 | AG9: =Vin*(QgTop+QgBot)*Fsw -> 0.58464 | AH9: =(Vin-Vdd)*Fsw*(QgTop+QgBot)+(RdsonDRT+RdsonDRT2)*Fsw*QgTop*Vdd/(RdsonDRT+2*RGateTop+RdsonDRT2)+(RdsonDRB+RdsonDRB2)*Fsw*QgBot*Vdd/(RdsonDRB+2*RGateBot+RdsonDRB2) -> 0.4837507719 | AI9: =SUM(AF9:AG9) -> 0.62064 | AJ9: =SUM(N9,Q9,T9,Y9,AE9,AD9,AC9,AI9) -> 0.849439115 | AK9: =Vout*H9 -> 0 | AL9: =AK9/(AK9+AJ9) -> 0 | AM9: =ThetaJaTop*Y9 -> 1.249233128 | AN9: =AC9*ThetaJaBot -> 2.074295617 | AP9: =AL9*100 -> 0 | AX9: 250kHz / 5-1.2V /25A | AY9: 70 | AZ9: 70 | BA9: 70 | BB9: =250000*(5-Vdd)*BA9/1000000000+((250000*BA9/1000000000*Vdd)*2.5/(2*4)) -> 0.033359375 | BC9: =BC$6*$BB9 -> 2.66875 | BD9: 3.3359375 | BE9: 4.003125 | BF9: 4.6703125 | BG9: 5.3375 | BH9: 6.0046875 | BI9: 0.6671875 | BJ9: 1.00078125 | BK9: 1.334375 | BL9: 1.66796875
G10: 1 | H10: =Iout*(G10/100) -> 0.14 | I10: =(Vout+Rdcr*H10+RdsonBot*H10)/(Vin-RdsonTop*H10+RdsonBot*H10) -> 0.1750604932 | J10: =(Vin-Vout)*I10/(Fsw*Lout2) -> 4.24779138 | K10: =SQRT(H10^2+(J10^2)/12) -> 1.234197837 | L10: =(K10^2*Rdcr*(1+Ltc*Ta-Ltc*25))/(1-K10^2*Rdcr*Ltc*ThetaCa) -> 0.004571404109 | N10: =L10 -> 0.004571404109 | O10: =J10/(2*SQRT(3)) -> 1.226231748 | P10: =RCoutEsr*O10^2 -> 0.0009021865802 | Q10: =P10 -> 0.0009021865802 | R10: =SQRT(I10)*SQRT(H10^2+(J10^2)/12) -> 0.5163912262 | S10: =RCinEsr*R10^2 -> 0.0007999796956 | T10: =S10 -> 0.0007999796956 | U10: =SQRT(I10)*SQRT(H10^2+(J10^2)/12) -> 0.5163912262 | V10: =RdsonTop*U10^2 -> 0.001066639594 | W10: =(Vin*H10/2)*(Fsw)*(Tr+Tf) -> 0.0026031224 | X10: =IF(H10>J10/2,0,ABS(H10-J10/2)*VsdTop*Deadtime*Fsw) -> 0.02023573604 | Y10: =(X10+W10+V10*(1+RdsonTopTc*Ta-RdsonTopTc*25))/(1-V10*RdsonTopTc*ThetaJaTop) -> 0.02391110903 | Z10: =SQRT(1-I10)*SQRT(H10^2+(J10^2)/12) -> 1.120974755 | AA10: =RdsonBot*Z10^2 -> 0.002261851923 | AB10: =2*Deadtime*Fsw*IF(VfdSky>0,0,VsdBot)*(H10+J10/2) -> 0.04183679235 | AC10: =(AB10+AA10*(1+RdsonBotTc*Ta-RdsonBotTc*25))/(1-AA10*RdsonBotTc*ThetaJaBot) -> 0.04411860222 | AD10: =2*Deadtime*Fsw*IF(VfdSky>0,VfdSky,0)*H10 -> 0 | AE10: =IF(QrrSky>0,QrrSky,QrrBot)*Fsw*(Vin-H10*RdsonTop) -> 0.158392608 | AF10: 0.036 | AG10: 0.58464 | AH10: 0.4837507719 | AI10: =SUM(AF10:AG10) -> 0.62064 | AJ10: =SUM(N10,Q10,T10,Y10,AE10,AD10,AC10,AI10) -> 0.8533358896 | AK10: =Vout*H10 -> 0.294 | AL10: =AK10/(AK10+AJ10) -> 0.2562457975 | AM10: =ThetaJaTop*Y10 -> 1.315110997 | AN10: =AC10*ThetaJaBot -> 2.205930111 | AP10: =AL10*100 -> 25.62457975
A11: Vin | B11: =Vin -> 12 | C11: V | D11: Vin | G11: 2 | H11: 0.28 | I11: 0.1751209895 | J11: 4.249259305 | K11: =SQRT(H11^2+(J11^2)/12) -> 1.258206549 | L11: 0.004751056277 | N11: =L11 -> 0.004751056277 | O11: =J11/(2*SQRT(3)) -> 1.226655502 | P11: 0.0009028102321 | Q11: =P11 -> 0.0009028102321 | R11: =SQRT(I11)*SQRT(H11^2+(J11^2)/12) -> 0.5265274804 | S11: 0.0008316935628 | T11: =S11 -> 0.0008316935628 | U11: =SQRT(I11)*SQRT(H11^2+(J11^2)/12) -> 0.5265274804 | V11: 0.00110892475 | W11: =(Vin*H11/2)*(Fsw)*(Tr+Tf) -> 0.005206244799 | X11: =IF(H11>J11/2,0,ABS(H11-J11/2)*VsdTop*Deadtime*Fsw) -> 0.01881522246 | Y11: =(X11+W11+V11*(1+RdsonTopTc*Ta-RdsonTopTc*25))/(1-V11*RdsonTopTc*ThetaJaTop) -> 0.0251365244 | Z11: =SQRT(1-I11)*SQRT(H11^2+(J11^2)/12) -> 1.142739048 | AA11: 0.002350534559 | AB11: =2*Deadtime*Fsw*IF(VfdSky>0,0,VsdBot)*(H11+J11/2) -> 0.04443755598 | AC11: 0.04681009629 | AD11: =2*Deadtime*Fsw*IF(VfdSky>0,VfdSky,0)*H11 -> 0 | AE11: =IF(QrrSky>0,QrrSky,QrrBot)*Fsw*(Vin-H11*RdsonTop) -> 0.158385216 | AF11: 0.036 | AG11: 0.58464 | AH11: 0.4837507719 | AI11: =SUM(AF11:AG11) -> 0.62064 | AJ11: =SUM(N11,Q11,T11,Y11,AE11,AD11,AC11,AI11) -> 0.8574573968 | AK11: =Vout*H11 -> 0.588 | AL11: =AK11/(AK11+AJ11) -> 0.4067916504 | AM11: =ThetaJaTop*Y11 -> 1.382508842 | AN11: =AC11*ThetaJaBot -> 2.340504814 | AP11: =AL11*100 -> 40.67916504 | AX11: 250kHz / 12-5V / 30A | AY11: 90 | AZ11: 90 | BA11: 90 | BB11: =250000*(12-Vdd)*BA11/1000000000+((250000*BA9/1000000000*Vdd)*2.5/(2*4)) -> 0.193359375 | BC11: 15.46875 | BD11: 19.3359375 | BE11: 23.203125 | BF11: 27.0703125 | BG11: 30.9375 | BH11: 34.8046875 | BI11: 3.8671875 | BJ11: 5.80078125 | BK11: 7.734375 | BL11: 9.66796875
A12: Vout | B12: =Vout -> 2.1 | C12: V | D12: Vout | G12: 3 | H12: 0.42 | I12: 0.175181489 | J12: 4.250727306 | K12: 1.296967059 | L12: 0.005048408749 | N12: 0.005048408749 | O12: 1.227079277 | P12: 0.0009034341315 | Q12: 0.0009034341315 | R12: 0.5428415133 | S12: 0.0008840307257 | T12: 0.0008840307257 | U12: 0.5428415133 | V12: 0.001178707634 | W12: 0.007809367199 | X12: 0.01739470926 | Y12: 0.02638962734 | Z12: 1.17789925 | AA12: 0.002497403959 | AB12: 0.04703832031 | AC12: 0.04956047877 | AD12: 0 | AE12: 0.158377824 | AF12: 0.036 | AG12: 0.58464 | AH12: 0.4837507719 | AI12: 0.62064 | AJ12: 0.8618038037 | AK12: 0.882 | AL12: 0.5057908453 | AM12: 1.451429504 | AN12: 2.478023939 | AP12: 50.57908453 | AX12: 250kHz / 18-1.2V / 20A | AY12: 60 | AZ12: 60 | BA12: 60 | BB12: =250000*(18-Vdd)*BA12/1000000000+((250000*BA9/1000000000*Vdd)*2.5/(2*4)) -> 0.227109375 | BC12: 18.16875 | BD12: 22.7109375 | BE12: 27.253125 | BF12: 31.7953125 | BG12: 36.3375 | BH12: 40.8796875 | BI12: 4.5421875 | BJ12: 6.81328125 | BK12: 9.084375 | BL12: 11.35546875
A13: Fsw | B13: =Fsw/1000 -> 600 | C13: kHz | D13: Switching Frequency | G13: 4 | H13: 0.56 | I13: 0.1752419915 | J13: 4.252195382 | K13: 1.349208582 | L13: 0.005463478317 | N13: 0.005463478317 | O13: 1.227503074 | P13: 0.0009040582784 | Q13: 0.0009040582784 | R13: 0.5648045477 | S13: 0.0009570125314 | T13: 0.0009570125314 | U13: 0.5648045477 | V13: 0.001276016709 | W13: 0.0104124896 | X13: 0.01597419645 | Y13: 0.02767047051 | Z13: 1.225299808 | AA13: 0.002702447316 | AB13: 0.04963908533 | AC13: 0.05236983799 | AD13: 0 | AE13: 0.158370432 | AF13: 0.036 | AG13: 0.58464 | AH13: 0.4837507719 | AI13: 0.62064 | AJ13: 0.8663752896 | AK13: 1.176 | AL13: 0.5758001509 | AM13: 1.521875878 | AN13: 2.6184919 | AP13: 57.58001509 | AX13: 500kHz / 5-1.2V / 15A | AY13: 30 | AZ13: 30 | BA13: 30 | BB13: =500000*(5-Vdd)*BA13/1000000000+((500000*BA9/1000000000*Vdd)*2.5/(2*4)) -> 0.05671875 | BC13: 4.5375 | BD13: 5.671875 | BE13: 6.80625 | BF13: 7.940625 | BG13: 9.075 | BH13: 10.209375 | BI13: 1.134375 | BJ13: 1.7015625 | BK13: 2.26875 | BL13: 2.8359375
A14: Iout | B14: =Iout -> 14 | C14: A | D14: Max Output Current | G14: 5 | H14: 0.7 | I14: 0.1753024972 | J14: 4.253663534 | K14: 1.413437107 | L14: 0.005996288424 | N14: 0.005996288424 | O14: 1.227926893 | P14: 0.000904682673 | Q14: 0.000904682673 | R14: 0.5917939758 | S14: 0.001050660329 | T14: 0.001050660329 | U14: 0.5917939758 | V14: 0.001400880439 | W14: 0.013015612 | X14: 0.01455368402 | Y14: 0.02897910764 | Z14: 1.283582621 | AA14: 0.002965651821 | AB14: 0.05223985105 | AC14: 0.05523826637 | AD14: 0 | AE14: 0.15836304 | AF14: 0.036 | AG14: 0.58464 | AH14: 0.4837507719 | AI14: 0.62064 | AJ14: 0.8711720454 | AK14: 1.47 | AL14: 0.627890634 | AM14: 1.59385092 | AN14: 2.761913318 | AP14: 62.7890634 | AX14: 500kHz / 12-5V / 15A | AY14: 45 | AZ14: 45 | BA14: 45 | BB14: =500000*(12-Vdd)*BA14/1000000000+((500000*BA9/1000000000*Vdd)*2.5/(2*4)) -> 0.21796875 | BC14: 17.4375 | BD14: 21.796875 | BE14: 26.15625 | BF14: 30.515625 | BG14: 34.875 | BH14: 39.234375 | BI14: 4.359375 | BJ14: 6.5390625 | BK14: 8.71875 | BL14: 10.8984375
A15: Ta | B15: =Ta -> 25 | C15: degC | D15: Ambient Temperature | G15: 6 | H15: 0.84 | I15: 0.1753630059 | J15: 4.255131761 | K15: 1.488101316 | L15: 0.006646869167 | N15: 0.006646869167 | O15: 1.228350734 | P15: 0.0009053073151 | Q15: 0.0009053073151 | R15: 0.6231627586 | S15: 0.001164995471 | T15: 0.001164995471 | U15: 0.6231627586 | V15: 0.001553327295 | W15: 0.0156187344 | X15: 0.01313317198 | Y15: 0.03031559348 | Z15: 1.351337745 | AA15: 0.003287004663 | AB15: 0.05484061747 | AC15: 0.05816586042 | AD15: 0 | AE15: 0.158355648 | AF15: 0.036 | AG15: 0.58464 | AH15: 0.4837507719 | AI15: 0.62064 | AJ15: 0.8761942739 | AK15: 1.764 | AL15: 0.6681326512 | AM15: 1.667357642 | AN15: 2.908293021 | AP15: 66.81326512 | AX15: 1Mhz / 5-1.2V / 10A | AY15: 20 | AZ15: 20 | BA15: 20 | BB15: =1000000*(5-Vdd)*BA15/1000000000+((1000000*BA9/1000000000*Vdd)*2.5/(2*4)) -> 0.1084375 | BC15: 8.675 | BD15: 10.84375 | BE15: 13.0125 | BF15: 15.18125 | BG15: 17.35 | BH15: 19.51875 | BI15: 2.16875 | BJ15: 3.253125 | BK15: 4.3375 | BL15: 5.421875
A16: Vdd | B16: =Vdd -> 4.5 | C16: V | D16: Subregulated Boost Voltage | G16: 7 | H16: 0.98 | I16: 0.1754235178 | J16: 4.256600063 | K16: 1.571714671 | L16: 0.0074152573 | N16: 0.0074152573 | O16: 1.228774596 | P16: 0.0009059322049 | Q16: 0.0009059322049 | R16: 0.6582905414 | S16: 0.001300039311 | T16: 0.001300039311 | U16: 0.6582905414 | V16: 0.001733385747 | W16: 0.0182218568 | X16: 0.01171266032 | Y16: 0.03167998387 | Z16: 1.42721427 | AA16: 0.003666493028 | AB16: 0.05744138458 | AC16: 0.06115272082 | AD16: 0 | AE16: 0.158348256 | AF16: 0.036 | AG16: 0.58464 | AH16: 0.4837507719 | AI16: 0.62064 | AJ16: 0.8814421895 | AK16: 2.058 | AL16: 0.7001328372 | AM16: 1.742399113 | AN16: 3.057636041 | AP16: 70.01328372 | AX16: 1Mhz / 12-1.2V/ 10A | AY16: 25 | AZ16: 25 | BA16: 25 | BB16: =1000000*(12-Vdd)*BA16/1000000000+((1000000*BA9/1000000000*Vdd)*2.5/(2*4)) -> 0.2859375 | BC16: 22.875 | BD16: 28.59375 | BE16: 34.3125 | BF16: 40.03125 | BG16: 45.75 | BH16: 51.46875 | BI16: 5.71875 | BJ16: 8.578125 | BK16: 11.4375 | BL16: 14.296875
A17: Components | B17: Input Value | C17: Units | D17: Description | G17: 8 | H17: 1.12 | I17: 0.1754840327 | J17: 4.258068441 | K17: 1.662927811 | L17: 0.00830149624 | N17: 0.00830149624 | O17: 1.22919848 | P17: 0.0009065573424 | Q17: 0.0009065573424 | R17: 0.6966140021 | S17: 0.001455813204 | T17: 0.001455813204 | U17: 0.6966140021 | V17: 0.001941084272 | W17: 0.0208249792 | X17: 0.01029214905 | Y17: 0.03307233568 | Z17: 1.509986038 | AA17: 0.004104104105 | AB17: 0.0600421524 | AC17: 0.06419895234 | AD17: 0 | AE17: 0.158340864 | AF17: 0.036 | AG17: 0.58464 | AH17: 0.4837507719 | AI17: 0.62064 | AJ17: 0.8869160188 | AK17: 2.352 | AL17: 0.7261688745 | AM17: 1.818978462 | AN17: 3.209947617 | AP17: 72.61688745 | AX17: 500kHz / 18-1.2V / 20A | AY17: 50 | AZ17: 50 | BA17: 50 | BB17: =500000*(18-Vdd)*BA17/1000000000+((500000*BA15/1000000000*Vdd)*2.5/(2*4)) -> 0.3515625 | BC17: 28.125 | BD17: 35.15625 | BE17: 42.1875 | BF17: 49.21875 | BG17: 56.25 | BH17: 63.28125 | BI17: 7.03125 | BJ17: 10.546875 | BK17: 14.0625 | BL17: 17.578125
A18: L | B18: =Lout2*1000000 -> 0.68 | C18: uH | D18: Output Inductor Inductance Value | G18: 9 | H18: 1.26 | I18: 0.1755445508 | J18: 4.259536894 | K18: 1.760559915 | L18: 0.009305636074 | N18: 0.009305636074 | O18: 1.229622386 | P18: 0.0009071827277 | Q18: 0.0009071827277 | R18: 0.7376400451 | S18: 0.001632338509 | T18: 0.001632338509 | U18: 0.7376400451 | V18: 0.002176451345 | W18: 0.0234281016 | X18: 0.00887163816 | Y18: 0.03449270688 | Z18: 1.598580113 | AA18: 0.004599825078 | AB18: 0.0626429209 | AC18: 0.06730466392 | AD18: 0 | AE18: 0.158333472 | AF18: 0.036 | AG18: 0.58464 | AH18: 0.4837507719 | AI18: 0.62064 | AJ18: 0.8926160001 | AK18: 2.646 | AL18: 0.7477499678 | AM18: 1.897098878 | AN18: 3.365233196 | AP18: 74.77499678 | AX18: θJA=120°C/W - 160°C/W
A19: Rdcr | B19: =Rdcr*1000 -> 3 | C19: mOhms | D19: Inductor Series Resistance at 25 Degrees C | G19: 10 | H19: 1.4 | I19: 0.175605072 | J19: 4.261005423 | K19: 1.863602408 | L19: 0.01042773356 | N19: 0.01042773356 | O19: 1.230046314 | P19: 0.0009078083606 | Q19: 0.0009078083606 | R19: 0.780947413 | S19: 0.001829636586 | T19: 0.001829636586 | U19: 0.780947413 | V19: 0.002439515448 | W19: 0.026031224 | X19: 0.007451127656 | Y19: 0.03594115648 | Z19: 1.692080102 | AA19: 0.005153643131 | AB19: 0.06524369011 | AC19: 0.07046996865 | AD19: 0 | AE19: 0.15832608 | AF19: 0.036 | AG19: 0.58464 | AH19: 0.4837507719 | AI19: 0.62064 | AJ19: 0.8985423836 | AK19: 2.94 | AL19: 0.7659157321 | AM19: 1.976763607 | AN19: 3.523498433 | AP19: 76.59157321 | AX19: θJA=30°C/W - 50°C/W
A20: LTc | B20: =Ltc*1000000 -> 4000 | C20: ppm | D20: Inductor Series Resistance Temp Co | G20: 11 | H20: 1.54 | I20: 0.1756655963 | J20: 4.262474027 | K20: 1.971207008 | L20: 0.01166785215 | N20: 0.01166785215 | O20: 1.230470263 | P20: 0.0009084342414 | Q20: 0.0009084342414 | R20: 0.826181739 | S20: 0.002047728798 | T20: 0.002047728798 | U20: 0.826181739 | V20: 0.002730305063 | W20: 0.0286343464 | X20: 0.006030617536 | Y20: 0.03741774461 | Z20: 1.789715286 | AA20: 0.005765545446 | AB20: 0.06784446001 | AC20: 0.07369498381 | AD20: 0 | AE20: 0.158318688 | AF20: 0.036 | AG20: 0.58464 | AH20: 0.4837507719 | AI20: 0.62064 | AJ20: 0.9046954316 | AK20: 3.234 | AL20: 0.7814056515 | AM20: 2.057975953 | AN20: 3.68474919 | AP20: 78.14056515
A21: ThetaCa | B21: =ThetaCa -> 20 | C21: degC/W | D21: Core to Ambient Thermal Resistance | G21: 12 | H21: 1.68 | I21: 0.1757261236 | J21: 4.263942706 | K21: 2.082666708 | L21: 0.01302606198 | N21: 0.01302606198 | O21: 1.230894235 | P21: 0.0009090603701 | Q21: 0.0009090603701 | R21: 0.8730476331 | S21: 0.002286636509 | T21: 0.002286636509 | U21: 0.8730476331 | V21: 0.003048848679 | W21: 0.0312374688 | X21: 0.004610107801 | Y21: 0.03892253244 | Z21: 1.890843316 | AA21: 0.006435519205 | AB21: 0.0704452306 | AC21: 0.07697983085 | AD21: 0 | AE21: 0.158311296 | AF21: 0.036 | AG21: 0.58464 | AH21: 0.4837507719 | AI21: 0.62064 | AJ21: 0.9110754181 | AK21: 3.528 | AL21: 0.7947600948 | AM21: 2.140739284 | AN21: 3.848991542 | AP21: 79.47600948
A22: Cin | B22: =Cin*1000000 -> 22 | C22: uF | D22: Input Capacitor Capacitance | G22: 13 | H22: 1.82 | I22: 0.1757866541 | J22: 4.265411461 | K22: 2.197394953 | L22: 0.0145024399 | N22: 0.0145024399 | O22: 1.231318228 | P22: 0.0009096867465 | Q22: 0.0009096867465 | R22: 0.9213000031 | S22: 0.002546381087 | T22: 0.002546381087 | U22: 0.9213000031 | V22: 0.003395174783 | W22: 0.0338405912 | X22: 0.003189598451 | Y22: 0.04045558226 | Z22: 1.994931298 | AA22: 0.007163551587 | AB22: 0.0730460019 | AC22: 0.08032463542 | AD22: 0 | AE22: 0.158303904 | AF22: 0.036 | AG22: 0.58464 | AH22: 0.4837507719 | AI22: 0.62064 | AJ22: 0.9176826294 | AK22: 3.822 | AL22: 0.806383106 | AM22: 2.225057024 | AN22: 4.016231771 | AP22: 80.6383106
